Workbook

Sheet Please Wait (hidden)
A1: Please Wait
A26: Program is Running

Sheet Data (hidden)
R1: Lot | T1: Section C for Constant V for Variable | U1: Line Number | V1: Note Number | W1: Date Paved | X1: Shift | Y1: Crew | Z1: Sub Lot | AA1: Truck Load #'s | AB1: Intended Use | AC1: Density ? | AD1: Lane | AE1: Desc. | AF1: Lift | AG1: Lifts | AH1: Start Paving at Station | AL1: End Paving at Station | AM1: Length (FT) | AP1: Quantity (TN) | AR1: Individual Lift Thickness (in) | AS1: Actual Spread Rate (LB/SY) | AT1: Target Spread Rate (LB/SY) | AU1: Total Thickness (in) | AV1: Prorated Base (SY) | AW1: Date/Time Stamp
A4: Lot | B4: FIN Number | C4: Contract Number | D4: Contractor | E4: Bid Date | F4: Lump Sum Project | G4: Intended Lot Size | H4: Lot Closed | I4: Static Only | J4: Mix Design Number | K4: GmmGsb Type | L4: GmmGsb Value | M4: Line Number | N4: Note Number | O4: Date Paved | P4: Shift | Q4: Crew | R4: Sub Lot | S4: Load Numbers | T4: Intended Use | U4: Density | V4: MTV Used | W4: Lane | X4: Desc. | Y4: Lift Number | Z4: Number of Lifts | AA4: Start Station | AB4: End Station | AC4: Length | AD4: Width | AE4: Area | AF4: Quantity | AG4: Thickness | AH4: Spread Rate | AI4: Target Spread Rate | AJ4: Total Thickness | AK4: Prorated Base | AL4: Varied Width Designation | AM4: Comment | AN4: TIN Number | AO4: Lot Date TimeStamp | AP4: Date Time Stamp | AQ4: Project Date TimeStamp | AR4: Data Exists | AS4: Pay Item Number | AT4: Bit Cert Month | AU4: Target Tons | AV4: Roadway Type | AW4: Roadway ID | AX4: Intended Use Category (D/B Projects) | AY4: Adjusted Maximum Lot Size (for ticketless) | AZ4: Minimum Station | BA4: Maximum Station | BB4: GmmGsb Constants | BC4: Overbuild | BD4: Black Base Required | BE4: Unit of Measure | BF4: Find Comments | BG4: DateShiftCrewCombo | BH4: Text Date Paved | BI4: SetID | BJ4: Prorated Base Alt Total Thickness Factor | BK4: Roadway Type and ID | BL4: Equivalent Area
A5: -1 | B5: =IF(AND(Data[[#This Row],[Lot]]<>"",FIN<>""),FIN,"") -> 41673245201 | C5: =IF(AND(Data[[#This Row],[Lot]]<>"",ContractNumber<>""),ContractNumber,"") -> T7396 | D5: =IF(AND(Data[[#This Row],[Lot]]<>"",Contractor<>""),Contractor,"") -> APS | E5: =IF(AND(Data[[#This Row],[Lot]]<>"",BidDate<>""),BidDate,"") -> 2019-07-19 | F5: =IF(AND(Data[[#This Row],[Lot]]<>"",LumpSum<>""),LumpSum,"") -> No | J5: SP 14-12329B | K5: =IF(Data[[#This Row],[Mix Design Number]]<>"",IF(RIGHT(VLOOKUP(Data[[#This Row],[Mix Design Number]],MixDesign[],3,FALSE),1)=":",VLOOKUP(Data[[#This Row],[Mix Design Number]],MixDesign[],3,FALSE),VLOOKUP(Data[[#This Row],[Mix Design Number]],MixDesign[],3,FALSE)&":"),"") -> Gmm: | L5: =IF(Data[[#This Row],[Mix Design Number]]<>"",VLOOKUP(Data[[#This Row],[Mix Design Number]],MixDesign[],4,FALSE),"") -> 2.541 | M5: 1 | N5: 6 | O5: 2020-10-06 | P5: Day | Q5: 1 | S5: 1-20 | T5: Temporary (MOT) | W5: OL | X5: Phase 1 | Y5: 1 | Z5: 1 | AA5: 166375 | AB5: 165015 | AC5: 1360 | AD5: 24.33 | AE5: 3676.67 | AF5: 413.85 | AG5: 2 | AH5: 225.12 | AI5: =IF(OR(Data[[#This Row],[GmmGsb Value]]="",Data[[#This Row],[Thickness]]=""),"",IF(RIGHT(Data[[#This Row],[GmmGsb Type]],4)="Gsb:",ROUND(Data[[#This Row],[GmmGsb Value]]*Data[[#This Row],[Thickness]]*40.5,0),IF(Data[[#This Row],[GmmGsb Type]]="Gmm:",IF(Data[[#This Row],[Intended Use]]="Misc.",ROUND((Data[[#This Row],[GmmGsb Value]]/2.54)*(100*Data[[#This Row],[Thickness]]),0),ROUND(Data[[#This Row],[GmmGsb Value]]*Data[[#This Row],[Thickness]]*43.3,0)),""))) -> 220 | AK5: =IF(Data[[#This Row],[Data Exists]]=FALSE,"",IF(LEFT(Data[[#This Row],[GmmGsb Type]],4)="ATPB",IF(AND(Data[[#This Row],[Start Station]]<>"",Data[[#This Row],[End Station]]<>"",Data[[#This Row],[Width]]<>"",Data[[#This Row],[Thickness]]<>"",Data[[#This Row],[Intended Use]]="ATPB"),Data[[#This Row],[Length]]*Data[[#This Row],[Width]]*Data[[#This Row],[Thickness]]/324,""),IF(Data[[#This Row],[Intended Use]]<>"",IF(UPPER(INDEX(EditablePayItems[],MATCH(IF(OR(RIGHT(Data[[#This Row],[Intended Use]],6)=" (opt)",RIGHT(Data[[#This Row],[Intended Use]],6)=" (req)"),LEFT(Data[[#This Row],[Intended Use]],LEN(Data[[#This Row],[Intended Use]])-6),Data[[#This Row],[Intended Use]]),EditablePayItems[IntendedUse],0),4))="PRORATED",IF(Data[[#This Row],[Total Thickness]]*Data[[#This Row],[Area]]<>0,Data[[#This Row],[Thickness]]/Data[[#This Row],[Total Thickness]]*Data[[#This Row],[Area]],0), ""),""))) ->  | AL5: V | AM5: Paid for by Pepper | AN5: J52006881-164 | AP5: 2022-12-01T00:41:18 | AQ5: =IF(AND(Data[[#This Row],[Lot]]<>"",ProjectDateTimeStamp<>""),ProjectDateTimeStamp,"") -> 2023-10-05T10:35:05 | AR5: =IF(COUNTA(Data[[#This Row],[Lot]],Data[[#This Row],[Intended Lot Size]:[Mix Design Number]],Data[[#This Row],[Line Number]:[Spread Rate]],Data[[#This Row],[Total Thickness]],Data[[#This Row],[Varied Width Designation]:[Date Time Stamp]])>0,TRUE,FALSE) -> TRUE | AS5: =IF(Data[[#This Row],[Intended Use]]<>"",IF(VLOOKUP(Data[[#This Row],[Intended Use]],EditablePayItems[[IntendedUse]:[PayItemNumber]],6,FALSE)<>"",VLOOKUP(Data[[#This Row],[Intended Use]],EditablePayItems[[IntendedUse]:[PayItemNumber]],6,FALSE),""),"") ->  | AT5: =IF(Data[[#This Row],[Date Paved]]<>"",VLOOKUP(Data[[#This Row],[Date Paved]],MonthlyCutOffDates[[Date From]:[MonthYear]],3),"") -> Dec 2018 | AU5: =IF(AND(Data[[#This Row],[Target Spread Rate]]<>"",Data[[#This Row],[Area]]<>""),Data[[#This Row],[Target Spread Rate]]*Data[[#This Row],[Area]]/2000,"") -> 404.4337 | AV5: Mainline | AW5: SR-50 | AZ5: =MIN(Data[[#This Row],[Start Station]:[End Station]]) -> 165015 | BA5: =MAX(Data[[#This Row],[Start Station]:[End Station]]) -> 166375 | BB5: =IF(AND(Data[[#This Row],[Quantity]]<>"",Data[[#This Row],[GmmGsb Value]]<>""),Data[[#This Row],[Quantity]]*Data[[#This Row],[GmmGsb Value]],"") -> 1051.59285 | BE5: =IF(Data[[#This Row],[Pay Item Number]]<>"",IF(VLOOKUP(Data[[#This Row],[Intended Use]],EditablePayItems[[IntendedUse]:[Actual Quantity Paid]],2,FALSE)="Prorated",IF(LEFT(Data[[#This Row],[Intended Use]],4)="ATPB","Cubic Yards","Square Yards"),"Tons"),"") ->  | BF5: =Data[[#This Row],[Lot]]&"-"&Data[[#This Row],[Line Number]] -> -1-1 | BG5: =IF(Data[[#This Row],[Date Paved]]<>"",TEXT(Data[[#This Row],[Date Paved]],"mm/dd/yyyy")&" - "&Data[[#This Row],[Shift]]&" - Crew "&Data[[#This Row],[Crew]],"") -> 10/06/2020 - Day - Crew 1 | BH5: =IF(Data[[#This Row],[Date Paved]]<>"",TEXT(Data[[#This Row],[Date Paved]],"mm/dd/yyyy"),"") -> 10/06/2020 | BJ5: =IF(OR(LEFT(Data[[#This Row],[Intended Use]],10)="Base Group", Data[[#This Row],[Intended Use]]="Turnout Const. (per sy)"),IF(AND(Data[[#This Row],[Thickness]]<>0,Data[[#This Row],[Total Thickness]]<>0,Data[[#This Row],[Area]]<>0),(Data[[#This Row],[Prorated Base]]/SUMIFS(Data[Prorated Base],Data[Intended Use],"="&Data[[#This Row],[Intended Use]]))*Data[[#This Row],[Total Thickness]],""), "") ->  | BK5: =IF(OR(Data[[#This Row],[Roadway Type]]<>"",Data[[#This Row],[Roadway ID]]<>""),UPPER(Data[[#This Row],[Roadway Type]])&"~-~"&UPPER(Data[[#This Row],[Roadway ID]]),"") -> MAINLINE~-~SR-50 | BL5: =IF(AND(Data[[#This Row],[Quantity]]<>"",Data[[#This Row],[Total Thickness]]<>"",Data[[#This Row],[Total Thickness]]<>0,Data[[#This Row],[GmmGsb Value]]<>"",Data[[#This Row],[GmmGsb Value]]<>0),IF(Data[[#This Row],[Quantity]]>0,(Data[[#This Row],[Quantity]]*2000)/(Data[[#This Row],[Total Thickness]]*Data[[#This Row],[GmmGsb Value]]*43.3),0),"") -> 
A6: -1 | B6: =IF(AND(Data[[#This Row],[Lot]]<>"",FIN<>""),FIN,"") -> 41673245201 | C6: =IF(AND(Data[[#This Row],[Lot]]<>"",ContractNumber<>""),ContractNumber,"") -> T7396 | D6: =IF(AND(Data[[#This Row],[Lot]]<>"",Contractor<>""),Contractor,"") -> APS | E6: =IF(AND(Data[[#This Row],[Lot]]<>"",BidDate<>""),BidDate,"") -> 2019-07-19 | F6: =IF(AND(Data[[#This Row],[Lot]]<>"",LumpSum<>""),LumpSum,"") -> No | J6: SP 14-12329B | K6: =IF(Data[[#This Row],[Mix Design Number]]<>"",IF(RIGHT(VLOOKUP(Data[[#This Row],[Mix Design Number]],MixDesign[],3,FALSE),1)=":",VLOOKUP(Data[[#This Row],[Mix Design Number]],MixDesign[],3,FALSE),VLOOKUP(Data[[#This Row],[Mix Design Number]],MixDesign[],3,FALSE)&":"),"") -> Gmm: | L6: =IF(Data[[#This Row],[Mix Design Number]]<>"",VLOOKUP(Data[[#This Row],[Mix Design Number]],MixDesign[],4,FALSE),"") -> 2.541 | M6: 2 | N6: 6 | O6: 2020-10-06 | P6: Day | Q6: 1 | S6: 21-41 | T6: Temporary (MOT) | W6: OR | X6: Phase 1 | Y6: 1 | Z6: 1 | AA6: 165040 | AB6: 166383 | AC6: 1343 | AD6: 25.96 | AE6: 3874 | AF6: 434.36 | AG6: 2 | AH6: 224.24 | AI6: =IF(OR(Data[[#This Row],[GmmGsb Value]]="",Data[[#This Row],[Thickness]]=""),"",IF(RIGHT(Data[[#This Row],[GmmGsb Type]],4)="Gsb:",ROUND(Data[[#This Row],[GmmGsb Value]]*Data[[#This Row],[Thickness]]*40.5,0),IF(Data[[#This Row],[GmmGsb Type]]="Gmm:",IF(Data[[#This Row],[Intended Use]]="Misc.",ROUND((Data[[#This Row],[GmmGsb Value]]/2.54)*(100*Data[[#This Row],[Thickness]]),0),ROUND(Data[[#This Row],[GmmGsb Value]]*Data[[#This Row],[Thickness]]*43.3,0)),""))) -> 220 | AK6: =IF(Data[[#This Row],[Data Exists]]=FALSE,"",IF(LEFT(Data[[#This Row],[GmmGsb Type]],4)="ATPB",IF(AND(Data[[#This Row],[Start Station]]<>"",Data[[#This Row],[End Station]]<>"",Data[[#This Row],[Width]]<>"",Data[[#This Row],[Thickness]]<>"",Data[[#This Row],[Intended Use]]="ATPB"),Data[[#This Row],[Length]]*Data[[#This Row],[Width]]*Data[[#This Row],[Thickness]]/324,""),IF(Data[[#This Row],[Intended Use]]<>"",IF(UPPER(INDEX(EditablePayItems[],MATCH(IF(OR(RIGHT(Data[[#This Row],[Intended Use]],6)=" (opt)",RIGHT(Data[[#This Row],[Intended Use]],6)=" (req)"),LEFT(Data[[#This Row],[Intended Use]],LEN(Data[[#This Row],[Intended Use]])-6),Data[[#This Row],[Intended Use]]),EditablePayItems[IntendedUse],0),4))="PRORATED",IF(Data[[#This Row],[Total Thickness]]*Data[[#This Row],[Area]]<>0,Data[[#This Row],[Thickness]]/Data[[#This Row],[Total Thickness]]*Data[[#This Row],[Area]],0), ""),""))) ->  | AL6: V | AM6: Paid for by Pepper | AN6: J52006881-164 | AP6: 2022-12-01T00:41:18 | AQ6: =IF(AND(Data[[#This Row],[Lot]]<>"",ProjectDateTimeStamp<>""),ProjectDateTimeStamp,"") -> 2023-10-05T10:35:05 | AR6: =IF(COUNTA(Data[[#This Row],[Lot]],Data[[#This Row],[Intended Lot Size]:[Mix Design Number]],Data[[#This Row],[Line Number]:[Spread Rate]],Data[[#This Row],[Total Thickness]],Data[[#This Row],[Varied Width Designation]:[Date Time Stamp]])>0,TRUE,FALSE) -> TRUE | AS6: =IF(Data[[#This Row],[Intended Use]]<>"",IF(VLOOKUP(Data[[#This Row],[Intended Use]],EditablePayItems[[IntendedUse]:[PayItemNumber]],6,FALSE)<>"",VLOOKUP(Data[[#This Row],[Intended Use]],EditablePayItems[[IntendedUse]:[PayItemNumber]],6,FALSE),""),"") ->  | AT6: =IF(Data[[#This Row],[Date Paved]]<>"",VLOOKUP(Data[[#This Row],[Date Paved]],MonthlyCutOffDates[[Date From]:[MonthYear]],3),"") -> Dec 2018 | AU6: =IF(AND(Data[[#This Row],[Target Spread Rate]]<>"",Data[[#This Row],[Area]]<>""),Data[[#This Row],[Target Spread Rate]]*Data[[#This Row],[Area]]/2000,"") -> 426.14 | AV6: Mainline | AW6: SR-50 | AZ6: =MIN(Data[[#This Row],[Start Station]:[End Station]]) -> 165040 | BA6: =MAX(Data[[#This Row],[Start Station]:[End Station]]) -> 166383 | BB6: =IF(AND(Data[[#This Row],[Quantity]]<>"",Data[[#This Row],[GmmGsb Value]]<>""),Data[[#This Row],[Quantity]]*Data[[#This Row],[GmmGsb Value]],"") -> 1103.70876 | BE6: =IF(Data[[#This Row],[Pay Item Number]]<>"",IF(VLOOKUP(Data[[#This Row],[Intended Use]],EditablePayItems[[IntendedUse]:[Actual Quantity Paid]],2,FALSE)="Prorated",IF(LEFT(Data[[#This Row],[Intended Use]],4)="ATPB","Cubic Yards","Square Yards"),"Tons"),"") ->  | BF6: =Data[[#This Row],[Lot]]&"-"&Data[[#This Row],[Line Number]] -> -1-2 | BG6: =IF(Data[[#This Row],[Date Paved]]<>"",TEXT(Data[[#This Row],[Date Paved]],"mm/dd/yyyy")&" - "&Data[[#This Row],[Shift]]&" - Crew "&Data[[#This Row],[Crew]],"") -> 10/06/2020 - Day - Crew 1 | BH6: =IF(Data[[#This Row],[Date Paved]]<>"",TEXT(Data[[#This Row],[Date Paved]],"mm/dd/yyyy"),"") -> 10/06/2020 | BJ6: =IF(OR(LEFT(Data[[#This Row],[Intended Use]],10)="Base Group", Data[[#This Row],[Intended Use]]="Turnout Const. (per sy)"),IF(AND(Data[[#This Row],[Thickness]]<>0,Data[[#This Row],[Total Thickness]]<>0,Data[[#This Row],[Area]]<>0),(Data[[#This Row],[Prorated Base]]/SUMIFS(Data[Prorated Base],Data[Intended Use],"="&Data[[#This Row],[Intended Use]]))*Data[[#This Row],[Total Thickness]],""), "") ->  | BK6: =IF(OR(Data[[#This Row],[Roadway Type]]<>"",Data[[#This Row],[Roadway ID]]<>""),UPPER(Data[[#This Row],[Roadway Type]])&"~-~"&UPPER(Data[[#This Row],[Roadway ID]]),"") -> MAINLINE~-~SR-50 | BL6: =IF(AND(Data[[#This Row],[Quantity]]<>"",Data[[#This Row],[Total Thickness]]<>"",Data[[#This Row],[Total Thickness]]<>0,Data[[#This Row],[GmmGsb Value]]<>"",Data[[#This Row],[GmmGsb Value]]<>0),IF(Data[[#This Row],[Quantity]]>0,(Data[[#This Row],[Quantity]]*2000)/(Data[[#This Row],[Total Thickness]]*Data[[#This Row],[GmmGsb Value]]*43.3),0),"") -> 
A7: -1 | B7: =IF(AND(Data[[#This Row],[Lot]]<>"",FIN<>""),FIN,"") -> 41673245201 | C7: =IF(AND(Data[[#This Row],[Lot]]<>"",ContractNumber<>""),ContractNumber,"") -> T7396 | D7: =IF(AND(Data[[#This Row],[Lot]]<>"",Contractor<>""),Contractor,"") -> APS | E7: =IF(AND(Data[[#This Row],[Lot]]<>"",BidDate<>""),BidDate,"") -> 2019-07-19 | F7: =IF(AND(Data[[#This Row],[Lot]]<>"",LumpSum<>""),LumpSum,"") -> No | J7: SP 21-19388B | K7: =IF(Data[[#This Row],[Mix Design Number]]<>"",IF(RIGHT(VLOOKUP(Data[[#This Row],[Mix Design Number]],MixDesign[],3,FALSE),1)=":",VLOOKUP(Data[[#This Row],[Mix Design Number]],MixDesign[],3,FALSE),VLOOKUP(Data[[#This Row],[Mix Design Number]],MixDesign[],3,FALSE)&":"),"") -> Gmm: | L7: =IF(Data[[#This Row],[Mix Design Number]]<>"",VLOOKUP(Data[[#This Row],[Mix Design Number]],MixDesign[],4,FALSE),"") -> 2.456 | M7: 5 | N7: 7 | O7: 2021-11-07 | P7: Night | Q7: 2 | S7: 1-2 | T7: Temporary (MOT) | W7: R2 | X7: Mainline Temp MOT | Y7: 1 | Z7: 1 | AA7: 161190 | AB7: 161500 | AC7: 310 | AD7: 7.5 | AE7: 258.33 | AF7: 25.45 | AG7: 1.9 | AH7: 197.03 | AI7: =IF(OR(Data[[#This Row],[GmmGsb Value]]="",Data[[#This Row],[Thickness]]=""),"",IF(RIGHT(Data[[#This Row],[GmmGsb Type]],4)="Gsb:",ROUND(Data[[#This Row],[GmmGsb Value]]*Data[[#This Row],[Thickness]]*40.5,0),IF(Data[[#This Row],[GmmGsb Type]]="Gmm:",IF(Data[[#This Row],[Intended Use]]="Misc.",ROUND((Data[[#This Row],[GmmGsb Value]]/2.54)*(100*Data[[#This Row],[Thickness]]),0),ROUND(Data[[#This Row],[GmmGsb Value]]*Data[[#This Row],[Thickness]]*43.3,0)),""))) -> 202 | AK7: =IF(Data[[#This Row],[Data Exists]]=FALSE,"",IF(LEFT(Data[[#This Row],[GmmGsb Type]],4)="ATPB",IF(AND(Data[[#This Row],[Start Station]]<>"",Data[[#This Row],[End Station]]<>"",Data[[#This Row],[Width]]<>"",Data[[#This Row],[Thickness]]<>"",Data[[#This Row],[Intended Use]]="ATPB"),Data[[#This Row],[Length]]*Data[[#This Row],[Width]]*Data[[#This Row],[Thickness]]/324,""),IF(Data[[#This Row],[Intended Use]]<>"",IF(UPPER(INDEX(EditablePayItems[],MATCH(IF(OR(RIGHT(Data[[#This Row],[Intended Use]],6)=" (opt)",RIGHT(Data[[#This Row],[Intended Use]],6)=" (req)"),LEFT(Data[[#This Row],[Intended Use]],LEN(Data[[#This Row],[Intended Use]])-6),Data[[#This Row],[Intended Use]]),EditablePayItems[IntendedUse],0),4))="PRORATED",IF(Data[[#This Row],[Total Thickness]]*Data[[#This Row],[Area]]<>0,Data[[#This Row],[Thickness]]/Data[[#This Row],[Total Thickness]]*Data[[#This Row],[Area]],0), ""),""))) ->  | AL7: C | AM7: Temp MOT = No Pay Tonnage Due Plant Down - Paid by PMI. | AN7: D65355665-000 | AP7: 2022-12-01T00:41:19 | AQ7: =IF(AND(Data[[#This Row],[Lot]]<>"",ProjectDateTimeStamp<>""),ProjectDateTimeStamp,"") -> 2023-10-05T10:35:05 | AR7: =IF(COUNTA(Data[[#This Row],[Lot]],Data[[#This Row],[Intended Lot Size]:[Mix Design Number]],Data[[#This Row],[Line Number]:[Spread Rate]],Data[[#This Row],[Total Thickness]],Data[[#This Row],[Varied Width Designation]:[Date Time Stamp]])>0,TRUE,FALSE) -> TRUE | AS7: =IF(Data[[#This Row],[Intended Use]]<>"",IF(VLOOKUP(Data[[#This Row],[Intended Use]],EditablePayItems[[IntendedUse]:[PayItemNumber]],6,FALSE)<>"",VLOOKUP(Data[[#This Row],[Intended Use]],EditablePayItems[[IntendedUse]:[PayItemNumber]],6,FALSE),""),"") ->  | AT7: =IF(Data[[#This Row],[Date Paved]]<>"",VLOOKUP(Data[[#This Row],[Date Paved]],MonthlyCutOffDates[[Date From]:[MonthYear]],3),"") -> Dec 2018 | AU7: =IF(AND(Data[[#This Row],[Target Spread Rate]]<>"",Data[[#This Row],[Area]]<>""),Data[[#This Row],[Target Spread Rate]]*Data[[#This Row],[Area]]/2000,"") -> 26.09133 | AV7: Mainline | AW7: SR-50 | AZ7: =MIN(Data[[#This Row],[Start Station]:[End Station]]) -> 161190 | BA7: =MAX(Data[[#This Row],[Start Station]:[End Station]]) -> 161500 | BB7: =IF(AND(Data[[#This Row],[Quantity]]<>"",Data[[#This Row],[GmmGsb Value]]<>""),Data[[#This Row],[Quantity]]*Data[[#This Row],[GmmGsb Value]],"") -> 62.5052 | BE7: =IF(Data[[#This Row],[Pay Item Number]]<>"",IF(VLOOKUP(Data[[#This Row],[Intended Use]],EditablePayItems[[IntendedUse]:[Actual Quantity Paid]],2,FALSE)="Prorated",IF(LEFT(Data[[#This Row],[Intended Use]],4)="ATPB","Cubic Yards","Square Yards"),"Tons"),"") ->  | BF7: =Data[[#This Row],[Lot]]&"-"&Data[[#This Row],[Line Number]] -> -1-5 | BG7: =IF(Data[[#This Row],[Date Paved]]<>"",TEXT(Data[[#This Row],[Date Paved]],"mm/dd/yyyy")&" - "&Data[[#This Row],[Shift]]&" - Crew "&Data[[#This Row],[Crew]],"") -> 11/07/2021 - Night - Crew 2 | BH7: =IF(Data[[#This Row],[Date Paved]]<>"",TEXT(Data[[#This Row],[Date Paved]],"mm/dd/yyyy"),"") -> 11/07/2021 | BJ7: =IF(OR(LEFT(Data[[#This Row],[Intended Use]],10)="Base Group", Data[[#This Row],[Intended Use]]="Turnout Const. (per sy)"),IF(AND(Data[[#This Row],[Thickness]]<>0,Data[[#This Row],[Total Thickness]]<>0,Data[[#This Row],[Area]]<>0),(Data[[#This Row],[Prorated Base]]/SUMIFS(Data[Prorated Base],Data[Intended Use],"="&Data[[#This Row],[Intended Use]]))*Data[[#This Row],[Total Thickness]],""), "") ->  | BK7: =IF(OR(Data[[#This Row],[Roadway Type]]<>"",Data[[#This Row],[Roadway ID]]<>""),UPPER(Data[[#This Row],[Roadway Type]])&"~-~"&UPPER(Data[[#This Row],[Roadway ID]]),"") -> MAINLINE~-~SR-50 | BL7: =IF(AND(Data[[#This Row],[Quantity]]<>"",Data[[#This Row],[Total Thickness]]<>"",Data[[#This Row],[Total Thickness]]<>0,Data[[#This Row],[GmmGsb Value]]<>"",Data[[#This Row],[GmmGsb Value]]<>0),IF(Data[[#This Row],[Quantity]]>0,(Data[[#This Row],[Quantity]]*2000)/(Data[[#This Row],[Total Thickness]]*Data[[#This Row],[GmmGsb Value]]*43.3),0),"") -> 
A8: -1 | B8: =IF(AND(Data[[#This Row],[Lot]]<>"",FIN<>""),FIN,"") -> 41673245201 | C8: =IF(AND(Data[[#This Row],[Lot]]<>"",ContractNumber<>""),ContractNumber,"") -> T7396 | D8: =IF(AND(Data[[#This Row],[Lot]]<>"",Contractor<>""),Contractor,"") -> APS | E8: =IF(AND(Data[[#This Row],[Lot]]<>"",BidDate<>""),BidDate,"") -> 2019-07-19 | F8: =IF(AND(Data[[#This Row],[Lot]]<>"",LumpSum<>""),LumpSum,"") -> No | K8: =IF(Data[[#This Row],[Mix Design Number]]<>"",IF(RIGHT(VLOOKUP(Data[[#This Row],[Mix Design Number]],MixDesign[],3,FALSE),1)=":",VLOOKUP(Data[[#This Row],[Mix Design Number]],MixDesign[],3,FALSE),VLOOKUP(Data[[#This Row],[Mix Design Number]],MixDesign[],3,FALSE)&":"),"") ->  | L8: =IF(Data[[#This Row],[Mix Design Number]]<>"",VLOOKUP(Data[[#This Row],[Mix Design Number]],MixDesign[],4,FALSE),"") ->  | M8: 6 | O8: 2021-11-07 | P8: Night | Q8: 2 | S8: 2 | T8: Waste | X8: Unused Asphalt | AC8: 0 | AF8: 17.1 | AH8: 0 | AI8: =IF(OR(Data[[#This Row],[GmmGsb Value]]="",Data[[#This Row],[Thickness]]=""),"",IF(RIGHT(Data[[#This Row],[GmmGsb Type]],4)="Gsb:",ROUND(Data[[#This Row],[GmmGsb Value]]*Data[[#This Row],[Thickness]]*40.5,0),IF(Data[[#This Row],[GmmGsb Type]]="Gmm:",IF(Data[[#This Row],[Intended Use]]="Misc.",ROUND((Data[[#This Row],[GmmGsb Value]]/2.54)*(100*Data[[#This Row],[Thickness]]),0),ROUND(Data[[#This Row],[GmmGsb Value]]*Data[[#This Row],[Thickness]]*43.3,0)),""))) ->  | AK8: =IF(Data[[#This Row],[Data Exists]]=FALSE,"",IF(LEFT(Data[[#This Row],[GmmGsb Type]],4)="ATPB",IF(AND(Data[[#This Row],[Start Station]]<>"",Data[[#This Row],[End Station]]<>"",Data[[#This Row],[Width]]<>"",Data[[#This Row],[Thickness]]<>"",Data[[#This Row],[Intended Use]]="ATPB"),Data[[#This Row],[Length]]*Data[[#This Row],[Width]]*Data[[#This Row],[Thickness]]/324,""),IF(Data[[#This Row],[Intended Use]]<>"",IF(UPPER(INDEX(EditablePayItems[],MATCH(IF(OR(RIGHT(Data[[#This Row],[Intended Use]],6)=" (opt)",RIGHT(Data[[#This Row],[Intended Use]],6)=" (req)"),LEFT(Data[[#This Row],[Intended Use]],LEN(Data[[#This Row],[Intended Use]])-6),Data[[#This Row],[Intended Use]]),EditablePayItems[IntendedUse],0),4))="PRORATED",IF(Data[[#This Row],[Total Thickness]]*Data[[#This Row],[Area]]<>0,Data[[#This Row],[Thickness]]/Data[[#This Row],[Total Thickness]]*Data[[#This Row],[Area]],0), ""),""))) ->  | AN8: D65355665-000 | AP8: 2022-12-01T00:41:19 | AQ8: =IF(AND(Data[[#This Row],[Lot]]<>"",ProjectDateTimeStamp<>""),ProjectDateTimeStamp,"") -> 2023-10-05T10:35:05 | AR8: =IF(COUNTA(Data[[#This Row],[Lot]],Data[[#This Row],[Intended Lot Size]:[Mix Design Number]],Data[[#This Row],[Line Number]:[Spread Rate]],Data[[#This Row],[Total Thickness]],Data[[#This Row],[Varied Width Designation]:[Date Time Stamp]])>0,TRUE,FALSE) -> TRUE | AS8: =IF(Data[[#This Row],[Intended Use]]<>"",IF(VLOOKUP(Data[[#This Row],[Intended Use]],EditablePayItems[[IntendedUse]:[PayItemNumber]],6,FALSE)<>"",VLOOKUP(Data[[#This Row],[Intended Use]],EditablePayItems[[IntendedUse]:[PayItemNumber]],6,FALSE),""),"") ->  | AT8: =IF(Data[[#This Row],[Date Paved]]<>"",VLOOKUP(Data[[#This Row],[Date Paved]],MonthlyCutOffDates[[Date From]:[MonthYear]],3),"") -> Dec 2018 | AU8: =IF(AND(Data[[#This Row],[Target Spread Rate]]<>"",Data[[#This Row],[Area]]<>""),Data[[#This Row],[Target Spread Rate]]*Data[[#This Row],[Area]]/2000,"") ->  | AV8: Waste | AZ8: =MIN(Data[[#This Row],[Start Station]:[End Station]]) -> 0 | BA8: =MAX(Data[[#This Row],[Start Station]:[End Station]]) -> 0 | BB8: =IF(AND(Data[[#This Row],[Quantity]]<>"",Data[[#This Row],[GmmGsb Value]]<>""),Data[[#This Row],[Quantity]]*Data[[#This Row],[GmmGsb Value]],"") ->  | BE8: =IF(Data[[#This Row],[Pay Item Number]]<>"",IF(VLOOKUP(Data[[#This Row],[Intended Use]],EditablePayItems[[IntendedUse]:[Actual Quantity Paid]],2,FALSE)="Prorated",IF(LEFT(Data[[#This Row],[Intended Use]],4)="ATPB","Cubic Yards","Square Yards"),"Tons"),"") ->  | BF8: =Data[[#This Row],[Lot]]&"-"&Data[[#This Row],[Line Number]] -> -1-6 | BG8: =IF(Data[[#This Row],[Date Paved]]<>"",TEXT(Data[[#This Row],[Date Paved]],"mm/dd/yyyy")&" - "&Data[[#This Row],[Shift]]&" - Crew "&Data[[#This Row],[Crew]],"") -> 11/07/2021 - Night - Crew 2 | BH8: =IF(Data[[#This Row],[Date Paved]]<>"",TEXT(Data[[#This Row],[Date Paved]],"mm/dd/yyyy"),"") -> 11/07/2021 | BJ8: =IF(OR(LEFT(Data[[#This Row],[Intended Use]],10)="Base Group", Data[[#This Row],[Intended Use]]="Turnout Const. (per sy)"),IF(AND(Data[[#This Row],[Thickness]]<>0,Data[[#This Row],[Total Thickness]]<>0,Data[[#This Row],[Area]]<>0),(Data[[#This Row],[Prorated Base]]/SUMIFS(Data[Prorated Base],Data[Intended Use],"="&Data[[#This Row],[Intended Use]]))*Data[[#This Row],[Total Thickness]],""), "") ->  | BK8: =IF(OR(Data[[#This Row],[Roadway Type]]<>"",Data[[#This Row],[Roadway ID]]<>""),UPPER(Data[[#This Row],[Roadway Type]])&"~-~"&UPPER(Data[[#This Row],[Roadway ID]]),"") -> WASTE~-~ | BL8: =IF(AND(Data[[#This Row],[Quantity]]<>"",Data[[#This Row],[Total Thickness]]<>"",Data[[#This Row],[Total Thickness]]<>0,Data[[#This Row],[GmmGsb Value]]<>"",Data[[#This Row],[GmmGsb Value]]<>0),IF(Data[[#This Row],[Quantity]]>0,(Data[[#This Row],[Quantity]]*2000)/(Data[[#This Row],[Total Thickness]]*Data[[#This Row],[GmmGsb Value]]*43.3),0),"") -> 
A9: -1 | B9: =IF(AND(Data[[#This Row],[Lot]]<>"",FIN<>""),FIN,"") -> 41673245201 | C9: =IF(AND(Data[[#This Row],[Lot]]<>"",ContractNumber<>""),ContractNumber,"") -> T7396 | D9: =IF(AND(Data[[#This Row],[Lot]]<>"",Contractor<>""),Contractor,"") -> APS | E9: =IF(AND(Data[[#This Row],[Lot]]<>"",BidDate<>""),BidDate,"") -> 2019-07-19 | F9: =IF(AND(Data[[#This Row],[Lot]]<>"",LumpSum<>""),LumpSum,"") -> No | J9: SP 21-19624B | K9: =IF(Data[[#This Row],[Mix Design Number]]<>"",IF(RIGHT(VLOOKUP(Data[[#This Row],[Mix Design Number]],MixDesign[],3,FALSE),1)=":",VLOOKUP(Data[[#This Row],[Mix Design Number]],MixDesign[],3,FALSE),VLOOKUP(Data[[#This Row],[Mix Design Number]],MixDesign[],3,FALSE)&":"),"") -> Gmm: | L9: =IF(Data[[#This Row],[Mix Design Number]]<>"",VLOOKUP(Data[[#This Row],[Mix Design Number]],MixDesign[],4,FALSE),"") -> 2.456 | M9: 9 | O9: 2022-01-16 | P9: Night | Q9: 2 | S9: 1-2 | T9: Temporary (MOT) | W9: OR | X9: 301 Temp INS | AA9: 183413 | AB9: 183550 | AC9: 137 | AD9: 17 | AE9: 258.78 | AF9: 38.4 | AH9: 296.78 | AI9: =IF(OR(Data[[#This Row],[GmmGsb Value]]="",Data[[#This Row],[Thickness]]=""),"",IF(RIGHT(Data[[#This Row],[GmmGsb Type]],4)="Gsb:",ROUND(Data[[#This Row],[GmmGsb Value]]*Data[[#This Row],[Thickness]]*40.5,0),IF(Data[[#This Row],[GmmGsb Type]]="Gmm:",IF(Data[[#This Row],[Intended Use]]="Misc.",ROUND((Data[[#This Row],[GmmGsb Value]]/2.54)*(100*Data[[#This Row],[Thickness]]),0),ROUND(Data[[#This Row],[GmmGsb Value]]*Data[[#This Row],[Thickness]]*43.3,0)),""))) ->  | AK9: =IF(Data[[#This Row],[Data Exists]]=FALSE,"",IF(LEFT(Data[[#This Row],[GmmGsb Type]],4)="ATPB",IF(AND(Data[[#This Row],[Start Station]]<>"",Data[[#This Row],[End Station]]<>"",Data[[#This Row],[Width]]<>"",Data[[#This Row],[Thickness]]<>"",Data[[#This Row],[Intended Use]]="ATPB"),Data[[#This Row],[Length]]*Data[[#This Row],[Width]]*Data[[#This Row],[Thickness]]/324,""),IF(Data[[#This Row],[Intended Use]]<>"",IF(UPPER(INDEX(EditablePayItems[],MATCH(IF(OR(RIGHT(Data[[#This Row],[Intended Use]],6)=" (opt)",RIGHT(Data[[#This Row],[Intended Use]],6)=" (req)"),LEFT(Data[[#This Row],[Intended Use]],LEN(Data[[#This Row],[Intended Use]])-6),Data[[#This Row],[Intended Use]]),EditablePayItems[IntendedUse],0),4))="PRORATED",IF(Data[[#This Row],[Total Thickness]]*Data[[#This Row],[Area]]<>0,Data[[#This Row],[Thickness]]/Data[[#This Row],[Total Thickness]]*Data[[#This Row],[Area]],0), ""),""))) ->  | AL9: C | AN9: M24307776-000 | AP9: 2022-12-01T00:41:19 | AQ9: =IF(AND(Data[[#This Row],[Lot]]<>"",ProjectDateTimeStamp<>""),ProjectDateTimeStamp,"") -> 2023-10-05T10:35:05 | AR9: =IF(COUNTA(Data[[#This Row],[Lot]],Data[[#This Row],[Intended Lot Size]:[Mix Design Number]],Data[[#This Row],[Line Number]:[Spread Rate]],Data[[#This Row],[Total Thickness]],Data[[#This Row],[Varied Width Designation]:[Date Time Stamp]])>0,TRUE,FALSE) -> TRUE | AS9: =IF(Data[[#This Row],[Intended Use]]<>"",IF(VLOOKUP(Data[[#This Row],[Intended Use]],EditablePayItems[[IntendedUse]:[PayItemNumber]],6,FALSE)<>"",VLOOKUP(Data[[#This Row],[Intended Use]],EditablePayItems[[IntendedUse]:[PayItemNumber]],6,FALSE),""),"") ->  | AT9: =IF(Data[[#This Row],[Date Paved]]<>"",VLOOKUP(Data[[#This Row],[Date Paved]],MonthlyCutOffDates[[Date From]:[MonthYear]],3),"") -> Dec 2018 | AU9: =IF(AND(Data[[#This Row],[Target Spread Rate]]<>"",Data[[#This Row],[Area]]<>""),Data[[#This Row],[Target Spread Rate]]*Data[[#This Row],[Area]]/2000,"") ->  | AV9: Mainline | AW9: SR-50 | AZ9: =MIN(Data[[#This Row],[Start Station]:[End Station]]) -> 183413 | BA9: =MAX(Data[[#This Row],[Start Station]:[End Station]]) -> 183550 | BB9: =IF(AND(Data[[#This Row],[Quantity]]<>"",Data[[#This Row],[GmmGsb Value]]<>""),Data[[#This Row],[Quantity]]*Data[[#This Row],[GmmGsb Value]],"") -> 94.3104 | BE9: =IF(Data[[#This Row],[Pay Item Number]]<>"",IF(VLOOKUP(Data[[#This Row],[Intended Use]],EditablePayItems[[IntendedUse]:[Actual Quantity Paid]],2,FALSE)="Prorated",IF(LEFT(Data[[#This Row],[Intended Use]],4)="ATPB","Cubic Yards","Square Yards"),"Tons"),"") ->  | BF9: =Data[[#This Row],[Lot]]&"-"&Data[[#This Row],[Line Number]] -> -1-9 | BG9: =IF(Data[[#This Row],[Date Paved]]<>"",TEXT(Data[[#This Row],[Date Paved]],"mm/dd/yyyy")&" - "&Data[[#This Row],[Shift]]&" - Crew "&Data[[#This Row],[Crew]],"") -> 01/16/2022 - Night - Crew 2 | BH9: =IF(Data[[#This Row],[Date Paved]]<>"",TEXT(Data[[#This Row],[Date Paved]],"mm/dd/yyyy"),"") -> 01/16/2022 | BJ9: =IF(OR(LEFT(Data[[#This Row],[Intended Use]],10)="Base Group", Data[[#This Row],[Intended Use]]="Turnout Const. (per sy)"),IF(AND(Data[[#This Row],[Thickness]]<>0,Data[[#This Row],[Total Thickness]]<>0,Data[[#This Row],[Area]]<>0),(Data[[#This Row],[Prorated Base]]/SUMIFS(Data[Prorated Base],Data[Intended Use],"="&Data[[#This Row],[Intended Use]]))*Data[[#This Row],[Total Thickness]],""), "") ->  | BK9: =IF(OR(Data[[#This Row],[Roadway Type]]<>"",Data[[#This Row],[Roadway ID]]<>""),UPPER(Data[[#This Row],[Roadway Type]])&"~-~"&UPPER(Data[[#This Row],[Roadway ID]]),"") -> MAINLINE~-~SR-50 | BL9: =IF(AND(Data[[#This Row],[Quantity]]<>"",Data[[#This Row],[Total Thickness]]<>"",Data[[#This Row],[Total Thickness]]<>0,Data[[#This Row],[GmmGsb Value]]<>"",Data[[#This Row],[GmmGsb Value]]<>0),IF(Data[[#This Row],[Quantity]]>0,(Data[[#This Row],[Quantity]]*2000)/(Data[[#This Row],[Total Thickness]]*Data[[#This Row],[GmmGsb Value]]*43.3),0),"") -> 
A10: -1 | B10: =IF(AND(Data[[#This Row],[Lot]]<>"",FIN<>""),FIN,"") -> 41673245201 | C10: =IF(AND(Data[[#This Row],[Lot]]<>"",ContractNumber<>""),ContractNumber,"") -> T7396 | D10: =IF(AND(Data[[#This Row],[Lot]]<>"",Contractor<>""),Contractor,"") -> APS | E10: =IF(AND(Data[[#This Row],[Lot]]<>"",BidDate<>""),BidDate,"") -> 2019-07-19 | F10: =IF(AND(Data[[#This Row],[Lot]]<>"",LumpSum<>""),LumpSum,"") -> No | J10: SP 21-19624B | K10: =IF(Data[[#This Row],[Mix Design Number]]<>"",IF(RIGHT(VLOOKUP(Data[[#This Row],[Mix Design Number]],MixDesign[],3,FALSE),1)=":",VLOOKUP(Data[[#This Row],[Mix Design Number]],MixDesign[],3,FALSE),VLOOKUP(Data[[#This Row],[Mix Design Number]],MixDesign[],3,FALSE)&":"),"") -> Gmm: | L10: =IF(Data[[#This Row],[Mix Design Number]]<>"",VLOOKUP(Data[[#This Row],[Mix Design Number]],MixDesign[],4,FALSE),"") -> 2.456 | M10: 10 | O10: 2022-01-16 | P10: Night | Q10: 2 | S10: 2-4 | T10: Temporary (MOT) | W10: IR | X10: 301 Temp INS | AA10: 183310 | AB10: 183633 | AC10: 323 | AD10: 12 | AE10: 430.67 | AF10: 29.8 | AH10: 138.39 | AI10: =IF(OR(Data[[#This Row],[GmmGsb Value]]="",Data[[#This Row],[Thickness]]=""),"",IF(RIGHT(Data[[#This Row],[GmmGsb Type]],4)="Gsb:",ROUND(Data[[#This Row],[GmmGsb Value]]*Data[[#This Row],[Thickness]]*40.5,0),IF(Data[[#This Row],[GmmGsb Type]]="Gmm:",IF(Data[[#This Row],[Intended Use]]="Misc.",ROUND((Data[[#This Row],[GmmGsb Value]]/2.54)*(100*Data[[#This Row],[Thickness]]),0),ROUND(Data[[#This Row],[GmmGsb Value]]*Data[[#This Row],[Thickness]]*43.3,0)),""))) ->  | AK10: =IF(Data[[#This Row],[Data Exists]]=FALSE,"",IF(LEFT(Data[[#This Row],[GmmGsb Type]],4)="ATPB",IF(AND(Data[[#This Row],[Start Station]]<>"",Data[[#This Row],[End Station]]<>"",Data[[#This Row],[Width]]<>"",Data[[#This Row],[Thickness]]<>"",Data[[#This Row],[Intended Use]]="ATPB"),Data[[#This Row],[Length]]*Data[[#This Row],[Width]]*Data[[#This Row],[Thickness]]/324,""),IF(Data[[#This Row],[Intended Use]]<>"",IF(UPPER(INDEX(EditablePayItems[],MATCH(IF(OR(RIGHT(Data[[#This Row],[Intended Use]],6)=" (opt)",RIGHT(Data[[#This Row],[Intended Use]],6)=" (req)"),LEFT(Data[[#This Row],[Intended Use]],LEN(Data[[#This Row],[Intended Use]])-6),Data[[#This Row],[Intended Use]]),EditablePayItems[IntendedUse],0),4))="PRORATED",IF(Data[[#This Row],[Total Thickness]]*Data[[#This Row],[Area]]<>0,Data[[#This Row],[Thickness]]/Data[[#This Row],[Total Thickness]]*Data[[#This Row],[Area]],0), ""),""))) ->  | AL10: C | AN10: M24307776-000 | AP10: 2022-12-01T00:41:19 | AQ10: =IF(AND(Data[[#This Row],[Lot]]<>"",ProjectDateTimeStamp<>""),ProjectDateTimeStamp,"") -> 2023-10-05T10:35:05 | AR10: =IF(COUNTA(Data[[#This Row],[Lot]],Data[[#This Row],[Intended Lot Size]:[Mix Design Number]],Data[[#This Row],[Line Number]:[Spread Rate]],Data[[#This Row],[Total Thickness]],Data[[#This Row],[Varied Width Designation]:[Date Time Stamp]])>0,TRUE,FALSE) -> TRUE | AS10: =IF(Data[[#This Row],[Intended Use]]<>"",IF(VLOOKUP(Data[[#This Row],[Intended Use]],EditablePayItems[[IntendedUse]:[PayItemNumber]],6,FALSE)<>"",VLOOKUP(Data[[#This Row],[Intended Use]],EditablePayItems[[IntendedUse]:[PayItemNumber]],6,FALSE),""),"") ->  | AT10: =IF(Data[[#This Row],[Date Paved]]<>"",VLOOKUP(Data[[#This Row],[Date Paved]],MonthlyCutOffDates[[Date From]:[MonthYear]],3),"") -> Dec 2018 | AU10: =IF(AND(Data[[#This Row],[Target Spread Rate]]<>"",Data[[#This Row],[Area]]<>""),Data[[#This Row],[Target Spread Rate]]*Data[[#This Row],[Area]]/2000,"") ->  | AV10: Mainline | AW10: SR-50 | AZ10: =MIN(Data[[#This Row],[Start Station]:[End Station]]) -> 183310 | BA10: =MAX(Data[[#This Row],[Start Station]:[End Station]]) -> 183633 | BB10: =IF(AND(Data[[#This Row],[Quantity]]<>"",Data[[#This Row],[GmmGsb Value]]<>""),Data[[#This Row],[Quantity]]*Data[[#This Row],[GmmGsb Value]],"") -> 73.1888 | BE10: =IF(Data[[#This Row],[Pay Item Number]]<>"",IF(VLOOKUP(Data[[#This Row],[Intended Use]],EditablePayItems[[IntendedUse]:[Actual Quantity Paid]],2,FALSE)="Prorated",IF(LEFT(Data[[#This Row],[Intended Use]],4)="ATPB","Cubic Yards","Square Yards"),"Tons"),"") ->  | BF10: =Data[[#This Row],[Lot]]&"-"&Data[[#This Row],[Line Number]] -> -1-10 | BG10: =IF(Data[[#This Row],[Date Paved]]<>"",TEXT(Data[[#This Row],[Date Paved]],"mm/dd/yyyy")&" - "&Data[[#This Row],[Shift]]&" - Crew "&Data[[#This Row],[Crew]],"") -> 01/16/2022 - Night - Crew 2 | BH10: =IF(Data[[#This Row],[Date Paved]]<>"",TEXT(Data[[#This Row],[Date Paved]],"mm/dd/yyyy"),"") -> 01/16/2022 | BJ10: =IF(OR(LEFT(Data[[#This Row],[Intended Use]],10)="Base Group", Data[[#This Row],[Intended Use]]="Turnout Const. (per sy)"),IF(AND(Data[[#This Row],[Thickness]]<>0,Data[[#This Row],[Total Thickness]]<>0,Data[[#This Row],[Area]]<>0),(Data[[#This Row],[Prorated Base]]/SUMIFS(Data[Prorated Base],Data[Intended Use],"="&Data[[#This Row],[Intended Use]]))*Data[[#This Row],[Total Thickness]],""), "") ->  | BK10: =IF(OR(Data[[#This Row],[Roadway Type]]<>"",Data[[#This Row],[Roadway ID]]<>""),UPPER(Data[[#This Row],[Roadway Type]])&"~-~"&UPPER(Data[[#This Row],[Roadway ID]]),"") -> MAINLINE~-~SR-50 | BL10: =IF(AND(Data[[#This Row],[Quantity]]<>"",Data[[#This Row],[Total Thickness]]<>"",Data[[#This Row],[Total Thickness]]<>0,Data[[#This Row],[GmmGsb Value]]<>"",Data[[#This Row],[GmmGsb Value]]<>0),IF(Data[[#This Row],[Quantity]]>0,(Data[[#This Row],[Quantity]]*2000)/(Data[[#This Row],[Total Thickness]]*Data[[#This Row],[GmmGsb Value]]*43.3),0),"") -> 
A11: -1 | B11: =IF(AND(Data[[#This Row],[Lot]]<>"",FIN<>""),FIN,"") -> 41673245201 | C11: =IF(AND(Data[[#This Row],[Lot]]<>"",ContractNumber<>""),ContractNumber,"") -> T7396 | D11: =IF(AND(Data[[#This Row],[Lot]]<>"",Contractor<>""),Contractor,"") -> APS | E11: =IF(AND(Data[[#This Row],[Lot]]<>"",BidDate<>""),BidDate,"") -> 2019-07-19 | F11: =IF(AND(Data[[#This Row],[Lot]]<>"",LumpSum<>""),LumpSum,"") -> No | J11: SP 21-19624B | K11: =IF(Data[[#This Row],[Mix Design Number]]<>"",IF(RIGHT(VLOOKUP(Data[[#This Row],[Mix Design Number]],MixDesign[],3,FALSE),1)=":",VLOOKUP(Data[[#This Row],[Mix Design Number]],MixDesign[],3,FALSE),VLOOKUP(Data[[#This Row],[Mix Design Number]],MixDesign[],3,FALSE)&":"),"") -> Gmm: | L11: =IF(Data[[#This Row],[Mix Design Number]]<>"",VLOOKUP(Data[[#This Row],[Mix Design Number]],MixDesign[],4,FALSE),"") -> 2.456 | M11: 11 | O11: 2022-01-16 | P11: Night | Q11: 2 | S11: 4-5 | T11: Temporary (MOT) | W11: CT | X11: 301 Temp INS | AA11: 183310 | AB11: 183633 | AC11: 323 | AD11: 12 | AE11: 430.67 | AF11: 29 | AH11: 134.67 | AI11: =IF(OR(Data[[#This Row],[GmmGsb Value]]="",Data[[#This Row],[Thickness]]=""),"",IF(RIGHT(Data[[#This Row],[GmmGsb Type]],4)="Gsb:",ROUND(Data[[#This Row],[GmmGsb Value]]*Data[[#This Row],[Thickness]]*40.5,0),IF(Data[[#This Row],[GmmGsb Type]]="Gmm:",IF(Data[[#This Row],[Intended Use]]="Misc.",ROUND((Data[[#This Row],[GmmGsb Value]]/2.54)*(100*Data[[#This Row],[Thickness]]),0),ROUND(Data[[#This Row],[GmmGsb Value]]*Data[[#This Row],[Thickness]]*43.3,0)),""))) ->  | AK11: =IF(Data[[#This Row],[Data Exists]]=FALSE,"",IF(LEFT(Data[[#This Row],[GmmGsb Type]],4)="ATPB",IF(AND(Data[[#This Row],[Start Station]]<>"",Data[[#This Row],[End Station]]<>"",Data[[#This Row],[Width]]<>"",Data[[#This Row],[Thickness]]<>"",Data[[#This Row],[Intended Use]]="ATPB"),Data[[#This Row],[Length]]*Data[[#This Row],[Width]]*Data[[#This Row],[Thickness]]/324,""),IF(Data[[#This Row],[Intended Use]]<>"",IF(UPPER(INDEX(EditablePayItems[],MATCH(IF(OR(RIGHT(Data[[#This Row],[Intended Use]],6)=" (opt)",RIGHT(Data[[#This Row],[Intended Use]],6)=" (req)"),LEFT(Data[[#This Row],[Intended Use]],LEN(Data[[#This Row],[Intended Use]])-6),Data[[#This Row],[Intended Use]]),EditablePayItems[IntendedUse],0),4))="PRORATED",IF(Data[[#This Row],[Total Thickness]]*Data[[#This Row],[Area]]<>0,Data[[#This Row],[Thickness]]/Data[[#This Row],[Total Thickness]]*Data[[#This Row],[Area]],0), ""),""))) ->  | AL11: C | AN11: M24307776-000 | AP11: 2022-12-01T00:41:19 | AQ11: =IF(AND(Data[[#This Row],[Lot]]<>"",ProjectDateTimeStamp<>""),ProjectDateTimeStamp,"") -> 2023-10-05T10:35:05 | AR11: =IF(COUNTA(Data[[#This Row],[Lot]],Data[[#This Row],[Intended Lot Size]:[Mix Design Number]],Data[[#This Row],[Line Number]:[Spread Rate]],Data[[#This Row],[Total Thickness]],Data[[#This Row],[Varied Width Designation]:[Date Time Stamp]])>0,TRUE,FALSE) -> TRUE | AS11: =IF(Data[[#This Row],[Intended Use]]<>"",IF(VLOOKUP(Data[[#This Row],[Intended Use]],EditablePayItems[[IntendedUse]:[PayItemNumber]],6,FALSE)<>"",VLOOKUP(Data[[#This Row],[Intended Use]],EditablePayItems[[IntendedUse]:[PayItemNumber]],6,FALSE),""),"") ->  | AT11: =IF(Data[[#This Row],[Date Paved]]<>"",VLOOKUP(Data[[#This Row],[Date Paved]],MonthlyCutOffDates[[Date From]:[MonthYear]],3),"") -> Dec 2018 | AU11: =IF(AND(Data[[#This Row],[Target Spread Rate]]<>"",Data[[#This Row],[Area]]<>""),Data[[#This Row],[Target Spread Rate]]*Data[[#This Row],[Area]]/2000,"") ->  | AV11: Mainline | AW11: SR-50 | AZ11: =MIN(Data[[#This Row],[Start Station]:[End Station]]) -> 183310 | BA11: =MAX(Data[[#This Row],[Start Station]:[End Station]]) -> 183633 | BB11: =IF(AND(Data[[#This Row],[Quantity]]<>"",Data[[#This Row],[GmmGsb Value]]<>""),Data[[#This Row],[Quantity]]*Data[[#This Row],[GmmGsb Value]],"") -> 71.224 | BE11: =IF(Data[[#This Row],[Pay Item Number]]<>"",IF(VLOOKUP(Data[[#This Row],[Intended Use]],EditablePayItems[[IntendedUse]:[Actual Quantity Paid]],2,FALSE)="Prorated",IF(LEFT(Data[[#This Row],[Intended Use]],4)="ATPB","Cubic Yards","Square Yards"),"Tons"),"") ->  | BF11: =Data[[#This Row],[Lot]]&"-"&Data[[#This Row],[Line Number]] -> -1-11 | BG11: =IF(Data[[#This Row],[Date Paved]]<>"",TEXT(Data[[#This Row],[Date Paved]],"mm/dd/yyyy")&" - "&Data[[#This Row],[Shift]]&" - Crew "&Data[[#This Row],[Crew]],"") -> 01/16/2022 - Night - Crew 2 | BH11: =IF(Data[[#This Row],[Date Paved]]<>"",TEXT(Data[[#This Row],[Date Paved]],"mm/dd/yyyy"),"") -> 01/16/2022 | BJ11: =IF(OR(LEFT(Data[[#This Row],[Intended Use]],10)="Base Group", Data[[#This Row],[Intended Use]]="Turnout Const. (per sy)"),IF(AND(Data[[#This Row],[Thickness]]<>0,Data[[#This Row],[Total Thickness]]<>0,Data[[#This Row],[Area]]<>0),(Data[[#This Row],[Prorated Base]]/SUMIFS(Data[Prorated Base],Data[Intended Use],"="&Data[[#This Row],[Intended Use]]))*Data[[#This Row],[Total Thickness]],""), "") ->  | BK11: =IF(OR(Data[[#This Row],[Roadway Type]]<>"",Data[[#This Row],[Roadway ID]]<>""),UPPER(Data[[#This Row],[Roadway Type]])&"~-~"&UPPER(Data[[#This Row],[Roadway ID]]),"") -> MAINLINE~-~SR-50 | BL11: =IF(AND(Data[[#This Row],[Quantity]]<>"",Data[[#This Row],[Total Thickness]]<>"",Data[[#This Row],[Total Thickness]]<>0,Data[[#This Row],[GmmGsb Value]]<>"",Data[[#This Row],[GmmGsb Value]]<>0),IF(Data[[#This Row],[Quantity]]>0,(Data[[#This Row],[Quantity]]*2000)/(Data[[#This Row],[Total Thickness]]*Data[[#This Row],[GmmGsb Value]]*43.3),0),"") -> 
A12: -1 | B12: =IF(AND(Data[[#This Row],[Lot]]<>"",FIN<>""),FIN,"") -> 41673245201 | C12: =IF(AND(Data[[#This Row],[Lot]]<>"",ContractNumber<>""),ContractNumber,"") -> T7396 | D12: =IF(AND(Data[[#This Row],[Lot]]<>"",Contractor<>""),Contractor,"") -> APS | E12: =IF(AND(Data[[#This Row],[Lot]]<>"",BidDate<>""),BidDate,"") -> 2019-07-19 | F12: =IF(AND(Data[[#This Row],[Lot]]<>"",LumpSum<>""),LumpSum,"") -> No | J12: SP 21-19624B | K12: =IF(Data[[#This Row],[Mix Design Number]]<>"",IF(RIGHT(VLOOKUP(Data[[#This Row],[Mix Design Number]],MixDesign[],3,FALSE),1)=":",VLOOKUP(Data[[#This Row],[Mix Design Number]],MixDesign[],3,FALSE),VLOOKUP(Data[[#This Row],[Mix Design Number]],MixDesign[],3,FALSE)&":"),"") -> Gmm: | L12: =IF(Data[[#This Row],[Mix Design Number]]<>"",VLOOKUP(Data[[#This Row],[Mix Design Number]],MixDesign[],4,FALSE),"") -> 2.456 | M12: 12 | O12: 2022-01-16 | P12: Night | Q12: 2 | S12: 5-7 | T12: Temporary (MOT) | W12: IL | X12: 301 Temp INS | AA12: 183310 | AB12: 183633 | AC12: 323 | AD12: 12 | AE12: 430.67 | AF12: 29 | AH12: 134.67 | AI12: =IF(OR(Data[[#This Row],[GmmGsb Value]]="",Data[[#This Row],[Thickness]]=""),"",IF(RIGHT(Data[[#This Row],[GmmGsb Type]],4)="Gsb:",ROUND(Data[[#This Row],[GmmGsb Value]]*Data[[#This Row],[Thickness]]*40.5,0),IF(Data[[#This Row],[GmmGsb Type]]="Gmm:",IF(Data[[#This Row],[Intended Use]]="Misc.",ROUND((Data[[#This Row],[GmmGsb Value]]/2.54)*(100*Data[[#This Row],[Thickness]]),0),ROUND(Data[[#This Row],[GmmGsb Value]]*Data[[#This Row],[Thickness]]*43.3,0)),""))) ->  | AK12: =IF(Data[[#This Row],[Data Exists]]=FALSE,"",IF(LEFT(Data[[#This Row],[GmmGsb Type]],4)="ATPB",IF(AND(Data[[#This Row],[Start Station]]<>"",Data[[#This Row],[End Station]]<>"",Data[[#This Row],[Width]]<>"",Data[[#This Row],[Thickness]]<>"",Data[[#This Row],[Intended Use]]="ATPB"),Data[[#This Row],[Length]]*Data[[#This Row],[Width]]*Data[[#This Row],[Thickness]]/324,""),IF(Data[[#This Row],[Intended Use]]<>"",IF(UPPER(INDEX(EditablePayItems[],MATCH(IF(OR(RIGHT(Data[[#This Row],[Intended Use]],6)=" (opt)",RIGHT(Data[[#This Row],[Intended Use]],6)=" (req)"),LEFT(Data[[#This Row],[Intended Use]],LEN(Data[[#This Row],[Intended Use]])-6),Data[[#This Row],[Intended Use]]),EditablePayItems[IntendedUse],0),4))="PRORATED",IF(Data[[#This Row],[Total Thickness]]*Data[[#This Row],[Area]]<>0,Data[[#This Row],[Thickness]]/Data[[#This Row],[Total Thickness]]*Data[[#This Row],[Area]],0), ""),""))) ->  | AL12: C | AN12: M24307776-000 | AP12: 2022-12-01T00:41:19 | AQ12: =IF(AND(Data[[#This Row],[Lot]]<>"",ProjectDateTimeStamp<>""),ProjectDateTimeStamp,"") -> 2023-10-05T10:35:05 | AR12: =IF(COUNTA(Data[[#This Row],[Lot]],Data[[#This Row],[Intended Lot Size]:[Mix Design Number]],Data[[#This Row],[Line Number]:[Spread Rate]],Data[[#This Row],[Total Thickness]],Data[[#This Row],[Varied Width Designation]:[Date Time Stamp]])>0,TRUE,FALSE) -> TRUE | AS12: =IF(Data[[#This Row],[Intended Use]]<>"",IF(VLOOKUP(Data[[#This Row],[Intended Use]],EditablePayItems[[IntendedUse]:[PayItemNumber]],6,FALSE)<>"",VLOOKUP(Data[[#This Row],[Intended Use]],EditablePayItems[[IntendedUse]:[PayItemNumber]],6,FALSE),""),"") ->  | AT12: =IF(Data[[#This Row],[Date Paved]]<>"",VLOOKUP(Data[[#This Row],[Date Paved]],MonthlyCutOffDates[[Date From]:[MonthYear]],3),"") -> Dec 2018 | AU12: =IF(AND(Data[[#This Row],[Target Spread Rate]]<>"",Data[[#This Row],[Area]]<>""),Data[[#This Row],[Target Spread Rate]]*Data[[#This Row],[Area]]/2000,"") ->  | AV12: Mainline | AW12: SR-50 | AZ12: =MIN(Data[[#This Row],[Start Station]:[End Station]]) -> 183310 | BA12: =MAX(Data[[#This Row],[Start Station]:[End Station]]) -> 183633 | BB12: =IF(AND(Data[[#This Row],[Quantity]]<>"",Data[[#This Row],[GmmGsb Value]]<>""),Data[[#This Row],[Quantity]]*Data[[#This Row],[GmmGsb Value]],"") -> 71.224 | BE12: =IF(Data[[#This Row],[Pay Item Number]]<>"",IF(VLOOKUP(Data[[#This Row],[Intended Use]],EditablePayItems[[IntendedUse]:[Actual Quantity Paid]],2,FALSE)="Prorated",IF(LEFT(Data[[#This Row],[Intended Use]],4)="ATPB","Cubic Yards","Square Yards"),"Tons"),"") ->  | BF12: =Data[[#This Row],[Lot]]&"-"&Data[[#This Row],[Line Number]] -> -1-12 | BG12: =IF(Data[[#This Row],[Date Paved]]<>"",TEXT(Data[[#This Row],[Date Paved]],"mm/dd/yyyy")&" - "&Data[[#This Row],[Shift]]&" - Crew "&Data[[#This Row],[Crew]],"") -> 01/16/2022 - Night - Crew 2 | BH12: =IF(Data[[#This Row],[Date Paved]]<>"",TEXT(Data[[#This Row],[Date Paved]],"mm/dd/yyyy"),"") -> 01/16/2022 | BJ12: =IF(OR(LEFT(Data[[#This Row],[Intended Use]],10)="Base Group", Data[[#This Row],[Intended Use]]="Turnout Const. (per sy)"),IF(AND(Data[[#This Row],[Thickness]]<>0,Data[[#This Row],[Total Thickness]]<>0,Data[[#This Row],[Area]]<>0),(Data[[#This Row],[Prorated Base]]/SUMIFS(Data[Prorated Base],Data[Intended Use],"="&Data[[#This Row],[Intended Use]]))*Data[[#This Row],[Total Thickness]],""), "") ->  | BK12: =IF(OR(Data[[#This Row],[Roadway Type]]<>"",Data[[#This Row],[Roadway ID]]<>""),UPPER(Data[[#This Row],[Roadway Type]])&"~-~"&UPPER(Data[[#This Row],[Roadway ID]]),"") -> MAINLINE~-~SR-50 | BL12: =IF(AND(Data[[#This Row],[Quantity]]<>"",Data[[#This Row],[Total Thickness]]<>"",Data[[#This Row],[Total Thickness]]<>0,Data[[#This Row],[GmmGsb Value]]<>"",Data[[#This Row],[GmmGsb Value]]<>0),IF(Data[[#This Row],[Quantity]]>0,(Data[[#This Row],[Quantity]]*2000)/(Data[[#This Row],[Total Thickness]]*Data[[#This Row],[GmmGsb Value]]*43.3),0),"") -> 
A13: -1 | B13: =IF(AND(Data[[#This Row],[Lot]]<>"",FIN<>""),FIN,"") -> 41673245201 | C13: =IF(AND(Data[[#This Row],[Lot]]<>"",ContractNumber<>""),ContractNumber,"") -> T7396 | D13: =IF(AND(Data[[#This Row],[Lot]]<>"",Contractor<>""),Contractor,"") -> APS | E13: =IF(AND(Data[[#This Row],[Lot]]<>"",BidDate<>""),BidDate,"") -> 2019-07-19 | F13: =IF(AND(Data[[#This Row],[Lot]]<>"",LumpSum<>""),LumpSum,"") -> No | J13: SP 21-19624B | K13: =IF(Data[[#This Row],[Mix Design Number]]<>"",IF(RIGHT(VLOOKUP(Data[[#This Row],[Mix Design Number]],MixDesign[],3,FALSE),1)=":",VLOOKUP(Data[[#This Row],[Mix Design Number]],MixDesign[],3,FALSE),VLOOKUP(Data[[#This Row],[Mix Design Number]],MixDesign[],3,FALSE)&":"),"") -> Gmm: | L13: =IF(Data[[#This Row],[Mix Design Number]]<>"",VLOOKUP(Data[[#This Row],[Mix Design Number]],MixDesign[],4,FALSE),"") -> 2.456 | M13: 13 | O13: 2022-01-16 | P13: Night | Q13: 2 | S13: 7-8 | T13: Temporary (MOT) | W13: OL | X13: 301 Temp INS | AA13: 183413 | AB13: 183633 | AC13: 220 | AD13: 16 | AE13: 391.11 | AF13: 39.4 | AH13: 201.48 | AI13: =IF(OR(Data[[#This Row],[GmmGsb Value]]="",Data[[#This Row],[Thickness]]=""),"",IF(RIGHT(Data[[#This Row],[GmmGsb Type]],4)="Gsb:",ROUND(Data[[#This Row],[GmmGsb Value]]*Data[[#This Row],[Thickness]]*40.5,0),IF(Data[[#This Row],[GmmGsb Type]]="Gmm:",IF(Data[[#This Row],[Intended Use]]="Misc.",ROUND((Data[[#This Row],[GmmGsb Value]]/2.54)*(100*Data[[#This Row],[Thickness]]),0),ROUND(Data[[#This Row],[GmmGsb Value]]*Data[[#This Row],[Thickness]]*43.3,0)),""))) ->  | AK13: =IF(Data[[#This Row],[Data Exists]]=FALSE,"",IF(LEFT(Data[[#This Row],[GmmGsb Type]],4)="ATPB",IF(AND(Data[[#This Row],[Start Station]]<>"",Data[[#This Row],[End Station]]<>"",Data[[#This Row],[Width]]<>"",Data[[#This Row],[Thickness]]<>"",Data[[#This Row],[Intended Use]]="ATPB"),Data[[#This Row],[Length]]*Data[[#This Row],[Width]]*Data[[#This Row],[Thickness]]/324,""),IF(Data[[#This Row],[Intended Use]]<>"",IF(UPPER(INDEX(EditablePayItems[],MATCH(IF(OR(RIGHT(Data[[#This Row],[Intended Use]],6)=" (opt)",RIGHT(Data[[#This Row],[Intended Use]],6)=" (req)"),LEFT(Data[[#This Row],[Intended Use]],LEN(Data[[#This Row],[Intended Use]])-6),Data[[#This Row],[Intended Use]]),EditablePayItems[IntendedUse],0),4))="PRORATED",IF(Data[[#This Row],[Total Thickness]]*Data[[#This Row],[Area]]<>0,Data[[#This Row],[Thickness]]/Data[[#This Row],[Total Thickness]]*Data[[#This Row],[Area]],0), ""),""))) ->  | AL13: C | AN13: M24307776-000 | AP13: 2022-12-01T00:41:19 | AQ13: =IF(AND(Data[[#This Row],[Lot]]<>"",ProjectDateTimeStamp<>""),ProjectDateTimeStamp,"") -> 2023-10-05T10:35:05 | AR13: =IF(COUNTA(Data[[#This Row],[Lot]],Data[[#This Row],[Intended Lot Size]:[Mix Design Number]],Data[[#This Row],[Line Number]:[Spread Rate]],Data[[#This Row],[Total Thickness]],Data[[#This Row],[Varied Width Designation]:[Date Time Stamp]])>0,TRUE,FALSE) -> TRUE | AS13: =IF(Data[[#This Row],[Intended Use]]<>"",IF(VLOOKUP(Data[[#This Row],[Intended Use]],EditablePayItems[[IntendedUse]:[PayItemNumber]],6,FALSE)<>"",VLOOKUP(Data[[#This Row],[Intended Use]],EditablePayItems[[IntendedUse]:[PayItemNumber]],6,FALSE),""),"") ->  | AT13: =IF(Data[[#This Row],[Date Paved]]<>"",VLOOKUP(Data[[#This Row],[Date Paved]],MonthlyCutOffDates[[Date From]:[MonthYear]],3),"") -> Dec 2018 | AU13: =IF(AND(Data[[#This Row],[Target Spread Rate]]<>"",Data[[#This Row],[Area]]<>""),Data[[#This Row],[Target Spread Rate]]*Data[[#This Row],[Area]]/2000,"") ->  | AV13: Mainline | AW13: SR-50 | AZ13: =MIN(Data[[#This Row],[Start Station]:[End Station]]) -> 183413 | BA13: =MAX(Data[[#This Row],[Start Station]:[End Station]]) -> 183633 | BB13: =IF(AND(Data[[#This Row],[Quantity]]<>"",Data[[#This Row],[GmmGsb Value]]<>""),Data[[#This Row],[Quantity]]*Data[[#This Row],[GmmGsb Value]],"") -> 96.7664 | BE13: =IF(Data[[#This Row],[Pay Item Number]]<>"",IF(VLOOKUP(Data[[#This Row],[Intended Use]],EditablePayItems[[IntendedUse]:[Actual Quantity Paid]],2,FALSE)="Prorated",IF(LEFT(Data[[#This Row],[Intended Use]],4)="ATPB","Cubic Yards","Square Yards"),"Tons"),"") ->  | BF13: =Data[[#This Row],[Lot]]&"-"&Data[[#This Row],[Line Number]] -> -1-13 | BG13: =IF(Data[[#This Row],[Date Paved]]<>"",TEXT(Data[[#This Row],[Date Paved]],"mm/dd/yyyy")&" - "&Data[[#This Row],[Shift]]&" - Crew "&Data[[#This Row],[Crew]],"") -> 01/16/2022 - Night - Crew 2 | BH13: =IF(Data[[#This Row],[Date Paved]]<>"",TEXT(Data[[#This Row],[Date Paved]],"mm/dd/yyyy"),"") -> 01/16/2022 | BJ13: =IF(OR(LEFT(Data[[#This Row],[Intended Use]],10)="Base Group", Data[[#This Row],[Intended Use]]="Turnout Const. (per sy)"),IF(AND(Data[[#This Row],[Thickness]]<>0,Data[[#This Row],[Total Thickness]]<>0,Data[[#This Row],[Area]]<>0),(Data[[#This Row],[Prorated Base]]/SUMIFS(Data[Prorated Base],Data[Intended Use],"="&Data[[#This Row],[Intended Use]]))*Data[[#This Row],[Total Thickness]],""), "") ->  | BK13: =IF(OR(Data[[#This Row],[Roadway Type]]<>"",Data[[#This Row],[Roadway ID]]<>""),UPPER(Data[[#This Row],[Roadway Type]])&"~-~"&UPPER(Data[[#This Row],[Roadway ID]]),"") -> MAINLINE~-~SR-50 | BL13: =IF(AND(Data[[#This Row],[Quantity]]<>"",Data[[#This Row],[Total Thickness]]<>"",Data[[#This Row],[Total Thickness]]<>0,Data[[#This Row],[GmmGsb Value]]<>"",Data[[#This Row],[GmmGsb Value]]<>0),IF(Data[[#This Row],[Quantity]]>0,(Data[[#This Row],[Quantity]]*2000)/(Data[[#This Row],[Total Thickness]]*Data[[#This Row],[GmmGsb Value]]*43.3),0),"") -> 
A14: -1 | B14: =IF(AND(Data[[#This Row],[Lot]]<>"",FIN<>""),FIN,"") -> 41673245201 | C14: =IF(AND(Data[[#This Row],[Lot]]<>"",ContractNumber<>""),ContractNumber,"") -> T7396 | D14: =IF(AND(Data[[#This Row],[Lot]]<>"",Contractor<>""),Contractor,"") -> APS | E14: =IF(AND(Data[[#This Row],[Lot]]<>"",BidDate<>""),BidDate,"") -> 2019-07-19 | F14: =IF(AND(Data[[#This Row],[Lot]]<>"",LumpSum<>""),LumpSum,"") -> No | J14: SP 21-20153A | K14: =IF(Data[[#This Row],[Mix Design Number]]<>"",IF(RIGHT(VLOOKUP(Data[[#This Row],[Mix Design Number]],MixDesign[],3,FALSE),1)=":",VLOOKUP(Data[[#This Row],[Mix Design Number]],MixDesign[],3,FALSE),VLOOKUP(Data[[#This Row],[Mix Design Number]],MixDesign[],3,FALSE)&":"),"") -> Gmm: | L14: =IF(Data[[#This Row],[Mix Design Number]]<>"",VLOOKUP(Data[[#This Row],[Mix Design Number]],MixDesign[],4,FALSE),"") -> 2.494 | M14: 16 | O14: 2022-01-21 | P14: Day | Q14: 2 | S14: 1 | T14: Temporary (MOT) | W14: OR | X14: Temp Tie into Perm | AA14: 28965 | AB14: 28690 | AC14: 275 | AD14: 6 | AE14: 183.33 | AF14: 21.38 | AH14: 233.24 | AI14: =IF(OR(Data[[#This Row],[GmmGsb Value]]="",Data[[#This Row],[Thickness]]=""),"",IF(RIGHT(Data[[#This Row],[GmmGsb Type]],4)="Gsb:",ROUND(Data[[#This Row],[GmmGsb Value]]*Data[[#This Row],[Thickness]]*40.5,0),IF(Data[[#This Row],[GmmGsb Type]]="Gmm:",IF(Data[[#This Row],[Intended Use]]="Misc.",ROUND((Data[[#This Row],[GmmGsb Value]]/2.54)*(100*Data[[#This Row],[Thickness]]),0),ROUND(Data[[#This Row],[GmmGsb Value]]*Data[[#This Row],[Thickness]]*43.3,0)),""))) ->  | AK14: =IF(Data[[#This Row],[Data Exists]]=FALSE,"",IF(LEFT(Data[[#This Row],[GmmGsb Type]],4)="ATPB",IF(AND(Data[[#This Row],[Start Station]]<>"",Data[[#This Row],[End Station]]<>"",Data[[#This Row],[Width]]<>"",Data[[#This Row],[Thickness]]<>"",Data[[#This Row],[Intended Use]]="ATPB"),Data[[#This Row],[Length]]*Data[[#This Row],[Width]]*Data[[#This Row],[Thickness]]/324,""),IF(Data[[#This Row],[Intended Use]]<>"",IF(UPPER(INDEX(EditablePayItems[],MATCH(IF(OR(RIGHT(Data[[#This Row],[Intended Use]],6)=" (opt)",RIGHT(Data[[#This Row],[Intended Use]],6)=" (req)"),LEFT(Data[[#This Row],[Intended Use]],LEN(Data[[#This Row],[Intended Use]])-6),Data[[#This Row],[Intended Use]]),EditablePayItems[IntendedUse],0),4))="PRORATED",IF(Data[[#This Row],[Total Thickness]]*Data[[#This Row],[Area]]<>0,Data[[#This Row],[Thickness]]/Data[[#This Row],[Total Thickness]]*Data[[#This Row],[Area]],0), ""),""))) ->  | AL14: C | AN14: M24307776-000 | AP14: 2022-12-01T00:41:19 | AQ14: =IF(AND(Data[[#This Row],[Lot]]<>"",ProjectDateTimeStamp<>""),ProjectDateTimeStamp,"") -> 2023-10-05T10:35:05 | AR14: =IF(COUNTA(Data[[#This Row],[Lot]],Data[[#This Row],[Intended Lot Size]:[Mix Design Number]],Data[[#This Row],[Line Number]:[Spread Rate]],Data[[#This Row],[Total Thickness]],Data[[#This Row],[Varied Width Designation]:[Date Time Stamp]])>0,TRUE,FALSE) -> TRUE | AS14: =IF(Data[[#This Row],[Intended Use]]<>"",IF(VLOOKUP(Data[[#This Row],[Intended Use]],EditablePayItems[[IntendedUse]:[PayItemNumber]],6,FALSE)<>"",VLOOKUP(Data[[#This Row],[Intended Use]],EditablePayItems[[IntendedUse]:[PayItemNumber]],6,FALSE),""),"") ->  | AT14: =IF(Data[[#This Row],[Date Paved]]<>"",VLOOKUP(Data[[#This Row],[Date Paved]],MonthlyCutOffDates[[Date From]:[MonthYear]],3),"") -> Dec 2018 | AU14: =IF(AND(Data[[#This Row],[Target Spread Rate]]<>"",Data[[#This Row],[Area]]<>""),Data[[#This Row],[Target Spread Rate]]*Data[[#This Row],[Area]]/2000,"") ->  | AV14: Mainline | AW14: US-301 | AZ14: =MIN(Data[[#This Row],[Start Station]:[End Station]]) -> 28690 | BA14: =MAX(Data[[#This Row],[Start Station]:[End Station]]) -> 28965 | BB14: =IF(AND(Data[[#This Row],[Quantity]]<>"",Data[[#This Row],[GmmGsb Value]]<>""),Data[[#This Row],[Quantity]]*Data[[#This Row],[GmmGsb Value]],"") -> 53.32172 | BE14: =IF(Data[[#This Row],[Pay Item Number]]<>"",IF(VLOOKUP(Data[[#This Row],[Intended Use]],EditablePayItems[[IntendedUse]:[Actual Quantity Paid]],2,FALSE)="Prorated",IF(LEFT(Data[[#This Row],[Intended Use]],4)="ATPB","Cubic Yards","Square Yards"),"Tons"),"") ->  | BF14: =Data[[#This Row],[Lot]]&"-"&Data[[#This Row],[Line Number]] -> -1-16 | BG14: =IF(Data[[#This Row],[Date Paved]]<>"",TEXT(Data[[#This Row],[Date Paved]],"mm/dd/yyyy")&" - "&Data[[#This Row],[Shift]]&" - Crew "&Data[[#This Row],[Crew]],"") -> 01/21/2022 - Day - Crew 2 | BH14: =IF(Data[[#This Row],[Date Paved]]<>"",TEXT(Data[[#This Row],[Date Paved]],"mm/dd/yyyy"),"") -> 01/21/2022 | BJ14: =IF(OR(LEFT(Data[[#This Row],[Intended Use]],10)="Base Group", Data[[#This Row],[Intended Use]]="Turnout Const. (per sy)"),IF(AND(Data[[#This Row],[Thickness]]<>0,Data[[#This Row],[Total Thickness]]<>0,Data[[#This Row],[Area]]<>0),(Data[[#This Row],[Prorated Base]]/SUMIFS(Data[Prorated Base],Data[Intended Use],"="&Data[[#This Row],[Intended Use]]))*Data[[#This Row],[Total Thickness]],""), "") ->  | BK14: =IF(OR(Data[[#This Row],[Roadway Type]]<>"",Data[[#This Row],[Roadway ID]]<>""),UPPER(Data[[#This Row],[Roadway Type]])&"~-~"&UPPER(Data[[#This Row],[Roadway ID]]),"") -> MAINLINE~-~US-301 | BL14: =IF(AND(Data[[#This Row],[Quantity]]<>"",Data[[#This Row],[Total Thickness]]<>"",Data[[#This Row],[Total Thickness]]<>0,Data[[#This Row],[GmmGsb Value]]<>"",Data[[#This Row],[GmmGsb Value]]<>0),IF(Data[[#This Row],[Quantity]]>0,(Data[[#This Row],[Quantity]]*2000)/(Data[[#This Row],[Total Thickness]]*Data[[#This Row],[GmmGsb Value]]*43.3),0),"") -> 
A15: 0 | B15: =IF(AND(Data[[#This Row],[Lot]]<>"",FIN<>""),FIN,"") -> 41673245201 | C15: =IF(AND(Data[[#This Row],[Lot]]<>"",ContractNumber<>""),ContractNumber,"") -> T7396 | D15: =IF(AND(Data[[#This Row],[Lot]]<>"",Contractor<>""),Contractor,"") -> APS | E15: =IF(AND(Data[[#This Row],[Lot]]<>"",BidDate<>""),BidDate,"") -> 2019-07-19 | F15: =IF(AND(Data[[#This Row],[Lot]]<>"",LumpSum<>""),LumpSum,"") -> No | J15: SP 21-20153A | K15: =IF(Data[[#This Row],[Mix Design Number]]<>"",IF(RIGHT(VLOOKUP(Data[[#This Row],[Mix Design Number]],MixDesign[],3,FALSE),1)=":",VLOOKUP(Data[[#This Row],[Mix Design Number]],MixDesign[],3,FALSE),VLOOKUP(Data[[#This Row],[Mix Design Number]],MixDesign[],3,FALSE)&":"),"") -> Gmm: | L15: =IF(Data[[#This Row],[Mix Design Number]]<>"",VLOOKUP(Data[[#This Row],[Mix Design Number]],MixDesign[],4,FALSE),"") -> 2.494 | M15: 1 | O15: 2022-02-23 | P15: Day | Q15: 1 | S15: 1 | T15: Misc. | W15: OL | X15: Guardrail Pad | Y15: 1 | Z15: 1 | AA15: 171092 | AB15: 170800 | AC15: 292 | AD15: 2 | AE15: 64.89 | AF15: 6.98 | AG15: 2 | AH15: 215.13 | AI15: =IF(OR(Data[[#This Row],[GmmGsb Value]]="",Data[[#This Row],[Thickness]]=""),"",IF(RIGHT(Data[[#This Row],[GmmGsb Type]],4)="Gsb:",ROUND(Data[[#This Row],[GmmGsb Value]]*Data[[#This Row],[Thickness]]*40.5,0),IF(Data[[#This Row],[GmmGsb Type]]="Gmm:",IF(Data[[#This Row],[Intended Use]]="Misc.",ROUND((Data[[#This Row],[GmmGsb Value]]/2.54)*(100*Data[[#This Row],[Thickness]]),0),ROUND(Data[[#This Row],[GmmGsb Value]]*Data[[#This Row],[Thickness]]*43.3,0)),""))) -> 196 | AK15: =IF(Data[[#This Row],[Data Exists]]=FALSE,"",IF(LEFT(Data[[#This Row],[GmmGsb Type]],4)="ATPB",IF(AND(Data[[#This Row],[Start Station]]<>"",Data[[#This Row],[End Station]]<>"",Data[[#This Row],[Width]]<>"",Data[[#This Row],[Thickness]]<>"",Data[[#This Row],[Intended Use]]="ATPB"),Data[[#This Row],[Length]]*Data[[#This Row],[Width]]*Data[[#This Row],[Thickness]]/324,""),IF(Data[[#This Row],[Intended Use]]<>"",IF(UPPER(INDEX(EditablePayItems[],MATCH(IF(OR(RIGHT(Data[[#This Row],[Intended Use]],6)=" (opt)",RIGHT(Data[[#This Row],[Intended Use]],6)=" (req)"),LEFT(Data[[#This Row],[Intended Use]],LEN(Data[[#This Row],[Intended Use]])-6),Data[[#This Row],[Intended Use]]),EditablePayItems[IntendedUse],0),4))="PRORATED",IF(Data[[#This Row],[Total Thickness]]*Data[[#This Row],[Area]]<>0,Data[[#This Row],[Thickness]]/Data[[#This Row],[Total Thickness]]*Data[[#This Row],[Area]],0), ""),""))) ->  | AL15: C | AN15: M24307776-000 | AP15: 2022-12-01T00:41:21 | AQ15: =IF(AND(Data[[#This Row],[Lot]]<>"",ProjectDateTimeStamp<>""),ProjectDateTimeStamp,"") -> 2023-10-05T10:35:05 | AR15: =IF(COUNTA(Data[[#This Row],[Lot]],Data[[#This Row],[Intended Lot Size]:[Mix Design Number]],Data[[#This Row],[Line Number]:[Spread Rate]],Data[[#This Row],[Total Thickness]],Data[[#This Row],[Varied Width Designation]:[Date Time Stamp]])>0,TRUE,FALSE) -> TRUE | AS15: =IF(Data[[#This Row],[Intended Use]]<>"",IF(VLOOKUP(Data[[#This Row],[Intended Use]],EditablePayItems[[IntendedUse]:[PayItemNumber]],6,FALSE)<>"",VLOOKUP(Data[[#This Row],[Intended Use]],EditablePayItems[[IntendedUse]:[PayItemNumber]],6,FALSE),""),"") -> 339 1 | AT15: =IF(Data[[#This Row],[Date Paved]]<>"",VLOOKUP(Data[[#This Row],[Date Paved]],MonthlyCutOffDates[[Date From]:[MonthYear]],3),"") -> Dec 2018 | AU15: =IF(AND(Data[[#This Row],[Target Spread Rate]]<>"",Data[[#This Row],[Area]]<>""),Data[[#This Row],[Target Spread Rate]]*Data[[#This Row],[Area]]/2000,"") -> 6.35922 | AV15: Mainline | AW15: SR-50 | AZ15: =MIN(Data[[#This Row],[Start Station]:[End Station]]) -> 170800 | BA15: =MAX(Data[[#This Row],[Start Station]:[End Station]]) -> 171092 | BB15: =IF(AND(Data[[#This Row],[Quantity]]<>"",Data[[#This Row],[GmmGsb Value]]<>""),Data[[#This Row],[Quantity]]*Data[[#This Row],[GmmGsb Value]],"") -> 17.40812 | BE15: =IF(Data[[#This Row],[Pay Item Number]]<>"",IF(VLOOKUP(Data[[#This Row],[Intended Use]],EditablePayItems[[IntendedUse]:[Actual Quantity Paid]],2,FALSE)="Prorated",IF(LEFT(Data[[#This Row],[Intended Use]],4)="ATPB","Cubic Yards","Square Yards"),"Tons"),"") -> Tons | BF15: =Data[[#This Row],[Lot]]&"-"&Data[[#This Row],[Line Number]] -> 0-1 | BG15: =IF(Data[[#This Row],[Date Paved]]<>"",TEXT(Data[[#This Row],[Date Paved]],"mm/dd/yyyy")&" - "&Data[[#This Row],[Shift]]&" - Crew "&Data[[#This Row],[Crew]],"") -> 02/23/2022 - Day - Crew 1 | BH15: =IF(Data[[#This Row],[Date Paved]]<>"",TEXT(Data[[#This Row],[Date Paved]],"mm/dd/yyyy"),"") -> 02/23/2022 | BJ15: =IF(OR(LEFT(Data[[#This Row],[Intended Use]],10)="Base Group", Data[[#This Row],[Intended Use]]="Turnout Const. (per sy)"),IF(AND(Data[[#This Row],[Thickness]]<>0,Data[[#This Row],[Total Thickness]]<>0,Data[[#This Row],[Area]]<>0),(Data[[#This Row],[Prorated Base]]/SUMIFS(Data[Prorated Base],Data[Intended Use],"="&Data[[#This Row],[Intended Use]]))*Data[[#This Row],[Total Thickness]],""), "") ->  | BK15: =IF(OR(Data[[#This Row],[Roadway Type]]<>"",Data[[#This Row],[Roadway ID]]<>""),UPPER(Data[[#This Row],[Roadway Type]])&"~-~"&UPPER(Data[[#This Row],[Roadway ID]]),"") -> MAINLINE~-~SR-50 | BL15: =IF(AND(Data[[#This Row],[Quantity]]<>"",Data[[#This Row],[Total Thickness]]<>"",Data[[#This Row],[Total Thickness]]<>0,Data[[#This Row],[GmmGsb Value]]<>"",Data[[#This Row],[GmmGsb Value]]<>0),IF(Data[[#This Row],[Quantity]]>0,(Data[[#This Row],[Quantity]]*2000)/(Data[[#This Row],[Total Thickness]]*Data[[#This Row],[GmmGsb Value]]*43.3),0),"") -> 
A16: 0 | B16: =IF(AND(Data[[#This Row],[Lot]]<>"",FIN<>""),FIN,"") -> 41673245201 | C16: =IF(AND(Data[[#This Row],[Lot]]<>"",ContractNumber<>""),ContractNumber,"") -> T7396 | D16: =IF(AND(Data[[#This Row],[Lot]]<>"",Contractor<>""),Contractor,"") -> APS | E16: =IF(AND(Data[[#This Row],[Lot]]<>"",BidDate<>""),BidDate,"") -> 2019-07-19 | F16: =IF(AND(Data[[#This Row],[Lot]]<>"",LumpSum<>""),LumpSum,"") -> No | J16: SP 21-20112A | K16: =IF(Data[[#This Row],[Mix Design Number]]<>"",IF(RIGHT(VLOOKUP(Data[[#This Row],[Mix Design Number]],MixDesign[],3,FALSE),1)=":",VLOOKUP(Data[[#This Row],[Mix Design Number]],MixDesign[],3,FALSE),VLOOKUP(Data[[#This Row],[Mix Design Number]],MixDesign[],3,FALSE)&":"),"") -> Gmm: | L16: =IF(Data[[#This Row],[Mix Design Number]]<>"",VLOOKUP(Data[[#This Row],[Mix Design Number]],MixDesign[],4,FALSE),"") -> 2.483 | M16: 4 | O16: 2022-02-24 | P16: Day | Q16: 1 | S16: 1 | T16: Misc. | W16: OR | X16: Guardrail Pad | Y16: 1 | Z16: 1 | AA16: 171019 | AB16: 171243 | AC16: 224 | AD16: 2 | AE16: 49.78 | AF16: 5.5 | AG16: 2 | AH16: 220.97 | AI16: =IF(OR(Data[[#This Row],[GmmGsb Value]]="",Data[[#This Row],[Thickness]]=""),"",IF(RIGHT(Data[[#This Row],[GmmGsb Type]],4)="Gsb:",ROUND(Data[[#This Row],[GmmGsb Value]]*Data[[#This Row],[Thickness]]*40.5,0),IF(Data[[#This Row],[GmmGsb Type]]="Gmm:",IF(Data[[#This Row],[Intended Use]]="Misc.",ROUND((Data[[#This Row],[GmmGsb Value]]/2.54)*(100*Data[[#This Row],[Thickness]]),0),ROUND(Data[[#This Row],[GmmGsb Value]]*Data[[#This Row],[Thickness]]*43.3,0)),""))) -> 196 | AK16: =IF(Data[[#This Row],[Data Exists]]=FALSE,"",IF(LEFT(Data[[#This Row],[GmmGsb Type]],4)="ATPB",IF(AND(Data[[#This Row],[Start Station]]<>"",Data[[#This Row],[End Station]]<>"",Data[[#This Row],[Width]]<>"",Data[[#This Row],[Thickness]]<>"",Data[[#This Row],[Intended Use]]="ATPB"),Data[[#This Row],[Length]]*Data[[#This Row],[Width]]*Data[[#This Row],[Thickness]]/324,""),IF(Data[[#This Row],[Intended Use]]<>"",IF(UPPER(INDEX(EditablePayItems[],MATCH(IF(OR(RIGHT(Data[[#This Row],[Intended Use]],6)=" (opt)",RIGHT(Data[[#This Row],[Intended Use]],6)=" (req)"),LEFT(Data[[#This Row],[Intended Use]],LEN(Data[[#This Row],[Intended Use]])-6),Data[[#This Row],[Intended Use]]),EditablePayItems[IntendedUse],0),4))="PRORATED",IF(Data[[#This Row],[Total Thickness]]*Data[[#This Row],[Area]]<>0,Data[[#This Row],[Thickness]]/Data[[#This Row],[Total Thickness]]*Data[[#This Row],[Area]],0), ""),""))) ->  | AL16: C | AN16: M24307776-000 | AP16: 2022-12-01T00:41:21 | AQ16: =IF(AND(Data[[#This Row],[Lot]]<>"",ProjectDateTimeStamp<>""),ProjectDateTimeStamp,"") -> 2023-10-05T10:35:05 | AR16: =IF(COUNTA(Data[[#This Row],[Lot]],Data[[#This Row],[Intended Lot Size]:[Mix Design Number]],Data[[#This Row],[Line Number]:[Spread Rate]],Data[[#This Row],[Total Thickness]],Data[[#This Row],[Varied Width Designation]:[Date Time Stamp]])>0,TRUE,FALSE) -> TRUE | AS16: =IF(Data[[#This Row],[Intended Use]]<>"",IF(VLOOKUP(Data[[#This Row],[Intended Use]],EditablePayItems[[IntendedUse]:[PayItemNumber]],6,FALSE)<>"",VLOOKUP(Data[[#This Row],[Intended Use]],EditablePayItems[[IntendedUse]:[PayItemNumber]],6,FALSE),""),"") -> 339 1 | AT16: =IF(Data[[#This Row],[Date Paved]]<>"",VLOOKUP(Data[[#This Row],[Date Paved]],MonthlyCutOffDates[[Date From]:[MonthYear]],3),"") -> Dec 2018 | AU16: =IF(AND(Data[[#This Row],[Target Spread Rate]]<>"",Data[[#This Row],[Area]]<>""),Data[[#This Row],[Target Spread Rate]]*Data[[#This Row],[Area]]/2000,"") -> 4.87844 | AV16: Mainline | AW16: SR-50 | AZ16: =MIN(Data[[#This Row],[Start Station]:[End Station]]) -> 171019 | BA16: =MAX(Data[[#This Row],[Start Station]:[End Station]]) -> 171243 | BB16: =IF(AND(Data[[#This Row],[Quantity]]<>"",Data[[#This Row],[GmmGsb Value]]<>""),Data[[#This Row],[Quantity]]*Data[[#This Row],[GmmGsb Value]],"") -> 13.6565 | BE16: =IF(Data[[#This Row],[Pay Item Number]]<>"",IF(VLOOKUP(Data[[#This Row],[Intended Use]],EditablePayItems[[IntendedUse]:[Actual Quantity Paid]],2,FALSE)="Prorated",IF(LEFT(Data[[#This Row],[Intended Use]],4)="ATPB","Cubic Yards","Square Yards"),"Tons"),"") -> Tons | BF16: =Data[[#This Row],[Lot]]&"-"&Data[[#This Row],[Line Number]] -> 0-4 | BG16: =IF(Data[[#This Row],[Date Paved]]<>"",TEXT(Data[[#This Row],[Date Paved]],"mm/dd/yyyy")&" - "&Data[[#This Row],[Shift]]&" - Crew "&Data[[#This Row],[Crew]],"") -> 02/24/2022 - Day - Crew 1 | BH16: =IF(Data[[#This Row],[Date Paved]]<>"",TEXT(Data[[#This Row],[Date Paved]],"mm/dd/yyyy"),"") -> 02/24/2022 | BJ16: =IF(OR(LEFT(Data[[#This Row],[Intended Use]],10)="Base Group", Data[[#This Row],[Intended Use]]="Turnout Const. (per sy)"),IF(AND(Data[[#This Row],[Thickness]]<>0,Data[[#This Row],[Total Thickness]]<>0,Data[[#This Row],[Area]]<>0),(Data[[#This Row],[Prorated Base]]/SUMIFS(Data[Prorated Base],Data[Intended Use],"="&Data[[#This Row],[Intended Use]]))*Data[[#This Row],[Total Thickness]],""), "") ->  | BK16: =IF(OR(Data[[#This Row],[Roadway Type]]<>"",Data[[#This Row],[Roadway ID]]<>""),UPPER(Data[[#This Row],[Roadway Type]])&"~-~"&UPPER(Data[[#This Row],[Roadway ID]]),"") -> MAINLINE~-~SR-50 | BL16: =IF(AND(Data[[#This Row],[Quantity]]<>"",Data[[#This Row],[Total Thickness]]<>"",Data[[#This Row],[Total Thickness]]<>0,Data[[#This Row],[GmmGsb Value]]<>"",Data[[#This Row],[GmmGsb Value]]<>0),IF(Data[[#This Row],[Quantity]]>0,(Data[[#This Row],[Quantity]]*2000)/(Data[[#This Row],[Total Thickness]]*Data[[#This Row],[GmmGsb Value]]*43.3),0),"") -> 
A17: 0 | B17: =IF(AND(Data[[#This Row],[Lot]]<>"",FIN<>""),FIN,"") -> 41673245201 | C17: =IF(AND(Data[[#This Row],[Lot]]<>"",ContractNumber<>""),ContractNumber,"") -> T7396 | D17: =IF(AND(Data[[#This Row],[Lot]]<>"",Contractor<>""),Contractor,"") -> APS | E17: =IF(AND(Data[[#This Row],[Lot]]<>"",BidDate<>""),BidDate,"") -> 2019-07-19 | F17: =IF(AND(Data[[#This Row],[Lot]]<>"",LumpSum<>""),LumpSum,"") -> No | J17: SP 21-20112A | K17: =IF(Data[[#This Row],[Mix Design Number]]<>"",IF(RIGHT(VLOOKUP(Data[[#This Row],[Mix Design Number]],MixDesign[],3,FALSE),1)=":",VLOOKUP(Data[[#This Row],[Mix Design Number]],MixDesign[],3,FALSE),VLOOKUP(Data[[#This Row],[Mix Design Number]],MixDesign[],3,FALSE)&":"),"") -> Gmm: | L17: =IF(Data[[#This Row],[Mix Design Number]]<>"",VLOOKUP(Data[[#This Row],[Mix Design Number]],MixDesign[],4,FALSE),"") -> 2.483 | M17: 5 | O17: 2022-02-24 | P17: Day | Q17: 1 | S17: 1-2 | T17: Misc. | W17: OR | X17: Guardrail Pad | Y17: 1 | Z17: 1 | AA17: 171282 | AB17: 171540 | AC17: 258 | AD17: 2 | AE17: 57.33 | AF17: 6.51 | AG17: 2 | AH17: 227.11 | AI17: =IF(OR(Data[[#This Row],[GmmGsb Value]]="",Data[[#This Row],[Thickness]]=""),"",IF(RIGHT(Data[[#This Row],[GmmGsb Type]],4)="Gsb:",ROUND(Data[[#This Row],[GmmGsb Value]]*Data[[#This Row],[Thickness]]*40.5,0),IF(Data[[#This Row],[GmmGsb Type]]="Gmm:",IF(Data[[#This Row],[Intended Use]]="Misc.",ROUND((Data[[#This Row],[GmmGsb Value]]/2.54)*(100*Data[[#This Row],[Thickness]]),0),ROUND(Data[[#This Row],[GmmGsb Value]]*Data[[#This Row],[Thickness]]*43.3,0)),""))) -> 196 | AK17: =IF(Data[[#This Row],[Data Exists]]=FALSE,"",IF(LEFT(Data[[#This Row],[GmmGsb Type]],4)="ATPB",IF(AND(Data[[#This Row],[Start Station]]<>"",Data[[#This Row],[End Station]]<>"",Data[[#This Row],[Width]]<>"",Data[[#This Row],[Thickness]]<>"",Data[[#This Row],[Intended Use]]="ATPB"),Data[[#This Row],[Length]]*Data[[#This Row],[Width]]*Data[[#This Row],[Thickness]]/324,""),IF(Data[[#This Row],[Intended Use]]<>"",IF(UPPER(INDEX(EditablePayItems[],MATCH(IF(OR(RIGHT(Data[[#This Row],[Intended Use]],6)=" (opt)",RIGHT(Data[[#This Row],[Intended Use]],6)=" (req)"),LEFT(Data[[#This Row],[Intended Use]],LEN(Data[[#This Row],[Intended Use]])-6),Data[[#This Row],[Intended Use]]),EditablePayItems[IntendedUse],0),4))="PRORATED",IF(Data[[#This Row],[Total Thickness]]*Data[[#This Row],[Area]]<>0,Data[[#This Row],[Thickness]]/Data[[#This Row],[Total Thickness]]*Data[[#This Row],[Area]],0), ""),""))) ->  | AL17: C | AN17: M24307776-000 | AP17: 2022-12-01T00:41:21 | AQ17: =IF(AND(Data[[#This Row],[Lot]]<>"",ProjectDateTimeStamp<>""),ProjectDateTimeStamp,"") -> 2023-10-05T10:35:05 | AR17: =IF(COUNTA(Data[[#This Row],[Lot]],Data[[#This Row],[Intended Lot Size]:[Mix Design Number]],Data[[#This Row],[Line Number]:[Spread Rate]],Data[[#This Row],[Total Thickness]],Data[[#This Row],[Varied Width Designation]:[Date Time Stamp]])>0,TRUE,FALSE) -> TRUE | AS17: =IF(Data[[#This Row],[Intended Use]]<>"",IF(VLOOKUP(Data[[#This Row],[Intended Use]],EditablePayItems[[IntendedUse]:[PayItemNumber]],6,FALSE)<>"",VLOOKUP(Data[[#This Row],[Intended Use]],EditablePayItems[[IntendedUse]:[PayItemNumber]],6,FALSE),""),"") -> 339 1 | AT17: =IF(Data[[#This Row],[Date Paved]]<>"",VLOOKUP(Data[[#This Row],[Date Paved]],MonthlyCutOffDates[[Date From]:[MonthYear]],3),"") -> Dec 2018 | AU17: =IF(AND(Data[[#This Row],[Target Spread Rate]]<>"",Data[[#This Row],[Area]]<>""),Data[[#This Row],[Target Spread Rate]]*Data[[#This Row],[Area]]/2000,"") -> 5.61834 | AV17: Mainline | AW17: SR-50 | AZ17: =MIN(Data[[#This Row],[Start Station]:[End Station]]) -> 171282 | BA17: =MAX(Data[[#This Row],[Start Station]:[End Station]]) -> 171540 | BB17: =IF(AND(Data[[#This Row],[Quantity]]<>"",Data[[#This Row],[GmmGsb Value]]<>""),Data[[#This Row],[Quantity]]*Data[[#This Row],[GmmGsb Value]],"") -> 16.16433 | BE17: =IF(Data[[#This Row],[Pay Item Number]]<>"",IF(VLOOKUP(Data[[#This Row],[Intended Use]],EditablePayItems[[IntendedUse]:[Actual Quantity Paid]],2,FALSE)="Prorated",IF(LEFT(Data[[#This Row],[Intended Use]],4)="ATPB","Cubic Yards","Square Yards"),"Tons"),"") -> Tons | BF17: =Data[[#This Row],[Lot]]&"-"&Data[[#This Row],[Line Number]] -> 0-5 | BG17: =IF(Data[[#This Row],[Date Paved]]<>"",TEXT(Data[[#This Row],[Date Paved]],"mm/dd/yyyy")&" - "&Data[[#This Row],[Shift]]&" - Crew "&Data[[#This Row],[Crew]],"") -> 02/24/2022 - Day - Crew 1 | BH17: =IF(Data[[#This Row],[Date Paved]]<>"",TEXT(Data[[#This Row],[Date Paved]],"mm/dd/yyyy"),"") -> 02/24/2022 | BJ17: =IF(OR(LEFT(Data[[#This Row],[Intended Use]],10)="Base Group", Data[[#This Row],[Intended Use]]="Turnout Const. (per sy)"),IF(AND(Data[[#This Row],[Thickness]]<>0,Data[[#This Row],[Total Thickness]]<>0,Data[[#This Row],[Area]]<>0),(Data[[#This Row],[Prorated Base]]/SUMIFS(Data[Prorated Base],Data[Intended Use],"="&Data[[#This Row],[Intended Use]]))*Data[[#This Row],[Total Thickness]],""), "") ->  | BK17: =IF(OR(Data[[#This Row],[Roadway Type]]<>"",Data[[#This Row],[Roadway ID]]<>""),UPPER(Data[[#This Row],[Roadway Type]])&"~-~"&UPPER(Data[[#This Row],[Roadway ID]]),"") -> MAINLINE~-~SR-50 | BL17: =IF(AND(Data[[#This Row],[Quantity]]<>"",Data[[#This Row],[Total Thickness]]<>"",Data[[#This Row],[Total Thickness]]<>0,Data[[#This Row],[GmmGsb Value]]<>"",Data[[#This Row],[GmmGsb Value]]<>0),IF(Data[[#This Row],[Quantity]]>0,(Data[[#This Row],[Quantity]]*2000)/(Data[[#This Row],[Total Thickness]]*Data[[#This Row],[GmmGsb Value]]*43.3),0),"") -> 
A18: 0 | B18: =IF(AND(Data[[#This Row],[Lot]]<>"",FIN<>""),FIN,"") -> 41673245201 | C18: =IF(AND(Data[[#This Row],[Lot]]<>"",ContractNumber<>""),ContractNumber,"") -> T7396 | D18: =IF(AND(Data[[#This Row],[Lot]]<>"",Contractor<>""),Contractor,"") -> APS | E18: =IF(AND(Data[[#This Row],[Lot]]<>"",BidDate<>""),BidDate,"") -> 2019-07-19 | F18: =IF(AND(Data[[#This Row],[Lot]]<>"",LumpSum<>""),LumpSum,"") -> No | J18: SP 21-20112A | K18: =IF(Data[[#This Row],[Mix Design Number]]<>"",IF(RIGHT(VLOOKUP(Data[[#This Row],[Mix Design Number]],MixDesign[],3,FALSE),1)=":",VLOOKUP(Data[[#This Row],[Mix Design Number]],MixDesign[],3,FALSE),VLOOKUP(Data[[#This Row],[Mix Design Number]],MixDesign[],3,FALSE)&":"),"") -> Gmm: | L18: =IF(Data[[#This Row],[Mix Design Number]]<>"",VLOOKUP(Data[[#This Row],[Mix Design Number]],MixDesign[],4,FALSE),"") -> 2.483 | M18: 6 | O18: 2022-02-24 | P18: Day | Q18: 1 | S18: 2 | T18: Waste | X18: Unused | AC18: 0 | AF18: 8 | AH18: 0 | AI18: =IF(OR(Data[[#This Row],[GmmGsb Value]]="",Data[[#This Row],[Thickness]]=""),"",IF(RIGHT(Data[[#This Row],[GmmGsb Type]],4)="Gsb:",ROUND(Data[[#This Row],[GmmGsb Value]]*Data[[#This Row],[Thickness]]*40.5,0),IF(Data[[#This Row],[GmmGsb Type]]="Gmm:",IF(Data[[#This Row],[Intended Use]]="Misc.",ROUND((Data[[#This Row],[GmmGsb Value]]/2.54)*(100*Data[[#This Row],[Thickness]]),0),ROUND(Data[[#This Row],[GmmGsb Value]]*Data[[#This Row],[Thickness]]*43.3,0)),""))) ->  | AK18: =IF(Data[[#This Row],[Data Exists]]=FALSE,"",IF(LEFT(Data[[#This Row],[GmmGsb Type]],4)="ATPB",IF(AND(Data[[#This Row],[Start Station]]<>"",Data[[#This Row],[End Station]]<>"",Data[[#This Row],[Width]]<>"",Data[[#This Row],[Thickness]]<>"",Data[[#This Row],[Intended Use]]="ATPB"),Data[[#This Row],[Length]]*Data[[#This Row],[Width]]*Data[[#This Row],[Thickness]]/324,""),IF(Data[[#This Row],[Intended Use]]<>"",IF(UPPER(INDEX(EditablePayItems[],MATCH(IF(OR(RIGHT(Data[[#This Row],[Intended Use]],6)=" (opt)",RIGHT(Data[[#This Row],[Intended Use]],6)=" (req)"),LEFT(Data[[#This Row],[Intended Use]],LEN(Data[[#This Row],[Intended Use]])-6),Data[[#This Row],[Intended Use]]),EditablePayItems[IntendedUse],0),4))="PRORATED",IF(Data[[#This Row],[Total Thickness]]*Data[[#This Row],[Area]]<>0,Data[[#This Row],[Thickness]]/Data[[#This Row],[Total Thickness]]*Data[[#This Row],[Area]],0), ""),""))) ->  | AN18: M24307776-000 | AP18: 2022-12-01T00:41:21 | AQ18: =IF(AND(Data[[#This Row],[Lot]]<>"",ProjectDateTimeStamp<>""),ProjectDateTimeStamp,"") -> 2023-10-05T10:35:05 | AR18: =IF(COUNTA(Data[[#This Row],[Lot]],Data[[#This Row],[Intended Lot Size]:[Mix Design Number]],Data[[#This Row],[Line Number]:[Spread Rate]],Data[[#This Row],[Total Thickness]],Data[[#This Row],[Varied Width Designation]:[Date Time Stamp]])>0,TRUE,FALSE) -> TRUE | AS18: =IF(Data[[#This Row],[Intended Use]]<>"",IF(VLOOKUP(Data[[#This Row],[Intended Use]],EditablePayItems[[IntendedUse]:[PayItemNumber]],6,FALSE)<>"",VLOOKUP(Data[[#This Row],[Intended Use]],EditablePayItems[[IntendedUse]:[PayItemNumber]],6,FALSE),""),"") ->  | AT18: =IF(Data[[#This Row],[Date Paved]]<>"",VLOOKUP(Data[[#This Row],[Date Paved]],MonthlyCutOffDates[[Date From]:[MonthYear]],3),"") -> Dec 2018 | AU18: =IF(AND(Data[[#This Row],[Target Spread Rate]]<>"",Data[[#This Row],[Area]]<>""),Data[[#This Row],[Target Spread Rate]]*Data[[#This Row],[Area]]/2000,"") ->  | AV18: Waste | AZ18: =MIN(Data[[#This Row],[Start Station]:[End Station]]) -> 0 | BA18: =MAX(Data[[#This Row],[Start Station]:[End Station]]) -> 0 | BB18: =IF(AND(Data[[#This Row],[Quantity]]<>"",Data[[#This Row],[GmmGsb Value]]<>""),Data[[#This Row],[Quantity]]*Data[[#This Row],[GmmGsb Value]],"") -> 19.864 | BE18: =IF(Data[[#This Row],[Pay Item Number]]<>"",IF(VLOOKUP(Data[[#This Row],[Intended Use]],EditablePayItems[[IntendedUse]:[Actual Quantity Paid]],2,FALSE)="Prorated",IF(LEFT(Data[[#This Row],[Intended Use]],4)="ATPB","Cubic Yards","Square Yards"),"Tons"),"") ->  | BF18: =Data[[#This Row],[Lot]]&"-"&Data[[#This Row],[Line Number]] -> 0-6 | BG18: =IF(Data[[#This Row],[Date Paved]]<>"",TEXT(Data[[#This Row],[Date Paved]],"mm/dd/yyyy")&" - "&Data[[#This Row],[Shift]]&" - Crew "&Data[[#This Row],[Crew]],"") -> 02/24/2022 - Day - Crew 1 | BH18: =IF(Data[[#This Row],[Date Paved]]<>"",TEXT(Data[[#This Row],[Date Paved]],"mm/dd/yyyy"),"") -> 02/24/2022 | BJ18: =IF(OR(LEFT(Data[[#This Row],[Intended Use]],10)="Base Group", Data[[#This Row],[Intended Use]]="Turnout Const. (per sy)"),IF(AND(Data[[#This Row],[Thickness]]<>0,Data[[#This Row],[Total Thickness]]<>0,Data[[#This Row],[Area]]<>0),(Data[[#This Row],[Prorated Base]]/SUMIFS(Data[Prorated Base],Data[Intended Use],"="&Data[[#This Row],[Intended Use]]))*Data[[#This Row],[Total Thickness]],""), "") ->  | BK18: =IF(OR(Data[[#This Row],[Roadway Type]]<>"",Data[[#This Row],[Roadway ID]]<>""),UPPER(Data[[#This Row],[Roadway Type]])&"~-~"&UPPER(Data[[#This Row],[Roadway ID]]),"") -> WASTE~-~ | BL18: =IF(AND(Data[[#This Row],[Quantity]]<>"",Data[[#This Row],[Total Thickness]]<>"",Data[[#This Row],[Total Thickness]]<>0,Data[[#This Row],[GmmGsb Value]]<>"",Data[[#This Row],[GmmGsb Value]]<>0),IF(Data[[#This Row],[Quantity]]>0,(Data[[#This Row],[Quantity]]*2000)/(Data[[#This Row],[Total Thickness]]*Data[[#This Row],[GmmGsb Value]]*43.3),0),"") -> 
A19: 0 | B19: =IF(AND(Data[[#This Row],[Lot]]<>"",FIN<>""),FIN,"") -> 41673245201 | C19: =IF(AND(Data[[#This Row],[Lot]]<>"",ContractNumber<>""),ContractNumber,"") -> T7396 | D19: =IF(AND(Data[[#This Row],[Lot]]<>"",Contractor<>""),Contractor,"") -> APS | E19: =IF(AND(Data[[#This Row],[Lot]]<>"",BidDate<>""),BidDate,"") -> 2019-07-19 | F19: =IF(AND(Data[[#This Row],[Lot]]<>"",LumpSum<>""),LumpSum,"") -> No | J19: SP 21-20024B | K19: =IF(Data[[#This Row],[Mix Design Number]]<>"",IF(RIGHT(VLOOKUP(Data[[#This Row],[Mix Design Number]],MixDesign[],3,FALSE),1)=":",VLOOKUP(Data[[#This Row],[Mix Design Number]],MixDesign[],3,FALSE),VLOOKUP(Data[[#This Row],[Mix Design Number]],MixDesign[],3,FALSE)&":"),"") -> Gmm: | L19: =IF(Data[[#This Row],[Mix Design Number]]<>"",VLOOKUP(Data[[#This Row],[Mix Design Number]],MixDesign[],4,FALSE),"") -> 2.504 | M19: 9 | O19: 2022-09-01 | P19: Day | Q19: 1 | S19: 1-3 | T19: Misc. | W19: OL | X19: Guardrail Pad | Y19: 1 | Z19: 1 | AA19: 168202 | AB19: 168388.58 | AC19: 186.58 | AD19: 5 | AE19: 103.66 | AF19: 14.21 | AG19: 2 | AH19: 274.17 | AI19: =IF(OR(Data[[#This Row],[GmmGsb Value]]="",Data[[#This Row],[Thickness]]=""),"",IF(RIGHT(Data[[#This Row],[GmmGsb Type]],4)="Gsb:",ROUND(Data[[#This Row],[GmmGsb Value]]*Data[[#This Row],[Thickness]]*40.5,0),IF(Data[[#This Row],[GmmGsb Type]]="Gmm:",IF(Data[[#This Row],[Intended Use]]="Misc.",ROUND((Data[[#This Row],[GmmGsb Value]]/2.54)*(100*Data[[#This Row],[Thickness]]),0),ROUND(Data[[#This Row],[GmmGsb Value]]*Data[[#This Row],[Thickness]]*43.3,0)),""))) -> 197 | AK19: =IF(Data[[#This Row],[Data Exists]]=FALSE,"",IF(LEFT(Data[[#This Row],[GmmGsb Type]],4)="ATPB",IF(AND(Data[[#This Row],[Start Station]]<>"",Data[[#This Row],[End Station]]<>"",Data[[#This Row],[Width]]<>"",Data[[#This Row],[Thickness]]<>"",Data[[#This Row],[Intended Use]]="ATPB"),Data[[#This Row],[Length]]*Data[[#This Row],[Width]]*Data[[#This Row],[Thickness]]/324,""),IF(Data[[#This Row],[Intended Use]]<>"",IF(UPPER(INDEX(EditablePayItems[],MATCH(IF(OR(RIGHT(Data[[#This Row],[Intended Use]],6)=" (opt)",RIGHT(Data[[#This Row],[Intended Use]],6)=" (req)"),LEFT(Data[[#This Row],[Intended Use]],LEN(Data[[#This Row],[Intended Use]])-6),Data[[#This Row],[Intended Use]]),EditablePayItems[IntendedUse],0),4))="PRORATED",IF(Data[[#This Row],[Total Thickness]]*Data[[#This Row],[Area]]<>0,Data[[#This Row],[Thickness]]/Data[[#This Row],[Total Thickness]]*Data[[#This Row],[Area]],0), ""),""))) ->  | AL19: C | AN19: M24307776-000 | AP19: 2022-12-01T00:41:21 | AQ19: =IF(AND(Data[[#This Row],[Lot]]<>"",ProjectDateTimeStamp<>""),ProjectDateTimeStamp,"") -> 2023-10-05T10:35:05 | AR19: =IF(COUNTA(Data[[#This Row],[Lot]],Data[[#This Row],[Intended Lot Size]:[Mix Design Number]],Data[[#This Row],[Line Number]:[Spread Rate]],Data[[#This Row],[Total Thickness]],Data[[#This Row],[Varied Width Designation]:[Date Time Stamp]])>0,TRUE,FALSE) -> TRUE | AS19: =IF(Data[[#This Row],[Intended Use]]<>"",IF(VLOOKUP(Data[[#This Row],[Intended Use]],EditablePayItems[[IntendedUse]:[PayItemNumber]],6,FALSE)<>"",VLOOKUP(Data[[#This Row],[Intended Use]],EditablePayItems[[IntendedUse]:[PayItemNumber]],6,FALSE),""),"") -> 339 1 | AT19: =IF(Data[[#This Row],[Date Paved]]<>"",VLOOKUP(Data[[#This Row],[Date Paved]],MonthlyCutOffDates[[Date From]:[MonthYear]],3),"") -> Dec 2018 | AU19: =IF(AND(Data[[#This Row],[Target Spread Rate]]<>"",Data[[#This Row],[Area]]<>""),Data[[#This Row],[Target Spread Rate]]*Data[[#This Row],[Area]]/2000,"") -> 10.21051 | AV19: Mainline | AW19: SR-50 | AZ19: =MIN(Data[[#This Row],[Start Station]:[End Station]]) -> 168202 | BA19: =MAX(Data[[#This Row],[Start Station]:[End Station]]) -> 168388.58 | BB19: =IF(AND(Data[[#This Row],[Quantity]]<>"",Data[[#This Row],[GmmGsb Value]]<>""),Data[[#This Row],[Quantity]]*Data[[#This Row],[GmmGsb Value]],"") -> 35.58184 | BE19: =IF(Data[[#This Row],[Pay Item Number]]<>"",IF(VLOOKUP(Data[[#This Row],[Intended Use]],EditablePayItems[[IntendedUse]:[Actual Quantity Paid]],2,FALSE)="Prorated",IF(LEFT(Data[[#This Row],[Intended Use]],4)="ATPB","Cubic Yards","Square Yards"),"Tons"),"") -> Tons | BF19: =Data[[#This Row],[Lot]]&"-"&Data[[#This Row],[Line Number]] -> 0-9 | BG19: =IF(Data[[#This Row],[Date Paved]]<>"",TEXT(Data[[#This Row],[Date Paved]],"mm/dd/yyyy")&" - "&Data[[#This Row],[Shift]]&" - Crew "&Data[[#This Row],[Crew]],"") -> 09/01/2022 - Day - Crew 1 | BH19: =IF(Data[[#This Row],[Date Paved]]<>"",TEXT(Data[[#This Row],[Date Paved]],"mm/dd/yyyy"),"") -> 09/01/2022 | BJ19: =IF(OR(LEFT(Data[[#This Row],[Intended Use]],10)="Base Group", Data[[#This Row],[Intended Use]]="Turnout Const. (per sy)"),IF(AND(Data[[#This Row],[Thickness]]<>0,Data[[#This Row],[Total Thickness]]<>0,Data[[#This Row],[Area]]<>0),(Data[[#This Row],[Prorated Base]]/SUMIFS(Data[Prorated Base],Data[Intended Use],"="&Data[[#This Row],[Intended Use]]))*Data[[#This Row],[Total Thickness]],""), "") ->  | BK19: =IF(OR(Data[[#This Row],[Roadway Type]]<>"",Data[[#This Row],[Roadway ID]]<>""),UPPER(Data[[#This Row],[Roadway Type]])&"~-~"&UPPER(Data[[#This Row],[Roadway ID]]),"") -> MAINLINE~-~SR-50 | BL19: =IF(AND(Data[[#This Row],[Quantity]]<>"",Data[[#This Row],[Total Thickness]]<>"",Data[[#This Row],[Total Thickness]]<>0,Data[[#This Row],[GmmGsb Value]]<>"",Data[[#This Row],[GmmGsb Value]]<>0),IF(Data[[#This Row],[Quantity]]>0,(Data[[#This Row],[Quantity]]*2000)/(Data[[#This Row],[Total Thickness]]*Data[[#This Row],[GmmGsb Value]]*43.3),0),"") -> 
A20: 0 | B20: =IF(AND(Data[[#This Row],[Lot]]<>"",FIN<>""),FIN,"") -> 41673245201 | C20: =IF(AND(Data[[#This Row],[Lot]]<>"",ContractNumber<>""),ContractNumber,"") -> T7396 | D20: =IF(AND(Data[[#This Row],[Lot]]<>"",Contractor<>""),Contractor,"") -> APS | E20: =IF(AND(Data[[#This Row],[Lot]]<>"",BidDate<>""),BidDate,"") -> 2019-07-19 | F20: =IF(AND(Data[[#This Row],[Lot]]<>"",LumpSum<>""),LumpSum,"") -> No | J20: SP 21-20024B | K20: =IF(Data[[#This Row],[Mix Design Number]]<>"",IF(RIGHT(VLOOKUP(Data[[#This Row],[Mix Design Number]],MixDesign[],3,FALSE),1)=":",VLOOKUP(Data[[#This Row],[Mix Design Number]],MixDesign[],3,FALSE),VLOOKUP(Data[[#This Row],[Mix Design Number]],MixDesign[],3,FALSE)&":"),"") -> Gmm: | L20: =IF(Data[[#This Row],[Mix Design Number]]<>"",VLOOKUP(Data[[#This Row],[Mix Design Number]],MixDesign[],4,FALSE),"") -> 2.504 | M20: 12 | O20: 2022-09-02 | P20: Day | Q20: 1 | S20: 1-2 | T20: Misc. | W20: OR | X20: Guardrail Pad | Y20: 1 | Z20: 1 | AA20: 168085 | AB20: 168293 | AC20: 208 | AD20: 4 | AE20: 92.44 | AF20: 9.2 | AG20: 2 | AH20: 199.05 | AI20: =IF(OR(Data[[#This Row],[GmmGsb Value]]="",Data[[#This Row],[Thickness]]=""),"",IF(RIGHT(Data[[#This Row],[GmmGsb Type]],4)="Gsb:",ROUND(Data[[#This Row],[GmmGsb Value]]*Data[[#This Row],[Thickness]]*40.5,0),IF(Data[[#This Row],[GmmGsb Type]]="Gmm:",IF(Data[[#This Row],[Intended Use]]="Misc.",ROUND((Data[[#This Row],[GmmGsb Value]]/2.54)*(100*Data[[#This Row],[Thickness]]),0),ROUND(Data[[#This Row],[GmmGsb Value]]*Data[[#This Row],[Thickness]]*43.3,0)),""))) -> 197 | AK20: =IF(Data[[#This Row],[Data Exists]]=FALSE,"",IF(LEFT(Data[[#This Row],[GmmGsb Type]],4)="ATPB",IF(AND(Data[[#This Row],[Start Station]]<>"",Data[[#This Row],[End Station]]<>"",Data[[#This Row],[Width]]<>"",Data[[#This Row],[Thickness]]<>"",Data[[#This Row],[Intended Use]]="ATPB"),Data[[#This Row],[Length]]*Data[[#This Row],[Width]]*Data[[#This Row],[Thickness]]/324,""),IF(Data[[#This Row],[Intended Use]]<>"",IF(UPPER(INDEX(EditablePayItems[],MATCH(IF(OR(RIGHT(Data[[#This Row],[Intended Use]],6)=" (opt)",RIGHT(Data[[#This Row],[Intended Use]],6)=" (req)"),LEFT(Data[[#This Row],[Intended Use]],LEN(Data[[#This Row],[Intended Use]])-6),Data[[#This Row],[Intended Use]]),EditablePayItems[IntendedUse],0),4))="PRORATED",IF(Data[[#This Row],[Total Thickness]]*Data[[#This Row],[Area]]<>0,Data[[#This Row],[Thickness]]/Data[[#This Row],[Total Thickness]]*Data[[#This Row],[Area]],0), ""),""))) ->  | AL20: C | AN20: M24307776-000 | AP20: 2022-12-01T00:41:21 | AQ20: =IF(AND(Data[[#This Row],[Lot]]<>"",ProjectDateTimeStamp<>""),ProjectDateTimeStamp,"") -> 2023-10-05T10:35:05 | AR20: =IF(COUNTA(Data[[#This Row],[Lot]],Data[[#This Row],[Intended Lot Size]:[Mix Design Number]],Data[[#This Row],[Line Number]:[Spread Rate]],Data[[#This Row],[Total Thickness]],Data[[#This Row],[Varied Width Designation]:[Date Time Stamp]])>0,TRUE,FALSE) -> TRUE | AS20: =IF(Data[[#This Row],[Intended Use]]<>"",IF(VLOOKUP(Data[[#This Row],[Intended Use]],EditablePayItems[[IntendedUse]:[PayItemNumber]],6,FALSE)<>"",VLOOKUP(Data[[#This Row],[Intended Use]],EditablePayItems[[IntendedUse]:[PayItemNumber]],6,FALSE),""),"") -> 339 1 | AT20: =IF(Data[[#This Row],[Date Paved]]<>"",VLOOKUP(Data[[#This Row],[Date Paved]],MonthlyCutOffDates[[Date From]:[MonthYear]],3),"") -> Dec 2018 | AU20: =IF(AND(Data[[#This Row],[Target Spread Rate]]<>"",Data[[#This Row],[Area]]<>""),Data[[#This Row],[Target Spread Rate]]*Data[[#This Row],[Area]]/2000,"") -> 9.10534 | AV20: Mainline | AW20: SR-50 | AZ20: =MIN(Data[[#This Row],[Start Station]:[End Station]]) -> 168085 | BA20: =MAX(Data[[#This Row],[Start Station]:[End Station]]) -> 168293 | BB20: =IF(AND(Data[[#This Row],[Quantity]]<>"",Data[[#This Row],[GmmGsb Value]]<>""),Data[[#This Row],[Quantity]]*Data[[#This Row],[GmmGsb Value]],"") -> 23.0368 | BE20: =IF(Data[[#This Row],[Pay Item Number]]<>"",IF(VLOOKUP(Data[[#This Row],[Intended Use]],EditablePayItems[[IntendedUse]:[Actual Quantity Paid]],2,FALSE)="Prorated",IF(LEFT(Data[[#This Row],[Intended Use]],4)="ATPB","Cubic Yards","Square Yards"),"Tons"),"") -> Tons | BF20: =Data[[#This Row],[Lot]]&"-"&Data[[#This Row],[Line Number]] -> 0-12 | BG20: =IF(Data[[#This Row],[Date Paved]]<>"",TEXT(Data[[#This Row],[Date Paved]],"mm/dd/yyyy")&" - "&Data[[#This Row],[Shift]]&" - Crew "&Data[[#This Row],[Crew]],"") -> 09/02/2022 - Day - Crew 1 | BH20: =IF(Data[[#This Row],[Date Paved]]<>"",TEXT(Data[[#This Row],[Date Paved]],"mm/dd/yyyy"),"") -> 09/02/2022 | BJ20: =IF(OR(LEFT(Data[[#This Row],[Intended Use]],10)="Base Group", Data[[#This Row],[Intended Use]]="Turnout Const. (per sy)"),IF(AND(Data[[#This Row],[Thickness]]<>0,Data[[#This Row],[Total Thickness]]<>0,Data[[#This Row],[Area]]<>0),(Data[[#This Row],[Prorated Base]]/SUMIFS(Data[Prorated Base],Data[Intended Use],"="&Data[[#This Row],[Intended Use]]))*Data[[#This Row],[Total Thickness]],""), "") ->  | BK20: =IF(OR(Data[[#This Row],[Roadway Type]]<>"",Data[[#This Row],[Roadway ID]]<>""),UPPER(Data[[#This Row],[Roadway Type]])&"~-~"&UPPER(Data[[#This Row],[Roadway ID]]),"") -> MAINLINE~-~SR-50 | BL20: =IF(AND(Data[[#This Row],[Quantity]]<>"",Data[[#This Row],[Total Thickness]]<>"",Data[[#This Row],[Total Thickness]]<>0,Data[[#This Row],[GmmGsb Value]]<>"",Data[[#This Row],[GmmGsb Value]]<>0),IF(Data[[#This Row],[Quantity]]>0,(Data[[#This Row],[Quantity]]*2000)/(Data[[#This Row],[Total Thickness]]*Data[[#This Row],[GmmGsb Value]]*43.3),0),"") -> 
A21: 0 | B21: =IF(AND(Data[[#This Row],[Lot]]<>"",FIN<>""),FIN,"") -> 41673245201 | C21: =IF(AND(Data[[#This Row],[Lot]]<>"",ContractNumber<>""),ContractNumber,"") -> T7396 | D21: =IF(AND(Data[[#This Row],[Lot]]<>"",Contractor<>""),Contractor,"") -> APS | E21: =IF(AND(Data[[#This Row],[Lot]]<>"",BidDate<>""),BidDate,"") -> 2019-07-19 | F21: =IF(AND(Data[[#This Row],[Lot]]<>"",LumpSum<>""),LumpSum,"") -> No | J21: SP 21-20024B | K21: =IF(Data[[#This Row],[Mix Design Number]]<>"",IF(RIGHT(VLOOKUP(Data[[#This Row],[Mix Design Number]],MixDesign[],3,FALSE),1)=":",VLOOKUP(Data[[#This Row],[Mix Design Number]],MixDesign[],3,FALSE),VLOOKUP(Data[[#This Row],[Mix Design Number]],MixDesign[],3,FALSE)&":"),"") -> Gmm: | L21: =IF(Data[[#This Row],[Mix Design Number]]<>"",VLOOKUP(Data[[#This Row],[Mix Design Number]],MixDesign[],4,FALSE),"") -> 2.504 | M21: 15 | O21: 2022-09-09 | P21: Day | Q21: 1 | T21: Misc. | W21: OR | X21: Guardrail Pad | Y21: 1 | Z21: 1 | AA21: 168293 | AB21: 168386.37 | AC21: 93.37 | AD21: 4 | AE21: 41.5 | AF21: 3.96 | AG21: 2 | AH21: 190.84 | AI21: =IF(OR(Data[[#This Row],[GmmGsb Value]]="",Data[[#This Row],[Thickness]]=""),"",IF(RIGHT(Data[[#This Row],[GmmGsb Type]],4)="Gsb:",ROUND(Data[[#This Row],[GmmGsb Value]]*Data[[#This Row],[Thickness]]*40.5,0),IF(Data[[#This Row],[GmmGsb Type]]="Gmm:",IF(Data[[#This Row],[Intended Use]]="Misc.",ROUND((Data[[#This Row],[GmmGsb Value]]/2.54)*(100*Data[[#This Row],[Thickness]]),0),ROUND(Data[[#This Row],[GmmGsb Value]]*Data[[#This Row],[Thickness]]*43.3,0)),""))) -> 197 | AK21: =IF(Data[[#This Row],[Data Exists]]=FALSE,"",IF(LEFT(Data[[#This Row],[GmmGsb Type]],4)="ATPB",IF(AND(Data[[#This Row],[Start Station]]<>"",Data[[#This Row],[End Station]]<>"",Data[[#This Row],[Width]]<>"",Data[[#This Row],[Thickness]]<>"",Data[[#This Row],[Intended Use]]="ATPB"),Data[[#This Row],[Length]]*Data[[#This Row],[Width]]*Data[[#This Row],[Thickness]]/324,""),IF(Data[[#This Row],[Intended Use]]<>"",IF(UPPER(INDEX(EditablePayItems[],MATCH(IF(OR(RIGHT(Data[[#This Row],[Intended Use]],6)=" (opt)",RIGHT(Data[[#This Row],[Intended Use]],6)=" (req)"),LEFT(Data[[#This Row],[Intended Use]],LEN(Data[[#This Row],[Intended Use]])-6),Data[[#This Row],[Intended Use]]),EditablePayItems[IntendedUse],0),4))="PRORATED",IF(Data[[#This Row],[Total Thickness]]*Data[[#This Row],[Area]]<>0,Data[[#This Row],[Thickness]]/Data[[#This Row],[Total Thickness]]*Data[[#This Row],[Area]],0), ""),""))) ->  | AL21: C | AN21: M24307776-000 | AP21: 2022-12-01T00:41:21 | AQ21: =IF(AND(Data[[#This Row],[Lot]]<>"",ProjectDateTimeStamp<>""),ProjectDateTimeStamp,"") -> 2023-10-05T10:35:05 | AR21: =IF(COUNTA(Data[[#This Row],[Lot]],Data[[#This Row],[Intended Lot Size]:[Mix Design Number]],Data[[#This Row],[Line Number]:[Spread Rate]],Data[[#This Row],[Total Thickness]],Data[[#This Row],[Varied Width Designation]:[Date Time Stamp]])>0,TRUE,FALSE) -> TRUE | AS21: =IF(Data[[#This Row],[Intended Use]]<>"",IF(VLOOKUP(Data[[#This Row],[Intended Use]],EditablePayItems[[IntendedUse]:[PayItemNumber]],6,FALSE)<>"",VLOOKUP(Data[[#This Row],[Intended Use]],EditablePayItems[[IntendedUse]:[PayItemNumber]],6,FALSE),""),"") -> 339 1 | AT21: =IF(Data[[#This Row],[Date Paved]]<>"",VLOOKUP(Data[[#This Row],[Date Paved]],MonthlyCutOffDates[[Date From]:[MonthYear]],3),"") -> Dec 2018 | AU21: =IF(AND(Data[[#This Row],[Target Spread Rate]]<>"",Data[[#This Row],[Area]]<>""),Data[[#This Row],[Target Spread Rate]]*Data[[#This Row],[Area]]/2000,"") -> 4.08775 | AV21: Mainline | AW21: SR-50 | AZ21: =MIN(Data[[#This Row],[Start Station]:[End Station]]) -> 168293 | BA21: =MAX(Data[[#This Row],[Start Station]:[End Station]]) -> 168386.37 | BB21: =IF(AND(Data[[#This Row],[Quantity]]<>"",Data[[#This Row],[GmmGsb Value]]<>""),Data[[#This Row],[Quantity]]*Data[[#This Row],[GmmGsb Value]],"") -> 9.91584 | BE21: =IF(Data[[#This Row],[Pay Item Number]]<>"",IF(VLOOKUP(Data[[#This Row],[Intended Use]],EditablePayItems[[IntendedUse]:[Actual Quantity Paid]],2,FALSE)="Prorated",IF(LEFT(Data[[#This Row],[Intended Use]],4)="ATPB","Cubic Yards","Square Yards"),"Tons"),"") -> Tons | BF21: =Data[[#This Row],[Lot]]&"-"&Data[[#This Row],[Line Number]] -> 0-15 | BG21: =IF(Data[[#This Row],[Date Paved]]<>"",TEXT(Data[[#This Row],[Date Paved]],"mm/dd/yyyy")&" - "&Data[[#This Row],[Shift]]&" - Crew "&Data[[#This Row],[Crew]],"") -> 09/09/2022 - Day - Crew 1 | BH21: =IF(Data[[#This Row],[Date Paved]]<>"",TEXT(Data[[#This Row],[Date Paved]],"mm/dd/yyyy"),"") -> 09/09/2022 | BJ21: =IF(OR(LEFT(Data[[#This Row],[Intended Use]],10)="Base Group", Data[[#This Row],[Intended Use]]="Turnout Const. (per sy)"),IF(AND(Data[[#This Row],[Thickness]]<>0,Data[[#This Row],[Total Thickness]]<>0,Data[[#This Row],[Area]]<>0),(Data[[#This Row],[Prorated Base]]/SUMIFS(Data[Prorated Base],Data[Intended Use],"="&Data[[#This Row],[Intended Use]]))*Data[[#This Row],[Total Thickness]],""), "") ->  | BK21: =IF(OR(Data[[#This Row],[Roadway Type]]<>"",Data[[#This Row],[Roadway ID]]<>""),UPPER(Data[[#This Row],[Roadway Type]])&"~-~"&UPPER(Data[[#This Row],[Roadway ID]]),"") -> MAINLINE~-~SR-50 | BL21: =IF(AND(Data[[#This Row],[Quantity]]<>"",Data[[#This Row],[Total Thickness]]<>"",Data[[#This Row],[Total Thickness]]<>0,Data[[#This Row],[GmmGsb Value]]<>"",Data[[#This Row],[GmmGsb Value]]<>0),IF(Data[[#This Row],[Quantity]]>0,(Data[[#This Row],[Quantity]]*2000)/(Data[[#This Row],[Total Thickness]]*Data[[#This Row],[GmmGsb Value]]*43.3),0),"") -> 
A22: 0 | B22: =IF(AND(Data[[#This Row],[Lot]]<>"",FIN<>""),FIN,"") -> 41673245201 | C22: =IF(AND(Data[[#This Row],[Lot]]<>"",ContractNumber<>""),ContractNumber,"") -> T7396 | D22: =IF(AND(Data[[#This Row],[Lot]]<>"",Contractor<>""),Contractor,"") -> APS | E22: =IF(AND(Data[[#This Row],[Lot]]<>"",BidDate<>""),BidDate,"") -> 2019-07-19 | F22: =IF(AND(Data[[#This Row],[Lot]]<>"",LumpSum<>""),LumpSum,"") -> No | J22: SP 21-20024B | K22: =IF(Data[[#This Row],[Mix Design Number]]<>"",IF(RIGHT(VLOOKUP(Data[[#This Row],[Mix Design Number]],MixDesign[],3,FALSE),1)=":",VLOOKUP(Data[[#This Row],[Mix Design Number]],MixDesign[],3,FALSE),VLOOKUP(Data[[#This Row],[Mix Design Number]],MixDesign[],3,FALSE)&":"),"") -> Gmm: | L22: =IF(Data[[#This Row],[Mix Design Number]]<>"",VLOOKUP(Data[[#This Row],[Mix Design Number]],MixDesign[],4,FALSE),"") -> 2.504 | M22: 16 | O22: 2022-09-09 | P22: Day | Q22: 1 | T22: Misc. | W22: OR | X22: Guardrail Pad | Y22: 1 | Z22: 1 | AA22: 168669.19 | AB22: 168800.64 | AC22: 131.45 | AD22: 4 | AE22: 58.42 | AF22: 5.99 | AG22: 2 | AH22: 205.07 | AI22: =IF(OR(Data[[#This Row],[GmmGsb Value]]="",Data[[#This Row],[Thickness]]=""),"",IF(RIGHT(Data[[#This Row],[GmmGsb Type]],4)="Gsb:",ROUND(Data[[#This Row],[GmmGsb Value]]*Data[[#This Row],[Thickness]]*40.5,0),IF(Data[[#This Row],[GmmGsb Type]]="Gmm:",IF(Data[[#This Row],[Intended Use]]="Misc.",ROUND((Data[[#This Row],[GmmGsb Value]]/2.54)*(100*Data[[#This Row],[Thickness]]),0),ROUND(Data[[#This Row],[GmmGsb Value]]*Data[[#This Row],[Thickness]]*43.3,0)),""))) -> 197 | AK22: =IF(Data[[#This Row],[Data Exists]]=FALSE,"",IF(LEFT(Data[[#This Row],[GmmGsb Type]],4)="ATPB",IF(AND(Data[[#This Row],[Start Station]]<>"",Data[[#This Row],[End Station]]<>"",Data[[#This Row],[Width]]<>"",Data[[#This Row],[Thickness]]<>"",Data[[#This Row],[Intended Use]]="ATPB"),Data[[#This Row],[Length]]*Data[[#This Row],[Width]]*Data[[#This Row],[Thickness]]/324,""),IF(Data[[#This Row],[Intended Use]]<>"",IF(UPPER(INDEX(EditablePayItems[],MATCH(IF(OR(RIGHT(Data[[#This Row],[Intended Use]],6)=" (opt)",RIGHT(Data[[#This Row],[Intended Use]],6)=" (req)"),LEFT(Data[[#This Row],[Intended Use]],LEN(Data[[#This Row],[Intended Use]])-6),Data[[#This Row],[Intended Use]]),EditablePayItems[IntendedUse],0),4))="PRORATED",IF(Data[[#This Row],[Total Thickness]]*Data[[#This Row],[Area]]<>0,Data[[#This Row],[Thickness]]/Data[[#This Row],[Total Thickness]]*Data[[#This Row],[Area]],0), ""),""))) ->  | AL22: C | AN22: M24307776-000 | AP22: 2022-12-01T00:41:21 | AQ22: =IF(AND(Data[[#This Row],[Lot]]<>"",ProjectDateTimeStamp<>""),ProjectDateTimeStamp,"") -> 2023-10-05T10:35:05 | AR22: =IF(COUNTA(Data[[#This Row],[Lot]],Data[[#This Row],[Intended Lot Size]:[Mix Design Number]],Data[[#This Row],[Line Number]:[Spread Rate]],Data[[#This Row],[Total Thickness]],Data[[#This Row],[Varied Width Designation]:[Date Time Stamp]])>0,TRUE,FALSE) -> TRUE | AS22: =IF(Data[[#This Row],[Intended Use]]<>"",IF(VLOOKUP(Data[[#This Row],[Intended Use]],EditablePayItems[[IntendedUse]:[PayItemNumber]],6,FALSE)<>"",VLOOKUP(Data[[#This Row],[Intended Use]],EditablePayItems[[IntendedUse]:[PayItemNumber]],6,FALSE),""),"") -> 339 1 | AT22: =IF(Data[[#This Row],[Date Paved]]<>"",VLOOKUP(Data[[#This Row],[Date Paved]],MonthlyCutOffDates[[Date From]:[MonthYear]],3),"") -> Dec 2018 | AU22: =IF(AND(Data[[#This Row],[Target Spread Rate]]<>"",Data[[#This Row],[Area]]<>""),Data[[#This Row],[Target Spread Rate]]*Data[[#This Row],[Area]]/2000,"") -> 5.75437 | AV22: Mainline | AW22: SR-50 | AZ22: =MIN(Data[[#This Row],[Start Station]:[End Station]]) -> 168669.19 | BA22: =MAX(Data[[#This Row],[Start Station]:[End Station]]) -> 168800.64 | BB22: =IF(AND(Data[[#This Row],[Quantity]]<>"",Data[[#This Row],[GmmGsb Value]]<>""),Data[[#This Row],[Quantity]]*Data[[#This Row],[GmmGsb Value]],"") -> 14.99896 | BE22: =IF(Data[[#This Row],[Pay Item Number]]<>"",IF(VLOOKUP(Data[[#This Row],[Intended Use]],EditablePayItems[[IntendedUse]:[Actual Quantity Paid]],2,FALSE)="Prorated",IF(LEFT(Data[[#This Row],[Intended Use]],4)="ATPB","Cubic Yards","Square Yards"),"Tons"),"") -> Tons | BF22: =Data[[#This Row],[Lot]]&"-"&Data[[#This Row],[Line Number]] -> 0-16 | BG22: =IF(Data[[#This Row],[Date Paved]]<>"",TEXT(Data[[#This Row],[Date Paved]],"mm/dd/yyyy")&" - "&Data[[#This Row],[Shift]]&" - Crew "&Data[[#This Row],[Crew]],"") -> 09/09/2022 - Day - Crew 1 | BH22: =IF(Data[[#This Row],[Date Paved]]<>"",TEXT(Data[[#This Row],[Date Paved]],"mm/dd/yyyy"),"") -> 09/09/2022 | BJ22: =IF(OR(LEFT(Data[[#This Row],[Intended Use]],10)="Base Group", Data[[#This Row],[Intended Use]]="Turnout Const. (per sy)"),IF(AND(Data[[#This Row],[Thickness]]<>0,Data[[#This Row],[Total Thickness]]<>0,Data[[#This Row],[Area]]<>0),(Data[[#This Row],[Prorated Base]]/SUMIFS(Data[Prorated Base],Data[Intended Use],"="&Data[[#This Row],[Intended Use]]))*Data[[#This Row],[Total Thickness]],""), "") ->  | BK22: =IF(OR(Data[[#This Row],[Roadway Type]]<>"",Data[[#This Row],[Roadway ID]]<>""),UPPER(Data[[#This Row],[Roadway Type]])&"~-~"&UPPER(Data[[#This Row],[Roadway ID]]),"") -> MAINLINE~-~SR-50 | BL22: =IF(AND(Data[[#This Row],[Quantity]]<>"",Data[[#This Row],[Total Thickness]]<>"",Data[[#This Row],[Total Thickness]]<>0,Data[[#This Row],[GmmGsb Value]]<>"",Data[[#This Row],[GmmGsb Value]]<>0),IF(Data[[#This Row],[Quantity]]>0,(Data[[#This Row],[Quantity]]*2000)/(Data[[#This Row],[Total Thickness]]*Data[[#This Row],[GmmGsb Value]]*43.3),0),"") -> 
A23: 0 | B23: =IF(AND(Data[[#This Row],[Lot]]<>"",FIN<>""),FIN,"") -> 41673245201 | C23: =IF(AND(Data[[#This Row],[Lot]]<>"",ContractNumber<>""),ContractNumber,"") -> T7396 | D23: =IF(AND(Data[[#This Row],[Lot]]<>"",Contractor<>""),Contractor,"") -> APS | E23: =IF(AND(Data[[#This Row],[Lot]]<>"",BidDate<>""),BidDate,"") -> 2019-07-19 | F23: =IF(AND(Data[[#This Row],[Lot]]<>"",LumpSum<>""),LumpSum,"") -> No | J23: SP 21-20024B | K23: =IF(Data[[#This Row],[Mix Design Number]]<>"",IF(RIGHT(VLOOKUP(Data[[#This Row],[Mix Design Number]],MixDesign[],3,FALSE),1)=":",VLOOKUP(Data[[#This Row],[Mix Design Number]],MixDesign[],3,FALSE),VLOOKUP(Data[[#This Row],[Mix Design Number]],MixDesign[],3,FALSE)&":"),"") -> Gmm: | L23: =IF(Data[[#This Row],[Mix Design Number]]<>"",VLOOKUP(Data[[#This Row],[Mix Design Number]],MixDesign[],4,FALSE),"") -> 2.504 | M23: 19 | O23: 2022-09-12 | P23: Day | Q23: 1 | S23: 1-3 | T23: Misc. | W23: OL | X23: Gaurdrail Pad | Y23: 1 | Z23: 1 | AA23: 169313.91 | AB23: 168871.78 | AC23: 442.13 | AD23: 8 | AE23: 393 | AF23: 46.97 | AG23: 2 | AH23: 239.03 | AI23: =IF(OR(Data[[#This Row],[GmmGsb Value]]="",Data[[#This Row],[Thickness]]=""),"",IF(RIGHT(Data[[#This Row],[GmmGsb Type]],4)="Gsb:",ROUND(Data[[#This Row],[GmmGsb Value]]*Data[[#This Row],[Thickness]]*40.5,0),IF(Data[[#This Row],[GmmGsb Type]]="Gmm:",IF(Data[[#This Row],[Intended Use]]="Misc.",ROUND((Data[[#This Row],[GmmGsb Value]]/2.54)*(100*Data[[#This Row],[Thickness]]),0),ROUND(Data[[#This Row],[GmmGsb Value]]*Data[[#This Row],[Thickness]]*43.3,0)),""))) -> 197 | AK23: =IF(Data[[#This Row],[Data Exists]]=FALSE,"",IF(LEFT(Data[[#This Row],[GmmGsb Type]],4)="ATPB",IF(AND(Data[[#This Row],[Start Station]]<>"",Data[[#This Row],[End Station]]<>"",Data[[#This Row],[Width]]<>"",Data[[#This Row],[Thickness]]<>"",Data[[#This Row],[Intended Use]]="ATPB"),Data[[#This Row],[Length]]*Data[[#This Row],[Width]]*Data[[#This Row],[Thickness]]/324,""),IF(Data[[#This Row],[Intended Use]]<>"",IF(UPPER(INDEX(EditablePayItems[],MATCH(IF(OR(RIGHT(Data[[#This Row],[Intended Use]],6)=" (opt)",RIGHT(Data[[#This Row],[Intended Use]],6)=" (req)"),LEFT(Data[[#This Row],[Intended Use]],LEN(Data[[#This Row],[Intended Use]])-6),Data[[#This Row],[Intended Use]]),EditablePayItems[IntendedUse],0),4))="PRORATED",IF(Data[[#This Row],[Total Thickness]]*Data[[#This Row],[Area]]<>0,Data[[#This Row],[Thickness]]/Data[[#This Row],[Total Thickness]]*Data[[#This Row],[Area]],0), ""),""))) ->  | AL23: C | AN23: M24307776-000 | AP23: 2022-12-01T00:41:21 | AQ23: =IF(AND(Data[[#This Row],[Lot]]<>"",ProjectDateTimeStamp<>""),ProjectDateTimeStamp,"") -> 2023-10-05T10:35:05 | AR23: =IF(COUNTA(Data[[#This Row],[Lot]],Data[[#This Row],[Intended Lot Size]:[Mix Design Number]],Data[[#This Row],[Line Number]:[Spread Rate]],Data[[#This Row],[Total Thickness]],Data[[#This Row],[Varied Width Designation]:[Date Time Stamp]])>0,TRUE,FALSE) -> TRUE | AS23: =IF(Data[[#This Row],[Intended Use]]<>"",IF(VLOOKUP(Data[[#This Row],[Intended Use]],EditablePayItems[[IntendedUse]:[PayItemNumber]],6,FALSE)<>"",VLOOKUP(Data[[#This Row],[Intended Use]],EditablePayItems[[IntendedUse]:[PayItemNumber]],6,FALSE),""),"") -> 339 1 | AT23: =IF(Data[[#This Row],[Date Paved]]<>"",VLOOKUP(Data[[#This Row],[Date Paved]],MonthlyCutOffDates[[Date From]:[MonthYear]],3),"") -> Dec 2018 | AU23: =IF(AND(Data[[#This Row],[Target Spread Rate]]<>"",Data[[#This Row],[Area]]<>""),Data[[#This Row],[Target Spread Rate]]*Data[[#This Row],[Area]]/2000,"") -> 38.7105 | AV23: Mainline | AW23: SR-50 | AZ23: =MIN(Data[[#This Row],[Start Station]:[End Station]]) -> 168871.78 | BA23: =MAX(Data[[#This Row],[Start Station]:[End Station]]) -> 169313.91 | BB23: =IF(AND(Data[[#This Row],[Quantity]]<>"",Data[[#This Row],[GmmGsb Value]]<>""),Data[[#This Row],[Quantity]]*Data[[#This Row],[GmmGsb Value]],"") -> 117.61288 | BE23: =IF(Data[[#This Row],[Pay Item Number]]<>"",IF(VLOOKUP(Data[[#This Row],[Intended Use]],EditablePayItems[[IntendedUse]:[Actual Quantity Paid]],2,FALSE)="Prorated",IF(LEFT(Data[[#This Row],[Intended Use]],4)="ATPB","Cubic Yards","Square Yards"),"Tons"),"") -> Tons | BF23: =Data[[#This Row],[Lot]]&"-"&Data[[#This Row],[Line Number]] -> 0-19 | BG23: =IF(Data[[#This Row],[Date Paved]]<>"",TEXT(Data[[#This Row],[Date Paved]],"mm/dd/yyyy")&" - "&Data[[#This Row],[Shift]]&" - Crew "&Data[[#This Row],[Crew]],"") -> 09/12/2022 - Day - Crew 1 | BH23: =IF(Data[[#This Row],[Date Paved]]<>"",TEXT(Data[[#This Row],[Date Paved]],"mm/dd/yyyy"),"") -> 09/12/2022 | BJ23: =IF(OR(LEFT(Data[[#This Row],[Intended Use]],10)="Base Group", Data[[#This Row],[Intended Use]]="Turnout Const. (per sy)"),IF(AND(Data[[#This Row],[Thickness]]<>0,Data[[#This Row],[Total Thickness]]<>0,Data[[#This Row],[Area]]<>0),(Data[[#This Row],[Prorated Base]]/SUMIFS(Data[Prorated Base],Data[Intended Use],"="&Data[[#This Row],[Intended Use]]))*Data[[#This Row],[Total Thickness]],""), "") ->  | BK23: =IF(OR(Data[[#This Row],[Roadway Type]]<>"",Data[[#This Row],[Roadway ID]]<>""),UPPER(Data[[#This Row],[Roadway Type]])&"~-~"&UPPER(Data[[#This Row],[Roadway ID]]),"") -> MAINLINE~-~SR-50 | BL23: =IF(AND(Data[[#This Row],[Quantity]]<>"",Data[[#This Row],[Total Thickness]]<>"",Data[[#This Row],[Total Thickness]]<>0,Data[[#This Row],[GmmGsb Value]]<>"",Data[[#This Row],[GmmGsb Value]]<>0),IF(Data[[#This Row],[Quantity]]>0,(Data[[#This Row],[Quantity]]*2000)/(Data[[#This Row],[Total Thickness]]*Data[[#This Row],[GmmGsb Value]]*43.3),0),"") -> 
A24: 0 | B24: =IF(AND(Data[[#This Row],[Lot]]<>"",FIN<>""),FIN,"") -> 41673245201 | C24: =IF(AND(Data[[#This Row],[Lot]]<>"",ContractNumber<>""),ContractNumber,"") -> T7396 | D24: =IF(AND(Data[[#This Row],[Lot]]<>"",Contractor<>""),Contractor,"") -> APS | E24: =IF(AND(Data[[#This Row],[Lot]]<>"",BidDate<>""),BidDate,"") -> 2019-07-19 | F24: =IF(AND(Data[[#This Row],[Lot]]<>"",LumpSum<>""),LumpSum,"") -> No | J24: SP 21-20024B | K24: =IF(Data[[#This Row],[Mix Design Number]]<>"",IF(RIGHT(VLOOKUP(Data[[#This Row],[Mix Design Number]],MixDesign[],3,FALSE),1)=":",VLOOKUP(Data[[#This Row],[Mix Design Number]],MixDesign[],3,FALSE),VLOOKUP(Data[[#This Row],[Mix Design Number]],MixDesign[],3,FALSE)&":"),"") -> Gmm: | L24: =IF(Data[[#This Row],[Mix Design Number]]<>"",VLOOKUP(Data[[#This Row],[Mix Design Number]],MixDesign[],4,FALSE),"") -> 2.504 | M24: 20 | N24: 5 | O24: 2022-09-12 | P24: Day | Q24: 1 | S24: 3 | T24: Misc. | W24: OL | X24: Gaurdrail Pad | Y24: 1 | Z24: 1 | AA24: 168805.86 | AB24: 168630 | AC24: 175.86 | AD24: 4.5 | AE24: 87.93 | AF24: 12 | AG24: 2 | AH24: 272.94 | AI24: =IF(OR(Data[[#This Row],[GmmGsb Value]]="",Data[[#This Row],[Thickness]]=""),"",IF(RIGHT(Data[[#This Row],[GmmGsb Type]],4)="Gsb:",ROUND(Data[[#This Row],[GmmGsb Value]]*Data[[#This Row],[Thickness]]*40.5,0),IF(Data[[#This Row],[GmmGsb Type]]="Gmm:",IF(Data[[#This Row],[Intended Use]]="Misc.",ROUND((Data[[#This Row],[GmmGsb Value]]/2.54)*(100*Data[[#This Row],[Thickness]]),0),ROUND(Data[[#This Row],[GmmGsb Value]]*Data[[#This Row],[Thickness]]*43.3,0)),""))) -> 197 | AK24: =IF(Data[[#This Row],[Data Exists]]=FALSE,"",IF(LEFT(Data[[#This Row],[GmmGsb Type]],4)="ATPB",IF(AND(Data[[#This Row],[Start Station]]<>"",Data[[#This Row],[End Station]]<>"",Data[[#This Row],[Width]]<>"",Data[[#This Row],[Thickness]]<>"",Data[[#This Row],[Intended Use]]="ATPB"),Data[[#This Row],[Length]]*Data[[#This Row],[Width]]*Data[[#This Row],[Thickness]]/324,""),IF(Data[[#This Row],[Intended Use]]<>"",IF(UPPER(INDEX(EditablePayItems[],MATCH(IF(OR(RIGHT(Data[[#This Row],[Intended Use]],6)=" (opt)",RIGHT(Data[[#This Row],[Intended Use]],6)=" (req)"),LEFT(Data[[#This Row],[Intended Use]],LEN(Data[[#This Row],[Intended Use]])-6),Data[[#This Row],[Intended Use]]),EditablePayItems[IntendedUse],0),4))="PRORATED",IF(Data[[#This Row],[Total Thickness]]*Data[[#This Row],[Area]]<>0,Data[[#This Row],[Thickness]]/Data[[#This Row],[Total Thickness]]*Data[[#This Row],[Area]],0), ""),""))) ->  | AL24: C | AM24: Overun due to low subgrade | AN24: M24307776-000 | AP24: 2022-12-01T00:41:21 | AQ24: =IF(AND(Data[[#This Row],[Lot]]<>"",ProjectDateTimeStamp<>""),ProjectDateTimeStamp,"") -> 2023-10-05T10:35:05 | AR24: =IF(COUNTA(Data[[#This Row],[Lot]],Data[[#This Row],[Intended Lot Size]:[Mix Design Number]],Data[[#This Row],[Line Number]:[Spread Rate]],Data[[#This Row],[Total Thickness]],Data[[#This Row],[Varied Width Designation]:[Date Time Stamp]])>0,TRUE,FALSE) -> TRUE | AS24: =IF(Data[[#This Row],[Intended Use]]<>"",IF(VLOOKUP(Data[[#This Row],[Intended Use]],EditablePayItems[[IntendedUse]:[PayItemNumber]],6,FALSE)<>"",VLOOKUP(Data[[#This Row],[Intended Use]],EditablePayItems[[IntendedUse]:[PayItemNumber]],6,FALSE),""),"") -> 339 1 | AT24: =IF(Data[[#This Row],[Date Paved]]<>"",VLOOKUP(Data[[#This Row],[Date Paved]],MonthlyCutOffDates[[Date From]:[MonthYear]],3),"") -> Dec 2018 | AU24: =IF(AND(Data[[#This Row],[Target Spread Rate]]<>"",Data[[#This Row],[Area]]<>""),Data[[#This Row],[Target Spread Rate]]*Data[[#This Row],[Area]]/2000,"") -> 8.661105 | AV24: Mainline | AW24: SR-50 | AZ24: =MIN(Data[[#This Row],[Start Station]:[End Station]]) -> 168630 | BA24: =MAX(Data[[#This Row],[Start Station]:[End Station]]) -> 168805.86 | BB24: =IF(AND(Data[[#This Row],[Quantity]]<>"",Data[[#This Row],[GmmGsb Value]]<>""),Data[[#This Row],[Quantity]]*Data[[#This Row],[GmmGsb Value]],"") -> 30.048 | BE24: =IF(Data[[#This Row],[Pay Item Number]]<>"",IF(VLOOKUP(Data[[#This Row],[Intended Use]],EditablePayItems[[IntendedUse]:[Actual Quantity Paid]],2,FALSE)="Prorated",IF(LEFT(Data[[#This Row],[Intended Use]],4)="ATPB","Cubic Yards","Square Yards"),"Tons"),"") -> Tons | BF24: =Data[[#This Row],[Lot]]&"-"&Data[[#This Row],[Line Number]] -> 0-20 | BG24: =IF(Data[[#This Row],[Date Paved]]<>"",TEXT(Data[[#This Row],[Date Paved]],"mm/dd/yyyy")&" - "&Data[[#This Row],[Shift]]&" - Crew "&Data[[#This Row],[Crew]],"") -> 09/12/2022 - Day - Crew 1 | BH24: =IF(Data[[#This Row],[Date Paved]]<>"",TEXT(Data[[#This Row],[Date Paved]],"mm/dd/yyyy"),"") -> 09/12/2022 | BJ24: =IF(OR(LEFT(Data[[#This Row],[Intended Use]],10)="Base Group", Data[[#This Row],[Intended Use]]="Turnout Const. (per sy)"),IF(AND(Data[[#This Row],[Thickness]]<>0,Data[[#This Row],[Total Thickness]]<>0,Data[[#This Row],[Area]]<>0),(Data[[#This Row],[Prorated Base]]/SUMIFS(Data[Prorated Base],Data[Intended Use],"="&Data[[#This Row],[Intended Use]]))*Data[[#This Row],[Total Thickness]],""), "") ->  | BK24: =IF(OR(Data[[#This Row],[Roadway Type]]<>"",Data[[#This Row],[Roadway ID]]<>""),UPPER(Data[[#This Row],[Roadway Type]])&"~-~"&UPPER(Data[[#This Row],[Roadway ID]]),"") -> MAINLINE~-~SR-50 | BL24: =IF(AND(Data[[#This Row],[Quantity]]<>"",Data[[#This Row],[Total Thickness]]<>"",Data[[#This Row],[Total Thickness]]<>0,Data[[#This Row],[GmmGsb Value]]<>"",Data[[#This Row],[GmmGsb Value]]<>0),IF(Data[[#This Row],[Quantity]]>0,(Data[[#This Row],[Quantity]]*2000)/(Data[[#This Row],[Total Thickness]]*Data[[#This Row],[GmmGsb Value]]*43.3),0),"") -> 
A25: 0 | B25: =IF(AND(Data[[#This Row],[Lot]]<>"",FIN<>""),FIN,"") -> 41673245201 | C25: =IF(AND(Data[[#This Row],[Lot]]<>"",ContractNumber<>""),ContractNumber,"") -> T7396 | D25: =IF(AND(Data[[#This Row],[Lot]]<>"",Contractor<>""),Contractor,"") -> APS | E25: =IF(AND(Data[[#This Row],[Lot]]<>"",BidDate<>""),BidDate,"") -> 2019-07-19 | F25: =IF(AND(Data[[#This Row],[Lot]]<>"",LumpSum<>""),LumpSum,"") -> No | J25: SP 21-20024B | K25: =IF(Data[[#This Row],[Mix Design Number]]<>"",IF(RIGHT(VLOOKUP(Data[[#This Row],[Mix Design Number]],MixDesign[],3,FALSE),1)=":",VLOOKUP(Data[[#This Row],[Mix Design Number]],MixDesign[],3,FALSE),VLOOKUP(Data[[#This Row],[Mix Design Number]],MixDesign[],3,FALSE)&":"),"") -> Gmm: | L25: =IF(Data[[#This Row],[Mix Design Number]]<>"",VLOOKUP(Data[[#This Row],[Mix Design Number]],MixDesign[],4,FALSE),"") -> 2.504 | M25: 21 | O25: 2022-09-12 | P25: Day | Q25: 1 | S25: 3 | T25: Waste | X25: Unused | AC25: 0 | AF25: 3 | AH25: 0 | AI25: =IF(OR(Data[[#This Row],[GmmGsb Value]]="",Data[[#This Row],[Thickness]]=""),"",IF(RIGHT(Data[[#This Row],[GmmGsb Type]],4)="Gsb:",ROUND(Data[[#This Row],[GmmGsb Value]]*Data[[#This Row],[Thickness]]*40.5,0),IF(Data[[#This Row],[GmmGsb Type]]="Gmm:",IF(Data[[#This Row],[Intended Use]]="Misc.",ROUND((Data[[#This Row],[GmmGsb Value]]/2.54)*(100*Data[[#This Row],[Thickness]]),0),ROUND(Data[[#This Row],[GmmGsb Value]]*Data[[#This Row],[Thickness]]*43.3,0)),""))) ->  | AK25: =IF(Data[[#This Row],[Data Exists]]=FALSE,"",IF(LEFT(Data[[#This Row],[GmmGsb Type]],4)="ATPB",IF(AND(Data[[#This Row],[Start Station]]<>"",Data[[#This Row],[End Station]]<>"",Data[[#This Row],[Width]]<>"",Data[[#This Row],[Thickness]]<>"",Data[[#This Row],[Intended Use]]="ATPB"),Data[[#This Row],[Length]]*Data[[#This Row],[Width]]*Data[[#This Row],[Thickness]]/324,""),IF(Data[[#This Row],[Intended Use]]<>"",IF(UPPER(INDEX(EditablePayItems[],MATCH(IF(OR(RIGHT(Data[[#This Row],[Intended Use]],6)=" (opt)",RIGHT(Data[[#This Row],[Intended Use]],6)=" (req)"),LEFT(Data[[#This Row],[Intended Use]],LEN(Data[[#This Row],[Intended Use]])-6),Data[[#This Row],[Intended Use]]),EditablePayItems[IntendedUse],0),4))="PRORATED",IF(Data[[#This Row],[Total Thickness]]*Data[[#This Row],[Area]]<>0,Data[[#This Row],[Thickness]]/Data[[#This Row],[Total Thickness]]*Data[[#This Row],[Area]],0), ""),""))) ->  | AN25: M24307776-000 | AP25: 2022-12-01T00:41:21 | AQ25: =IF(AND(Data[[#This Row],[Lot]]<>"",ProjectDateTimeStamp<>""),ProjectDateTimeStamp,"") -> 2023-10-05T10:35:05 | AR25: =IF(COUNTA(Data[[#This Row],[Lot]],Data[[#This Row],[Intended Lot Size]:[Mix Design Number]],Data[[#This Row],[Line Number]:[Spread Rate]],Data[[#This Row],[Total Thickness]],Data[[#This Row],[Varied Width Designation]:[Date Time Stamp]])>0,TRUE,FALSE) -> TRUE | AS25: =IF(Data[[#This Row],[Intended Use]]<>"",IF(VLOOKUP(Data[[#This Row],[Intended Use]],EditablePayItems[[IntendedUse]:[PayItemNumber]],6,FALSE)<>"",VLOOKUP(Data[[#This Row],[Intended Use]],EditablePayItems[[IntendedUse]:[PayItemNumber]],6,FALSE),""),"") ->  | AT25: =IF(Data[[#This Row],[Date Paved]]<>"",VLOOKUP(Data[[#This Row],[Date Paved]],MonthlyCutOffDates[[Date From]:[MonthYear]],3),"") -> Dec 2018 | AU25: =IF(AND(Data[[#This Row],[Target Spread Rate]]<>"",Data[[#This Row],[Area]]<>""),Data[[#This Row],[Target Spread Rate]]*Data[[#This Row],[Area]]/2000,"") ->  | AV25: Waste | AZ25: =MIN(Data[[#This Row],[Start Station]:[End Station]]) -> 0 | BA25: =MAX(Data[[#This Row],[Start Station]:[End Station]]) -> 0 | BB25: =IF(AND(Data[[#This Row],[Quantity]]<>"",Data[[#This Row],[GmmGsb Value]]<>""),Data[[#This Row],[Quantity]]*Data[[#This Row],[GmmGsb Value]],"") -> 7.512 | BE25: =IF(Data[[#This Row],[Pay Item Number]]<>"",IF(VLOOKUP(Data[[#This Row],[Intended Use]],EditablePayItems[[IntendedUse]:[Actual Quantity Paid]],2,FALSE)="Prorated",IF(LEFT(Data[[#This Row],[Intended Use]],4)="ATPB","Cubic Yards","Square Yards"),"Tons"),"") ->  | BF25: =Data[[#This Row],[Lot]]&"-"&Data[[#This Row],[Line Number]] -> 0-21 | BG25: =IF(Data[[#This Row],[Date Paved]]<>"",TEXT(Data[[#This Row],[Date Paved]],"mm/dd/yyyy")&" - "&Data[[#This Row],[Shift]]&" - Crew "&Data[[#This Row],[Crew]],"") -> 09/12/2022 - Day - Crew 1 | BH25: =IF(Data[[#This Row],[Date Paved]]<>"",TEXT(Data[[#This Row],[Date Paved]],"mm/dd/yyyy"),"") -> 09/12/2022 | BJ25: =IF(OR(LEFT(Data[[#This Row],[Intended Use]],10)="Base Group", Data[[#This Row],[Intended Use]]="Turnout Const. (per sy)"),IF(AND(Data[[#This Row],[Thickness]]<>0,Data[[#This Row],[Total Thickness]]<>0,Data[[#This Row],[Area]]<>0),(Data[[#This Row],[Prorated Base]]/SUMIFS(Data[Prorated Base],Data[Intended Use],"="&Data[[#This Row],[Intended Use]]))*Data[[#This Row],[Total Thickness]],""), "") ->  | BK25: =IF(OR(Data[[#This Row],[Roadway Type]]<>"",Data[[#This Row],[Roadway ID]]<>""),UPPER(Data[[#This Row],[Roadway Type]])&"~-~"&UPPER(Data[[#This Row],[Roadway ID]]),"") -> WASTE~-~ | BL25: =IF(AND(Data[[#This Row],[Quantity]]<>"",Data[[#This Row],[Total Thickness]]<>"",Data[[#This Row],[Total Thickness]]<>0,Data[[#This Row],[GmmGsb Value]]<>"",Data[[#This Row],[GmmGsb Value]]<>0),IF(Data[[#This Row],[Quantity]]>0,(Data[[#This Row],[Quantity]]*2000)/(Data[[#This Row],[Total Thickness]]*Data[[#This Row],[GmmGsb Value]]*43.3),0),"") -> 
A26: 0 | B26: =IF(AND(Data[[#This Row],[Lot]]<>"",FIN<>""),FIN,"") -> 41673245201 | C26: =IF(AND(Data[[#This Row],[Lot]]<>"",ContractNumber<>""),ContractNumber,"") -> T7396 | D26: =IF(AND(Data[[#This Row],[Lot]]<>"",Contractor<>""),Contractor,"") -> APS | E26: =IF(AND(Data[[#This Row],[Lot]]<>"",BidDate<>""),BidDate,"") -> 2019-07-19 | F26: =IF(AND(Data[[#This Row],[Lot]]<>"",LumpSum<>""),LumpSum,"") -> No | J26: SP 22-21716A | K26: =IF(Data[[#This Row],[Mix Design Number]]<>"",IF(RIGHT(VLOOKUP(Data[[#This Row],[Mix Design Number]],MixDesign[],3,FALSE),1)=":",VLOOKUP(Data[[#This Row],[Mix Design Number]],MixDesign[],3,FALSE),VLOOKUP(Data[[#This Row],[Mix Design Number]],MixDesign[],3,FALSE)&":"),"") -> Gmm: | L26: =IF(Data[[#This Row],[Mix Design Number]]<>"",VLOOKUP(Data[[#This Row],[Mix Design Number]],MixDesign[],4,FALSE),"") -> 2.48 | M26: 22 | N26: 6 | O26: 2022-11-18 | P26: Day | Q26: 1 | S26: 1 | T26: Misc. | W26: OR | X26: Misc | Y26: 1 | Z26: 1 | AA26: 183012 | AB26: 183125 | AC26: 113 | AD26: 2 | AE26: 25.11 | AF26: 3 | AH26: 238.95 | AI26: =IF(OR(Data[[#This Row],[GmmGsb Value]]="",Data[[#This Row],[Thickness]]=""),"",IF(RIGHT(Data[[#This Row],[GmmGsb Type]],4)="Gsb:",ROUND(Data[[#This Row],[GmmGsb Value]]*Data[[#This Row],[Thickness]]*40.5,0),IF(Data[[#This Row],[GmmGsb Type]]="Gmm:",IF(Data[[#This Row],[Intended Use]]="Misc.",ROUND((Data[[#This Row],[GmmGsb Value]]/2.54)*(100*Data[[#This Row],[Thickness]]),0),ROUND(Data[[#This Row],[GmmGsb Value]]*Data[[#This Row],[Thickness]]*43.3,0)),""))) ->  | AK26: =IF(Data[[#This Row],[Data Exists]]=FALSE,"",IF(LEFT(Data[[#This Row],[GmmGsb Type]],4)="ATPB",IF(AND(Data[[#This Row],[Start Station]]<>"",Data[[#This Row],[End Station]]<>"",Data[[#This Row],[Width]]<>"",Data[[#This Row],[Thickness]]<>"",Data[[#This Row],[Intended Use]]="ATPB"),Data[[#This Row],[Length]]*Data[[#This Row],[Width]]*Data[[#This Row],[Thickness]]/324,""),IF(Data[[#This Row],[Intended Use]]<>"",IF(UPPER(INDEX(EditablePayItems[],MATCH(IF(OR(RIGHT(Data[[#This Row],[Intended Use]],6)=" (opt)",RIGHT(Data[[#This Row],[Intended Use]],6)=" (req)"),LEFT(Data[[#This Row],[Intended Use]],LEN(Data[[#This Row],[Intended Use]])-6),Data[[#This Row],[Intended Use]]),EditablePayItems[IntendedUse],0),4))="PRORATED",IF(Data[[#This Row],[Total Thickness]]*Data[[#This Row],[Area]]<>0,Data[[#This Row],[Thickness]]/Data[[#This Row],[Total Thickness]]*Data[[#This Row],[Area]],0), ""),""))) ->  | AL26: C | AM26: Placed in liue of grass in between gutter and sidewalk | AN26: M24307776-000 | AP26: 2022-12-01T00:41:21 | AQ26: =IF(AND(Data[[#This Row],[Lot]]<>"",ProjectDateTimeStamp<>""),ProjectDateTimeStamp,"") -> 2023-10-05T10:35:05 | AR26: =IF(COUNTA(Data[[#This Row],[Lot]],Data[[#This Row],[Intended Lot Size]:[Mix Design Number]],Data[[#This Row],[Line Number]:[Spread Rate]],Data[[#This Row],[Total Thickness]],Data[[#This Row],[Varied Width Designation]:[Date Time Stamp]])>0,TRUE,FALSE) -> TRUE | AS26: =IF(Data[[#This Row],[Intended Use]]<>"",IF(VLOOKUP(Data[[#This Row],[Intended Use]],EditablePayItems[[IntendedUse]:[PayItemNumber]],6,FALSE)<>"",VLOOKUP(Data[[#This Row],[Intended Use]],EditablePayItems[[IntendedUse]:[PayItemNumber]],6,FALSE),""),"") -> 339 1 | AT26: =IF(Data[[#This Row],[Date Paved]]<>"",VLOOKUP(Data[[#This Row],[Date Paved]],MonthlyCutOffDates[[Date From]:[MonthYear]],3),"") -> Dec 2018 | AU26: =IF(AND(Data[[#This Row],[Target Spread Rate]]<>"",Data[[#This Row],[Area]]<>""),Data[[#This Row],[Target Spread Rate]]*Data[[#This Row],[Area]]/2000,"") ->  | AV26: Mainline | AW26: SR-50 | AZ26: =MIN(Data[[#This Row],[Start Station]:[End Station]]) -> 183012 | BA26: =MAX(Data[[#This Row],[Start Station]:[End Station]]) -> 183125 | BB26: =IF(AND(Data[[#This Row],[Quantity]]<>"",Data[[#This Row],[GmmGsb Value]]<>""),Data[[#This Row],[Quantity]]*Data[[#This Row],[GmmGsb Value]],"") -> 7.44 | BE26: =IF(Data[[#This Row],[Pay Item Number]]<>"",IF(VLOOKUP(Data[[#This Row],[Intended Use]],EditablePayItems[[IntendedUse]:[Actual Quantity Paid]],2,FALSE)="Prorated",IF(LEFT(Data[[#This Row],[Intended Use]],4)="ATPB","Cubic Yards","Square Yards"),"Tons"),"") -> Tons | BF26: =Data[[#This Row],[Lot]]&"-"&Data[[#This Row],[Line Number]] -> 0-22 | BG26: =IF(Data[[#This Row],[Date Paved]]<>"",TEXT(Data[[#This Row],[Date Paved]],"mm/dd/yyyy")&" - "&Data[[#This Row],[Shift]]&" - Crew "&Data[[#This Row],[Crew]],"") -> 11/18/2022 - Day - Crew 1 | BH26: =IF(Data[[#This Row],[Date Paved]]<>"",TEXT(Data[[#This Row],[Date Paved]],"mm/dd/yyyy"),"") -> 11/18/2022 | BJ26: =IF(OR(LEFT(Data[[#This Row],[Intended Use]],10)="Base Group", Data[[#This Row],[Intended Use]]="Turnout Const. (per sy)"),IF(AND(Data[[#This Row],[Thickness]]<>0,Data[[#This Row],[Total Thickness]]<>0,Data[[#This Row],[Area]]<>0),(Data[[#This Row],[Prorated Base]]/SUMIFS(Data[Prorated Base],Data[Intended Use],"="&Data[[#This Row],[Intended Use]]))*Data[[#This Row],[Total Thickness]],""), "") ->  | BK26: =IF(OR(Data[[#This Row],[Roadway Type]]<>"",Data[[#This Row],[Roadway ID]]<>""),UPPER(Data[[#This Row],[Roadway Type]])&"~-~"&UPPER(Data[[#This Row],[Roadway ID]]),"") -> MAINLINE~-~SR-50 | BL26: =IF(AND(Data[[#This Row],[Quantity]]<>"",Data[[#This Row],[Total Thickness]]<>"",Data[[#This Row],[Total Thickness]]<>0,Data[[#This Row],[GmmGsb Value]]<>"",Data[[#This Row],[GmmGsb Value]]<>0),IF(Data[[#This Row],[Quantity]]>0,(Data[[#This Row],[Quantity]]*2000)/(Data[[#This Row],[Total Thickness]]*Data[[#This Row],[GmmGsb Value]]*43.3),0),"") -> 
A27: 0 | B27: =IF(AND(Data[[#This Row],[Lot]]<>"",FIN<>""),FIN,"") -> 41673245201 | C27: =IF(AND(Data[[#This Row],[Lot]]<>"",ContractNumber<>""),ContractNumber,"") -> T7396 | D27: =IF(AND(Data[[#This Row],[Lot]]<>"",Contractor<>""),Contractor,"") -> APS | E27: =IF(AND(Data[[#This Row],[Lot]]<>"",BidDate<>""),BidDate,"") -> 2019-07-19 | F27: =IF(AND(Data[[#This Row],[Lot]]<>"",LumpSum<>""),LumpSum,"") -> No | J27: SP 22-21716A | K27: =IF(Data[[#This Row],[Mix Design Number]]<>"",IF(RIGHT(VLOOKUP(Data[[#This Row],[Mix Design Number]],MixDesign[],3,FALSE),1)=":",VLOOKUP(Data[[#This Row],[Mix Design Number]],MixDesign[],3,FALSE),VLOOKUP(Data[[#This Row],[Mix Design Number]],MixDesign[],3,FALSE)&":"),"") -> Gmm: | L27: =IF(Data[[#This Row],[Mix Design Number]]<>"",VLOOKUP(Data[[#This Row],[Mix Design Number]],MixDesign[],4,FALSE),"") -> 2.48 | M27: 23 | N27: 6 | O27: 2022-11-18 | P27: Day | Q27: 1 | S27: 1-2 | T27: Misc. | W27: OR | X27: Misc | Y27: 1 | Z27: 1 | AA27: 183206 | AB27: 183307 | AC27: 101 | AD27: 2 | AE27: 22.44 | AF27: 2.98 | AH27: 265.6 | AI27: =IF(OR(Data[[#This Row],[GmmGsb Value]]="",Data[[#This Row],[Thickness]]=""),"",IF(RIGHT(Data[[#This Row],[GmmGsb Type]],4)="Gsb:",ROUND(Data[[#This Row],[GmmGsb Value]]*Data[[#This Row],[Thickness]]*40.5,0),IF(Data[[#This Row],[GmmGsb Type]]="Gmm:",IF(Data[[#This Row],[Intended Use]]="Misc.",ROUND((Data[[#This Row],[GmmGsb Value]]/2.54)*(100*Data[[#This Row],[Thickness]]),0),ROUND(Data[[#This Row],[GmmGsb Value]]*Data[[#This Row],[Thickness]]*43.3,0)),""))) ->  | AK27: =IF(Data[[#This Row],[Data Exists]]=FALSE,"",IF(LEFT(Data[[#This Row],[GmmGsb Type]],4)="ATPB",IF(AND(Data[[#This Row],[Start Station]]<>"",Data[[#This Row],[End Station]]<>"",Data[[#This Row],[Width]]<>"",Data[[#This Row],[Thickness]]<>"",Data[[#This Row],[Intended Use]]="ATPB"),Data[[#This Row],[Length]]*Data[[#This Row],[Width]]*Data[[#This Row],[Thickness]]/324,""),IF(Data[[#This Row],[Intended Use]]<>"",IF(UPPER(INDEX(EditablePayItems[],MATCH(IF(OR(RIGHT(Data[[#This Row],[Intended Use]],6)=" (opt)",RIGHT(Data[[#This Row],[Intended Use]],6)=" (req)"),LEFT(Data[[#This Row],[Intended Use]],LEN(Data[[#This Row],[Intended Use]])-6),Data[[#This Row],[Intended Use]]),EditablePayItems[IntendedUse],0),4))="PRORATED",IF(Data[[#This Row],[Total Thickness]]*Data[[#This Row],[Area]]<>0,Data[[#This Row],[Thickness]]/Data[[#This Row],[Total Thickness]]*Data[[#This Row],[Area]],0), ""),""))) ->  | AL27: C | AM27: Placed in liue of grass in between gutter and sidewalk | AN27: M24307776-000 | AP27: 2022-12-01T00:41:21 | AQ27: =IF(AND(Data[[#This Row],[Lot]]<>"",ProjectDateTimeStamp<>""),ProjectDateTimeStamp,"") -> 2023-10-05T10:35:05 | AR27: =IF(COUNTA(Data[[#This Row],[Lot]],Data[[#This Row],[Intended Lot Size]:[Mix Design Number]],Data[[#This Row],[Line Number]:[Spread Rate]],Data[[#This Row],[Total Thickness]],Data[[#This Row],[Varied Width Designation]:[Date Time Stamp]])>0,TRUE,FALSE) -> TRUE | AS27: =IF(Data[[#This Row],[Intended Use]]<>"",IF(VLOOKUP(Data[[#This Row],[Intended Use]],EditablePayItems[[IntendedUse]:[PayItemNumber]],6,FALSE)<>"",VLOOKUP(Data[[#This Row],[Intended Use]],EditablePayItems[[IntendedUse]:[PayItemNumber]],6,FALSE),""),"") -> 339 1 | AT27: =IF(Data[[#This Row],[Date Paved]]<>"",VLOOKUP(Data[[#This Row],[Date Paved]],MonthlyCutOffDates[[Date From]:[MonthYear]],3),"") -> Dec 2018 | AU27: =IF(AND(Data[[#This Row],[Target Spread Rate]]<>"",Data[[#This Row],[Area]]<>""),Data[[#This Row],[Target Spread Rate]]*Data[[#This Row],[Area]]/2000,"") ->  | AV27: Mainline | AW27: SR-50 | AZ27: =MIN(Data[[#This Row],[Start Station]:[End Station]]) -> 183206 | BA27: =MAX(Data[[#This Row],[Start Station]:[End Station]]) -> 183307 | BB27: =IF(AND(Data[[#This Row],[Quantity]]<>"",Data[[#This Row],[GmmGsb Value]]<>""),Data[[#This Row],[Quantity]]*Data[[#This Row],[GmmGsb Value]],"") -> 7.3904 | BE27: =IF(Data[[#This Row],[Pay Item Number]]<>"",IF(VLOOKUP(Data[[#This Row],[Intended Use]],EditablePayItems[[IntendedUse]:[Actual Quantity Paid]],2,FALSE)="Prorated",IF(LEFT(Data[[#This Row],[Intended Use]],4)="ATPB","Cubic Yards","Square Yards"),"Tons"),"") -> Tons | BF27: =Data[[#This Row],[Lot]]&"-"&Data[[#This Row],[Line Number]] -> 0-23 | BG27: =IF(Data[[#This Row],[Date Paved]]<>"",TEXT(Data[[#This Row],[Date Paved]],"mm/dd/yyyy")&" - "&Data[[#This Row],[Shift]]&" - Crew "&Data[[#This Row],[Crew]],"") -> 11/18/2022 - Day - Crew 1 | BH27: =IF(Data[[#This Row],[Date Paved]]<>"",TEXT(Data[[#This Row],[Date Paved]],"mm/dd/yyyy"),"") -> 11/18/2022 | BJ27: =IF(OR(LEFT(Data[[#This Row],[Intended Use]],10)="Base Group", Data[[#This Row],[Intended Use]]="Turnout Const. (per sy)"),IF(AND(Data[[#This Row],[Thickness]]<>0,Data[[#This Row],[Total Thickness]]<>0,Data[[#This Row],[Area]]<>0),(Data[[#This Row],[Prorated Base]]/SUMIFS(Data[Prorated Base],Data[Intended Use],"="&Data[[#This Row],[Intended Use]]))*Data[[#This Row],[Total Thickness]],""), "") ->  | BK27: =IF(OR(Data[[#This Row],[Roadway Type]]<>"",Data[[#This Row],[Roadway ID]]<>""),UPPER(Data[[#This Row],[Roadway Type]])&"~-~"&UPPER(Data[[#This Row],[Roadway ID]]),"") -> MAINLINE~-~SR-50 | BL27: =IF(AND(Data[[#This Row],[Quantity]]<>"",Data[[#This Row],[Total Thickness]]<>"",Data[[#This Row],[Total Thickness]]<>0,Data[[#This Row],[GmmGsb Value]]<>"",Data[[#This Row],[GmmGsb Value]]<>0),IF(Data[[#This Row],[Quantity]]>0,(Data[[#This Row],[Quantity]]*2000)/(Data[[#This Row],[Total Thickness]]*Data[[#This Row],[GmmGsb Value]]*43.3),0),"") -> 
A28: 0 | B28: =IF(AND(Data[[#This Row],[Lot]]<>"",FIN<>""),FIN,"") -> 41673245201 | C28: =IF(AND(Data[[#This Row],[Lot]]<>"",ContractNumber<>""),ContractNumber,"") -> T7396 | D28: =IF(AND(Data[[#This Row],[Lot]]<>"",Contractor<>""),Contractor,"") -> APS | E28: =IF(AND(Data[[#This Row],[Lot]]<>"",BidDate<>""),BidDate,"") -> 2019-07-19 | F28: =IF(AND(Data[[#This Row],[Lot]]<>"",LumpSum<>""),LumpSum,"") -> No | J28: SP 22-21716A | K28: =IF(Data[[#This Row],[Mix Design Number]]<>"",IF(RIGHT(VLOOKUP(Data[[#This Row],[Mix Design Number]],MixDesign[],3,FALSE),1)=":",VLOOKUP(Data[[#This Row],[Mix Design Number]],MixDesign[],3,FALSE),VLOOKUP(Data[[#This Row],[Mix Design Number]],MixDesign[],3,FALSE)&":"),"") -> Gmm: | L28: =IF(Data[[#This Row],[Mix Design Number]]<>"",VLOOKUP(Data[[#This Row],[Mix Design Number]],MixDesign[],4,FALSE),"") -> 2.48 | M28: 24 | N28: 6 | O28: 2022-11-21 | P28: Day | Q28: 1 | S28: 1 | T28: Misc. | W28: OR | X28: Misc | Y28: 1 | Z28: 1 | AA28: 181380 | AB28: 181490 | AC28: 110 | AD28: 2 | AE28: 24.44 | AF28: 1.96 | AH28: 160.39 | AI28: =IF(OR(Data[[#This Row],[GmmGsb Value]]="",Data[[#This Row],[Thickness]]=""),"",IF(RIGHT(Data[[#This Row],[GmmGsb Type]],4)="Gsb:",ROUND(Data[[#This Row],[GmmGsb Value]]*Data[[#This Row],[Thickness]]*40.5,0),IF(Data[[#This Row],[GmmGsb Type]]="Gmm:",IF(Data[[#This Row],[Intended Use]]="Misc.",ROUND((Data[[#This Row],[GmmGsb Value]]/2.54)*(100*Data[[#This Row],[Thickness]]),0),ROUND(Data[[#This Row],[GmmGsb Value]]*Data[[#This Row],[Thickness]]*43.3,0)),""))) ->  | AK28: =IF(Data[[#This Row],[Data Exists]]=FALSE,"",IF(LEFT(Data[[#This Row],[GmmGsb Type]],4)="ATPB",IF(AND(Data[[#This Row],[Start Station]]<>"",Data[[#This Row],[End Station]]<>"",Data[[#This Row],[Width]]<>"",Data[[#This Row],[Thickness]]<>"",Data[[#This Row],[Intended Use]]="ATPB"),Data[[#This Row],[Length]]*Data[[#This Row],[Width]]*Data[[#This Row],[Thickness]]/324,""),IF(Data[[#This Row],[Intended Use]]<>"",IF(UPPER(INDEX(EditablePayItems[],MATCH(IF(OR(RIGHT(Data[[#This Row],[Intended Use]],6)=" (opt)",RIGHT(Data[[#This Row],[Intended Use]],6)=" (req)"),LEFT(Data[[#This Row],[Intended Use]],LEN(Data[[#This Row],[Intended Use]])-6),Data[[#This Row],[Intended Use]]),EditablePayItems[IntendedUse],0),4))="PRORATED",IF(Data[[#This Row],[Total Thickness]]*Data[[#This Row],[Area]]<>0,Data[[#This Row],[Thickness]]/Data[[#This Row],[Total Thickness]]*Data[[#This Row],[Area]],0), ""),""))) ->  | AL28: C | AM28: Placed in liue of grass in between gutter and sidewalk | AN28: M24307776-000 | AP28: 2022-12-01T00:41:21 | AQ28: =IF(AND(Data[[#This Row],[Lot]]<>"",ProjectDateTimeStamp<>""),ProjectDateTimeStamp,"") -> 2023-10-05T10:35:05 | AR28: =IF(COUNTA(Data[[#This Row],[Lot]],Data[[#This Row],[Intended Lot Size]:[Mix Design Number]],Data[[#This Row],[Line Number]:[Spread Rate]],Data[[#This Row],[Total Thickness]],Data[[#This Row],[Varied Width Designation]:[Date Time Stamp]])>0,TRUE,FALSE) -> TRUE | AS28: =IF(Data[[#This Row],[Intended Use]]<>"",IF(VLOOKUP(Data[[#This Row],[Intended Use]],EditablePayItems[[IntendedUse]:[PayItemNumber]],6,FALSE)<>"",VLOOKUP(Data[[#This Row],[Intended Use]],EditablePayItems[[IntendedUse]:[PayItemNumber]],6,FALSE),""),"") -> 339 1 | AT28: =IF(Data[[#This Row],[Date Paved]]<>"",VLOOKUP(Data[[#This Row],[Date Paved]],MonthlyCutOffDates[[Date From]:[MonthYear]],3),"") -> Dec 2018 | AU28: =IF(AND(Data[[#This Row],[Target Spread Rate]]<>"",Data[[#This Row],[Area]]<>""),Data[[#This Row],[Target Spread Rate]]*Data[[#This Row],[Area]]/2000,"") ->  | AV28: Mainline | AW28: SR-50 | AZ28: =MIN(Data[[#This Row],[Start Station]:[End Station]]) -> 181380 | BA28: =MAX(Data[[#This Row],[Start Station]:[End Station]]) -> 181490 | BB28: =IF(AND(Data[[#This Row],[Quantity]]<>"",Data[[#This Row],[GmmGsb Value]]<>""),Data[[#This Row],[Quantity]]*Data[[#This Row],[GmmGsb Value]],"") -> 4.8608 | BE28: =IF(Data[[#This Row],[Pay Item Number]]<>"",IF(VLOOKUP(Data[[#This Row],[Intended Use]],EditablePayItems[[IntendedUse]:[Actual Quantity Paid]],2,FALSE)="Prorated",IF(LEFT(Data[[#This Row],[Intended Use]],4)="ATPB","Cubic Yards","Square Yards"),"Tons"),"") -> Tons | BF28: =Data[[#This Row],[Lot]]&"-"&Data[[#This Row],[Line Number]] -> 0-24 | BG28: =IF(Data[[#This Row],[Date Paved]]<>"",TEXT(Data[[#This Row],[Date Paved]],"mm/dd/yyyy")&" - "&Data[[#This Row],[Shift]]&" - Crew "&Data[[#This Row],[Crew]],"") -> 11/21/2022 - Day - Crew 1 | BH28: =IF(Data[[#This Row],[Date Paved]]<>"",TEXT(Data[[#This Row],[Date Paved]],"mm/dd/yyyy"),"") -> 11/21/2022 | BJ28: =IF(OR(LEFT(Data[[#This Row],[Intended Use]],10)="Base Group", Data[[#This Row],[Intended Use]]="Turnout Const. (per sy)"),IF(AND(Data[[#This Row],[Thickness]]<>0,Data[[#This Row],[Total Thickness]]<>0,Data[[#This Row],[Area]]<>0),(Data[[#This Row],[Prorated Base]]/SUMIFS(Data[Prorated Base],Data[Intended Use],"="&Data[[#This Row],[Intended Use]]))*Data[[#This Row],[Total Thickness]],""), "") ->  | BK28: =IF(OR(Data[[#This Row],[Roadway Type]]<>"",Data[[#This Row],[Roadway ID]]<>""),UPPER(Data[[#This Row],[Roadway Type]])&"~-~"&UPPER(Data[[#This Row],[Roadway ID]]),"") -> MAINLINE~-~SR-50 | BL28: =IF(AND(Data[[#This Row],[Quantity]]<>"",Data[[#This Row],[Total Thickness]]<>"",Data[[#This Row],[Total Thickness]]<>0,Data[[#This Row],[GmmGsb Value]]<>"",Data[[#This Row],[GmmGsb Value]]<>0),IF(Data[[#This Row],[Quantity]]>0,(Data[[#This Row],[Quantity]]*2000)/(Data[[#This Row],[Total Thickness]]*Data[[#This Row],[GmmGsb Value]]*43.3),0),"") -> 
A29: 0 | B29: =IF(AND(Data[[#This Row],[Lot]]<>"",FIN<>""),FIN,"") -> 41673245201 | C29: =IF(AND(Data[[#This Row],[Lot]]<>"",ContractNumber<>""),ContractNumber,"") -> T7396 | D29: =IF(AND(Data[[#This Row],[Lot]]<>"",Contractor<>""),Contractor,"") -> APS | E29: =IF(AND(Data[[#This Row],[Lot]]<>"",BidDate<>""),BidDate,"") -> 2019-07-19 | F29: =IF(AND(Data[[#This Row],[Lot]]<>"",LumpSum<>""),LumpSum,"") -> No | J29: SP 22-21716A | K29: =IF(Data[[#This Row],[Mix Design Number]]<>"",IF(RIGHT(VLOOKUP(Data[[#This Row],[Mix Design Number]],MixDesign[],3,FALSE),1)=":",VLOOKUP(Data[[#This Row],[Mix Design Number]],MixDesign[],3,FALSE),VLOOKUP(Data[[#This Row],[Mix Design Number]],MixDesign[],3,FALSE)&":"),"") -> Gmm: | L29: =IF(Data[[#This Row],[Mix Design Number]]<>"",VLOOKUP(Data[[#This Row],[Mix Design Number]],MixDesign[],4,FALSE),"") -> 2.48 | M29: 25 | N29: 6 | O29: 2022-11-21 | P29: Day | Q29: 1 | S29: 1 | T29: Misc. | W29: OR | X29: Misc | Y29: 1 | Z29: 1 | AA29: 182590 | AB29: 182659 | AC29: 69 | AD29: 2 | AE29: 15.33 | AF29: 1.33 | AH29: 173.52 | AI29: =IF(OR(Data[[#This Row],[GmmGsb Value]]="",Data[[#This Row],[Thickness]]=""),"",IF(RIGHT(Data[[#This Row],[GmmGsb Type]],4)="Gsb:",ROUND(Data[[#This Row],[GmmGsb Value]]*Data[[#This Row],[Thickness]]*40.5,0),IF(Data[[#This Row],[GmmGsb Type]]="Gmm:",IF(Data[[#This Row],[Intended Use]]="Misc.",ROUND((Data[[#This Row],[GmmGsb Value]]/2.54)*(100*Data[[#This Row],[Thickness]]),0),ROUND(Data[[#This Row],[GmmGsb Value]]*Data[[#This Row],[Thickness]]*43.3,0)),""))) ->  | AK29: =IF(Data[[#This Row],[Data Exists]]=FALSE,"",IF(LEFT(Data[[#This Row],[GmmGsb Type]],4)="ATPB",IF(AND(Data[[#This Row],[Start Station]]<>"",Data[[#This Row],[End Station]]<>"",Data[[#This Row],[Width]]<>"",Data[[#This Row],[Thickness]]<>"",Data[[#This Row],[Intended Use]]="ATPB"),Data[[#This Row],[Length]]*Data[[#This Row],[Width]]*Data[[#This Row],[Thickness]]/324,""),IF(Data[[#This Row],[Intended Use]]<>"",IF(UPPER(INDEX(EditablePayItems[],MATCH(IF(OR(RIGHT(Data[[#This Row],[Intended Use]],6)=" (opt)",RIGHT(Data[[#This Row],[Intended Use]],6)=" (req)"),LEFT(Data[[#This Row],[Intended Use]],LEN(Data[[#This Row],[Intended Use]])-6),Data[[#This Row],[Intended Use]]),EditablePayItems[IntendedUse],0),4))="PRORATED",IF(Data[[#This Row],[Total Thickness]]*Data[[#This Row],[Area]]<>0,Data[[#This Row],[Thickness]]/Data[[#This Row],[Total Thickness]]*Data[[#This Row],[Area]],0), ""),""))) ->  | AL29: C | AM29: Placed in liue of grass in between gutter and sidewalk | AN29: M24307776-000 | AP29: 2022-12-01T00:41:21 | AQ29: =IF(AND(Data[[#This Row],[Lot]]<>"",ProjectDateTimeStamp<>""),ProjectDateTimeStamp,"") -> 2023-10-05T10:35:05 | AR29: =IF(COUNTA(Data[[#This Row],[Lot]],Data[[#This Row],[Intended Lot Size]:[Mix Design Number]],Data[[#This Row],[Line Number]:[Spread Rate]],Data[[#This Row],[Total Thickness]],Data[[#This Row],[Varied Width Designation]:[Date Time Stamp]])>0,TRUE,FALSE) -> TRUE | AS29: =IF(Data[[#This Row],[Intended Use]]<>"",IF(VLOOKUP(Data[[#This Row],[Intended Use]],EditablePayItems[[IntendedUse]:[PayItemNumber]],6,FALSE)<>"",VLOOKUP(Data[[#This Row],[Intended Use]],EditablePayItems[[IntendedUse]:[PayItemNumber]],6,FALSE),""),"") -> 339 1 | AT29: =IF(Data[[#This Row],[Date Paved]]<>"",VLOOKUP(Data[[#This Row],[Date Paved]],MonthlyCutOffDates[[Date From]:[MonthYear]],3),"") -> Dec 2018 | AU29: =IF(AND(Data[[#This Row],[Target Spread Rate]]<>"",Data[[#This Row],[Area]]<>""),Data[[#This Row],[Target Spread Rate]]*Data[[#This Row],[Area]]/2000,"") ->  | AV29: Mainline | AW29: SR-50 | AZ29: =MIN(Data[[#This Row],[Start Station]:[End Station]]) -> 182590 | BA29: =MAX(Data[[#This Row],[Start Station]:[End Station]]) -> 182659 | BB29: =IF(AND(Data[[#This Row],[Quantity]]<>"",Data[[#This Row],[GmmGsb Value]]<>""),Data[[#This Row],[Quantity]]*Data[[#This Row],[GmmGsb Value]],"") -> 3.2984 | BE29: =IF(Data[[#This Row],[Pay Item Number]]<>"",IF(VLOOKUP(Data[[#This Row],[Intended Use]],EditablePayItems[[IntendedUse]:[Actual Quantity Paid]],2,FALSE)="Prorated",IF(LEFT(Data[[#This Row],[Intended Use]],4)="ATPB","Cubic Yards","Square Yards"),"Tons"),"") -> Tons | BF29: =Data[[#This Row],[Lot]]&"-"&Data[[#This Row],[Line Number]] -> 0-25 | BG29: =IF(Data[[#This Row],[Date Paved]]<>"",TEXT(Data[[#This Row],[Date Paved]],"mm/dd/yyyy")&" - "&Data[[#This Row],[Shift]]&" - Crew "&Data[[#This Row],[Crew]],"") -> 11/21/2022 - Day - Crew 1 | BH29: =IF(Data[[#This Row],[Date Paved]]<>"",TEXT(Data[[#This Row],[Date Paved]],"mm/dd/yyyy"),"") -> 11/21/2022 | BJ29: =IF(OR(LEFT(Data[[#This Row],[Intended Use]],10)="Base Group", Data[[#This Row],[Intended Use]]="Turnout Const. (per sy)"),IF(AND(Data[[#This Row],[Thickness]]<>0,Data[[#This Row],[Total Thickness]]<>0,Data[[#This Row],[Area]]<>0),(Data[[#This Row],[Prorated Base]]/SUMIFS(Data[Prorated Base],Data[Intended Use],"="&Data[[#This Row],[Intended Use]]))*Data[[#This Row],[Total Thickness]],""), "") ->  | BK29: =IF(OR(Data[[#This Row],[Roadway Type]]<>"",Data[[#This Row],[Roadway ID]]<>""),UPPER(Data[[#This Row],[Roadway Type]])&"~-~"&UPPER(Data[[#This Row],[Roadway ID]]),"") -> MAINLINE~-~SR-50 | BL29: =IF(AND(Data[[#This Row],[Quantity]]<>"",Data[[#This Row],[Total Thickness]]<>"",Data[[#This Row],[Total Thickness]]<>0,Data[[#This Row],[GmmGsb Value]]<>"",Data[[#This Row],[GmmGsb Value]]<>0),IF(Data[[#This Row],[Quantity]]>0,(Data[[#This Row],[Quantity]]*2000)/(Data[[#This Row],[Total Thickness]]*Data[[#This Row],[GmmGsb Value]]*43.3),0),"") -> 
A30: 0 | B30: =IF(AND(Data[[#This Row],[Lot]]<>"",FIN<>""),FIN,"") -> 41673245201 | C30: =IF(AND(Data[[#This Row],[Lot]]<>"",ContractNumber<>""),ContractNumber,"") -> T7396 | D30: =IF(AND(Data[[#This Row],[Lot]]<>"",Contractor<>""),Contractor,"") -> APS | E30: =IF(AND(Data[[#This Row],[Lot]]<>"",BidDate<>""),BidDate,"") -> 2019-07-19 | F30: =IF(AND(Data[[#This Row],[Lot]]<>"",LumpSum<>""),LumpSum,"") -> No | J30: SP 22-21716A | K30: =IF(Data[[#This Row],[Mix Design Number]]<>"",IF(RIGHT(VLOOKUP(Data[[#This Row],[Mix Design Number]],MixDesign[],3,FALSE),1)=":",VLOOKUP(Data[[#This Row],[Mix Design Number]],MixDesign[],3,FALSE),VLOOKUP(Data[[#This Row],[Mix Design Number]],MixDesign[],3,FALSE)&":"),"") -> Gmm: | L30: =IF(Data[[#This Row],[Mix Design Number]]<>"",VLOOKUP(Data[[#This Row],[Mix Design Number]],MixDesign[],4,FALSE),"") -> 2.48 | M30: 26 | N30: 6 | O30: 2022-11-21 | P30: Day | Q30: 1 | S30: 1-2 | T30: Misc. | W30: OR | X30: Misc | Y30: 1 | Z30: 1 | AA30: 182723 | AB30: 182764 | AC30: 41 | AD30: 2 | AE30: 9.11 | AF30: 1 | AH30: 219.54 | AI30: =IF(OR(Data[[#This Row],[GmmGsb Value]]="",Data[[#This Row],[Thickness]]=""),"",IF(RIGHT(Data[[#This Row],[GmmGsb Type]],4)="Gsb:",ROUND(Data[[#This Row],[GmmGsb Value]]*Data[[#This Row],[Thickness]]*40.5,0),IF(Data[[#This Row],[GmmGsb Type]]="Gmm:",IF(Data[[#This Row],[Intended Use]]="Misc.",ROUND((Data[[#This Row],[GmmGsb Value]]/2.54)*(100*Data[[#This Row],[Thickness]]),0),ROUND(Data[[#This Row],[GmmGsb Value]]*Data[[#This Row],[Thickness]]*43.3,0)),""))) ->  | AK30: =IF(Data[[#This Row],[Data Exists]]=FALSE,"",IF(LEFT(Data[[#This Row],[GmmGsb Type]],4)="ATPB",IF(AND(Data[[#This Row],[Start Station]]<>"",Data[[#This Row],[End Station]]<>"",Data[[#This Row],[Width]]<>"",Data[[#This Row],[Thickness]]<>"",Data[[#This Row],[Intended Use]]="ATPB"),Data[[#This Row],[Length]]*Data[[#This Row],[Width]]*Data[[#This Row],[Thickness]]/324,""),IF(Data[[#This Row],[Intended Use]]<>"",IF(UPPER(INDEX(EditablePayItems[],MATCH(IF(OR(RIGHT(Data[[#This Row],[Intended Use]],6)=" (opt)",RIGHT(Data[[#This Row],[Intended Use]],6)=" (req)"),LEFT(Data[[#This Row],[Intended Use]],LEN(Data[[#This Row],[Intended Use]])-6),Data[[#This Row],[Intended Use]]),EditablePayItems[IntendedUse],0),4))="PRORATED",IF(Data[[#This Row],[Total Thickness]]*Data[[#This Row],[Area]]<>0,Data[[#This Row],[Thickness]]/Data[[#This Row],[Total Thickness]]*Data[[#This Row],[Area]],0), ""),""))) ->  | AL30: C | AM30: Placed in liue of grass in between gutter and sidewalk | AN30: M24307776-000 | AP30: 2022-12-01T00:41:21 | AQ30: =IF(AND(Data[[#This Row],[Lot]]<>"",ProjectDateTimeStamp<>""),ProjectDateTimeStamp,"") -> 2023-10-05T10:35:05 | AR30: =IF(COUNTA(Data[[#This Row],[Lot]],Data[[#This Row],[Intended Lot Size]:[Mix Design Number]],Data[[#This Row],[Line Number]:[Spread Rate]],Data[[#This Row],[Total Thickness]],Data[[#This Row],[Varied Width Designation]:[Date Time Stamp]])>0,TRUE,FALSE) -> TRUE | AS30: =IF(Data[[#This Row],[Intended Use]]<>"",IF(VLOOKUP(Data[[#This Row],[Intended Use]],EditablePayItems[[IntendedUse]:[PayItemNumber]],6,FALSE)<>"",VLOOKUP(Data[[#This Row],[Intended Use]],EditablePayItems[[IntendedUse]:[PayItemNumber]],6,FALSE),""),"") -> 339 1 | AT30: =IF(Data[[#This Row],[Date Paved]]<>"",VLOOKUP(Data[[#This Row],[Date Paved]],MonthlyCutOffDates[[Date From]:[MonthYear]],3),"") -> Dec 2018 | AU30: =IF(AND(Data[[#This Row],[Target Spread Rate]]<>"",Data[[#This Row],[Area]]<>""),Data[[#This Row],[Target Spread Rate]]*Data[[#This Row],[Area]]/2000,"") ->  | AV30: Mainline | AW30: SR-50 | AZ30: =MIN(Data[[#This Row],[Start Station]:[End Station]]) -> 182723 | BA30: =MAX(Data[[#This Row],[Start Station]:[End Station]]) -> 182764 | BB30: =IF(AND(Data[[#This Row],[Quantity]]<>"",Data[[#This Row],[GmmGsb Value]]<>""),Data[[#This Row],[Quantity]]*Data[[#This Row],[GmmGsb Value]],"") -> 2.48 | BE30: =IF(Data[[#This Row],[Pay Item Number]]<>"",IF(VLOOKUP(Data[[#This Row],[Intended Use]],EditablePayItems[[IntendedUse]:[Actual Quantity Paid]],2,FALSE)="Prorated",IF(LEFT(Data[[#This Row],[Intended Use]],4)="ATPB","Cubic Yards","Square Yards"),"Tons"),"") -> Tons | BF30: =Data[[#This Row],[Lot]]&"-"&Data[[#This Row],[Line Number]] -> 0-26 | BG30: =IF(Data[[#This Row],[Date Paved]]<>"",TEXT(Data[[#This Row],[Date Paved]],"mm/dd/yyyy")&" - "&Data[[#This Row],[Shift]]&" - Crew "&Data[[#This Row],[Crew]],"") -> 11/21/2022 - Day - Crew 1 | BH30: =IF(Data[[#This Row],[Date Paved]]<>"",TEXT(Data[[#This Row],[Date Paved]],"mm/dd/yyyy"),"") -> 11/21/2022 | BJ30: =IF(OR(LEFT(Data[[#This Row],[Intended Use]],10)="Base Group", Data[[#This Row],[Intended Use]]="Turnout Const. (per sy)"),IF(AND(Data[[#This Row],[Thickness]]<>0,Data[[#This Row],[Total Thickness]]<>0,Data[[#This Row],[Area]]<>0),(Data[[#This Row],[Prorated Base]]/SUMIFS(Data[Prorated Base],Data[Intended Use],"="&Data[[#This Row],[Intended Use]]))*Data[[#This Row],[Total Thickness]],""), "") ->  | BK30: =IF(OR(Data[[#This Row],[Roadway Type]]<>"",Data[[#This Row],[Roadway ID]]<>""),UPPER(Data[[#This Row],[Roadway Type]])&"~-~"&UPPER(Data[[#This Row],[Roadway ID]]),"") -> MAINLINE~-~SR-50 | BL30: =IF(AND(Data[[#This Row],[Quantity]]<>"",Data[[#This Row],[Total Thickness]]<>"",Data[[#This Row],[Total Thickness]]<>0,Data[[#This Row],[GmmGsb Value]]<>"",Data[[#This Row],[GmmGsb Value]]<>0),IF(Data[[#This Row],[Quantity]]>0,(Data[[#This Row],[Quantity]]*2000)/(Data[[#This Row],[Total Thickness]]*Data[[#This Row],[GmmGsb Value]]*43.3),0),"") -> 
A31: 0 | B31: =IF(AND(Data[[#This Row],[Lot]]<>"",FIN<>""),FIN,"") -> 41673245201 | C31: =IF(AND(Data[[#This Row],[Lot]]<>"",ContractNumber<>""),ContractNumber,"") -> T7396 | D31: =IF(AND(Data[[#This Row],[Lot]]<>"",Contractor<>""),Contractor,"") -> APS | E31: =IF(AND(Data[[#This Row],[Lot]]<>"",BidDate<>""),BidDate,"") -> 2019-07-19 | F31: =IF(AND(Data[[#This Row],[Lot]]<>"",LumpSum<>""),LumpSum,"") -> No | J31: SP 22-21716A | K31: =IF(Data[[#This Row],[Mix Design Number]]<>"",IF(RIGHT(VLOOKUP(Data[[#This Row],[Mix Design Number]],MixDesign[],3,FALSE),1)=":",VLOOKUP(Data[[#This Row],[Mix Design Number]],MixDesign[],3,FALSE),VLOOKUP(Data[[#This Row],[Mix Design Number]],MixDesign[],3,FALSE)&":"),"") -> Gmm: | L31: =IF(Data[[#This Row],[Mix Design Number]]<>"",VLOOKUP(Data[[#This Row],[Mix Design Number]],MixDesign[],4,FALSE),"") -> 2.48 | M31: 27 | N31: 6 | O31: 2022-11-21 | P31: Day | Q31: 1 | S31: 2 | T31: Misc. | W31: OR | X31: Misc | Y31: 1 | Z31: 1 | AA31: 182840 | AB31: 182927 | AC31: 87 | AD31: 2 | AE31: 19.33 | AF31: 1.67 | AH31: 172.79 | AI31: =IF(OR(Data[[#This Row],[GmmGsb Value]]="",Data[[#This Row],[Thickness]]=""),"",IF(RIGHT(Data[[#This Row],[GmmGsb Type]],4)="Gsb:",ROUND(Data[[#This Row],[GmmGsb Value]]*Data[[#This Row],[Thickness]]*40.5,0),IF(Data[[#This Row],[GmmGsb Type]]="Gmm:",IF(Data[[#This Row],[Intended Use]]="Misc.",ROUND((Data[[#This Row],[GmmGsb Value]]/2.54)*(100*Data[[#This Row],[Thickness]]),0),ROUND(Data[[#This Row],[GmmGsb Value]]*Data[[#This Row],[Thickness]]*43.3,0)),""))) ->  | AK31: =IF(Data[[#This Row],[Data Exists]]=FALSE,"",IF(LEFT(Data[[#This Row],[GmmGsb Type]],4)="ATPB",IF(AND(Data[[#This Row],[Start Station]]<>"",Data[[#This Row],[End Station]]<>"",Data[[#This Row],[Width]]<>"",Data[[#This Row],[Thickness]]<>"",Data[[#This Row],[Intended Use]]="ATPB"),Data[[#This Row],[Length]]*Data[[#This Row],[Width]]*Data[[#This Row],[Thickness]]/324,""),IF(Data[[#This Row],[Intended Use]]<>"",IF(UPPER(INDEX(EditablePayItems[],MATCH(IF(OR(RIGHT(Data[[#This Row],[Intended Use]],6)=" (opt)",RIGHT(Data[[#This Row],[Intended Use]],6)=" (req)"),LEFT(Data[[#This Row],[Intended Use]],LEN(Data[[#This Row],[Intended Use]])-6),Data[[#This Row],[Intended Use]]),EditablePayItems[IntendedUse],0),4))="PRORATED",IF(Data[[#This Row],[Total Thickness]]*Data[[#This Row],[Area]]<>0,Data[[#This Row],[Thickness]]/Data[[#This Row],[Total Thickness]]*Data[[#This Row],[Area]],0), ""),""))) ->  | AL31: C | AM31: Placed in liue of grass in between gutter and sidewalk | AN31: M24307776-000 | AP31: 2022-12-01T00:41:21 | AQ31: =IF(AND(Data[[#This Row],[Lot]]<>"",ProjectDateTimeStamp<>""),ProjectDateTimeStamp,"") -> 2023-10-05T10:35:05 | AR31: =IF(COUNTA(Data[[#This Row],[Lot]],Data[[#This Row],[Intended Lot Size]:[Mix Design Number]],Data[[#This Row],[Line Number]:[Spread Rate]],Data[[#This Row],[Total Thickness]],Data[[#This Row],[Varied Width Designation]:[Date Time Stamp]])>0,TRUE,FALSE) -> TRUE | AS31: =IF(Data[[#This Row],[Intended Use]]<>"",IF(VLOOKUP(Data[[#This Row],[Intended Use]],EditablePayItems[[IntendedUse]:[PayItemNumber]],6,FALSE)<>"",VLOOKUP(Data[[#This Row],[Intended Use]],EditablePayItems[[IntendedUse]:[PayItemNumber]],6,FALSE),""),"") -> 339 1 | AT31: =IF(Data[[#This Row],[Date Paved]]<>"",VLOOKUP(Data[[#This Row],[Date Paved]],MonthlyCutOffDates[[Date From]:[MonthYear]],3),"") -> Dec 2018 | AU31: =IF(AND(Data[[#This Row],[Target Spread Rate]]<>"",Data[[#This Row],[Area]]<>""),Data[[#This Row],[Target Spread Rate]]*Data[[#This Row],[Area]]/2000,"") ->  | AV31: Mainline | AW31: SR-50 | AZ31: =MIN(Data[[#This Row],[Start Station]:[End Station]]) -> 182840 | BA31: =MAX(Data[[#This Row],[Start Station]:[End Station]]) -> 182927 | BB31: =IF(AND(Data[[#This Row],[Quantity]]<>"",Data[[#This Row],[GmmGsb Value]]<>""),Data[[#This Row],[Quantity]]*Data[[#This Row],[GmmGsb Value]],"") -> 4.1416 | BE31: =IF(Data[[#This Row],[Pay Item Number]]<>"",IF(VLOOKUP(Data[[#This Row],[Intended Use]],EditablePayItems[[IntendedUse]:[Actual Quantity Paid]],2,FALSE)="Prorated",IF(LEFT(Data[[#This Row],[Intended Use]],4)="ATPB","Cubic Yards","Square Yards"),"Tons"),"") -> Tons | BF31: =Data[[#This Row],[Lot]]&"-"&Data[[#This Row],[Line Number]] -> 0-27 | BG31: =IF(Data[[#This Row],[Date Paved]]<>"",TEXT(Data[[#This Row],[Date Paved]],"mm/dd/yyyy")&" - "&Data[[#This Row],[Shift]]&" - Crew "&Data[[#This Row],[Crew]],"") -> 11/21/2022 - Day - Crew 1 | BH31: =IF(Data[[#This Row],[Date Paved]]<>"",TEXT(Data[[#This Row],[Date Paved]],"mm/dd/yyyy"),"") -> 11/21/2022 | BJ31: =IF(OR(LEFT(Data[[#This Row],[Intended Use]],10)="Base Group", Data[[#This Row],[Intended Use]]="Turnout Const. (per sy)"),IF(AND(Data[[#This Row],[Thickness]]<>0,Data[[#This Row],[Total Thickness]]<>0,Data[[#This Row],[Area]]<>0),(Data[[#This Row],[Prorated Base]]/SUMIFS(Data[Prorated Base],Data[Intended Use],"="&Data[[#This Row],[Intended Use]]))*Data[[#This Row],[Total Thickness]],""), "") ->  | BK31: =IF(OR(Data[[#This Row],[Roadway Type]]<>"",Data[[#This Row],[Roadway ID]]<>""),UPPER(Data[[#This Row],[Roadway Type]])&"~-~"&UPPER(Data[[#This Row],[Roadway ID]]),"") -> MAINLINE~-~SR-50 | BL31: =IF(AND(Data[[#This Row],[Quantity]]<>"",Data[[#This Row],[Total Thickness]]<>"",Data[[#This Row],[Total Thickness]]<>0,Data[[#This Row],[GmmGsb Value]]<>"",Data[[#This Row],[GmmGsb Value]]<>0),IF(Data[[#This Row],[Quantity]]>0,(Data[[#This Row],[Quantity]]*2000)/(Data[[#This Row],[Total Thickness]]*Data[[#This Row],[GmmGsb Value]]*43.3),0),"") -> 
A32: 1 | B32: =IF(AND(Data[[#This Row],[Lot]]<>"",FIN<>""),FIN,"") -> 41673245201 | C32: =IF(AND(Data[[#This Row],[Lot]]<>"",ContractNumber<>""),ContractNumber,"") -> T7396 | D32: =IF(AND(Data[[#This Row],[Lot]]<>"",Contractor<>""),Contractor,"") -> APS | E32: =IF(AND(Data[[#This Row],[Lot]]<>"",BidDate<>""),BidDate,"") -> 2019-07-19 | F32: =IF(AND(Data[[#This Row],[Lot]]<>"",LumpSum<>""),LumpSum,"") -> No | G32: 4000 tons | H32: TRUE | I32: FALSE | J32: SP 14-12329B | K32: =IF(Data[[#This Row],[Mix Design Number]]<>"",IF(RIGHT(VLOOKUP(Data[[#This Row],[Mix Design Number]],MixDesign[],3,FALSE),1)=":",VLOOKUP(Data[[#This Row],[Mix Design Number]],MixDesign[],3,FALSE),VLOOKUP(Data[[#This Row],[Mix Design Number]],MixDesign[],3,FALSE)&":"),"") -> Gmm: | L32: =IF(Data[[#This Row],[Mix Design Number]]<>"",VLOOKUP(Data[[#This Row],[Mix Design Number]],MixDesign[],4,FALSE),"") -> 2.541 | M32: 1 | O32: 2020-10-02 | P32: Day | Q32: 1 | R32: 1 | S32: 1-3 | T32: Base Group 1 | U32: N | W32: L1 | Y32: 1 | Z32: 2 | AA32: 27700 | AB32: 28052 | AC32: 352 | AD32: 12 | AE32: 469.33 | AF32: 54 | AG32: 2 | AH32: 230.12 | AI32: =IF(OR(Data[[#This Row],[GmmGsb Value]]="",Data[[#This Row],[Thickness]]=""),"",IF(RIGHT(Data[[#This Row],[GmmGsb Type]],4)="Gsb:",ROUND(Data[[#This Row],[GmmGsb Value]]*Data[[#This Row],[Thickness]]*40.5,0),IF(Data[[#This Row],[GmmGsb Type]]="Gmm:",IF(Data[[#This Row],[Intended Use]]="Misc.",ROUND((Data[[#This Row],[GmmGsb Value]]/2.54)*(100*Data[[#This Row],[Thickness]]),0),ROUND(Data[[#This Row],[GmmGsb Value]]*Data[[#This Row],[Thickness]]*43.3,0)),""))) -> 220 | AJ32: 4 | AK32: =IF(Data[[#This Row],[Data Exists]]=FALSE,"",IF(LEFT(Data[[#This Row],[GmmGsb Type]],4)="ATPB",IF(AND(Data[[#This Row],[Start Station]]<>"",Data[[#This Row],[End Station]]<>"",Data[[#This Row],[Width]]<>"",Data[[#This Row],[Thickness]]<>"",Data[[#This Row],[Intended Use]]="ATPB"),Data[[#This Row],[Length]]*Data[[#This Row],[Width]]*Data[[#This Row],[Thickness]]/324,""),IF(Data[[#This Row],[Intended Use]]<>"",IF(UPPER(INDEX(EditablePayItems[],MATCH(IF(OR(RIGHT(Data[[#This Row],[Intended Use]],6)=" (opt)",RIGHT(Data[[#This Row],[Intended Use]],6)=" (req)"),LEFT(Data[[#This Row],[Intended Use]],LEN(Data[[#This Row],[Intended Use]])-6),Data[[#This Row],[Intended Use]]),EditablePayItems[IntendedUse],0),4))="PRORATED",IF(Data[[#This Row],[Total Thickness]]*Data[[#This Row],[Area]]<>0,Data[[#This Row],[Thickness]]/Data[[#This Row],[Total Thickness]]*Data[[#This Row],[Area]],0), ""),""))) -> 234.665 | AL32: C | AN32: J52006881-164 | AO32: 2021-02-26T07:11:37 | AP32: 2021-09-07T08:37:48 | AQ32: =IF(AND(Data[[#This Row],[Lot]]<>"",ProjectDateTimeStamp<>""),ProjectDateTimeStamp,"") -> 2023-10-05T10:35:05 | AR32: =IF(COUNTA(Data[[#This Row],[Lot]],Data[[#This Row],[Intended Lot Size]:[Mix Design Number]],Data[[#This Row],[Line Number]:[Spread Rate]],Data[[#This Row],[Total Thickness]],Data[[#This Row],[Varied Width Designation]:[Date Time Stamp]])>0,TRUE,FALSE) -> TRUE | AS32: =IF(Data[[#This Row],[Intended Use]]<>"",IF(VLOOKUP(Data[[#This Row],[Intended Use]],EditablePayItems[[IntendedUse]:[PayItemNumber]],6,FALSE)<>"",VLOOKUP(Data[[#This Row],[Intended Use]],EditablePayItems[[IntendedUse]:[PayItemNumber]],6,FALSE),""),"") -> 285701 | AT32: =IF(Data[[#This Row],[Date Paved]]<>"",VLOOKUP(Data[[#This Row],[Date Paved]],MonthlyCutOffDates[[Date From]:[MonthYear]],3),"") -> Dec 2018 | AU32: =IF(AND(Data[[#This Row],[Target Spread Rate]]<>"",Data[[#This Row],[Area]]<>""),Data[[#This Row],[Target Spread Rate]]*Data[[#This Row],[Area]]/2000,"") -> 51.6263 | AV32: Mainline | AW32: US-98 | AZ32: =MIN(Data[[#This Row],[Start Station]:[End Station]]) -> 27700 | BA32: =MAX(Data[[#This Row],[Start Station]:[End Station]]) -> 28052 | BB32: =IF(AND(Data[[#This Row],[Quantity]]<>"",Data[[#This Row],[GmmGsb Value]]<>""),Data[[#This Row],[Quantity]]*Data[[#This Row],[GmmGsb Value]],"") -> 137.214 | BD32: TRUE | BE32: =IF(Data[[#This Row],[Pay Item Number]]<>"",IF(VLOOKUP(Data[[#This Row],[Intended Use]],EditablePayItems[[IntendedUse]:[Actual Quantity Paid]],2,FALSE)="Prorated",IF(LEFT(Data[[#This Row],[Intended Use]],4)="ATPB","Cubic Yards","Square Yards"),"Tons"),"") -> Square Yards | BF32: =Data[[#This Row],[Lot]]&"-"&Data[[#This Row],[Line Number]] -> 1-1 | BG32: =IF(Data[[#This Row],[Date Paved]]<>"",TEXT(Data[[#This Row],[Date Paved]],"mm/dd/yyyy")&" - "&Data[[#This Row],[Shift]]&" - Crew "&Data[[#This Row],[Crew]],"") -> 10/02/2020 - Day - Crew 1 | BH32: =IF(Data[[#This Row],[Date Paved]]<>"",TEXT(Data[[#This Row],[Date Paved]],"mm/dd/yyyy"),"") -> 10/02/2020 | BJ32: =IF(OR(LEFT(Data[[#This Row],[Intended Use]],10)="Base Group", Data[[#This Row],[Intended Use]]="Turnout Const. (per sy)"),IF(AND(Data[[#This Row],[Thickness]]<>0,Data[[#This Row],[Total Thickness]]<>0,Data[[#This Row],[Area]]<>0),(Data[[#This Row],[Prorated Base]]/SUMIFS(Data[Prorated Base],Data[Intended Use],"="&Data[[#This Row],[Intended Use]]))*Data[[#This Row],[Total Thickness]],""), "") -> 0.02226392257 | BK32: =IF(OR(Data[[#This Row],[Roadway Type]]<>"",Data[[#This Row],[Roadway ID]]<>""),UPPER(Data[[#This Row],[Roadway Type]])&"~-~"&UPPER(Data[[#This Row],[Roadway ID]]),"") -> MAINLINE~-~US-98 | BL32: =IF(AND(Data[[#This Row],[Quantity]]<>"",Data[[#This Row],[Total Thickness]]<>"",Data[[#This Row],[Total Thickness]]<>0,Data[[#This Row],[GmmGsb Value]]<>"",Data[[#This Row],[GmmGsb Value]]<>0),IF(Data[[#This Row],[Quantity]]>0,(Data[[#This Row],[Quantity]]*2000)/(Data[[#This Row],[Total Thickness]]*Data[[#This Row],[GmmGsb Value]]*43.3),0),"") -> 245.3981039
A33: 1 | B33: =IF(AND(Data[[#This Row],[Lot]]<>"",FIN<>""),FIN,"") -> 41673245201 | C33: =IF(AND(Data[[#This Row],[Lot]]<>"",ContractNumber<>""),ContractNumber,"") -> T7396 | D33: =IF(AND(Data[[#This Row],[Lot]]<>"",Contractor<>""),Contractor,"") -> APS | E33: =IF(AND(Data[[#This Row],[Lot]]<>"",BidDate<>""),BidDate,"") -> 2019-07-19 | F33: =IF(AND(Data[[#This Row],[Lot]]<>"",LumpSum<>""),LumpSum,"") -> No | G33: 4000 tons | H33: TRUE | I33: FALSE | J33: SP 14-12329B | K33: =IF(Data[[#This Row],[Mix Design Number]]<>"",IF(RIGHT(VLOOKUP(Data[[#This Row],[Mix Design Number]],MixDesign[],3,FALSE),1)=":",VLOOKUP(Data[[#This Row],[Mix Design Number]],MixDesign[],3,FALSE),VLOOKUP(Data[[#This Row],[Mix Design Number]],MixDesign[],3,FALSE)&":"),"") -> Gmm: | L33: =IF(Data[[#This Row],[Mix Design Number]]<>"",VLOOKUP(Data[[#This Row],[Mix Design Number]],MixDesign[],4,FALSE),"") -> 2.541 | M33: 2 | O33: 2020-10-02 | P33: Day | Q33: 1 | R33: 1 | S33: 3-4 | T33: Base Group 1 | U33: N | W33: L1 | Y33: 1 | Z33: 2 | AA33: 28052 | AB33: 28157 | AC33: 105 | AD33: 12 | AE33: 140 | AF33: 16 | AG33: 2 | AH33: 228.57 | AI33: =IF(OR(Data[[#This Row],[GmmGsb Value]]="",Data[[#This Row],[Thickness]]=""),"",IF(RIGHT(Data[[#This Row],[GmmGsb Type]],4)="Gsb:",ROUND(Data[[#This Row],[GmmGsb Value]]*Data[[#This Row],[Thickness]]*40.5,0),IF(Data[[#This Row],[GmmGsb Type]]="Gmm:",IF(Data[[#This Row],[Intended Use]]="Misc.",ROUND((Data[[#This Row],[GmmGsb Value]]/2.54)*(100*Data[[#This Row],[Thickness]]),0),ROUND(Data[[#This Row],[GmmGsb Value]]*Data[[#This Row],[Thickness]]*43.3,0)),""))) -> 220 | AJ33: 4 | AK33: =IF(Data[[#This Row],[Data Exists]]=FALSE,"",IF(LEFT(Data[[#This Row],[GmmGsb Type]],4)="ATPB",IF(AND(Data[[#This Row],[Start Station]]<>"",Data[[#This Row],[End Station]]<>"",Data[[#This Row],[Width]]<>"",Data[[#This Row],[Thickness]]<>"",Data[[#This Row],[Intended Use]]="ATPB"),Data[[#This Row],[Length]]*Data[[#This Row],[Width]]*Data[[#This Row],[Thickness]]/324,""),IF(Data[[#This Row],[Intended Use]]<>"",IF(UPPER(INDEX(EditablePayItems[],MATCH(IF(OR(RIGHT(Data[[#This Row],[Intended Use]],6)=" (opt)",RIGHT(Data[[#This Row],[Intended Use]],6)=" (req)"),LEFT(Data[[#This Row],[Intended Use]],LEN(Data[[#This Row],[Intended Use]])-6),Data[[#This Row],[Intended Use]]),EditablePayItems[IntendedUse],0),4))="PRORATED",IF(Data[[#This Row],[Total Thickness]]*Data[[#This Row],[Area]]<>0,Data[[#This Row],[Thickness]]/Data[[#This Row],[Total Thickness]]*Data[[#This Row],[Area]],0), ""),""))) -> 70 | AL33: C | AN33: J52006881-164 | AO33: 2021-02-26T07:11:37 | AP33: 2021-09-07T08:37:48 | AQ33: =IF(AND(Data[[#This Row],[Lot]]<>"",ProjectDateTimeStamp<>""),ProjectDateTimeStamp,"") -> 2023-10-05T10:35:05 | AR33: =IF(COUNTA(Data[[#This Row],[Lot]],Data[[#This Row],[Intended Lot Size]:[Mix Design Number]],Data[[#This Row],[Line Number]:[Spread Rate]],Data[[#This Row],[Total Thickness]],Data[[#This Row],[Varied Width Designation]:[Date Time Stamp]])>0,TRUE,FALSE) -> TRUE | AS33: =IF(Data[[#This Row],[Intended Use]]<>"",IF(VLOOKUP(Data[[#This Row],[Intended Use]],EditablePayItems[[IntendedUse]:[PayItemNumber]],6,FALSE)<>"",VLOOKUP(Data[[#This Row],[Intended Use]],EditablePayItems[[IntendedUse]:[PayItemNumber]],6,FALSE),""),"") -> 285701 | AT33: =IF(Data[[#This Row],[Date Paved]]<>"",VLOOKUP(Data[[#This Row],[Date Paved]],MonthlyCutOffDates[[Date From]:[MonthYear]],3),"") -> Dec 2018 | AU33: =IF(AND(Data[[#This Row],[Target Spread Rate]]<>"",Data[[#This Row],[Area]]<>""),Data[[#This Row],[Target Spread Rate]]*Data[[#This Row],[Area]]/2000,"") -> 15.4 | AV33: Mainline | AW33: US-98 | AZ33: =MIN(Data[[#This Row],[Start Station]:[End Station]]) -> 28052 | BA33: =MAX(Data[[#This Row],[Start Station]:[End Station]]) -> 28157 | BB33: =IF(AND(Data[[#This Row],[Quantity]]<>"",Data[[#This Row],[GmmGsb Value]]<>""),Data[[#This Row],[Quantity]]*Data[[#This Row],[GmmGsb Value]],"") -> 40.656 | BD33: TRUE | BE33: =IF(Data[[#This Row],[Pay Item Number]]<>"",IF(VLOOKUP(Data[[#This Row],[Intended Use]],EditablePayItems[[IntendedUse]:[Actual Quantity Paid]],2,FALSE)="Prorated",IF(LEFT(Data[[#This Row],[Intended Use]],4)="ATPB","Cubic Yards","Square Yards"),"Tons"),"") -> Square Yards | BF33: =Data[[#This Row],[Lot]]&"-"&Data[[#This Row],[Line Number]] -> 1-2 | BG33: =IF(Data[[#This Row],[Date Paved]]<>"",TEXT(Data[[#This Row],[Date Paved]],"mm/dd/yyyy")&" - "&Data[[#This Row],[Shift]]&" - Crew "&Data[[#This Row],[Crew]],"") -> 10/02/2020 - Day - Crew 1 | BH33: =IF(Data[[#This Row],[Date Paved]]<>"",TEXT(Data[[#This Row],[Date Paved]],"mm/dd/yyyy"),"") -> 10/02/2020 | BJ33: =IF(OR(LEFT(Data[[#This Row],[Intended Use]],10)="Base Group", Data[[#This Row],[Intended Use]]="Turnout Const. (per sy)"),IF(AND(Data[[#This Row],[Thickness]]<>0,Data[[#This Row],[Total Thickness]]<>0,Data[[#This Row],[Area]]<>0),(Data[[#This Row],[Prorated Base]]/SUMIFS(Data[Prorated Base],Data[Intended Use],"="&Data[[#This Row],[Intended Use]]))*Data[[#This Row],[Total Thickness]],""), "") -> 0.006641274072 | BK33: =IF(OR(Data[[#This Row],[Roadway Type]]<>"",Data[[#This Row],[Roadway ID]]<>""),UPPER(Data[[#This Row],[Roadway Type]])&"~-~"&UPPER(Data[[#This Row],[Roadway ID]]),"") -> MAINLINE~-~US-98 | BL33: =IF(AND(Data[[#This Row],[Quantity]]<>"",Data[[#This Row],[Total Thickness]]<>"",Data[[#This Row],[Total Thickness]]<>0,Data[[#This Row],[GmmGsb Value]]<>"",Data[[#This Row],[GmmGsb Value]]<>0),IF(Data[[#This Row],[Quantity]]>0,(Data[[#This Row],[Quantity]]*2000)/(Data[[#This Row],[Total Thickness]]*Data[[#This Row],[GmmGsb Value]]*43.3),0),"") -> 72.7105493
A34: 1 | B34: =IF(AND(Data[[#This Row],[Lot]]<>"",FIN<>""),FIN,"") -> 41673245201 | C34: =IF(AND(Data[[#This Row],[Lot]]<>"",ContractNumber<>""),ContractNumber,"") -> T7396 | D34: =IF(AND(Data[[#This Row],[Lot]]<>"",Contractor<>""),Contractor,"") -> APS | E34: =IF(AND(Data[[#This Row],[Lot]]<>"",BidDate<>""),BidDate,"") -> 2019-07-19 | F34: =IF(AND(Data[[#This Row],[Lot]]<>"",LumpSum<>""),LumpSum,"") -> No | G34: 4000 tons | H34: TRUE | I34: FALSE | J34: SP 14-12329B | K34: =IF(Data[[#This Row],[Mix Design Number]]<>"",IF(RIGHT(VLOOKUP(Data[[#This Row],[Mix Design Number]],MixDesign[],3,FALSE),1)=":",VLOOKUP(Data[[#This Row],[Mix Design Number]],MixDesign[],3,FALSE),VLOOKUP(Data[[#This Row],[Mix Design Number]],MixDesign[],3,FALSE)&":"),"") -> Gmm: | L34: =IF(Data[[#This Row],[Mix Design Number]]<>"",VLOOKUP(Data[[#This Row],[Mix Design Number]],MixDesign[],4,FALSE),"") -> 2.541 | M34: 3 | O34: 2020-10-02 | P34: Day | Q34: 1 | R34: 1 | S34: 4-6 | T34: Base Group 1 | U34: N | W34: L1 | Y34: 1 | Z34: 2 | AA34: 28157 | AB34: 28435 | AC34: 278 | AD34: 12 | AE34: 370.67 | AF34: 42.75 | AG34: 2 | AH34: 230.66 | AI34: =IF(OR(Data[[#This Row],[GmmGsb Value]]="",Data[[#This Row],[Thickness]]=""),"",IF(RIGHT(Data[[#This Row],[GmmGsb Type]],4)="Gsb:",ROUND(Data[[#This Row],[GmmGsb Value]]*Data[[#This Row],[Thickness]]*40.5,0),IF(Data[[#This Row],[GmmGsb Type]]="Gmm:",IF(Data[[#This Row],[Intended Use]]="Misc.",ROUND((Data[[#This Row],[GmmGsb Value]]/2.54)*(100*Data[[#This Row],[Thickness]]),0),ROUND(Data[[#This Row],[GmmGsb Value]]*Data[[#This Row],[Thickness]]*43.3,0)),""))) -> 220 | AJ34: 4 | AK34: =IF(Data[[#This Row],[Data Exists]]=FALSE,"",IF(LEFT(Data[[#This Row],[GmmGsb Type]],4)="ATPB",IF(AND(Data[[#This Row],[Start Station]]<>"",Data[[#This Row],[End Station]]<>"",Data[[#This Row],[Width]]<>"",Data[[#This Row],[Thickness]]<>"",Data[[#This Row],[Intended Use]]="ATPB"),Data[[#This Row],[Length]]*Data[[#This Row],[Width]]*Data[[#This Row],[Thickness]]/324,""),IF(Data[[#This Row],[Intended Use]]<>"",IF(UPPER(INDEX(EditablePayItems[],MATCH(IF(OR(RIGHT(Data[[#This Row],[Intended Use]],6)=" (opt)",RIGHT(Data[[#This Row],[Intended Use]],6)=" (req)"),LEFT(Data[[#This Row],[Intended Use]],LEN(Data[[#This Row],[Intended Use]])-6),Data[[#This Row],[Intended Use]]),EditablePayItems[IntendedUse],0),4))="PRORATED",IF(Data[[#This Row],[Total Thickness]]*Data[[#This Row],[Area]]<>0,Data[[#This Row],[Thickness]]/Data[[#This Row],[Total Thickness]]*Data[[#This Row],[Area]],0), ""),""))) -> 185.335 | AL34: C | AN34: J52006881-164 | AO34: 2021-02-26T07:11:37 | AP34: 2021-09-07T08:37:48 | AQ34: =IF(AND(Data[[#This Row],[Lot]]<>"",ProjectDateTimeStamp<>""),ProjectDateTimeStamp,"") -> 2023-10-05T10:35:05 | AR34: =IF(COUNTA(Data[[#This Row],[Lot]],Data[[#This Row],[Intended Lot Size]:[Mix Design Number]],Data[[#This Row],[Line Number]:[Spread Rate]],Data[[#This Row],[Total Thickness]],Data[[#This Row],[Varied Width Designation]:[Date Time Stamp]])>0,TRUE,FALSE) -> TRUE | AS34: =IF(Data[[#This Row],[Intended Use]]<>"",IF(VLOOKUP(Data[[#This Row],[Intended Use]],EditablePayItems[[IntendedUse]:[PayItemNumber]],6,FALSE)<>"",VLOOKUP(Data[[#This Row],[Intended Use]],EditablePayItems[[IntendedUse]:[PayItemNumber]],6,FALSE),""),"") -> 285701 | AT34: =IF(Data[[#This Row],[Date Paved]]<>"",VLOOKUP(Data[[#This Row],[Date Paved]],MonthlyCutOffDates[[Date From]:[MonthYear]],3),"") -> Dec 2018 | AU34: =IF(AND(Data[[#This Row],[Target Spread Rate]]<>"",Data[[#This Row],[Area]]<>""),Data[[#This Row],[Target Spread Rate]]*Data[[#This Row],[Area]]/2000,"") -> 40.7737 | AV34: Mainline | AW34: US-98 | AZ34: =MIN(Data[[#This Row],[Start Station]:[End Station]]) -> 28157 | BA34: =MAX(Data[[#This Row],[Start Station]:[End Station]]) -> 28435 | BB34: =IF(AND(Data[[#This Row],[Quantity]]<>"",Data[[#This Row],[GmmGsb Value]]<>""),Data[[#This Row],[Quantity]]*Data[[#This Row],[GmmGsb Value]],"") -> 108.62775 | BD34: TRUE | BE34: =IF(Data[[#This Row],[Pay Item Number]]<>"",IF(VLOOKUP(Data[[#This Row],[Intended Use]],EditablePayItems[[IntendedUse]:[Actual Quantity Paid]],2,FALSE)="Prorated",IF(LEFT(Data[[#This Row],[Intended Use]],4)="ATPB","Cubic Yards","Square Yards"),"Tons"),"") -> Square Yards | BF34: =Data[[#This Row],[Lot]]&"-"&Data[[#This Row],[Line Number]] -> 1-3 | BG34: =IF(Data[[#This Row],[Date Paved]]<>"",TEXT(Data[[#This Row],[Date Paved]],"mm/dd/yyyy")&" - "&Data[[#This Row],[Shift]]&" - Crew "&Data[[#This Row],[Crew]],"") -> 10/02/2020 - Day - Crew 1 | BH34: =IF(Data[[#This Row],[Date Paved]]<>"",TEXT(Data[[#This Row],[Date Paved]],"mm/dd/yyyy"),"") -> 10/02/2020 | BJ34: =IF(OR(LEFT(Data[[#This Row],[Intended Use]],10)="Base Group", Data[[#This Row],[Intended Use]]="Turnout Const. (per sy)"),IF(AND(Data[[#This Row],[Thickness]]<>0,Data[[#This Row],[Total Thickness]]<>0,Data[[#This Row],[Area]]<>0),(Data[[#This Row],[Prorated Base]]/SUMIFS(Data[Prorated Base],Data[Intended Use],"="&Data[[#This Row],[Intended Use]]))*Data[[#This Row],[Total Thickness]],""), "") -> 0.01758372186 | BK34: =IF(OR(Data[[#This Row],[Roadway Type]]<>"",Data[[#This Row],[Roadway ID]]<>""),UPPER(Data[[#This Row],[Roadway Type]])&"~-~"&UPPER(Data[[#This Row],[Roadway ID]]),"") -> MAINLINE~-~US-98 | BL34: =IF(AND(Data[[#This Row],[Quantity]]<>"",Data[[#This Row],[Total Thickness]]<>"",Data[[#This Row],[Total Thickness]]<>0,Data[[#This Row],[GmmGsb Value]]<>"",Data[[#This Row],[GmmGsb Value]]<>0),IF(Data[[#This Row],[Quantity]]>0,(Data[[#This Row],[Quantity]]*2000)/(Data[[#This Row],[Total Thickness]]*Data[[#This Row],[GmmGsb Value]]*43.3),0),"") -> 194.2734989
A35: 1 | B35: =IF(AND(Data[[#This Row],[Lot]]<>"",FIN<>""),FIN,"") -> 41673245201 | C35: =IF(AND(Data[[#This Row],[Lot]]<>"",ContractNumber<>""),ContractNumber,"") -> T7396 | D35: =IF(AND(Data[[#This Row],[Lot]]<>"",Contractor<>""),Contractor,"") -> APS | E35: =IF(AND(Data[[#This Row],[Lot]]<>"",BidDate<>""),BidDate,"") -> 2019-07-19 | F35: =IF(AND(Data[[#This Row],[Lot]]<>"",LumpSum<>""),LumpSum,"") -> No | G35: 4000 tons | H35: TRUE | I35: FALSE | J35: SP 14-12329B | K35: =IF(Data[[#This Row],[Mix Design Number]]<>"",IF(RIGHT(VLOOKUP(Data[[#This Row],[Mix Design Number]],MixDesign[],3,FALSE),1)=":",VLOOKUP(Data[[#This Row],[Mix Design Number]],MixDesign[],3,FALSE),VLOOKUP(Data[[#This Row],[Mix Design Number]],MixDesign[],3,FALSE)&":"),"") -> Gmm: | L35: =IF(Data[[#This Row],[Mix Design Number]]<>"",VLOOKUP(Data[[#This Row],[Mix Design Number]],MixDesign[],4,FALSE),"") -> 2.541 | M35: 4 | O35: 2020-10-02 | P35: Day | Q35: 1 | R35: 1 | S35: 6-7 | T35: Base Group 1 | U35: N | W35: OL | Y35: 1 | Z35: 2 | AA35: 28157 | AB35: 28435 | AC35: 278 | AD35: 5 | AE35: 154.44 | AF35: 21.25 | AG35: 2 | AH35: 275.19 | AI35: =IF(OR(Data[[#This Row],[GmmGsb Value]]="",Data[[#This Row],[Thickness]]=""),"",IF(RIGHT(Data[[#This Row],[GmmGsb Type]],4)="Gsb:",ROUND(Data[[#This Row],[GmmGsb Value]]*Data[[#This Row],[Thickness]]*40.5,0),IF(Data[[#This Row],[GmmGsb Type]]="Gmm:",IF(Data[[#This Row],[Intended Use]]="Misc.",ROUND((Data[[#This Row],[GmmGsb Value]]/2.54)*(100*Data[[#This Row],[Thickness]]),0),ROUND(Data[[#This Row],[GmmGsb Value]]*Data[[#This Row],[Thickness]]*43.3,0)),""))) -> 220 | AJ35: 4 | AK35: =IF(Data[[#This Row],[Data Exists]]=FALSE,"",IF(LEFT(Data[[#This Row],[GmmGsb Type]],4)="ATPB",IF(AND(Data[[#This Row],[Start Station]]<>"",Data[[#This Row],[End Station]]<>"",Data[[#This Row],[Width]]<>"",Data[[#This Row],[Thickness]]<>"",Data[[#This Row],[Intended Use]]="ATPB"),Data[[#This Row],[Length]]*Data[[#This Row],[Width]]*Data[[#This Row],[Thickness]]/324,""),IF(Data[[#This Row],[Intended Use]]<>"",IF(UPPER(INDEX(EditablePayItems[],MATCH(IF(OR(RIGHT(Data[[#This Row],[Intended Use]],6)=" (opt)",RIGHT(Data[[#This Row],[Intended Use]],6)=" (req)"),LEFT(Data[[#This Row],[Intended Use]],LEN(Data[[#This Row],[Intended Use]])-6),Data[[#This Row],[Intended Use]]),EditablePayItems[IntendedUse],0),4))="PRORATED",IF(Data[[#This Row],[Total Thickness]]*Data[[#This Row],[Area]]<>0,Data[[#This Row],[Thickness]]/Data[[#This Row],[Total Thickness]]*Data[[#This Row],[Area]],0), ""),""))) -> 77.22 | AL35: C | AN35: J52006881-164 | AO35: 2021-02-26T07:11:37 | AP35: 2021-09-07T08:37:48 | AQ35: =IF(AND(Data[[#This Row],[Lot]]<>"",ProjectDateTimeStamp<>""),ProjectDateTimeStamp,"") -> 2023-10-05T10:35:05 | AR35: =IF(COUNTA(Data[[#This Row],[Lot]],Data[[#This Row],[Intended Lot Size]:[Mix Design Number]],Data[[#This Row],[Line Number]:[Spread Rate]],Data[[#This Row],[Total Thickness]],Data[[#This Row],[Varied Width Designation]:[Date Time Stamp]])>0,TRUE,FALSE) -> TRUE | AS35: =IF(Data[[#This Row],[Intended Use]]<>"",IF(VLOOKUP(Data[[#This Row],[Intended Use]],EditablePayItems[[IntendedUse]:[PayItemNumber]],6,FALSE)<>"",VLOOKUP(Data[[#This Row],[Intended Use]],EditablePayItems[[IntendedUse]:[PayItemNumber]],6,FALSE),""),"") -> 285701 | AT35: =IF(Data[[#This Row],[Date Paved]]<>"",VLOOKUP(Data[[#This Row],[Date Paved]],MonthlyCutOffDates[[Date From]:[MonthYear]],3),"") -> Dec 2018 | AU35: =IF(AND(Data[[#This Row],[Target Spread Rate]]<>"",Data[[#This Row],[Area]]<>""),Data[[#This Row],[Target Spread Rate]]*Data[[#This Row],[Area]]/2000,"") -> 16.9884 | AV35: Mainline | AW35: US-98 | AZ35: =MIN(Data[[#This Row],[Start Station]:[End Station]]) -> 28157 | BA35: =MAX(Data[[#This Row],[Start Station]:[End Station]]) -> 28435 | BB35: =IF(AND(Data[[#This Row],[Quantity]]<>"",Data[[#This Row],[GmmGsb Value]]<>""),Data[[#This Row],[Quantity]]*Data[[#This Row],[GmmGsb Value]],"") -> 53.99625 | BD35: TRUE | BE35: =IF(Data[[#This Row],[Pay Item Number]]<>"",IF(VLOOKUP(Data[[#This Row],[Intended Use]],EditablePayItems[[IntendedUse]:[Actual Quantity Paid]],2,FALSE)="Prorated",IF(LEFT(Data[[#This Row],[Intended Use]],4)="ATPB","Cubic Yards","Square Yards"),"Tons"),"") -> Square Yards | BF35: =Data[[#This Row],[Lot]]&"-"&Data[[#This Row],[Line Number]] -> 1-4 | BG35: =IF(Data[[#This Row],[Date Paved]]<>"",TEXT(Data[[#This Row],[Date Paved]],"mm/dd/yyyy")&" - "&Data[[#This Row],[Shift]]&" - Crew "&Data[[#This Row],[Crew]],"") -> 10/02/2020 - Day - Crew 1 | BH35: =IF(Data[[#This Row],[Date Paved]]<>"",TEXT(Data[[#This Row],[Date Paved]],"mm/dd/yyyy"),"") -> 10/02/2020 | BJ35: =IF(OR(LEFT(Data[[#This Row],[Intended Use]],10)="Base Group", Data[[#This Row],[Intended Use]]="Turnout Const. (per sy)"),IF(AND(Data[[#This Row],[Thickness]]<>0,Data[[#This Row],[Total Thickness]]<>0,Data[[#This Row],[Area]]<>0),(Data[[#This Row],[Prorated Base]]/SUMIFS(Data[Prorated Base],Data[Intended Use],"="&Data[[#This Row],[Intended Use]]))*Data[[#This Row],[Total Thickness]],""), "") -> 0.007326274054 | BK35: =IF(OR(Data[[#This Row],[Roadway Type]]<>"",Data[[#This Row],[Roadway ID]]<>""),UPPER(Data[[#This Row],[Roadway Type]])&"~-~"&UPPER(Data[[#This Row],[Roadway ID]]),"") -> MAINLINE~-~US-98 | BL35: =IF(AND(Data[[#This Row],[Quantity]]<>"",Data[[#This Row],[Total Thickness]]<>"",Data[[#This Row],[Total Thickness]]<>0,Data[[#This Row],[GmmGsb Value]]<>"",Data[[#This Row],[GmmGsb Value]]<>0),IF(Data[[#This Row],[Quantity]]>0,(Data[[#This Row],[Quantity]]*2000)/(Data[[#This Row],[Total Thickness]]*Data[[#This Row],[GmmGsb Value]]*43.3),0),"") -> 96.56869829
A36: 1 | B36: =IF(AND(Data[[#This Row],[Lot]]<>"",FIN<>""),FIN,"") -> 41673245201 | C36: =IF(AND(Data[[#This Row],[Lot]]<>"",ContractNumber<>""),ContractNumber,"") -> T7396 | D36: =IF(AND(Data[[#This Row],[Lot]]<>"",Contractor<>""),Contractor,"") -> APS | E36: =IF(AND(Data[[#This Row],[Lot]]<>"",BidDate<>""),BidDate,"") -> 2019-07-19 | F36: =IF(AND(Data[[#This Row],[Lot]]<>"",LumpSum<>""),LumpSum,"") -> No | G36: 4000 tons | H36: TRUE | I36: FALSE | J36: SP 14-12329B | K36: =IF(Data[[#This Row],[Mix Design Number]]<>"",IF(RIGHT(VLOOKUP(Data[[#This Row],[Mix Design Number]],MixDesign[],3,FALSE),1)=":",VLOOKUP(Data[[#This Row],[Mix Design Number]],MixDesign[],3,FALSE),VLOOKUP(Data[[#This Row],[Mix Design Number]],MixDesign[],3,FALSE)&":"),"") -> Gmm: | L36: =IF(Data[[#This Row],[Mix Design Number]]<>"",VLOOKUP(Data[[#This Row],[Mix Design Number]],MixDesign[],4,FALSE),"") -> 2.541 | M36: 5 | O36: 2020-10-02 | P36: Day | Q36: 1 | R36: 1 | S36: 7-10 | T36: Base Group 1 | U36: N | W36: LT | X36: Merge Lane | Y36: 1 | Z36: 2 | AA36: 27700 | AB36: 28000 | AC36: 300 | AD36: 12 | AE36: 400 | AF36: 46.14 | AG36: 2 | AH36: 230.7 | AI36: =IF(OR(Data[[#This Row],[GmmGsb Value]]="",Data[[#This Row],[Thickness]]=""),"",IF(RIGHT(Data[[#This Row],[GmmGsb Type]],4)="Gsb:",ROUND(Data[[#This Row],[GmmGsb Value]]*Data[[#This Row],[Thickness]]*40.5,0),IF(Data[[#This Row],[GmmGsb Type]]="Gmm:",IF(Data[[#This Row],[Intended Use]]="Misc.",ROUND((Data[[#This Row],[GmmGsb Value]]/2.54)*(100*Data[[#This Row],[Thickness]]),0),ROUND(Data[[#This Row],[GmmGsb Value]]*Data[[#This Row],[Thickness]]*43.3,0)),""))) -> 220 | AJ36: 4 | AK36: =IF(Data[[#This Row],[Data Exists]]=FALSE,"",IF(LEFT(Data[[#This Row],[GmmGsb Type]],4)="ATPB",IF(AND(Data[[#This Row],[Start Station]]<>"",Data[[#This Row],[End Station]]<>"",Data[[#This Row],[Width]]<>"",Data[[#This Row],[Thickness]]<>"",Data[[#This Row],[Intended Use]]="ATPB"),Data[[#This Row],[Length]]*Data[[#This Row],[Width]]*Data[[#This Row],[Thickness]]/324,""),IF(Data[[#This Row],[Intended Use]]<>"",IF(UPPER(INDEX(EditablePayItems[],MATCH(IF(OR(RIGHT(Data[[#This Row],[Intended Use]],6)=" (opt)",RIGHT(Data[[#This Row],[Intended Use]],6)=" (req)"),LEFT(Data[[#This Row],[Intended Use]],LEN(Data[[#This Row],[Intended Use]])-6),Data[[#This Row],[Intended Use]]),EditablePayItems[IntendedUse],0),4))="PRORATED",IF(Data[[#This Row],[Total Thickness]]*Data[[#This Row],[Area]]<>0,Data[[#This Row],[Thickness]]/Data[[#This Row],[Total Thickness]]*Data[[#This Row],[Area]],0), ""),""))) -> 200 | AL36: C | AN36: J52006881-164 | AO36: 2021-02-26T07:11:37 | AP36: 2021-09-07T08:37:48 | AQ36: =IF(AND(Data[[#This Row],[Lot]]<>"",ProjectDateTimeStamp<>""),ProjectDateTimeStamp,"") -> 2023-10-05T10:35:05 | AR36: =IF(COUNTA(Data[[#This Row],[Lot]],Data[[#This Row],[Intended Lot Size]:[Mix Design Number]],Data[[#This Row],[Line Number]:[Spread Rate]],Data[[#This Row],[Total Thickness]],Data[[#This Row],[Varied Width Designation]:[Date Time Stamp]])>0,TRUE,FALSE) -> TRUE | AS36: =IF(Data[[#This Row],[Intended Use]]<>"",IF(VLOOKUP(Data[[#This Row],[Intended Use]],EditablePayItems[[IntendedUse]:[PayItemNumber]],6,FALSE)<>"",VLOOKUP(Data[[#This Row],[Intended Use]],EditablePayItems[[IntendedUse]:[PayItemNumber]],6,FALSE),""),"") -> 285701 | AT36: =IF(Data[[#This Row],[Date Paved]]<>"",VLOOKUP(Data[[#This Row],[Date Paved]],MonthlyCutOffDates[[Date From]:[MonthYear]],3),"") -> Dec 2018 | AU36: =IF(AND(Data[[#This Row],[Target Spread Rate]]<>"",Data[[#This Row],[Area]]<>""),Data[[#This Row],[Target Spread Rate]]*Data[[#This Row],[Area]]/2000,"") -> 44 | AV36: Mainline | AW36: US-98 | AZ36: =MIN(Data[[#This Row],[Start Station]:[End Station]]) -> 27700 | BA36: =MAX(Data[[#This Row],[Start Station]:[End Station]]) -> 28000 | BB36: =IF(AND(Data[[#This Row],[Quantity]]<>"",Data[[#This Row],[GmmGsb Value]]<>""),Data[[#This Row],[Quantity]]*Data[[#This Row],[GmmGsb Value]],"") -> 117.24174 | BD36: TRUE | BE36: =IF(Data[[#This Row],[Pay Item Number]]<>"",IF(VLOOKUP(Data[[#This Row],[Intended Use]],EditablePayItems[[IntendedUse]:[Actual Quantity Paid]],2,FALSE)="Prorated",IF(LEFT(Data[[#This Row],[Intended Use]],4)="ATPB","Cubic Yards","Square Yards"),"Tons"),"") -> Square Yards | BF36: =Data[[#This Row],[Lot]]&"-"&Data[[#This Row],[Line Number]] -> 1-5 | BG36: =IF(Data[[#This Row],[Date Paved]]<>"",TEXT(Data[[#This Row],[Date Paved]],"mm/dd/yyyy")&" - "&Data[[#This Row],[Shift]]&" - Crew "&Data[[#This Row],[Crew]],"") -> 10/02/2020 - Day - Crew 1 | BH36: =IF(Data[[#This Row],[Date Paved]]<>"",TEXT(Data[[#This Row],[Date Paved]],"mm/dd/yyyy"),"") -> 10/02/2020 | BJ36: =IF(OR(LEFT(Data[[#This Row],[Intended Use]],10)="Base Group", Data[[#This Row],[Intended Use]]="Turnout Const. (per sy)"),IF(AND(Data[[#This Row],[Thickness]]<>0,Data[[#This Row],[Total Thickness]]<>0,Data[[#This Row],[Area]]<>0),(Data[[#This Row],[Prorated Base]]/SUMIFS(Data[Prorated Base],Data[Intended Use],"="&Data[[#This Row],[Intended Use]]))*Data[[#This Row],[Total Thickness]],""), "") -> 0.01897506878 | BK36: =IF(OR(Data[[#This Row],[Roadway Type]]<>"",Data[[#This Row],[Roadway ID]]<>""),UPPER(Data[[#This Row],[Roadway Type]])&"~-~"&UPPER(Data[[#This Row],[Roadway ID]]),"") -> MAINLINE~-~US-98 | BL36: =IF(AND(Data[[#This Row],[Quantity]]<>"",Data[[#This Row],[Total Thickness]]<>"",Data[[#This Row],[Total Thickness]]<>0,Data[[#This Row],[GmmGsb Value]]<>"",Data[[#This Row],[GmmGsb Value]]<>0),IF(Data[[#This Row],[Quantity]]>0,(Data[[#This Row],[Quantity]]*2000)/(Data[[#This Row],[Total Thickness]]*Data[[#This Row],[GmmGsb Value]]*43.3),0),"") -> 209.6790465
A37: 1 | B37: =IF(AND(Data[[#This Row],[Lot]]<>"",FIN<>""),FIN,"") -> 41673245201 | C37: =IF(AND(Data[[#This Row],[Lot]]<>"",ContractNumber<>""),ContractNumber,"") -> T7396 | D37: =IF(AND(Data[[#This Row],[Lot]]<>"",Contractor<>""),Contractor,"") -> APS | E37: =IF(AND(Data[[#This Row],[Lot]]<>"",BidDate<>""),BidDate,"") -> 2019-07-19 | F37: =IF(AND(Data[[#This Row],[Lot]]<>"",LumpSum<>""),LumpSum,"") -> No | G37: 4000 tons | H37: TRUE | I37: FALSE | J37: SP 14-12329B | K37: =IF(Data[[#This Row],[Mix Design Number]]<>"",IF(RIGHT(VLOOKUP(Data[[#This Row],[Mix Design Number]],MixDesign[],3,FALSE),1)=":",VLOOKUP(Data[[#This Row],[Mix Design Number]],MixDesign[],3,FALSE),VLOOKUP(Data[[#This Row],[Mix Design Number]],MixDesign[],3,FALSE)&":"),"") -> Gmm: | L37: =IF(Data[[#This Row],[Mix Design Number]]<>"",VLOOKUP(Data[[#This Row],[Mix Design Number]],MixDesign[],4,FALSE),"") -> 2.541 | M37: 6 | O37: 2020-10-02 | P37: Day | Q37: 1 | R37: 1 | S37: 10 | T37: Base Group 1 | U37: N | W37: OL | Y37: 1 | Z37: 2 | AA37: 27700 | AB37: 28000 | AC37: 300 | AD37: 5 | AE37: 166.67 | AF37: 18.94 | AG37: 2 | AH37: 227.28 | AI37: =IF(OR(Data[[#This Row],[GmmGsb Value]]="",Data[[#This Row],[Thickness]]=""),"",IF(RIGHT(Data[[#This Row],[GmmGsb Type]],4)="Gsb:",ROUND(Data[[#This Row],[GmmGsb Value]]*Data[[#This Row],[Thickness]]*40.5,0),IF(Data[[#This Row],[GmmGsb Type]]="Gmm:",IF(Data[[#This Row],[Intended Use]]="Misc.",ROUND((Data[[#This Row],[GmmGsb Value]]/2.54)*(100*Data[[#This Row],[Thickness]]),0),ROUND(Data[[#This Row],[GmmGsb Value]]*Data[[#This Row],[Thickness]]*43.3,0)),""))) -> 220 | AJ37: 4 | AK37: =IF(Data[[#This Row],[Data Exists]]=FALSE,"",IF(LEFT(Data[[#This Row],[GmmGsb Type]],4)="ATPB",IF(AND(Data[[#This Row],[Start Station]]<>"",Data[[#This Row],[End Station]]<>"",Data[[#This Row],[Width]]<>"",Data[[#This Row],[Thickness]]<>"",Data[[#This Row],[Intended Use]]="ATPB"),Data[[#This Row],[Length]]*Data[[#This Row],[Width]]*Data[[#This Row],[Thickness]]/324,""),IF(Data[[#This Row],[Intended Use]]<>"",IF(UPPER(INDEX(EditablePayItems[],MATCH(IF(OR(RIGHT(Data[[#This Row],[Intended Use]],6)=" (opt)",RIGHT(Data[[#This Row],[Intended Use]],6)=" (req)"),LEFT(Data[[#This Row],[Intended Use]],LEN(Data[[#This Row],[Intended Use]])-6),Data[[#This Row],[Intended Use]]),EditablePayItems[IntendedUse],0),4))="PRORATED",IF(Data[[#This Row],[Total Thickness]]*Data[[#This Row],[Area]]<>0,Data[[#This Row],[Thickness]]/Data[[#This Row],[Total Thickness]]*Data[[#This Row],[Area]],0), ""),""))) -> 83.335 | AL37: C | AN37: J52006881-164 | AO37: 2021-02-26T07:11:37 | AP37: 2021-09-07T08:37:48 | AQ37: =IF(AND(Data[[#This Row],[Lot]]<>"",ProjectDateTimeStamp<>""),ProjectDateTimeStamp,"") -> 2023-10-05T10:35:05 | AR37: =IF(COUNTA(Data[[#This Row],[Lot]],Data[[#This Row],[Intended Lot Size]:[Mix Design Number]],Data[[#This Row],[Line Number]:[Spread Rate]],Data[[#This Row],[Total Thickness]],Data[[#This Row],[Varied Width Designation]:[Date Time Stamp]])>0,TRUE,FALSE) -> TRUE | AS37: =IF(Data[[#This Row],[Intended Use]]<>"",IF(VLOOKUP(Data[[#This Row],[Intended Use]],EditablePayItems[[IntendedUse]:[PayItemNumber]],6,FALSE)<>"",VLOOKUP(Data[[#This Row],[Intended Use]],EditablePayItems[[IntendedUse]:[PayItemNumber]],6,FALSE),""),"") -> 285701 | AT37: =IF(Data[[#This Row],[Date Paved]]<>"",VLOOKUP(Data[[#This Row],[Date Paved]],MonthlyCutOffDates[[Date From]:[MonthYear]],3),"") -> Dec 2018 | AU37: =IF(AND(Data[[#This Row],[Target Spread Rate]]<>"",Data[[#This Row],[Area]]<>""),Data[[#This Row],[Target Spread Rate]]*Data[[#This Row],[Area]]/2000,"") -> 18.3337 | AV37: Mainline | AW37: US-98 | AZ37: =MIN(Data[[#This Row],[Start Station]:[End Station]]) -> 27700 | BA37: =MAX(Data[[#This Row],[Start Station]:[End Station]]) -> 28000 | BB37: =IF(AND(Data[[#This Row],[Quantity]]<>"",Data[[#This Row],[GmmGsb Value]]<>""),Data[[#This Row],[Quantity]]*Data[[#This Row],[GmmGsb Value]],"") -> 48.12654 | BD37: TRUE | BE37: =IF(Data[[#This Row],[Pay Item Number]]<>"",IF(VLOOKUP(Data[[#This Row],[Intended Use]],EditablePayItems[[IntendedUse]:[Actual Quantity Paid]],2,FALSE)="Prorated",IF(LEFT(Data[[#This Row],[Intended Use]],4)="ATPB","Cubic Yards","Square Yards"),"Tons"),"") -> Square Yards | BF37: =Data[[#This Row],[Lot]]&"-"&Data[[#This Row],[Line Number]] -> 1-6 | BG37: =IF(Data[[#This Row],[Date Paved]]<>"",TEXT(Data[[#This Row],[Date Paved]],"mm/dd/yyyy")&" - "&Data[[#This Row],[Shift]]&" - Crew "&Data[[#This Row],[Crew]],"") -> 10/02/2020 - Day - Crew 1 | BH37: =IF(Data[[#This Row],[Date Paved]]<>"",TEXT(Data[[#This Row],[Date Paved]],"mm/dd/yyyy"),"") -> 10/02/2020 | BJ37: =IF(OR(LEFT(Data[[#This Row],[Intended Use]],10)="Base Group", Data[[#This Row],[Intended Use]]="Turnout Const. (per sy)"),IF(AND(Data[[#This Row],[Thickness]]<>0,Data[[#This Row],[Total Thickness]]<>0,Data[[#This Row],[Area]]<>0),(Data[[#This Row],[Prorated Base]]/SUMIFS(Data[Prorated Base],Data[Intended Use],"="&Data[[#This Row],[Intended Use]]))*Data[[#This Row],[Total Thickness]],""), "") -> 0.007906436782 | BK37: =IF(OR(Data[[#This Row],[Roadway Type]]<>"",Data[[#This Row],[Roadway ID]]<>""),UPPER(Data[[#This Row],[Roadway Type]])&"~-~"&UPPER(Data[[#This Row],[Roadway ID]]),"") -> MAINLINE~-~US-98 | BL37: =IF(AND(Data[[#This Row],[Quantity]]<>"",Data[[#This Row],[Total Thickness]]<>"",Data[[#This Row],[Total Thickness]]<>0,Data[[#This Row],[GmmGsb Value]]<>"",Data[[#This Row],[GmmGsb Value]]<>0),IF(Data[[#This Row],[Quantity]]>0,(Data[[#This Row],[Quantity]]*2000)/(Data[[#This Row],[Total Thickness]]*Data[[#This Row],[GmmGsb Value]]*43.3),0),"") -> 86.07111273
A38: 1 | B38: =IF(AND(Data[[#This Row],[Lot]]<>"",FIN<>""),FIN,"") -> 41673245201 | C38: =IF(AND(Data[[#This Row],[Lot]]<>"",ContractNumber<>""),ContractNumber,"") -> T7396 | D38: =IF(AND(Data[[#This Row],[Lot]]<>"",Contractor<>""),Contractor,"") -> APS | E38: =IF(AND(Data[[#This Row],[Lot]]<>"",BidDate<>""),BidDate,"") -> 2019-07-19 | F38: =IF(AND(Data[[#This Row],[Lot]]<>"",LumpSum<>""),LumpSum,"") -> No | G38: 4000 tons | H38: TRUE | I38: FALSE | J38: SP 14-12329B | K38: =IF(Data[[#This Row],[Mix Design Number]]<>"",IF(RIGHT(VLOOKUP(Data[[#This Row],[Mix Design Number]],MixDesign[],3,FALSE),1)=":",VLOOKUP(Data[[#This Row],[Mix Design Number]],MixDesign[],3,FALSE),VLOOKUP(Data[[#This Row],[Mix Design Number]],MixDesign[],3,FALSE)&":"),"") -> Gmm: | L38: =IF(Data[[#This Row],[Mix Design Number]]<>"",VLOOKUP(Data[[#This Row],[Mix Design Number]],MixDesign[],4,FALSE),"") -> 2.541 | M38: 7 | O38: 2020-10-02 | P38: Day | Q38: 1 | R38: 1 | S38: 10-18 | T38: Base Group 1 | U38: N | W38: RT | X38: Ramp A | Y38: 1 | Z38: 2 | AA38: 81093 | AB38: 80384 | AC38: 709 | AD38: 15 | AE38: 1181.67 | AF38: 136.26 | AG38: 2 | AH38: 230.62 | AI38: =IF(OR(Data[[#This Row],[GmmGsb Value]]="",Data[[#This Row],[Thickness]]=""),"",IF(RIGHT(Data[[#This Row],[GmmGsb Type]],4)="Gsb:",ROUND(Data[[#This Row],[GmmGsb Value]]*Data[[#This Row],[Thickness]]*40.5,0),IF(Data[[#This Row],[GmmGsb Type]]="Gmm:",IF(Data[[#This Row],[Intended Use]]="Misc.",ROUND((Data[[#This Row],[GmmGsb Value]]/2.54)*(100*Data[[#This Row],[Thickness]]),0),ROUND(Data[[#This Row],[GmmGsb Value]]*Data[[#This Row],[Thickness]]*43.3,0)),""))) -> 220 | AJ38: 4 | AK38: =IF(Data[[#This Row],[Data Exists]]=FALSE,"",IF(LEFT(Data[[#This Row],[GmmGsb Type]],4)="ATPB",IF(AND(Data[[#This Row],[Start Station]]<>"",Data[[#This Row],[End Station]]<>"",Data[[#This Row],[Width]]<>"",Data[[#This Row],[Thickness]]<>"",Data[[#This Row],[Intended Use]]="ATPB"),Data[[#This Row],[Length]]*Data[[#This Row],[Width]]*Data[[#This Row],[Thickness]]/324,""),IF(Data[[#This Row],[Intended Use]]<>"",IF(UPPER(INDEX(EditablePayItems[],MATCH(IF(OR(RIGHT(Data[[#This Row],[Intended Use]],6)=" (opt)",RIGHT(Data[[#This Row],[Intended Use]],6)=" (req)"),LEFT(Data[[#This Row],[Intended Use]],LEN(Data[[#This Row],[Intended Use]])-6),Data[[#This Row],[Intended Use]]),EditablePayItems[IntendedUse],0),4))="PRORATED",IF(Data[[#This Row],[Total Thickness]]*Data[[#This Row],[Area]]<>0,Data[[#This Row],[Thickness]]/Data[[#This Row],[Total Thickness]]*Data[[#This Row],[Area]],0), ""),""))) -> 590.835 | AL38: C | AN38: J52006881-164 | AO38: 2021-02-26T07:11:37 | AP38: 2021-09-07T08:37:48 | AQ38: =IF(AND(Data[[#This Row],[Lot]]<>"",ProjectDateTimeStamp<>""),ProjectDateTimeStamp,"") -> 2023-10-05T10:35:05 | AR38: =IF(COUNTA(Data[[#This Row],[Lot]],Data[[#This Row],[Intended Lot Size]:[Mix Design Number]],Data[[#This Row],[Line Number]:[Spread Rate]],Data[[#This Row],[Total Thickness]],Data[[#This Row],[Varied Width Designation]:[Date Time Stamp]])>0,TRUE,FALSE) -> TRUE | AS38: =IF(Data[[#This Row],[Intended Use]]<>"",IF(VLOOKUP(Data[[#This Row],[Intended Use]],EditablePayItems[[IntendedUse]:[PayItemNumber]],6,FALSE)<>"",VLOOKUP(Data[[#This Row],[Intended Use]],EditablePayItems[[IntendedUse]:[PayItemNumber]],6,FALSE),""),"") -> 285701 | AT38: =IF(Data[[#This Row],[Date Paved]]<>"",VLOOKUP(Data[[#This Row],[Date Paved]],MonthlyCutOffDates[[Date From]:[MonthYear]],3),"") -> Dec 2018 | AU38: =IF(AND(Data[[#This Row],[Target Spread Rate]]<>"",Data[[#This Row],[Area]]<>""),Data[[#This Row],[Target Spread Rate]]*Data[[#This Row],[Area]]/2000,"") -> 129.9837 | AV38: Mainline | AW38: SR-50 | AZ38: =MIN(Data[[#This Row],[Start Station]:[End Station]]) -> 80384 | BA38: =MAX(Data[[#This Row],[Start Station]:[End Station]]) -> 81093 | BB38: =IF(AND(Data[[#This Row],[Quantity]]<>"",Data[[#This Row],[GmmGsb Value]]<>""),Data[[#This Row],[Quantity]]*Data[[#This Row],[GmmGsb Value]],"") -> 346.23666 | BD38: TRUE | BE38: =IF(Data[[#This Row],[Pay Item Number]]<>"",IF(VLOOKUP(Data[[#This Row],[Intended Use]],EditablePayItems[[IntendedUse]:[Actual Quantity Paid]],2,FALSE)="Prorated",IF(LEFT(Data[[#This Row],[Intended Use]],4)="ATPB","Cubic Yards","Square Yards"),"Tons"),"") -> Square Yards | BF38: =Data[[#This Row],[Lot]]&"-"&Data[[#This Row],[Line Number]] -> 1-7 | BG38: =IF(Data[[#This Row],[Date Paved]]<>"",TEXT(Data[[#This Row],[Date Paved]],"mm/dd/yyyy")&" - "&Data[[#This Row],[Shift]]&" - Crew "&Data[[#This Row],[Crew]],"") -> 10/02/2020 - Day - Crew 1 | BH38: =IF(Data[[#This Row],[Date Paved]]<>"",TEXT(Data[[#This Row],[Date Paved]],"mm/dd/yyyy"),"") -> 10/02/2020 | BJ38: =IF(OR(LEFT(Data[[#This Row],[Intended Use]],10)="Base Group", Data[[#This Row],[Intended Use]]="Turnout Const. (per sy)"),IF(AND(Data[[#This Row],[Thickness]]<>0,Data[[#This Row],[Total Thickness]]<>0,Data[[#This Row],[Area]]<>0),(Data[[#This Row],[Prorated Base]]/SUMIFS(Data[Prorated Base],Data[Intended Use],"="&Data[[#This Row],[Intended Use]]))*Data[[#This Row],[Total Thickness]],""), "") -> 0.0560556738 | BK38: =IF(OR(Data[[#This Row],[Roadway Type]]<>"",Data[[#This Row],[Roadway ID]]<>""),UPPER(Data[[#This Row],[Roadway Type]])&"~-~"&UPPER(Data[[#This Row],[Roadway ID]]),"") -> MAINLINE~-~SR-50 | BL38: =IF(AND(Data[[#This Row],[Quantity]]<>"",Data[[#This Row],[Total Thickness]]<>"",Data[[#This Row],[Total Thickness]]<>0,Data[[#This Row],[GmmGsb Value]]<>"",Data[[#This Row],[GmmGsb Value]]<>0),IF(Data[[#This Row],[Quantity]]>0,(Data[[#This Row],[Quantity]]*2000)/(Data[[#This Row],[Total Thickness]]*Data[[#This Row],[GmmGsb Value]]*43.3),0),"") -> 619.2212155
A39: 1 | B39: =IF(AND(Data[[#This Row],[Lot]]<>"",FIN<>""),FIN,"") -> 41673245201 | C39: =IF(AND(Data[[#This Row],[Lot]]<>"",ContractNumber<>""),ContractNumber,"") -> T7396 | D39: =IF(AND(Data[[#This Row],[Lot]]<>"",Contractor<>""),Contractor,"") -> APS | E39: =IF(AND(Data[[#This Row],[Lot]]<>"",BidDate<>""),BidDate,"") -> 2019-07-19 | F39: =IF(AND(Data[[#This Row],[Lot]]<>"",LumpSum<>""),LumpSum,"") -> No | G39: 4000 tons | H39: TRUE | I39: FALSE | J39: SP 14-12329B | K39: =IF(Data[[#This Row],[Mix Design Number]]<>"",IF(RIGHT(VLOOKUP(Data[[#This Row],[Mix Design Number]],MixDesign[],3,FALSE),1)=":",VLOOKUP(Data[[#This Row],[Mix Design Number]],MixDesign[],3,FALSE),VLOOKUP(Data[[#This Row],[Mix Design Number]],MixDesign[],3,FALSE)&":"),"") -> Gmm: | L39: =IF(Data[[#This Row],[Mix Design Number]]<>"",VLOOKUP(Data[[#This Row],[Mix Design Number]],MixDesign[],4,FALSE),"") -> 2.541 | M39: 8 | O39: 2020-10-02 | P39: Day | Q39: 1 | R39: 1 | S39: 18-20 | T39: Base Group 1 | U39: N | W39: RT | Y39: 1 | Z39: 2 | AA39: 174498 | AB39: 174754 | AC39: 256 | AD39: 12 | AE39: 341.33 | AF39: 38.79 | AG39: 2 | AH39: 227.29 | AI39: =IF(OR(Data[[#This Row],[GmmGsb Value]]="",Data[[#This Row],[Thickness]]=""),"",IF(RIGHT(Data[[#This Row],[GmmGsb Type]],4)="Gsb:",ROUND(Data[[#This Row],[GmmGsb Value]]*Data[[#This Row],[Thickness]]*40.5,0),IF(Data[[#This Row],[GmmGsb Type]]="Gmm:",IF(Data[[#This Row],[Intended Use]]="Misc.",ROUND((Data[[#This Row],[GmmGsb Value]]/2.54)*(100*Data[[#This Row],[Thickness]]),0),ROUND(Data[[#This Row],[GmmGsb Value]]*Data[[#This Row],[Thickness]]*43.3,0)),""))) -> 220 | AJ39: 4 | AK39: =IF(Data[[#This Row],[Data Exists]]=FALSE,"",IF(LEFT(Data[[#This Row],[GmmGsb Type]],4)="ATPB",IF(AND(Data[[#This Row],[Start Station]]<>"",Data[[#This Row],[End Station]]<>"",Data[[#This Row],[Width]]<>"",Data[[#This Row],[Thickness]]<>"",Data[[#This Row],[Intended Use]]="ATPB"),Data[[#This Row],[Length]]*Data[[#This Row],[Width]]*Data[[#This Row],[Thickness]]/324,""),IF(Data[[#This Row],[Intended Use]]<>"",IF(UPPER(INDEX(EditablePayItems[],MATCH(IF(OR(RIGHT(Data[[#This Row],[Intended Use]],6)=" (opt)",RIGHT(Data[[#This Row],[Intended Use]],6)=" (req)"),LEFT(Data[[#This Row],[Intended Use]],LEN(Data[[#This Row],[Intended Use]])-6),Data[[#This Row],[Intended Use]]),EditablePayItems[IntendedUse],0),4))="PRORATED",IF(Data[[#This Row],[Total Thickness]]*Data[[#This Row],[Area]]<>0,Data[[#This Row],[Thickness]]/Data[[#This Row],[Total Thickness]]*Data[[#This Row],[Area]],0), ""),""))) -> 170.665 | AL39: C | AN39: J52006881-164 | AO39: 2021-02-26T07:11:37 | AP39: 2021-09-07T08:37:48 | AQ39: =IF(AND(Data[[#This Row],[Lot]]<>"",ProjectDateTimeStamp<>""),ProjectDateTimeStamp,"") -> 2023-10-05T10:35:05 | AR39: =IF(COUNTA(Data[[#This Row],[Lot]],Data[[#This Row],[Intended Lot Size]:[Mix Design Number]],Data[[#This Row],[Line Number]:[Spread Rate]],Data[[#This Row],[Total Thickness]],Data[[#This Row],[Varied Width Designation]:[Date Time Stamp]])>0,TRUE,FALSE) -> TRUE | AS39: =IF(Data[[#This Row],[Intended Use]]<>"",IF(VLOOKUP(Data[[#This Row],[Intended Use]],EditablePayItems[[IntendedUse]:[PayItemNumber]],6,FALSE)<>"",VLOOKUP(Data[[#This Row],[Intended Use]],EditablePayItems[[IntendedUse]:[PayItemNumber]],6,FALSE),""),"") -> 285701 | AT39: =IF(Data[[#This Row],[Date Paved]]<>"",VLOOKUP(Data[[#This Row],[Date Paved]],MonthlyCutOffDates[[Date From]:[MonthYear]],3),"") -> Dec 2018 | AU39: =IF(AND(Data[[#This Row],[Target Spread Rate]]<>"",Data[[#This Row],[Area]]<>""),Data[[#This Row],[Target Spread Rate]]*Data[[#This Row],[Area]]/2000,"") -> 37.5463 | AV39: Mainline | AW39: SR-50 | AZ39: =MIN(Data[[#This Row],[Start Station]:[End Station]]) -> 174498 | BA39: =MAX(Data[[#This Row],[Start Station]:[End Station]]) -> 174754 | BB39: =IF(AND(Data[[#This Row],[Quantity]]<>"",Data[[#This Row],[GmmGsb Value]]<>""),Data[[#This Row],[Quantity]]*Data[[#This Row],[GmmGsb Value]],"") -> 98.56539 | BD39: TRUE | BE39: =IF(Data[[#This Row],[Pay Item Number]]<>"",IF(VLOOKUP(Data[[#This Row],[Intended Use]],EditablePayItems[[IntendedUse]:[Actual Quantity Paid]],2,FALSE)="Prorated",IF(LEFT(Data[[#This Row],[Intended Use]],4)="ATPB","Cubic Yards","Square Yards"),"Tons"),"") -> Square Yards | BF39: =Data[[#This Row],[Lot]]&"-"&Data[[#This Row],[Line Number]] -> 1-8 | BG39: =IF(Data[[#This Row],[Date Paved]]<>"",TEXT(Data[[#This Row],[Date Paved]],"mm/dd/yyyy")&" - "&Data[[#This Row],[Shift]]&" - Crew "&Data[[#This Row],[Crew]],"") -> 10/02/2020 - Day - Crew 1 | BH39: =IF(Data[[#This Row],[Date Paved]]<>"",TEXT(Data[[#This Row],[Date Paved]],"mm/dd/yyyy"),"") -> 10/02/2020 | BJ39: =IF(OR(LEFT(Data[[#This Row],[Intended Use]],10)="Base Group", Data[[#This Row],[Intended Use]]="Turnout Const. (per sy)"),IF(AND(Data[[#This Row],[Thickness]]<>0,Data[[#This Row],[Total Thickness]]<>0,Data[[#This Row],[Area]]<>0),(Data[[#This Row],[Prorated Base]]/SUMIFS(Data[Prorated Base],Data[Intended Use],"="&Data[[#This Row],[Intended Use]]))*Data[[#This Row],[Total Thickness]],""), "") -> 0.01619190056 | BK39: =IF(OR(Data[[#This Row],[Roadway Type]]<>"",Data[[#This Row],[Roadway ID]]<>""),UPPER(Data[[#This Row],[Roadway Type]])&"~-~"&UPPER(Data[[#This Row],[Roadway ID]]),"") -> MAINLINE~-~SR-50 | BL39: =IF(AND(Data[[#This Row],[Quantity]]<>"",Data[[#This Row],[Total Thickness]]<>"",Data[[#This Row],[Total Thickness]]<>0,Data[[#This Row],[GmmGsb Value]]<>"",Data[[#This Row],[GmmGsb Value]]<>0),IF(Data[[#This Row],[Quantity]]>0,(Data[[#This Row],[Quantity]]*2000)/(Data[[#This Row],[Total Thickness]]*Data[[#This Row],[GmmGsb Value]]*43.3),0),"") -> 176.277638
A40: 1 | B40: =IF(AND(Data[[#This Row],[Lot]]<>"",FIN<>""),FIN,"") -> 41673245201 | C40: =IF(AND(Data[[#This Row],[Lot]]<>"",ContractNumber<>""),ContractNumber,"") -> T7396 | D40: =IF(AND(Data[[#This Row],[Lot]]<>"",Contractor<>""),Contractor,"") -> APS | E40: =IF(AND(Data[[#This Row],[Lot]]<>"",BidDate<>""),BidDate,"") -> 2019-07-19 | F40: =IF(AND(Data[[#This Row],[Lot]]<>"",LumpSum<>""),LumpSum,"") -> No | G40: 4000 tons | H40: TRUE | I40: FALSE | J40: SP 14-12329B | K40: =IF(Data[[#This Row],[Mix Design Number]]<>"",IF(RIGHT(VLOOKUP(Data[[#This Row],[Mix Design Number]],MixDesign[],3,FALSE),1)=":",VLOOKUP(Data[[#This Row],[Mix Design Number]],MixDesign[],3,FALSE),VLOOKUP(Data[[#This Row],[Mix Design Number]],MixDesign[],3,FALSE)&":"),"") -> Gmm: | L40: =IF(Data[[#This Row],[Mix Design Number]]<>"",VLOOKUP(Data[[#This Row],[Mix Design Number]],MixDesign[],4,FALSE),"") -> 2.541 | M40: 9 | O40: 2020-10-02 | P40: Day | Q40: 1 | R40: 1 | S40: 20-21 | T40: Base Group 1 | U40: N | W40: OR | Y40: 1 | Z40: 2 | AA40: 174498 | AB40: 174754 | AC40: 256 | AD40: 6 | AE40: 170.67 | AF40: 19.39 | AG40: 2 | AH40: 227.22 | AI40: =IF(OR(Data[[#This Row],[GmmGsb Value]]="",Data[[#This Row],[Thickness]]=""),"",IF(RIGHT(Data[[#This Row],[GmmGsb Type]],4)="Gsb:",ROUND(Data[[#This Row],[GmmGsb Value]]*Data[[#This Row],[Thickness]]*40.5,0),IF(Data[[#This Row],[GmmGsb Type]]="Gmm:",IF(Data[[#This Row],[Intended Use]]="Misc.",ROUND((Data[[#This Row],[GmmGsb Value]]/2.54)*(100*Data[[#This Row],[Thickness]]),0),ROUND(Data[[#This Row],[GmmGsb Value]]*Data[[#This Row],[Thickness]]*43.3,0)),""))) -> 220 | AJ40: 4 | AK40: =IF(Data[[#This Row],[Data Exists]]=FALSE,"",IF(LEFT(Data[[#This Row],[GmmGsb Type]],4)="ATPB",IF(AND(Data[[#This Row],[Start Station]]<>"",Data[[#This Row],[End Station]]<>"",Data[[#This Row],[Width]]<>"",Data[[#This Row],[Thickness]]<>"",Data[[#This Row],[Intended Use]]="ATPB"),Data[[#This Row],[Length]]*Data[[#This Row],[Width]]*Data[[#This Row],[Thickness]]/324,""),IF(Data[[#This Row],[Intended Use]]<>"",IF(UPPER(INDEX(EditablePayItems[],MATCH(IF(OR(RIGHT(Data[[#This Row],[Intended Use]],6)=" (opt)",RIGHT(Data[[#This Row],[Intended Use]],6)=" (req)"),LEFT(Data[[#This Row],[Intended Use]],LEN(Data[[#This Row],[Intended Use]])-6),Data[[#This Row],[Intended Use]]),EditablePayItems[IntendedUse],0),4))="PRORATED",IF(Data[[#This Row],[Total Thickness]]*Data[[#This Row],[Area]]<>0,Data[[#This Row],[Thickness]]/Data[[#This Row],[Total Thickness]]*Data[[#This Row],[Area]],0), ""),""))) -> 85.335 | AL40: C | AN40: J52006881-164 | AO40: 2021-02-26T07:11:37 | AP40: 2021-09-07T08:37:48 | AQ40: =IF(AND(Data[[#This Row],[Lot]]<>"",ProjectDateTimeStamp<>""),ProjectDateTimeStamp,"") -> 2023-10-05T10:35:05 | AR40: =IF(COUNTA(Data[[#This Row],[Lot]],Data[[#This Row],[Intended Lot Size]:[Mix Design Number]],Data[[#This Row],[Line Number]:[Spread Rate]],Data[[#This Row],[Total Thickness]],Data[[#This Row],[Varied Width Designation]:[Date Time Stamp]])>0,TRUE,FALSE) -> TRUE | AS40: =IF(Data[[#This Row],[Intended Use]]<>"",IF(VLOOKUP(Data[[#This Row],[Intended Use]],EditablePayItems[[IntendedUse]:[PayItemNumber]],6,FALSE)<>"",VLOOKUP(Data[[#This Row],[Intended Use]],EditablePayItems[[IntendedUse]:[PayItemNumber]],6,FALSE),""),"") -> 285701 | AT40: =IF(Data[[#This Row],[Date Paved]]<>"",VLOOKUP(Data[[#This Row],[Date Paved]],MonthlyCutOffDates[[Date From]:[MonthYear]],3),"") -> Dec 2018 | AU40: =IF(AND(Data[[#This Row],[Target Spread Rate]]<>"",Data[[#This Row],[Area]]<>""),Data[[#This Row],[Target Spread Rate]]*Data[[#This Row],[Area]]/2000,"") -> 18.7737 | AV40: Mainline | AW40: SR-50 | AZ40: =MIN(Data[[#This Row],[Start Station]:[End Station]]) -> 174498 | BA40: =MAX(Data[[#This Row],[Start Station]:[End Station]]) -> 174754 | BB40: =IF(AND(Data[[#This Row],[Quantity]]<>"",Data[[#This Row],[GmmGsb Value]]<>""),Data[[#This Row],[Quantity]]*Data[[#This Row],[GmmGsb Value]],"") -> 49.26999 | BD40: TRUE | BE40: =IF(Data[[#This Row],[Pay Item Number]]<>"",IF(VLOOKUP(Data[[#This Row],[Intended Use]],EditablePayItems[[IntendedUse]:[Actual Quantity Paid]],2,FALSE)="Prorated",IF(LEFT(Data[[#This Row],[Intended Use]],4)="ATPB","Cubic Yards","Square Yards"),"Tons"),"") -> Square Yards | BF40: =Data[[#This Row],[Lot]]&"-"&Data[[#This Row],[Line Number]] -> 1-9 | BG40: =IF(Data[[#This Row],[Date Paved]]<>"",TEXT(Data[[#This Row],[Date Paved]],"mm/dd/yyyy")&" - "&Data[[#This Row],[Shift]]&" - Crew "&Data[[#This Row],[Crew]],"") -> 10/02/2020 - Day - Crew 1 | BH40: =IF(Data[[#This Row],[Date Paved]]<>"",TEXT(Data[[#This Row],[Date Paved]],"mm/dd/yyyy"),"") -> 10/02/2020 | BJ40: =IF(OR(LEFT(Data[[#This Row],[Intended Use]],10)="Base Group", Data[[#This Row],[Intended Use]]="Turnout Const. (per sy)"),IF(AND(Data[[#This Row],[Thickness]]<>0,Data[[#This Row],[Total Thickness]]<>0,Data[[#This Row],[Area]]<>0),(Data[[#This Row],[Prorated Base]]/SUMIFS(Data[Prorated Base],Data[Intended Use],"="&Data[[#This Row],[Intended Use]]))*Data[[#This Row],[Total Thickness]],""), "") -> 0.00809618747 | BK40: =IF(OR(Data[[#This Row],[Roadway Type]]<>"",Data[[#This Row],[Roadway ID]]<>""),UPPER(Data[[#This Row],[Roadway Type]])&"~-~"&UPPER(Data[[#This Row],[Roadway ID]]),"") -> MAINLINE~-~SR-50 | BL40: =IF(AND(Data[[#This Row],[Quantity]]<>"",Data[[#This Row],[Total Thickness]]<>"",Data[[#This Row],[Total Thickness]]<>0,Data[[#This Row],[GmmGsb Value]]<>"",Data[[#This Row],[GmmGsb Value]]<>0),IF(Data[[#This Row],[Quantity]]>0,(Data[[#This Row],[Quantity]]*2000)/(Data[[#This Row],[Total Thickness]]*Data[[#This Row],[GmmGsb Value]]*43.3),0),"") -> 88.11609693
A41: 1 | B41: =IF(AND(Data[[#This Row],[Lot]]<>"",FIN<>""),FIN,"") -> 41673245201 | C41: =IF(AND(Data[[#This Row],[Lot]]<>"",ContractNumber<>""),ContractNumber,"") -> T7396 | D41: =IF(AND(Data[[#This Row],[Lot]]<>"",Contractor<>""),Contractor,"") -> APS | E41: =IF(AND(Data[[#This Row],[Lot]]<>"",BidDate<>""),BidDate,"") -> 2019-07-19 | F41: =IF(AND(Data[[#This Row],[Lot]]<>"",LumpSum<>""),LumpSum,"") -> No | G41: 4000 tons | H41: TRUE | I41: FALSE | J41: SP 14-12329B | K41: =IF(Data[[#This Row],[Mix Design Number]]<>"",IF(RIGHT(VLOOKUP(Data[[#This Row],[Mix Design Number]],MixDesign[],3,FALSE),1)=":",VLOOKUP(Data[[#This Row],[Mix Design Number]],MixDesign[],3,FALSE),VLOOKUP(Data[[#This Row],[Mix Design Number]],MixDesign[],3,FALSE)&":"),"") -> Gmm: | L41: =IF(Data[[#This Row],[Mix Design Number]]<>"",VLOOKUP(Data[[#This Row],[Mix Design Number]],MixDesign[],4,FALSE),"") -> 2.541 | M41: 10 | O41: 2020-10-02 | P41: Day | Q41: 1 | R41: 1 | S41: 21-23 | T41: Base Group 1 | U41: N | W41: OR | X41: Bike Lane | Y41: 1 | Z41: 2 | AA41: 174498 | AB41: 175220 | AC41: 722 | AD41: 5 | AE41: 401.11 | AF41: 45.95 | AG41: 2 | AH41: 229.11 | AI41: =IF(OR(Data[[#This Row],[GmmGsb Value]]="",Data[[#This Row],[Thickness]]=""),"",IF(RIGHT(Data[[#This Row],[GmmGsb Type]],4)="Gsb:",ROUND(Data[[#This Row],[GmmGsb Value]]*Data[[#This Row],[Thickness]]*40.5,0),IF(Data[[#This Row],[GmmGsb Type]]="Gmm:",IF(Data[[#This Row],[Intended Use]]="Misc.",ROUND((Data[[#This Row],[GmmGsb Value]]/2.54)*(100*Data[[#This Row],[Thickness]]),0),ROUND(Data[[#This Row],[GmmGsb Value]]*Data[[#This Row],[Thickness]]*43.3,0)),""))) -> 220 | AJ41: 4 | AK41: =IF(Data[[#This Row],[Data Exists]]=FALSE,"",IF(LEFT(Data[[#This Row],[GmmGsb Type]],4)="ATPB",IF(AND(Data[[#This Row],[Start Station]]<>"",Data[[#This Row],[End Station]]<>"",Data[[#This Row],[Width]]<>"",Data[[#This Row],[Thickness]]<>"",Data[[#This Row],[Intended Use]]="ATPB"),Data[[#This Row],[Length]]*Data[[#This Row],[Width]]*Data[[#This Row],[Thickness]]/324,""),IF(Data[[#This Row],[Intended Use]]<>"",IF(UPPER(INDEX(EditablePayItems[],MATCH(IF(OR(RIGHT(Data[[#This Row],[Intended Use]],6)=" (opt)",RIGHT(Data[[#This Row],[Intended Use]],6)=" (req)"),LEFT(Data[[#This Row],[Intended Use]],LEN(Data[[#This Row],[Intended Use]])-6),Data[[#This Row],[Intended Use]]),EditablePayItems[IntendedUse],0),4))="PRORATED",IF(Data[[#This Row],[Total Thickness]]*Data[[#This Row],[Area]]<>0,Data[[#This Row],[Thickness]]/Data[[#This Row],[Total Thickness]]*Data[[#This Row],[Area]],0), ""),""))) -> 200.555 | AL41: C | AN41: J52006881-164 | AO41: 2021-02-26T07:11:37 | AP41: 2021-09-07T08:37:48 | AQ41: =IF(AND(Data[[#This Row],[Lot]]<>"",ProjectDateTimeStamp<>""),ProjectDateTimeStamp,"") -> 2023-10-05T10:35:05 | AR41: =IF(COUNTA(Data[[#This Row],[Lot]],Data[[#This Row],[Intended Lot Size]:[Mix Design Number]],Data[[#This Row],[Line Number]:[Spread Rate]],Data[[#This Row],[Total Thickness]],Data[[#This Row],[Varied Width Designation]:[Date Time Stamp]])>0,TRUE,FALSE) -> TRUE | AS41: =IF(Data[[#This Row],[Intended Use]]<>"",IF(VLOOKUP(Data[[#This Row],[Intended Use]],EditablePayItems[[IntendedUse]:[PayItemNumber]],6,FALSE)<>"",VLOOKUP(Data[[#This Row],[Intended Use]],EditablePayItems[[IntendedUse]:[PayItemNumber]],6,FALSE),""),"") -> 285701 | AT41: =IF(Data[[#This Row],[Date Paved]]<>"",VLOOKUP(Data[[#This Row],[Date Paved]],MonthlyCutOffDates[[Date From]:[MonthYear]],3),"") -> Dec 2018 | AU41: =IF(AND(Data[[#This Row],[Target Spread Rate]]<>"",Data[[#This Row],[Area]]<>""),Data[[#This Row],[Target Spread Rate]]*Data[[#This Row],[Area]]/2000,"") -> 44.1221 | AV41: Mainline | AW41: SR-50 | AZ41: =MIN(Data[[#This Row],[Start Station]:[End Station]]) -> 174498 | BA41: =MAX(Data[[#This Row],[Start Station]:[End Station]]) -> 175220 | BB41: =IF(AND(Data[[#This Row],[Quantity]]<>"",Data[[#This Row],[GmmGsb Value]]<>""),Data[[#This Row],[Quantity]]*Data[[#This Row],[GmmGsb Value]],"") -> 116.75895 | BD41: TRUE | BE41: =IF(Data[[#This Row],[Pay Item Number]]<>"",IF(VLOOKUP(Data[[#This Row],[Intended Use]],EditablePayItems[[IntendedUse]:[Actual Quantity Paid]],2,FALSE)="Prorated",IF(LEFT(Data[[#This Row],[Intended Use]],4)="ATPB","Cubic Yards","Square Yards"),"Tons"),"") -> Square Yards | BF41: =Data[[#This Row],[Lot]]&"-"&Data[[#This Row],[Line Number]] -> 1-10 | BG41: =IF(Data[[#This Row],[Date Paved]]<>"",TEXT(Data[[#This Row],[Date Paved]],"mm/dd/yyyy")&" - "&Data[[#This Row],[Shift]]&" - Crew "&Data[[#This Row],[Crew]],"") -> 10/02/2020 - Day - Crew 1 | BH41: =IF(Data[[#This Row],[Date Paved]]<>"",TEXT(Data[[#This Row],[Date Paved]],"mm/dd/yyyy"),"") -> 10/02/2020 | BJ41: =IF(OR(LEFT(Data[[#This Row],[Intended Use]],10)="Base Group", Data[[#This Row],[Intended Use]]="Turnout Const. (per sy)"),IF(AND(Data[[#This Row],[Thickness]]<>0,Data[[#This Row],[Total Thickness]]<>0,Data[[#This Row],[Area]]<>0),(Data[[#This Row],[Prorated Base]]/SUMIFS(Data[Prorated Base],Data[Intended Use],"="&Data[[#This Row],[Intended Use]]))*Data[[#This Row],[Total Thickness]],""), "") -> 0.01902772459 | BK41: =IF(OR(Data[[#This Row],[Roadway Type]]<>"",Data[[#This Row],[Roadway ID]]<>""),UPPER(Data[[#This Row],[Roadway Type]])&"~-~"&UPPER(Data[[#This Row],[Roadway ID]]),"") -> MAINLINE~-~SR-50 | BL41: =IF(AND(Data[[#This Row],[Quantity]]<>"",Data[[#This Row],[Total Thickness]]<>"",Data[[#This Row],[Total Thickness]]<>0,Data[[#This Row],[GmmGsb Value]]<>"",Data[[#This Row],[GmmGsb Value]]<>0),IF(Data[[#This Row],[Quantity]]>0,(Data[[#This Row],[Quantity]]*2000)/(Data[[#This Row],[Total Thickness]]*Data[[#This Row],[GmmGsb Value]]*43.3),0),"") -> 208.8156088
A42: 1 | B42: =IF(AND(Data[[#This Row],[Lot]]<>"",FIN<>""),FIN,"") -> 41673245201 | C42: =IF(AND(Data[[#This Row],[Lot]]<>"",ContractNumber<>""),ContractNumber,"") -> T7396 | D42: =IF(AND(Data[[#This Row],[Lot]]<>"",Contractor<>""),Contractor,"") -> APS | E42: =IF(AND(Data[[#This Row],[Lot]]<>"",BidDate<>""),BidDate,"") -> 2019-07-19 | F42: =IF(AND(Data[[#This Row],[Lot]]<>"",LumpSum<>""),LumpSum,"") -> No | G42: 4000 tons | H42: TRUE | I42: FALSE | J42: SP 14-12329B | K42: =IF(Data[[#This Row],[Mix Design Number]]<>"",IF(RIGHT(VLOOKUP(Data[[#This Row],[Mix Design Number]],MixDesign[],3,FALSE),1)=":",VLOOKUP(Data[[#This Row],[Mix Design Number]],MixDesign[],3,FALSE),VLOOKUP(Data[[#This Row],[Mix Design Number]],MixDesign[],3,FALSE)&":"),"") -> Gmm: | L42: =IF(Data[[#This Row],[Mix Design Number]]<>"",VLOOKUP(Data[[#This Row],[Mix Design Number]],MixDesign[],4,FALSE),"") -> 2.541 | M42: 11 | O42: 2020-10-02 | P42: Day | Q42: 1 | R42: 1 | S42: 23-27 | T42: Base Group 1 | U42: N | W42: R3 | Y42: 1 | Z42: 2 | AA42: 174498 | AB42: 175220 | AC42: 722 | AD42: 10 | AE42: 802.22 | AF42: 89.91 | AG42: 2 | AH42: 224.15 | AI42: =IF(OR(Data[[#This Row],[GmmGsb Value]]="",Data[[#This Row],[Thickness]]=""),"",IF(RIGHT(Data[[#This Row],[GmmGsb Type]],4)="Gsb:",ROUND(Data[[#This Row],[GmmGsb Value]]*Data[[#This Row],[Thickness]]*40.5,0),IF(Data[[#This Row],[GmmGsb Type]]="Gmm:",IF(Data[[#This Row],[Intended Use]]="Misc.",ROUND((Data[[#This Row],[GmmGsb Value]]/2.54)*(100*Data[[#This Row],[Thickness]]),0),ROUND(Data[[#This Row],[GmmGsb Value]]*Data[[#This Row],[Thickness]]*43.3,0)),""))) -> 220 | AJ42: 4 | AK42: =IF(Data[[#This Row],[Data Exists]]=FALSE,"",IF(LEFT(Data[[#This Row],[GmmGsb Type]],4)="ATPB",IF(AND(Data[[#This Row],[Start Station]]<>"",Data[[#This Row],[End Station]]<>"",Data[[#This Row],[Width]]<>"",Data[[#This Row],[Thickness]]<>"",Data[[#This Row],[Intended Use]]="ATPB"),Data[[#This Row],[Length]]*Data[[#This Row],[Width]]*Data[[#This Row],[Thickness]]/324,""),IF(Data[[#This Row],[Intended Use]]<>"",IF(UPPER(INDEX(EditablePayItems[],MATCH(IF(OR(RIGHT(Data[[#This Row],[Intended Use]],6)=" (opt)",RIGHT(Data[[#This Row],[Intended Use]],6)=" (req)"),LEFT(Data[[#This Row],[Intended Use]],LEN(Data[[#This Row],[Intended Use]])-6),Data[[#This Row],[Intended Use]]),EditablePayItems[IntendedUse],0),4))="PRORATED",IF(Data[[#This Row],[Total Thickness]]*Data[[#This Row],[Area]]<>0,Data[[#This Row],[Thickness]]/Data[[#This Row],[Total Thickness]]*Data[[#This Row],[Area]],0), ""),""))) -> 401.11 | AL42: C | AN42: J52006881-164 | AO42: 2021-02-26T07:11:37 | AP42: 2021-09-07T08:37:48 | AQ42: =IF(AND(Data[[#This Row],[Lot]]<>"",ProjectDateTimeStamp<>""),ProjectDateTimeStamp,"") -> 2023-10-05T10:35:05 | AR42: =IF(COUNTA(Data[[#This Row],[Lot]],Data[[#This Row],[Intended Lot Size]:[Mix Design Number]],Data[[#This Row],[Line Number]:[Spread Rate]],Data[[#This Row],[Total Thickness]],Data[[#This Row],[Varied Width Designation]:[Date Time Stamp]])>0,TRUE,FALSE) -> TRUE | AS42: =IF(Data[[#This Row],[Intended Use]]<>"",IF(VLOOKUP(Data[[#This Row],[Intended Use]],EditablePayItems[[IntendedUse]:[PayItemNumber]],6,FALSE)<>"",VLOOKUP(Data[[#This Row],[Intended Use]],EditablePayItems[[IntendedUse]:[PayItemNumber]],6,FALSE),""),"") -> 285701 | AT42: =IF(Data[[#This Row],[Date Paved]]<>"",VLOOKUP(Data[[#This Row],[Date Paved]],MonthlyCutOffDates[[Date From]:[MonthYear]],3),"") -> Dec 2018 | AU42: =IF(AND(Data[[#This Row],[Target Spread Rate]]<>"",Data[[#This Row],[Area]]<>""),Data[[#This Row],[Target Spread Rate]]*Data[[#This Row],[Area]]/2000,"") -> 88.2442 | AV42: Mainline | AW42: SR-50 | AZ42: =MIN(Data[[#This Row],[Start Station]:[End Station]]) -> 174498 | BA42: =MAX(Data[[#This Row],[Start Station]:[End Station]]) -> 175220 | BB42: =IF(AND(Data[[#This Row],[Quantity]]<>"",Data[[#This Row],[GmmGsb Value]]<>""),Data[[#This Row],[Quantity]]*Data[[#This Row],[GmmGsb Value]],"") -> 228.46131 | BD42: TRUE | BE42: =IF(Data[[#This Row],[Pay Item Number]]<>"",IF(VLOOKUP(Data[[#This Row],[Intended Use]],EditablePayItems[[IntendedUse]:[Actual Quantity Paid]],2,FALSE)="Prorated",IF(LEFT(Data[[#This Row],[Intended Use]],4)="ATPB","Cubic Yards","Square Yards"),"Tons"),"") -> Square Yards | BF42: =Data[[#This Row],[Lot]]&"-"&Data[[#This Row],[Line Number]] -> 1-11 | BG42: =IF(Data[[#This Row],[Date Paved]]<>"",TEXT(Data[[#This Row],[Date Paved]],"mm/dd/yyyy")&" - "&Data[[#This Row],[Shift]]&" - Crew "&Data[[#This Row],[Crew]],"") -> 10/02/2020 - Day - Crew 1 | BH42: =IF(Data[[#This Row],[Date Paved]]<>"",TEXT(Data[[#This Row],[Date Paved]],"mm/dd/yyyy"),"") -> 10/02/2020 | BJ42: =IF(OR(LEFT(Data[[#This Row],[Intended Use]],10)="Base Group", Data[[#This Row],[Intended Use]]="Turnout Const. (per sy)"),IF(AND(Data[[#This Row],[Thickness]]<>0,Data[[#This Row],[Total Thickness]]<>0,Data[[#This Row],[Area]]<>0),(Data[[#This Row],[Prorated Base]]/SUMIFS(Data[Prorated Base],Data[Intended Use],"="&Data[[#This Row],[Intended Use]]))*Data[[#This Row],[Total Thickness]],""), "") -> 0.03805544918 | BK42: =IF(OR(Data[[#This Row],[Roadway Type]]<>"",Data[[#This Row],[Roadway ID]]<>""),UPPER(Data[[#This Row],[Roadway Type]])&"~-~"&UPPER(Data[[#This Row],[Roadway ID]]),"") -> MAINLINE~-~SR-50 | BL42: =IF(AND(Data[[#This Row],[Quantity]]<>"",Data[[#This Row],[Total Thickness]]<>"",Data[[#This Row],[Total Thickness]]<>0,Data[[#This Row],[GmmGsb Value]]<>"",Data[[#This Row],[GmmGsb Value]]<>0),IF(Data[[#This Row],[Quantity]]>0,(Data[[#This Row],[Quantity]]*2000)/(Data[[#This Row],[Total Thickness]]*Data[[#This Row],[GmmGsb Value]]*43.3),0),"") -> 408.587843
A43: 1 | B43: =IF(AND(Data[[#This Row],[Lot]]<>"",FIN<>""),FIN,"") -> 41673245201 | C43: =IF(AND(Data[[#This Row],[Lot]]<>"",ContractNumber<>""),ContractNumber,"") -> T7396 | D43: =IF(AND(Data[[#This Row],[Lot]]<>"",Contractor<>""),Contractor,"") -> APS | E43: =IF(AND(Data[[#This Row],[Lot]]<>"",BidDate<>""),BidDate,"") -> 2019-07-19 | F43: =IF(AND(Data[[#This Row],[Lot]]<>"",LumpSum<>""),LumpSum,"") -> No | G43: 4000 tons | H43: TRUE | I43: FALSE | J43: SP 14-12329B | K43: =IF(Data[[#This Row],[Mix Design Number]]<>"",IF(RIGHT(VLOOKUP(Data[[#This Row],[Mix Design Number]],MixDesign[],3,FALSE),1)=":",VLOOKUP(Data[[#This Row],[Mix Design Number]],MixDesign[],3,FALSE),VLOOKUP(Data[[#This Row],[Mix Design Number]],MixDesign[],3,FALSE)&":"),"") -> Gmm: | L43: =IF(Data[[#This Row],[Mix Design Number]]<>"",VLOOKUP(Data[[#This Row],[Mix Design Number]],MixDesign[],4,FALSE),"") -> 2.541 | M43: 12 | O43: 2020-10-02 | P43: Day | Q43: 1 | R43: 1 | S43: 27-33 | T43: Base Group 1 | U43: N | W43: R2 | Y43: 1 | Z43: 2 | AA43: 174498 | AB43: 175220 | AC43: 722 | AD43: 14 | AE43: 1123.11 | AF43: 127.35 | AG43: 2 | AH43: 226.78 | AI43: =IF(OR(Data[[#This Row],[GmmGsb Value]]="",Data[[#This Row],[Thickness]]=""),"",IF(RIGHT(Data[[#This Row],[GmmGsb Type]],4)="Gsb:",ROUND(Data[[#This Row],[GmmGsb Value]]*Data[[#This Row],[Thickness]]*40.5,0),IF(Data[[#This Row],[GmmGsb Type]]="Gmm:",IF(Data[[#This Row],[Intended Use]]="Misc.",ROUND((Data[[#This Row],[GmmGsb Value]]/2.54)*(100*Data[[#This Row],[Thickness]]),0),ROUND(Data[[#This Row],[GmmGsb Value]]*Data[[#This Row],[Thickness]]*43.3,0)),""))) -> 220 | AJ43: 4 | AK43: =IF(Data[[#This Row],[Data Exists]]=FALSE,"",IF(LEFT(Data[[#This Row],[GmmGsb Type]],4)="ATPB",IF(AND(Data[[#This Row],[Start Station]]<>"",Data[[#This Row],[End Station]]<>"",Data[[#This Row],[Width]]<>"",Data[[#This Row],[Thickness]]<>"",Data[[#This Row],[Intended Use]]="ATPB"),Data[[#This Row],[Length]]*Data[[#This Row],[Width]]*Data[[#This Row],[Thickness]]/324,""),IF(Data[[#This Row],[Intended Use]]<>"",IF(UPPER(INDEX(EditablePayItems[],MATCH(IF(OR(RIGHT(Data[[#This Row],[Intended Use]],6)=" (opt)",RIGHT(Data[[#This Row],[Intended Use]],6)=" (req)"),LEFT(Data[[#This Row],[Intended Use]],LEN(Data[[#This Row],[Intended Use]])-6),Data[[#This Row],[Intended Use]]),EditablePayItems[IntendedUse],0),4))="PRORATED",IF(Data[[#This Row],[Total Thickness]]*Data[[#This Row],[Area]]<>0,Data[[#This Row],[Thickness]]/Data[[#This Row],[Total Thickness]]*Data[[#This Row],[Area]],0), ""),""))) -> 561.555 | AL43: C | AN43: J52006881-164 | AO43: 2021-02-26T07:11:37 | AP43: 2021-09-07T08:37:48 | AQ43: =IF(AND(Data[[#This Row],[Lot]]<>"",ProjectDateTimeStamp<>""),ProjectDateTimeStamp,"") -> 2023-10-05T10:35:05 | AR43: =IF(COUNTA(Data[[#This Row],[Lot]],Data[[#This Row],[Intended Lot Size]:[Mix Design Number]],Data[[#This Row],[Line Number]:[Spread Rate]],Data[[#This Row],[Total Thickness]],Data[[#This Row],[Varied Width Designation]:[Date Time Stamp]])>0,TRUE,FALSE) -> TRUE | AS43: =IF(Data[[#This Row],[Intended Use]]<>"",IF(VLOOKUP(Data[[#This Row],[Intended Use]],EditablePayItems[[IntendedUse]:[PayItemNumber]],6,FALSE)<>"",VLOOKUP(Data[[#This Row],[Intended Use]],EditablePayItems[[IntendedUse]:[PayItemNumber]],6,FALSE),""),"") -> 285701 | AT43: =IF(Data[[#This Row],[Date Paved]]<>"",VLOOKUP(Data[[#This Row],[Date Paved]],MonthlyCutOffDates[[Date From]:[MonthYear]],3),"") -> Dec 2018 | AU43: =IF(AND(Data[[#This Row],[Target Spread Rate]]<>"",Data[[#This Row],[Area]]<>""),Data[[#This Row],[Target Spread Rate]]*Data[[#This Row],[Area]]/2000,"") -> 123.5421 | AV43: Mainline | AW43: SR-50 | AZ43: =MIN(Data[[#This Row],[Start Station]:[End Station]]) -> 174498 | BA43: =MAX(Data[[#This Row],[Start Station]:[End Station]]) -> 175220 | BB43: =IF(AND(Data[[#This Row],[Quantity]]<>"",Data[[#This Row],[GmmGsb Value]]<>""),Data[[#This Row],[Quantity]]*Data[[#This Row],[GmmGsb Value]],"") -> 323.59635 | BD43: TRUE | BE43: =IF(Data[[#This Row],[Pay Item Number]]<>"",IF(VLOOKUP(Data[[#This Row],[Intended Use]],EditablePayItems[[IntendedUse]:[Actual Quantity Paid]],2,FALSE)="Prorated",IF(LEFT(Data[[#This Row],[Intended Use]],4)="ATPB","Cubic Yards","Square Yards"),"Tons"),"") -> Square Yards | BF43: =Data[[#This Row],[Lot]]&"-"&Data[[#This Row],[Line Number]] -> 1-12 | BG43: =IF(Data[[#This Row],[Date Paved]]<>"",TEXT(Data[[#This Row],[Date Paved]],"mm/dd/yyyy")&" - "&Data[[#This Row],[Shift]]&" - Crew "&Data[[#This Row],[Crew]],"") -> 10/02/2020 - Day - Crew 1 | BH43: =IF(Data[[#This Row],[Date Paved]]<>"",TEXT(Data[[#This Row],[Date Paved]],"mm/dd/yyyy"),"") -> 10/02/2020 | BJ43: =IF(OR(LEFT(Data[[#This Row],[Intended Use]],10)="Base Group", Data[[#This Row],[Intended Use]]="Turnout Const. (per sy)"),IF(AND(Data[[#This Row],[Thickness]]<>0,Data[[#This Row],[Total Thickness]]<>0,Data[[#This Row],[Area]]<>0),(Data[[#This Row],[Prorated Base]]/SUMIFS(Data[Prorated Base],Data[Intended Use],"="&Data[[#This Row],[Intended Use]]))*Data[[#This Row],[Total Thickness]],""), "") -> 0.05327772373 | BK43: =IF(OR(Data[[#This Row],[Roadway Type]]<>"",Data[[#This Row],[Roadway ID]]<>""),UPPER(Data[[#This Row],[Roadway Type]])&"~-~"&UPPER(Data[[#This Row],[Roadway ID]]),"") -> MAINLINE~-~SR-50 | BL43: =IF(AND(Data[[#This Row],[Quantity]]<>"",Data[[#This Row],[Total Thickness]]<>"",Data[[#This Row],[Total Thickness]]<>0,Data[[#This Row],[GmmGsb Value]]<>"",Data[[#This Row],[GmmGsb Value]]<>0),IF(Data[[#This Row],[Quantity]]>0,(Data[[#This Row],[Quantity]]*2000)/(Data[[#This Row],[Total Thickness]]*Data[[#This Row],[GmmGsb Value]]*43.3),0),"") -> 578.7305283
A44: 1 | B44: =IF(AND(Data[[#This Row],[Lot]]<>"",FIN<>""),FIN,"") -> 41673245201 | C44: =IF(AND(Data[[#This Row],[Lot]]<>"",ContractNumber<>""),ContractNumber,"") -> T7396 | D44: =IF(AND(Data[[#This Row],[Lot]]<>"",Contractor<>""),Contractor,"") -> APS | E44: =IF(AND(Data[[#This Row],[Lot]]<>"",BidDate<>""),BidDate,"") -> 2019-07-19 | F44: =IF(AND(Data[[#This Row],[Lot]]<>"",LumpSum<>""),LumpSum,"") -> No | G44: 4000 tons | H44: TRUE | I44: FALSE | J44: SP 14-12329B | K44: =IF(Data[[#This Row],[Mix Design Number]]<>"",IF(RIGHT(VLOOKUP(Data[[#This Row],[Mix Design Number]],MixDesign[],3,FALSE),1)=":",VLOOKUP(Data[[#This Row],[Mix Design Number]],MixDesign[],3,FALSE),VLOOKUP(Data[[#This Row],[Mix Design Number]],MixDesign[],3,FALSE)&":"),"") -> Gmm: | L44: =IF(Data[[#This Row],[Mix Design Number]]<>"",VLOOKUP(Data[[#This Row],[Mix Design Number]],MixDesign[],4,FALSE),"") -> 2.541 | M44: 13 | O44: 2020-10-02 | P44: Day | Q44: 1 | R44: 1 | S44: 33-36 | T44: Base Group 1 | U44: N | W44: R1 | Y44: 1 | Z44: 2 | AA44: 174498 | AB44: 174930 | AC44: 432 | AD44: 12 | AE44: 576 | AF44: 66.5 | AG44: 2 | AH44: 230.9 | AI44: =IF(OR(Data[[#This Row],[GmmGsb Value]]="",Data[[#This Row],[Thickness]]=""),"",IF(RIGHT(Data[[#This Row],[GmmGsb Type]],4)="Gsb:",ROUND(Data[[#This Row],[GmmGsb Value]]*Data[[#This Row],[Thickness]]*40.5,0),IF(Data[[#This Row],[GmmGsb Type]]="Gmm:",IF(Data[[#This Row],[Intended Use]]="Misc.",ROUND((Data[[#This Row],[GmmGsb Value]]/2.54)*(100*Data[[#This Row],[Thickness]]),0),ROUND(Data[[#This Row],[GmmGsb Value]]*Data[[#This Row],[Thickness]]*43.3,0)),""))) -> 220 | AJ44: 4 | AK44: =IF(Data[[#This Row],[Data Exists]]=FALSE,"",IF(LEFT(Data[[#This Row],[GmmGsb Type]],4)="ATPB",IF(AND(Data[[#This Row],[Start Station]]<>"",Data[[#This Row],[End Station]]<>"",Data[[#This Row],[Width]]<>"",Data[[#This Row],[Thickness]]<>"",Data[[#This Row],[Intended Use]]="ATPB"),Data[[#This Row],[Length]]*Data[[#This Row],[Width]]*Data[[#This Row],[Thickness]]/324,""),IF(Data[[#This Row],[Intended Use]]<>"",IF(UPPER(INDEX(EditablePayItems[],MATCH(IF(OR(RIGHT(Data[[#This Row],[Intended Use]],6)=" (opt)",RIGHT(Data[[#This Row],[Intended Use]],6)=" (req)"),LEFT(Data[[#This Row],[Intended Use]],LEN(Data[[#This Row],[Intended Use]])-6),Data[[#This Row],[Intended Use]]),EditablePayItems[IntendedUse],0),4))="PRORATED",IF(Data[[#This Row],[Total Thickness]]*Data[[#This Row],[Area]]<>0,Data[[#This Row],[Thickness]]/Data[[#This Row],[Total Thickness]]*Data[[#This Row],[Area]],0), ""),""))) -> 288 | AL44: C | AN44: J52006881-164 | AO44: 2021-02-26T07:11:37 | AP44: 2021-09-07T08:37:48 | AQ44: =IF(AND(Data[[#This Row],[Lot]]<>"",ProjectDateTimeStamp<>""),ProjectDateTimeStamp,"") -> 2023-10-05T10:35:05 | AR44: =IF(COUNTA(Data[[#This Row],[Lot]],Data[[#This Row],[Intended Lot Size]:[Mix Design Number]],Data[[#This Row],[Line Number]:[Spread Rate]],Data[[#This Row],[Total Thickness]],Data[[#This Row],[Varied Width Designation]:[Date Time Stamp]])>0,TRUE,FALSE) -> TRUE | AS44: =IF(Data[[#This Row],[Intended Use]]<>"",IF(VLOOKUP(Data[[#This Row],[Intended Use]],EditablePayItems[[IntendedUse]:[PayItemNumber]],6,FALSE)<>"",VLOOKUP(Data[[#This Row],[Intended Use]],EditablePayItems[[IntendedUse]:[PayItemNumber]],6,FALSE),""),"") -> 285701 | AT44: =IF(Data[[#This Row],[Date Paved]]<>"",VLOOKUP(Data[[#This Row],[Date Paved]],MonthlyCutOffDates[[Date From]:[MonthYear]],3),"") -> Dec 2018 | AU44: =IF(AND(Data[[#This Row],[Target Spread Rate]]<>"",Data[[#This Row],[Area]]<>""),Data[[#This Row],[Target Spread Rate]]*Data[[#This Row],[Area]]/2000,"") -> 63.36 | AV44: Mainline | AW44: SR-50 | AZ44: =MIN(Data[[#This Row],[Start Station]:[End Station]]) -> 174498 | BA44: =MAX(Data[[#This Row],[Start Station]:[End Station]]) -> 174930 | BB44: =IF(AND(Data[[#This Row],[Quantity]]<>"",Data[[#This Row],[GmmGsb Value]]<>""),Data[[#This Row],[Quantity]]*Data[[#This Row],[GmmGsb Value]],"") -> 168.9765 | BD44: TRUE | BE44: =IF(Data[[#This Row],[Pay Item Number]]<>"",IF(VLOOKUP(Data[[#This Row],[Intended Use]],EditablePayItems[[IntendedUse]:[Actual Quantity Paid]],2,FALSE)="Prorated",IF(LEFT(Data[[#This Row],[Intended Use]],4)="ATPB","Cubic Yards","Square Yards"),"Tons"),"") -> Square Yards | BF44: =Data[[#This Row],[Lot]]&"-"&Data[[#This Row],[Line Number]] -> 1-13 | BG44: =IF(Data[[#This Row],[Date Paved]]<>"",TEXT(Data[[#This Row],[Date Paved]],"mm/dd/yyyy")&" - "&Data[[#This Row],[Shift]]&" - Crew "&Data[[#This Row],[Crew]],"") -> 10/02/2020 - Day - Crew 1 | BH44: =IF(Data[[#This Row],[Date Paved]]<>"",TEXT(Data[[#This Row],[Date Paved]],"mm/dd/yyyy"),"") -> 10/02/2020 | BJ44: =IF(OR(LEFT(Data[[#This Row],[Intended Use]],10)="Base Group", Data[[#This Row],[Intended Use]]="Turnout Const. (per sy)"),IF(AND(Data[[#This Row],[Thickness]]<>0,Data[[#This Row],[Total Thickness]]<>0,Data[[#This Row],[Area]]<>0),(Data[[#This Row],[Prorated Base]]/SUMIFS(Data[Prorated Base],Data[Intended Use],"="&Data[[#This Row],[Intended Use]]))*Data[[#This Row],[Total Thickness]],""), "") -> 0.02732409904 | BK44: =IF(OR(Data[[#This Row],[Roadway Type]]<>"",Data[[#This Row],[Roadway ID]]<>""),UPPER(Data[[#This Row],[Roadway Type]])&"~-~"&UPPER(Data[[#This Row],[Roadway ID]]),"") -> MAINLINE~-~SR-50 | BL44: =IF(AND(Data[[#This Row],[Quantity]]<>"",Data[[#This Row],[Total Thickness]]<>"",Data[[#This Row],[Total Thickness]]<>0,Data[[#This Row],[GmmGsb Value]]<>"",Data[[#This Row],[GmmGsb Value]]<>0),IF(Data[[#This Row],[Quantity]]>0,(Data[[#This Row],[Quantity]]*2000)/(Data[[#This Row],[Total Thickness]]*Data[[#This Row],[GmmGsb Value]]*43.3),0),"") -> 302.2032205
A45: 1 | B45: =IF(AND(Data[[#This Row],[Lot]]<>"",FIN<>""),FIN,"") -> 41673245201 | C45: =IF(AND(Data[[#This Row],[Lot]]<>"",ContractNumber<>""),ContractNumber,"") -> T7396 | D45: =IF(AND(Data[[#This Row],[Lot]]<>"",Contractor<>""),Contractor,"") -> APS | E45: =IF(AND(Data[[#This Row],[Lot]]<>"",BidDate<>""),BidDate,"") -> 2019-07-19 | F45: =IF(AND(Data[[#This Row],[Lot]]<>"",LumpSum<>""),LumpSum,"") -> No | G45: 4000 tons | H45: TRUE | I45: FALSE | J45: SP 14-12329B | K45: =IF(Data[[#This Row],[Mix Design Number]]<>"",IF(RIGHT(VLOOKUP(Data[[#This Row],[Mix Design Number]],MixDesign[],3,FALSE),1)=":",VLOOKUP(Data[[#This Row],[Mix Design Number]],MixDesign[],3,FALSE),VLOOKUP(Data[[#This Row],[Mix Design Number]],MixDesign[],3,FALSE)&":"),"") -> Gmm: | L45: =IF(Data[[#This Row],[Mix Design Number]]<>"",VLOOKUP(Data[[#This Row],[Mix Design Number]],MixDesign[],4,FALSE),"") -> 2.541 | M45: 14 | O45: 2020-10-02 | P45: Day | Q45: 1 | R45: 1 | S45: 36 | T45: Base Group 1 | U45: N | W45: R1 | Y45: 1 | Z45: 2 | AA45: 174930 | AB45: 174980 | AC45: 50 | AD45: 6 | AE45: 33.33 | AF45: 3.79 | AG45: 2 | AH45: 227.42 | AI45: =IF(OR(Data[[#This Row],[GmmGsb Value]]="",Data[[#This Row],[Thickness]]=""),"",IF(RIGHT(Data[[#This Row],[GmmGsb Type]],4)="Gsb:",ROUND(Data[[#This Row],[GmmGsb Value]]*Data[[#This Row],[Thickness]]*40.5,0),IF(Data[[#This Row],[GmmGsb Type]]="Gmm:",IF(Data[[#This Row],[Intended Use]]="Misc.",ROUND((Data[[#This Row],[GmmGsb Value]]/2.54)*(100*Data[[#This Row],[Thickness]]),0),ROUND(Data[[#This Row],[GmmGsb Value]]*Data[[#This Row],[Thickness]]*43.3,0)),""))) -> 220 | AJ45: 4 | AK45: =IF(Data[[#This Row],[Data Exists]]=FALSE,"",IF(LEFT(Data[[#This Row],[GmmGsb Type]],4)="ATPB",IF(AND(Data[[#This Row],[Start Station]]<>"",Data[[#This Row],[End Station]]<>"",Data[[#This Row],[Width]]<>"",Data[[#This Row],[Thickness]]<>"",Data[[#This Row],[Intended Use]]="ATPB"),Data[[#This Row],[Length]]*Data[[#This Row],[Width]]*Data[[#This Row],[Thickness]]/324,""),IF(Data[[#This Row],[Intended Use]]<>"",IF(UPPER(INDEX(EditablePayItems[],MATCH(IF(OR(RIGHT(Data[[#This Row],[Intended Use]],6)=" (opt)",RIGHT(Data[[#This Row],[Intended Use]],6)=" (req)"),LEFT(Data[[#This Row],[Intended Use]],LEN(Data[[#This Row],[Intended Use]])-6),Data[[#This Row],[Intended Use]]),EditablePayItems[IntendedUse],0),4))="PRORATED",IF(Data[[#This Row],[Total Thickness]]*Data[[#This Row],[Area]]<>0,Data[[#This Row],[Thickness]]/Data[[#This Row],[Total Thickness]]*Data[[#This Row],[Area]],0), ""),""))) -> 16.665 | AL45: C | AN45: J52006881-164 | AO45: 2021-02-26T07:11:37 | AP45: 2021-09-07T08:37:48 | AQ45: =IF(AND(Data[[#This Row],[Lot]]<>"",ProjectDateTimeStamp<>""),ProjectDateTimeStamp,"") -> 2023-10-05T10:35:05 | AR45: =IF(COUNTA(Data[[#This Row],[Lot]],Data[[#This Row],[Intended Lot Size]:[Mix Design Number]],Data[[#This Row],[Line Number]:[Spread Rate]],Data[[#This Row],[Total Thickness]],Data[[#This Row],[Varied Width Designation]:[Date Time Stamp]])>0,TRUE,FALSE) -> TRUE | AS45: =IF(Data[[#This Row],[Intended Use]]<>"",IF(VLOOKUP(Data[[#This Row],[Intended Use]],EditablePayItems[[IntendedUse]:[PayItemNumber]],6,FALSE)<>"",VLOOKUP(Data[[#This Row],[Intended Use]],EditablePayItems[[IntendedUse]:[PayItemNumber]],6,FALSE),""),"") -> 285701 | AT45: =IF(Data[[#This Row],[Date Paved]]<>"",VLOOKUP(Data[[#This Row],[Date Paved]],MonthlyCutOffDates[[Date From]:[MonthYear]],3),"") -> Dec 2018 | AU45: =IF(AND(Data[[#This Row],[Target Spread Rate]]<>"",Data[[#This Row],[Area]]<>""),Data[[#This Row],[Target Spread Rate]]*Data[[#This Row],[Area]]/2000,"") -> 3.6663 | AV45: Mainline | AW45: SR-50 | AZ45: =MIN(Data[[#This Row],[Start Station]:[End Station]]) -> 174930 | BA45: =MAX(Data[[#This Row],[Start Station]:[End Station]]) -> 174980 | BB45: =IF(AND(Data[[#This Row],[Quantity]]<>"",Data[[#This Row],[GmmGsb Value]]<>""),Data[[#This Row],[Quantity]]*Data[[#This Row],[GmmGsb Value]],"") -> 9.63039 | BD45: TRUE | BE45: =IF(Data[[#This Row],[Pay Item Number]]<>"",IF(VLOOKUP(Data[[#This Row],[Intended Use]],EditablePayItems[[IntendedUse]:[Actual Quantity Paid]],2,FALSE)="Prorated",IF(LEFT(Data[[#This Row],[Intended Use]],4)="ATPB","Cubic Yards","Square Yards"),"Tons"),"") -> Square Yards | BF45: =Data[[#This Row],[Lot]]&"-"&Data[[#This Row],[Line Number]] -> 1-14 | BG45: =IF(Data[[#This Row],[Date Paved]]<>"",TEXT(Data[[#This Row],[Date Paved]],"mm/dd/yyyy")&" - "&Data[[#This Row],[Shift]]&" - Crew "&Data[[#This Row],[Crew]],"") -> 10/02/2020 - Day - Crew 1 | BH45: =IF(Data[[#This Row],[Date Paved]]<>"",TEXT(Data[[#This Row],[Date Paved]],"mm/dd/yyyy"),"") -> 10/02/2020 | BJ45: =IF(OR(LEFT(Data[[#This Row],[Intended Use]],10)="Base Group", Data[[#This Row],[Intended Use]]="Turnout Const. (per sy)"),IF(AND(Data[[#This Row],[Thickness]]<>0,Data[[#This Row],[Total Thickness]]<>0,Data[[#This Row],[Area]]<>0),(Data[[#This Row],[Prorated Base]]/SUMIFS(Data[Prorated Base],Data[Intended Use],"="&Data[[#This Row],[Intended Use]]))*Data[[#This Row],[Total Thickness]],""), "") -> 0.001581097606 | BK45: =IF(OR(Data[[#This Row],[Roadway Type]]<>"",Data[[#This Row],[Roadway ID]]<>""),UPPER(Data[[#This Row],[Roadway Type]])&"~-~"&UPPER(Data[[#This Row],[Roadway ID]]),"") -> MAINLINE~-~SR-50 | BL45: =IF(AND(Data[[#This Row],[Quantity]]<>"",Data[[#This Row],[Total Thickness]]<>"",Data[[#This Row],[Total Thickness]]<>0,Data[[#This Row],[GmmGsb Value]]<>"",Data[[#This Row],[GmmGsb Value]]<>0),IF(Data[[#This Row],[Quantity]]>0,(Data[[#This Row],[Quantity]]*2000)/(Data[[#This Row],[Total Thickness]]*Data[[#This Row],[GmmGsb Value]]*43.3),0),"") -> 17.22331137
A46: 1 | B46: =IF(AND(Data[[#This Row],[Lot]]<>"",FIN<>""),FIN,"") -> 41673245201 | C46: =IF(AND(Data[[#This Row],[Lot]]<>"",ContractNumber<>""),ContractNumber,"") -> T7396 | D46: =IF(AND(Data[[#This Row],[Lot]]<>"",Contractor<>""),Contractor,"") -> APS | E46: =IF(AND(Data[[#This Row],[Lot]]<>"",BidDate<>""),BidDate,"") -> 2019-07-19 | F46: =IF(AND(Data[[#This Row],[Lot]]<>"",LumpSum<>""),LumpSum,"") -> No | G46: 4000 tons | H46: TRUE | I46: FALSE | J46: SP 14-12329B | K46: =IF(Data[[#This Row],[Mix Design Number]]<>"",IF(RIGHT(VLOOKUP(Data[[#This Row],[Mix Design Number]],MixDesign[],3,FALSE),1)=":",VLOOKUP(Data[[#This Row],[Mix Design Number]],MixDesign[],3,FALSE),VLOOKUP(Data[[#This Row],[Mix Design Number]],MixDesign[],3,FALSE)&":"),"") -> Gmm: | L46: =IF(Data[[#This Row],[Mix Design Number]]<>"",VLOOKUP(Data[[#This Row],[Mix Design Number]],MixDesign[],4,FALSE),"") -> 2.541 | M46: 15 | O46: 2020-10-02 | P46: Day | Q46: 1 | R46: 1 | S46: 36 | T46: Base Group 1 | U46: N | W46: R1 | Y46: 1 | Z46: 2 | AA46: 174980 | AB46: 175220 | AC46: 240 | AD46: 3 | AE46: 80 | AF46: 9.1 | AG46: 2 | AH46: 227.5 | AI46: =IF(OR(Data[[#This Row],[GmmGsb Value]]="",Data[[#This Row],[Thickness]]=""),"",IF(RIGHT(Data[[#This Row],[GmmGsb Type]],4)="Gsb:",ROUND(Data[[#This Row],[GmmGsb Value]]*Data[[#This Row],[Thickness]]*40.5,0),IF(Data[[#This Row],[GmmGsb Type]]="Gmm:",IF(Data[[#This Row],[Intended Use]]="Misc.",ROUND((Data[[#This Row],[GmmGsb Value]]/2.54)*(100*Data[[#This Row],[Thickness]]),0),ROUND(Data[[#This Row],[GmmGsb Value]]*Data[[#This Row],[Thickness]]*43.3,0)),""))) -> 220 | AJ46: 4 | AK46: =IF(Data[[#This Row],[Data Exists]]=FALSE,"",IF(LEFT(Data[[#This Row],[GmmGsb Type]],4)="ATPB",IF(AND(Data[[#This Row],[Start Station]]<>"",Data[[#This Row],[End Station]]<>"",Data[[#This Row],[Width]]<>"",Data[[#This Row],[Thickness]]<>"",Data[[#This Row],[Intended Use]]="ATPB"),Data[[#This Row],[Length]]*Data[[#This Row],[Width]]*Data[[#This Row],[Thickness]]/324,""),IF(Data[[#This Row],[Intended Use]]<>"",IF(UPPER(INDEX(EditablePayItems[],MATCH(IF(OR(RIGHT(Data[[#This Row],[Intended Use]],6)=" (opt)",RIGHT(Data[[#This Row],[Intended Use]],6)=" (req)"),LEFT(Data[[#This Row],[Intended Use]],LEN(Data[[#This Row],[Intended Use]])-6),Data[[#This Row],[Intended Use]]),EditablePayItems[IntendedUse],0),4))="PRORATED",IF(Data[[#This Row],[Total Thickness]]*Data[[#This Row],[Area]]<>0,Data[[#This Row],[Thickness]]/Data[[#This Row],[Total Thickness]]*Data[[#This Row],[Area]],0), ""),""))) -> 40 | AL46: C | AN46: J52006881-164 | AO46: 2021-02-26T07:11:37 | AP46: 2021-09-07T08:37:48 | AQ46: =IF(AND(Data[[#This Row],[Lot]]<>"",ProjectDateTimeStamp<>""),ProjectDateTimeStamp,"") -> 2023-10-05T10:35:05 | AR46: =IF(COUNTA(Data[[#This Row],[Lot]],Data[[#This Row],[Intended Lot Size]:[Mix Design Number]],Data[[#This Row],[Line Number]:[Spread Rate]],Data[[#This Row],[Total Thickness]],Data[[#This Row],[Varied Width Designation]:[Date Time Stamp]])>0,TRUE,FALSE) -> TRUE | AS46: =IF(Data[[#This Row],[Intended Use]]<>"",IF(VLOOKUP(Data[[#This Row],[Intended Use]],EditablePayItems[[IntendedUse]:[PayItemNumber]],6,FALSE)<>"",VLOOKUP(Data[[#This Row],[Intended Use]],EditablePayItems[[IntendedUse]:[PayItemNumber]],6,FALSE),""),"") -> 285701 | AT46: =IF(Data[[#This Row],[Date Paved]]<>"",VLOOKUP(Data[[#This Row],[Date Paved]],MonthlyCutOffDates[[Date From]:[MonthYear]],3),"") -> Dec 2018 | AU46: =IF(AND(Data[[#This Row],[Target Spread Rate]]<>"",Data[[#This Row],[Area]]<>""),Data[[#This Row],[Target Spread Rate]]*Data[[#This Row],[Area]]/2000,"") -> 8.8 | AV46: Mainline | AW46: SR-50 | AZ46: =MIN(Data[[#This Row],[Start Station]:[End Station]]) -> 174980 | BA46: =MAX(Data[[#This Row],[Start Station]:[End Station]]) -> 175220 | BB46: =IF(AND(Data[[#This Row],[Quantity]]<>"",Data[[#This Row],[GmmGsb Value]]<>""),Data[[#This Row],[Quantity]]*Data[[#This Row],[GmmGsb Value]],"") -> 23.1231 | BD46: TRUE | BE46: =IF(Data[[#This Row],[Pay Item Number]]<>"",IF(VLOOKUP(Data[[#This Row],[Intended Use]],EditablePayItems[[IntendedUse]:[Actual Quantity Paid]],2,FALSE)="Prorated",IF(LEFT(Data[[#This Row],[Intended Use]],4)="ATPB","Cubic Yards","Square Yards"),"Tons"),"") -> Square Yards | BF46: =Data[[#This Row],[Lot]]&"-"&Data[[#This Row],[Line Number]] -> 1-15 | BG46: =IF(Data[[#This Row],[Date Paved]]<>"",TEXT(Data[[#This Row],[Date Paved]],"mm/dd/yyyy")&" - "&Data[[#This Row],[Shift]]&" - Crew "&Data[[#This Row],[Crew]],"") -> 10/02/2020 - Day - Crew 1 | BH46: =IF(Data[[#This Row],[Date Paved]]<>"",TEXT(Data[[#This Row],[Date Paved]],"mm/dd/yyyy"),"") -> 10/02/2020 | BJ46: =IF(OR(LEFT(Data[[#This Row],[Intended Use]],10)="Base Group", Data[[#This Row],[Intended Use]]="Turnout Const. (per sy)"),IF(AND(Data[[#This Row],[Thickness]]<>0,Data[[#This Row],[Total Thickness]]<>0,Data[[#This Row],[Area]]<>0),(Data[[#This Row],[Prorated Base]]/SUMIFS(Data[Prorated Base],Data[Intended Use],"="&Data[[#This Row],[Intended Use]]))*Data[[#This Row],[Total Thickness]],""), "") -> 0.003795013755 | BK46: =IF(OR(Data[[#This Row],[Roadway Type]]<>"",Data[[#This Row],[Roadway ID]]<>""),UPPER(Data[[#This Row],[Roadway Type]])&"~-~"&UPPER(Data[[#This Row],[Roadway ID]]),"") -> MAINLINE~-~SR-50 | BL46: =IF(AND(Data[[#This Row],[Quantity]]<>"",Data[[#This Row],[Total Thickness]]<>"",Data[[#This Row],[Total Thickness]]<>0,Data[[#This Row],[GmmGsb Value]]<>"",Data[[#This Row],[GmmGsb Value]]<>0),IF(Data[[#This Row],[Quantity]]>0,(Data[[#This Row],[Quantity]]*2000)/(Data[[#This Row],[Total Thickness]]*Data[[#This Row],[GmmGsb Value]]*43.3),0),"") -> 41.35412491
A47: 1 | B47: =IF(AND(Data[[#This Row],[Lot]]<>"",FIN<>""),FIN,"") -> 41673245201 | C47: =IF(AND(Data[[#This Row],[Lot]]<>"",ContractNumber<>""),ContractNumber,"") -> T7396 | D47: =IF(AND(Data[[#This Row],[Lot]]<>"",Contractor<>""),Contractor,"") -> APS | E47: =IF(AND(Data[[#This Row],[Lot]]<>"",BidDate<>""),BidDate,"") -> 2019-07-19 | F47: =IF(AND(Data[[#This Row],[Lot]]<>"",LumpSum<>""),LumpSum,"") -> No | G47: 4000 tons | H47: TRUE | I47: FALSE | J47: SP 14-12329B | K47: =IF(Data[[#This Row],[Mix Design Number]]<>"",IF(RIGHT(VLOOKUP(Data[[#This Row],[Mix Design Number]],MixDesign[],3,FALSE),1)=":",VLOOKUP(Data[[#This Row],[Mix Design Number]],MixDesign[],3,FALSE),VLOOKUP(Data[[#This Row],[Mix Design Number]],MixDesign[],3,FALSE)&":"),"") -> Gmm: | L47: =IF(Data[[#This Row],[Mix Design Number]]<>"",VLOOKUP(Data[[#This Row],[Mix Design Number]],MixDesign[],4,FALSE),"") -> 2.541 | M47: 16 | N47: 1 | O47: 2020-10-02 | P47: Day | Q47: 1 | R47: 1 | S47: 36 | T47: No Pay Tonnage | U47: N | AC47: 0 | AF47: 11.16 | AH47: 0 | AI47: =IF(OR(Data[[#This Row],[GmmGsb Value]]="",Data[[#This Row],[Thickness]]=""),"",IF(RIGHT(Data[[#This Row],[GmmGsb Type]],4)="Gsb:",ROUND(Data[[#This Row],[GmmGsb Value]]*Data[[#This Row],[Thickness]]*40.5,0),IF(Data[[#This Row],[GmmGsb Type]]="Gmm:",IF(Data[[#This Row],[Intended Use]]="Misc.",ROUND((Data[[#This Row],[GmmGsb Value]]/2.54)*(100*Data[[#This Row],[Thickness]]),0),ROUND(Data[[#This Row],[GmmGsb Value]]*Data[[#This Row],[Thickness]]*43.3,0)),""))) ->  | AK47: =IF(Data[[#This Row],[Data Exists]]=FALSE,"",IF(LEFT(Data[[#This Row],[GmmGsb Type]],4)="ATPB",IF(AND(Data[[#This Row],[Start Station]]<>"",Data[[#This Row],[End Station]]<>"",Data[[#This Row],[Width]]<>"",Data[[#This Row],[Thickness]]<>"",Data[[#This Row],[Intended Use]]="ATPB"),Data[[#This Row],[Length]]*Data[[#This Row],[Width]]*Data[[#This Row],[Thickness]]/324,""),IF(Data[[#This Row],[Intended Use]]<>"",IF(UPPER(INDEX(EditablePayItems[],MATCH(IF(OR(RIGHT(Data[[#This Row],[Intended Use]],6)=" (opt)",RIGHT(Data[[#This Row],[Intended Use]],6)=" (req)"),LEFT(Data[[#This Row],[Intended Use]],LEN(Data[[#This Row],[Intended Use]])-6),Data[[#This Row],[Intended Use]]),EditablePayItems[IntendedUse],0),4))="PRORATED",IF(Data[[#This Row],[Total Thickness]]*Data[[#This Row],[Area]]<>0,Data[[#This Row],[Thickness]]/Data[[#This Row],[Total Thickness]]*Data[[#This Row],[Area]],0), ""),""))) ->  | AM47: To be Paid for by Pepper | AN47: J52006881-164 | AO47: 2021-02-26T07:11:37 | AP47: 2021-09-07T08:37:48 | AQ47: =IF(AND(Data[[#This Row],[Lot]]<>"",ProjectDateTimeStamp<>""),ProjectDateTimeStamp,"") -> 2023-10-05T10:35:05 | AR47: =IF(COUNTA(Data[[#This Row],[Lot]],Data[[#This Row],[Intended Lot Size]:[Mix Design Number]],Data[[#This Row],[Line Number]:[Spread Rate]],Data[[#This Row],[Total Thickness]],Data[[#This Row],[Varied Width Designation]:[Date Time Stamp]])>0,TRUE,FALSE) -> TRUE | AS47: =IF(Data[[#This Row],[Intended Use]]<>"",IF(VLOOKUP(Data[[#This Row],[Intended Use]],EditablePayItems[[IntendedUse]:[PayItemNumber]],6,FALSE)<>"",VLOOKUP(Data[[#This Row],[Intended Use]],EditablePayItems[[IntendedUse]:[PayItemNumber]],6,FALSE),""),"") ->  | AT47: =IF(Data[[#This Row],[Date Paved]]<>"",VLOOKUP(Data[[#This Row],[Date Paved]],MonthlyCutOffDates[[Date From]:[MonthYear]],3),"") -> Dec 2018 | AU47: =IF(AND(Data[[#This Row],[Target Spread Rate]]<>"",Data[[#This Row],[Area]]<>""),Data[[#This Row],[Target Spread Rate]]*Data[[#This Row],[Area]]/2000,"") ->  | AV47: Other | AW47: Asphalt for concrete forms | AZ47: =MIN(Data[[#This Row],[Start Station]:[End Station]]) -> 0 | BA47: =MAX(Data[[#This Row],[Start Station]:[End Station]]) -> 0 | BB47: =IF(AND(Data[[#This Row],[Quantity]]<>"",Data[[#This Row],[GmmGsb Value]]<>""),Data[[#This Row],[Quantity]]*Data[[#This Row],[GmmGsb Value]],"") -> 28.35756 | BE47: =IF(Data[[#This Row],[Pay Item Number]]<>"",IF(VLOOKUP(Data[[#This Row],[Intended Use]],EditablePayItems[[IntendedUse]:[Actual Quantity Paid]],2,FALSE)="Prorated",IF(LEFT(Data[[#This Row],[Intended Use]],4)="ATPB","Cubic Yards","Square Yards"),"Tons"),"") ->  | BF47: =Data[[#This Row],[Lot]]&"-"&Data[[#This Row],[Line Number]] -> 1-16 | BG47: =IF(Data[[#This Row],[Date Paved]]<>"",TEXT(Data[[#This Row],[Date Paved]],"mm/dd/yyyy")&" - "&Data[[#This Row],[Shift]]&" - Crew "&Data[[#This Row],[Crew]],"") -> 10/02/2020 - Day - Crew 1 | BH47: =IF(Data[[#This Row],[Date Paved]]<>"",TEXT(Data[[#This Row],[Date Paved]],"mm/dd/yyyy"),"") -> 10/02/2020 | BJ47: =IF(OR(LEFT(Data[[#This Row],[Intended Use]],10)="Base Group", Data[[#This Row],[Intended Use]]="Turnout Const. (per sy)"),IF(AND(Data[[#This Row],[Thickness]]<>0,Data[[#This Row],[Total Thickness]]<>0,Data[[#This Row],[Area]]<>0),(Data[[#This Row],[Prorated Base]]/SUMIFS(Data[Prorated Base],Data[Intended Use],"="&Data[[#This Row],[Intended Use]]))*Data[[#This Row],[Total Thickness]],""), "") ->  | BK47: =IF(OR(Data[[#This Row],[Roadway Type]]<>"",Data[[#This Row],[Roadway ID]]<>""),UPPER(Data[[#This Row],[Roadway Type]])&"~-~"&UPPER(Data[[#This Row],[Roadway ID]]),"") -> OTHER~-~ASPHALT FOR CONCRETE FORMS | BL47: =IF(AND(Data[[#This Row],[Quantity]]<>"",Data[[#This Row],[Total Thickness]]<>"",Data[[#This Row],[Total Thickness]]<>0,Data[[#This Row],[GmmGsb Value]]<>"",Data[[#This Row],[GmmGsb Value]]<>0),IF(Data[[#This Row],[Quantity]]>0,(Data[[#This Row],[Quantity]]*2000)/(Data[[#This Row],[Total Thickness]]*Data[[#This Row],[GmmGsb Value]]*43.3),0),"") -> 
A48: 1 | B48: =IF(AND(Data[[#This Row],[Lot]]<>"",FIN<>""),FIN,"") -> 41673245201 | C48: =IF(AND(Data[[#This Row],[Lot]]<>"",ContractNumber<>""),ContractNumber,"") -> T7396 | D48: =IF(AND(Data[[#This Row],[Lot]]<>"",Contractor<>""),Contractor,"") -> APS | E48: =IF(AND(Data[[#This Row],[Lot]]<>"",BidDate<>""),BidDate,"") -> 2019-07-19 | F48: =IF(AND(Data[[#This Row],[Lot]]<>"",LumpSum<>""),LumpSum,"") -> No | G48: 4000 tons | H48: TRUE | I48: FALSE | J48: SP 14-12329B | K48: =IF(Data[[#This Row],[Mix Design Number]]<>"",IF(RIGHT(VLOOKUP(Data[[#This Row],[Mix Design Number]],MixDesign[],3,FALSE),1)=":",VLOOKUP(Data[[#This Row],[Mix Design Number]],MixDesign[],3,FALSE),VLOOKUP(Data[[#This Row],[Mix Design Number]],MixDesign[],3,FALSE)&":"),"") -> Gmm: | L48: =IF(Data[[#This Row],[Mix Design Number]]<>"",VLOOKUP(Data[[#This Row],[Mix Design Number]],MixDesign[],4,FALSE),"") -> 2.541 | M48: 19 | O48: 2020-10-05 | P48: Day | Q48: 1 | R48: 1 | S48: 1 | T48: Base Group 1 | U48: N | W48: OR | X48: Gore | Y48: 1 | Z48: 2 | AA48: 174807 | AB48: 174902 | AC48: 95 | AD48: 7 | AE48: 73.89 | AF48: 8.49 | AG48: 2 | AH48: 229.8 | AI48: =IF(OR(Data[[#This Row],[GmmGsb Value]]="",Data[[#This Row],[Thickness]]=""),"",IF(RIGHT(Data[[#This Row],[GmmGsb Type]],4)="Gsb:",ROUND(Data[[#This Row],[GmmGsb Value]]*Data[[#This Row],[Thickness]]*40.5,0),IF(Data[[#This Row],[GmmGsb Type]]="Gmm:",IF(Data[[#This Row],[Intended Use]]="Misc.",ROUND((Data[[#This Row],[GmmGsb Value]]/2.54)*(100*Data[[#This Row],[Thickness]]),0),ROUND(Data[[#This Row],[GmmGsb Value]]*Data[[#This Row],[Thickness]]*43.3,0)),""))) -> 220 | AJ48: 4 | AK48: =IF(Data[[#This Row],[Data Exists]]=FALSE,"",IF(LEFT(Data[[#This Row],[GmmGsb Type]],4)="ATPB",IF(AND(Data[[#This Row],[Start Station]]<>"",Data[[#This Row],[End Station]]<>"",Data[[#This Row],[Width]]<>"",Data[[#This Row],[Thickness]]<>"",Data[[#This Row],[Intended Use]]="ATPB"),Data[[#This Row],[Length]]*Data[[#This Row],[Width]]*Data[[#This Row],[Thickness]]/324,""),IF(Data[[#This Row],[Intended Use]]<>"",IF(UPPER(INDEX(EditablePayItems[],MATCH(IF(OR(RIGHT(Data[[#This Row],[Intended Use]],6)=" (opt)",RIGHT(Data[[#This Row],[Intended Use]],6)=" (req)"),LEFT(Data[[#This Row],[Intended Use]],LEN(Data[[#This Row],[Intended Use]])-6),Data[[#This Row],[Intended Use]]),EditablePayItems[IntendedUse],0),4))="PRORATED",IF(Data[[#This Row],[Total Thickness]]*Data[[#This Row],[Area]]<>0,Data[[#This Row],[Thickness]]/Data[[#This Row],[Total Thickness]]*Data[[#This Row],[Area]],0), ""),""))) -> 36.945 | AL48: V | AN48: J52006881-164 | AO48: 2021-02-26T07:11:37 | AP48: 2021-09-07T08:37:48 | AQ48: =IF(AND(Data[[#This Row],[Lot]]<>"",ProjectDateTimeStamp<>""),ProjectDateTimeStamp,"") -> 2023-10-05T10:35:05 | AR48: =IF(COUNTA(Data[[#This Row],[Lot]],Data[[#This Row],[Intended Lot Size]:[Mix Design Number]],Data[[#This Row],[Line Number]:[Spread Rate]],Data[[#This Row],[Total Thickness]],Data[[#This Row],[Varied Width Designation]:[Date Time Stamp]])>0,TRUE,FALSE) -> TRUE | AS48: =IF(Data[[#This Row],[Intended Use]]<>"",IF(VLOOKUP(Data[[#This Row],[Intended Use]],EditablePayItems[[IntendedUse]:[PayItemNumber]],6,FALSE)<>"",VLOOKUP(Data[[#This Row],[Intended Use]],EditablePayItems[[IntendedUse]:[PayItemNumber]],6,FALSE),""),"") -> 285701 | AT48: =IF(Data[[#This Row],[Date Paved]]<>"",VLOOKUP(Data[[#This Row],[Date Paved]],MonthlyCutOffDates[[Date From]:[MonthYear]],3),"") -> Dec 2018 | AU48: =IF(AND(Data[[#This Row],[Target Spread Rate]]<>"",Data[[#This Row],[Area]]<>""),Data[[#This Row],[Target Spread Rate]]*Data[[#This Row],[Area]]/2000,"") -> 8.1279 | AV48: Mainline | AW48: SR-50 | AZ48: =MIN(Data[[#This Row],[Start Station]:[End Station]]) -> 174807 | BA48: =MAX(Data[[#This Row],[Start Station]:[End Station]]) -> 174902 | BB48: =IF(AND(Data[[#This Row],[Quantity]]<>"",Data[[#This Row],[GmmGsb Value]]<>""),Data[[#This Row],[Quantity]]*Data[[#This Row],[GmmGsb Value]],"") -> 21.57309 | BD48: TRUE | BE48: =IF(Data[[#This Row],[Pay Item Number]]<>"",IF(VLOOKUP(Data[[#This Row],[Intended Use]],EditablePayItems[[IntendedUse]:[Actual Quantity Paid]],2,FALSE)="Prorated",IF(LEFT(Data[[#This Row],[Intended Use]],4)="ATPB","Cubic Yards","Square Yards"),"Tons"),"") -> Square Yards | BF48: =Data[[#This Row],[Lot]]&"-"&Data[[#This Row],[Line Number]] -> 1-19 | BG48: =IF(Data[[#This Row],[Date Paved]]<>"",TEXT(Data[[#This Row],[Date Paved]],"mm/dd/yyyy")&" - "&Data[[#This Row],[Shift]]&" - Crew "&Data[[#This Row],[Crew]],"") -> 10/05/2020 - Day - Crew 1 | BH48: =IF(Data[[#This Row],[Date Paved]]<>"",TEXT(Data[[#This Row],[Date Paved]],"mm/dd/yyyy"),"") -> 10/05/2020 | BJ48: =IF(OR(LEFT(Data[[#This Row],[Intended Use]],10)="Base Group", Data[[#This Row],[Intended Use]]="Turnout Const. (per sy)"),IF(AND(Data[[#This Row],[Thickness]]<>0,Data[[#This Row],[Total Thickness]]<>0,Data[[#This Row],[Area]]<>0),(Data[[#This Row],[Prorated Base]]/SUMIFS(Data[Prorated Base],Data[Intended Use],"="&Data[[#This Row],[Intended Use]]))*Data[[#This Row],[Total Thickness]],""), "") -> 0.00350516958 | BK48: =IF(OR(Data[[#This Row],[Roadway Type]]<>"",Data[[#This Row],[Roadway ID]]<>""),UPPER(Data[[#This Row],[Roadway Type]])&"~-~"&UPPER(Data[[#This Row],[Roadway ID]]),"") -> MAINLINE~-~SR-50 | BL48: =IF(AND(Data[[#This Row],[Quantity]]<>"",Data[[#This Row],[Total Thickness]]<>"",Data[[#This Row],[Total Thickness]]<>0,Data[[#This Row],[GmmGsb Value]]<>"",Data[[#This Row],[GmmGsb Value]]<>0),IF(Data[[#This Row],[Quantity]]>0,(Data[[#This Row],[Quantity]]*2000)/(Data[[#This Row],[Total Thickness]]*Data[[#This Row],[GmmGsb Value]]*43.3),0),"") -> 38.58203522
A49: 1 | B49: =IF(AND(Data[[#This Row],[Lot]]<>"",FIN<>""),FIN,"") -> 41673245201 | C49: =IF(AND(Data[[#This Row],[Lot]]<>"",ContractNumber<>""),ContractNumber,"") -> T7396 | D49: =IF(AND(Data[[#This Row],[Lot]]<>"",Contractor<>""),Contractor,"") -> APS | E49: =IF(AND(Data[[#This Row],[Lot]]<>"",BidDate<>""),BidDate,"") -> 2019-07-19 | F49: =IF(AND(Data[[#This Row],[Lot]]<>"",LumpSum<>""),LumpSum,"") -> No | G49: 4000 tons | H49: TRUE | I49: FALSE | J49: SP 14-12329B | K49: =IF(Data[[#This Row],[Mix Design Number]]<>"",IF(RIGHT(VLOOKUP(Data[[#This Row],[Mix Design Number]],MixDesign[],3,FALSE),1)=":",VLOOKUP(Data[[#This Row],[Mix Design Number]],MixDesign[],3,FALSE),VLOOKUP(Data[[#This Row],[Mix Design Number]],MixDesign[],3,FALSE)&":"),"") -> Gmm: | L49: =IF(Data[[#This Row],[Mix Design Number]]<>"",VLOOKUP(Data[[#This Row],[Mix Design Number]],MixDesign[],4,FALSE),"") -> 2.541 | M49: 20 | O49: 2020-10-05 | P49: Day | Q49: 1 | R49: 1 | S49: 1 | T49: Base Group 1 | U49: N | W49: OL | X49: Gore | Y49: 1 | Z49: 2 | AA49: 28052 | AB49: 28157 | AC49: 105 | AD49: 7 | AE49: 81.67 | AF49: 9.38 | AG49: 2 | AH49: 229.7 | AI49: =IF(OR(Data[[#This Row],[GmmGsb Value]]="",Data[[#This Row],[Thickness]]=""),"",IF(RIGHT(Data[[#This Row],[GmmGsb Type]],4)="Gsb:",ROUND(Data[[#This Row],[GmmGsb Value]]*Data[[#This Row],[Thickness]]*40.5,0),IF(Data[[#This Row],[GmmGsb Type]]="Gmm:",IF(Data[[#This Row],[Intended Use]]="Misc.",ROUND((Data[[#This Row],[GmmGsb Value]]/2.54)*(100*Data[[#This Row],[Thickness]]),0),ROUND(Data[[#This Row],[GmmGsb Value]]*Data[[#This Row],[Thickness]]*43.3,0)),""))) -> 220 | AJ49: 4 | AK49: =IF(Data[[#This Row],[Data Exists]]=FALSE,"",IF(LEFT(Data[[#This Row],[GmmGsb Type]],4)="ATPB",IF(AND(Data[[#This Row],[Start Station]]<>"",Data[[#This Row],[End Station]]<>"",Data[[#This Row],[Width]]<>"",Data[[#This Row],[Thickness]]<>"",Data[[#This Row],[Intended Use]]="ATPB"),Data[[#This Row],[Length]]*Data[[#This Row],[Width]]*Data[[#This Row],[Thickness]]/324,""),IF(Data[[#This Row],[Intended Use]]<>"",IF(UPPER(INDEX(EditablePayItems[],MATCH(IF(OR(RIGHT(Data[[#This Row],[Intended Use]],6)=" (opt)",RIGHT(Data[[#This Row],[Intended Use]],6)=" (req)"),LEFT(Data[[#This Row],[Intended Use]],LEN(Data[[#This Row],[Intended Use]])-6),Data[[#This Row],[Intended Use]]),EditablePayItems[IntendedUse],0),4))="PRORATED",IF(Data[[#This Row],[Total Thickness]]*Data[[#This Row],[Area]]<>0,Data[[#This Row],[Thickness]]/Data[[#This Row],[Total Thickness]]*Data[[#This Row],[Area]],0), ""),""))) -> 40.835 | AL49: V | AN49: J52006881-164 | AO49: 2021-02-26T07:11:37 | AP49: 2021-09-07T08:37:48 | AQ49: =IF(AND(Data[[#This Row],[Lot]]<>"",ProjectDateTimeStamp<>""),ProjectDateTimeStamp,"") -> 2023-10-05T10:35:05 | AR49: =IF(COUNTA(Data[[#This Row],[Lot]],Data[[#This Row],[Intended Lot Size]:[Mix Design Number]],Data[[#This Row],[Line Number]:[Spread Rate]],Data[[#This Row],[Total Thickness]],Data[[#This Row],[Varied Width Designation]:[Date Time Stamp]])>0,TRUE,FALSE) -> TRUE | AS49: =IF(Data[[#This Row],[Intended Use]]<>"",IF(VLOOKUP(Data[[#This Row],[Intended Use]],EditablePayItems[[IntendedUse]:[PayItemNumber]],6,FALSE)<>"",VLOOKUP(Data[[#This Row],[Intended Use]],EditablePayItems[[IntendedUse]:[PayItemNumber]],6,FALSE),""),"") -> 285701 | AT49: =IF(Data[[#This Row],[Date Paved]]<>"",VLOOKUP(Data[[#This Row],[Date Paved]],MonthlyCutOffDates[[Date From]:[MonthYear]],3),"") -> Dec 2018 | AU49: =IF(AND(Data[[#This Row],[Target Spread Rate]]<>"",Data[[#This Row],[Area]]<>""),Data[[#This Row],[Target Spread Rate]]*Data[[#This Row],[Area]]/2000,"") -> 8.9837 | AV49: Mainline | AW49: US-98 | AZ49: =MIN(Data[[#This Row],[Start Station]:[End Station]]) -> 28052 | BA49: =MAX(Data[[#This Row],[Start Station]:[End Station]]) -> 28157 | BB49: =IF(AND(Data[[#This Row],[Quantity]]<>"",Data[[#This Row],[GmmGsb Value]]<>""),Data[[#This Row],[Quantity]]*Data[[#This Row],[GmmGsb Value]],"") -> 23.83458 | BD49: TRUE | BE49: =IF(Data[[#This Row],[Pay Item Number]]<>"",IF(VLOOKUP(Data[[#This Row],[Intended Use]],EditablePayItems[[IntendedUse]:[Actual Quantity Paid]],2,FALSE)="Prorated",IF(LEFT(Data[[#This Row],[Intended Use]],4)="ATPB","Cubic Yards","Square Yards"),"Tons"),"") -> Square Yards | BF49: =Data[[#This Row],[Lot]]&"-"&Data[[#This Row],[Line Number]] -> 1-20 | BG49: =IF(Data[[#This Row],[Date Paved]]<>"",TEXT(Data[[#This Row],[Date Paved]],"mm/dd/yyyy")&" - "&Data[[#This Row],[Shift]]&" - Crew "&Data[[#This Row],[Crew]],"") -> 10/05/2020 - Day - Crew 1 | BH49: =IF(Data[[#This Row],[Date Paved]]<>"",TEXT(Data[[#This Row],[Date Paved]],"mm/dd/yyyy"),"") -> 10/05/2020 | BJ49: =IF(OR(LEFT(Data[[#This Row],[Intended Use]],10)="Base Group", Data[[#This Row],[Intended Use]]="Turnout Const. (per sy)"),IF(AND(Data[[#This Row],[Thickness]]<>0,Data[[#This Row],[Total Thickness]]<>0,Data[[#This Row],[Area]]<>0),(Data[[#This Row],[Prorated Base]]/SUMIFS(Data[Prorated Base],Data[Intended Use],"="&Data[[#This Row],[Intended Use]]))*Data[[#This Row],[Total Thickness]],""), "") -> 0.003874234667 | BK49: =IF(OR(Data[[#This Row],[Roadway Type]]<>"",Data[[#This Row],[Roadway ID]]<>""),UPPER(Data[[#This Row],[Roadway Type]])&"~-~"&UPPER(Data[[#This Row],[Roadway ID]]),"") -> MAINLINE~-~US-98 | BL49: =IF(AND(Data[[#This Row],[Quantity]]<>"",Data[[#This Row],[Total Thickness]]<>"",Data[[#This Row],[Total Thickness]]<>0,Data[[#This Row],[GmmGsb Value]]<>"",Data[[#This Row],[GmmGsb Value]]<>0),IF(Data[[#This Row],[Quantity]]>0,(Data[[#This Row],[Quantity]]*2000)/(Data[[#This Row],[Total Thickness]]*Data[[#This Row],[GmmGsb Value]]*43.3),0),"") -> 42.62655953
A50: 1 | B50: =IF(AND(Data[[#This Row],[Lot]]<>"",FIN<>""),FIN,"") -> 41673245201 | C50: =IF(AND(Data[[#This Row],[Lot]]<>"",ContractNumber<>""),ContractNumber,"") -> T7396 | D50: =IF(AND(Data[[#This Row],[Lot]]<>"",Contractor<>""),Contractor,"") -> APS | E50: =IF(AND(Data[[#This Row],[Lot]]<>"",BidDate<>""),BidDate,"") -> 2019-07-19 | F50: =IF(AND(Data[[#This Row],[Lot]]<>"",LumpSum<>""),LumpSum,"") -> No | G50: 4000 tons | H50: TRUE | I50: FALSE | J50: SP 14-12329B | K50: =IF(Data[[#This Row],[Mix Design Number]]<>"",IF(RIGHT(VLOOKUP(Data[[#This Row],[Mix Design Number]],MixDesign[],3,FALSE),1)=":",VLOOKUP(Data[[#This Row],[Mix Design Number]],MixDesign[],3,FALSE),VLOOKUP(Data[[#This Row],[Mix Design Number]],MixDesign[],3,FALSE)&":"),"") -> Gmm: | L50: =IF(Data[[#This Row],[Mix Design Number]]<>"",VLOOKUP(Data[[#This Row],[Mix Design Number]],MixDesign[],4,FALSE),"") -> 2.541 | M50: 21 | O50: 2020-10-05 | P50: Day | Q50: 1 | R50: 1 | S50: 1-4 | T50: Base Group 1 | U50: Y | W50: L1 | Y50: 2 | Z50: 2 | AA50: 27700 | AB50: 28052 | AC50: 352 | AD50: 12 | AE50: 469.33 | AF50: 53.89 | AG50: 2 | AH50: 229.65 | AI50: =IF(OR(Data[[#This Row],[GmmGsb Value]]="",Data[[#This Row],[Thickness]]=""),"",IF(RIGHT(Data[[#This Row],[GmmGsb Type]],4)="Gsb:",ROUND(Data[[#This Row],[GmmGsb Value]]*Data[[#This Row],[Thickness]]*40.5,0),IF(Data[[#This Row],[GmmGsb Type]]="Gmm:",IF(Data[[#This Row],[Intended Use]]="Misc.",ROUND((Data[[#This Row],[GmmGsb Value]]/2.54)*(100*Data[[#This Row],[Thickness]]),0),ROUND(Data[[#This Row],[GmmGsb Value]]*Data[[#This Row],[Thickness]]*43.3,0)),""))) -> 220 | AJ50: 4 | AK50: =IF(Data[[#This Row],[Data Exists]]=FALSE,"",IF(LEFT(Data[[#This Row],[GmmGsb Type]],4)="ATPB",IF(AND(Data[[#This Row],[Start Station]]<>"",Data[[#This Row],[End Station]]<>"",Data[[#This Row],[Width]]<>"",Data[[#This Row],[Thickness]]<>"",Data[[#This Row],[Intended Use]]="ATPB"),Data[[#This Row],[Length]]*Data[[#This Row],[Width]]*Data[[#This Row],[Thickness]]/324,""),IF(Data[[#This Row],[Intended Use]]<>"",IF(UPPER(INDEX(EditablePayItems[],MATCH(IF(OR(RIGHT(Data[[#This Row],[Intended Use]],6)=" (opt)",RIGHT(Data[[#This Row],[Intended Use]],6)=" (req)"),LEFT(Data[[#This Row],[Intended Use]],LEN(Data[[#This Row],[Intended Use]])-6),Data[[#This Row],[Intended Use]]),EditablePayItems[IntendedUse],0),4))="PRORATED",IF(Data[[#This Row],[Total Thickness]]*Data[[#This Row],[Area]]<>0,Data[[#This Row],[Thickness]]/Data[[#This Row],[Total Thickness]]*Data[[#This Row],[Area]],0), ""),""))) -> 234.665 | AL50: C | AN50: J52006881-164 | AO50: 2021-02-26T07:11:37 | AP50: 2021-09-07T08:37:48 | AQ50: =IF(AND(Data[[#This Row],[Lot]]<>"",ProjectDateTimeStamp<>""),ProjectDateTimeStamp,"") -> 2023-10-05T10:35:05 | AR50: =IF(COUNTA(Data[[#This Row],[Lot]],Data[[#This Row],[Intended Lot Size]:[Mix Design Number]],Data[[#This Row],[Line Number]:[Spread Rate]],Data[[#This Row],[Total Thickness]],Data[[#This Row],[Varied Width Designation]:[Date Time Stamp]])>0,TRUE,FALSE) -> TRUE | AS50: =IF(Data[[#This Row],[Intended Use]]<>"",IF(VLOOKUP(Data[[#This Row],[Intended Use]],EditablePayItems[[IntendedUse]:[PayItemNumber]],6,FALSE)<>"",VLOOKUP(Data[[#This Row],[Intended Use]],EditablePayItems[[IntendedUse]:[PayItemNumber]],6,FALSE),""),"") -> 285701 | AT50: =IF(Data[[#This Row],[Date Paved]]<>"",VLOOKUP(Data[[#This Row],[Date Paved]],MonthlyCutOffDates[[Date From]:[MonthYear]],3),"") -> Dec 2018 | AU50: =IF(AND(Data[[#This Row],[Target Spread Rate]]<>"",Data[[#This Row],[Area]]<>""),Data[[#This Row],[Target Spread Rate]]*Data[[#This Row],[Area]]/2000,"") -> 51.6263 | AV50: Mainline | AW50: US-98 | AZ50: =MIN(Data[[#This Row],[Start Station]:[End Station]]) -> 27700 | BA50: =MAX(Data[[#This Row],[Start Station]:[End Station]]) -> 28052 | BB50: =IF(AND(Data[[#This Row],[Quantity]]<>"",Data[[#This Row],[GmmGsb Value]]<>""),Data[[#This Row],[Quantity]]*Data[[#This Row],[GmmGsb Value]],"") -> 136.93449 | BD50: TRUE | BE50: =IF(Data[[#This Row],[Pay Item Number]]<>"",IF(VLOOKUP(Data[[#This Row],[Intended Use]],EditablePayItems[[IntendedUse]:[Actual Quantity Paid]],2,FALSE)="Prorated",IF(LEFT(Data[[#This Row],[Intended Use]],4)="ATPB","Cubic Yards","Square Yards"),"Tons"),"") -> Square Yards | BF50: =Data[[#This Row],[Lot]]&"-"&Data[[#This Row],[Line Number]] -> 1-21 | BG50: =IF(Data[[#This Row],[Date Paved]]<>"",TEXT(Data[[#This Row],[Date Paved]],"mm/dd/yyyy")&" - "&Data[[#This Row],[Shift]]&" - Crew "&Data[[#This Row],[Crew]],"") -> 10/05/2020 - Day - Crew 1 | BH50: =IF(Data[[#This Row],[Date Paved]]<>"",TEXT(Data[[#This Row],[Date Paved]],"mm/dd/yyyy"),"") -> 10/05/2020 | BJ50: =IF(OR(LEFT(Data[[#This Row],[Intended Use]],10)="Base Group", Data[[#This Row],[Intended Use]]="Turnout Const. (per sy)"),IF(AND(Data[[#This Row],[Thickness]]<>0,Data[[#This Row],[Total Thickness]]<>0,Data[[#This Row],[Area]]<>0),(Data[[#This Row],[Prorated Base]]/SUMIFS(Data[Prorated Base],Data[Intended Use],"="&Data[[#This Row],[Intended Use]]))*Data[[#This Row],[Total Thickness]],""), "") -> 0.02226392257 | BK50: =IF(OR(Data[[#This Row],[Roadway Type]]<>"",Data[[#This Row],[Roadway ID]]<>""),UPPER(Data[[#This Row],[Roadway Type]])&"~-~"&UPPER(Data[[#This Row],[Roadway ID]]),"") -> MAINLINE~-~US-98 | BL50: =IF(AND(Data[[#This Row],[Quantity]]<>"",Data[[#This Row],[Total Thickness]]<>"",Data[[#This Row],[Total Thickness]]<>0,Data[[#This Row],[GmmGsb Value]]<>"",Data[[#This Row],[GmmGsb Value]]<>0),IF(Data[[#This Row],[Quantity]]>0,(Data[[#This Row],[Quantity]]*2000)/(Data[[#This Row],[Total Thickness]]*Data[[#This Row],[GmmGsb Value]]*43.3),0),"") -> 244.8982189
A51: 1 | B51: =IF(AND(Data[[#This Row],[Lot]]<>"",FIN<>""),FIN,"") -> 41673245201 | C51: =IF(AND(Data[[#This Row],[Lot]]<>"",ContractNumber<>""),ContractNumber,"") -> T7396 | D51: =IF(AND(Data[[#This Row],[Lot]]<>"",Contractor<>""),Contractor,"") -> APS | E51: =IF(AND(Data[[#This Row],[Lot]]<>"",BidDate<>""),BidDate,"") -> 2019-07-19 | F51: =IF(AND(Data[[#This Row],[Lot]]<>"",LumpSum<>""),LumpSum,"") -> No | G51: 4000 tons | H51: TRUE | I51: FALSE | J51: SP 14-12329B | K51: =IF(Data[[#This Row],[Mix Design Number]]<>"",IF(RIGHT(VLOOKUP(Data[[#This Row],[Mix Design Number]],MixDesign[],3,FALSE),1)=":",VLOOKUP(Data[[#This Row],[Mix Design Number]],MixDesign[],3,FALSE),VLOOKUP(Data[[#This Row],[Mix Design Number]],MixDesign[],3,FALSE)&":"),"") -> Gmm: | L51: =IF(Data[[#This Row],[Mix Design Number]]<>"",VLOOKUP(Data[[#This Row],[Mix Design Number]],MixDesign[],4,FALSE),"") -> 2.541 | M51: 22 | O51: 2020-10-05 | P51: Day | Q51: 1 | R51: 1 | S51: 4-5 | T51: Base Group 1 | U51: Y | W51: L1 | Y51: 2 | Z51: 2 | AA51: 28052 | AB51: 28157 | AC51: 105 | AD51: 12 | AE51: 140 | AF51: 16.1 | AG51: 2 | AH51: 230 | AI51: =IF(OR(Data[[#This Row],[GmmGsb Value]]="",Data[[#This Row],[Thickness]]=""),"",IF(RIGHT(Data[[#This Row],[GmmGsb Type]],4)="Gsb:",ROUND(Data[[#This Row],[GmmGsb Value]]*Data[[#This Row],[Thickness]]*40.5,0),IF(Data[[#This Row],[GmmGsb Type]]="Gmm:",IF(Data[[#This Row],[Intended Use]]="Misc.",ROUND((Data[[#This Row],[GmmGsb Value]]/2.54)*(100*Data[[#This Row],[Thickness]]),0),ROUND(Data[[#This Row],[GmmGsb Value]]*Data[[#This Row],[Thickness]]*43.3,0)),""))) -> 220 | AJ51: 4 | AK51: =IF(Data[[#This Row],[Data Exists]]=FALSE,"",IF(LEFT(Data[[#This Row],[GmmGsb Type]],4)="ATPB",IF(AND(Data[[#This Row],[Start Station]]<>"",Data[[#This Row],[End Station]]<>"",Data[[#This Row],[Width]]<>"",Data[[#This Row],[Thickness]]<>"",Data[[#This Row],[Intended Use]]="ATPB"),Data[[#This Row],[Length]]*Data[[#This Row],[Width]]*Data[[#This Row],[Thickness]]/324,""),IF(Data[[#This Row],[Intended Use]]<>"",IF(UPPER(INDEX(EditablePayItems[],MATCH(IF(OR(RIGHT(Data[[#This Row],[Intended Use]],6)=" (opt)",RIGHT(Data[[#This Row],[Intended Use]],6)=" (req)"),LEFT(Data[[#This Row],[Intended Use]],LEN(Data[[#This Row],[Intended Use]])-6),Data[[#This Row],[Intended Use]]),EditablePayItems[IntendedUse],0),4))="PRORATED",IF(Data[[#This Row],[Total Thickness]]*Data[[#This Row],[Area]]<>0,Data[[#This Row],[Thickness]]/Data[[#This Row],[Total Thickness]]*Data[[#This Row],[Area]],0), ""),""))) -> 70 | AL51: C | AN51: J52006881-164 | AO51: 2021-02-26T07:11:37 | AP51: 2021-09-07T08:37:48 | AQ51: =IF(AND(Data[[#This Row],[Lot]]<>"",ProjectDateTimeStamp<>""),ProjectDateTimeStamp,"") -> 2023-10-05T10:35:05 | AR51: =IF(COUNTA(Data[[#This Row],[Lot]],Data[[#This Row],[Intended Lot Size]:[Mix Design Number]],Data[[#This Row],[Line Number]:[Spread Rate]],Data[[#This Row],[Total Thickness]],Data[[#This Row],[Varied Width Designation]:[Date Time Stamp]])>0,TRUE,FALSE) -> TRUE | AS51: =IF(Data[[#This Row],[Intended Use]]<>"",IF(VLOOKUP(Data[[#This Row],[Intended Use]],EditablePayItems[[IntendedUse]:[PayItemNumber]],6,FALSE)<>"",VLOOKUP(Data[[#This Row],[Intended Use]],EditablePayItems[[IntendedUse]:[PayItemNumber]],6,FALSE),""),"") -> 285701 | AT51: =IF(Data[[#This Row],[Date Paved]]<>"",VLOOKUP(Data[[#This Row],[Date Paved]],MonthlyCutOffDates[[Date From]:[MonthYear]],3),"") -> Dec 2018 | AU51: =IF(AND(Data[[#This Row],[Target Spread Rate]]<>"",Data[[#This Row],[Area]]<>""),Data[[#This Row],[Target Spread Rate]]*Data[[#This Row],[Area]]/2000,"") -> 15.4 | AV51: Mainline | AW51: US-98 | AZ51: =MIN(Data[[#This Row],[Start Station]:[End Station]]) -> 28052 | BA51: =MAX(Data[[#This Row],[Start Station]:[End Station]]) -> 28157 | BB51: =IF(AND(Data[[#This Row],[Quantity]]<>"",Data[[#This Row],[GmmGsb Value]]<>""),Data[[#This Row],[Quantity]]*Data[[#This Row],[GmmGsb Value]],"") -> 40.9101 | BD51: TRUE | BE51: =IF(Data[[#This Row],[Pay Item Number]]<>"",IF(VLOOKUP(Data[[#This Row],[Intended Use]],EditablePayItems[[IntendedUse]:[Actual Quantity Paid]],2,FALSE)="Prorated",IF(LEFT(Data[[#This Row],[Intended Use]],4)="ATPB","Cubic Yards","Square Yards"),"Tons"),"") -> Square Yards | BF51: =Data[[#This Row],[Lot]]&"-"&Data[[#This Row],[Line Number]] -> 1-22 | BG51: =IF(Data[[#This Row],[Date Paved]]<>"",TEXT(Data[[#This Row],[Date Paved]],"mm/dd/yyyy")&" - "&Data[[#This Row],[Shift]]&" - Crew "&Data[[#This Row],[Crew]],"") -> 10/05/2020 - Day - Crew 1 | BH51: =IF(Data[[#This Row],[Date Paved]]<>"",TEXT(Data[[#This Row],[Date Paved]],"mm/dd/yyyy"),"") -> 10/05/2020 | BJ51: =IF(OR(LEFT(Data[[#This Row],[Intended Use]],10)="Base Group", Data[[#This Row],[Intended Use]]="Turnout Const. (per sy)"),IF(AND(Data[[#This Row],[Thickness]]<>0,Data[[#This Row],[Total Thickness]]<>0,Data[[#This Row],[Area]]<>0),(Data[[#This Row],[Prorated Base]]/SUMIFS(Data[Prorated Base],Data[Intended Use],"="&Data[[#This Row],[Intended Use]]))*Data[[#This Row],[Total Thickness]],""), "") -> 0.006641274072 | BK51: =IF(OR(Data[[#This Row],[Roadway Type]]<>"",Data[[#This Row],[Roadway ID]]<>""),UPPER(Data[[#This Row],[Roadway Type]])&"~-~"&UPPER(Data[[#This Row],[Roadway ID]]),"") -> MAINLINE~-~US-98 | BL51: =IF(AND(Data[[#This Row],[Quantity]]<>"",Data[[#This Row],[Total Thickness]]<>"",Data[[#This Row],[Total Thickness]]<>0,Data[[#This Row],[GmmGsb Value]]<>"",Data[[#This Row],[GmmGsb Value]]<>0),IF(Data[[#This Row],[Quantity]]>0,(Data[[#This Row],[Quantity]]*2000)/(Data[[#This Row],[Total Thickness]]*Data[[#This Row],[GmmGsb Value]]*43.3),0),"") -> 73.16499023
A52: 1 | B52: =IF(AND(Data[[#This Row],[Lot]]<>"",FIN<>""),FIN,"") -> 41673245201 | C52: =IF(AND(Data[[#This Row],[Lot]]<>"",ContractNumber<>""),ContractNumber,"") -> T7396 | D52: =IF(AND(Data[[#This Row],[Lot]]<>"",Contractor<>""),Contractor,"") -> APS | E52: =IF(AND(Data[[#This Row],[Lot]]<>"",BidDate<>""),BidDate,"") -> 2019-07-19 | F52: =IF(AND(Data[[#This Row],[Lot]]<>"",LumpSum<>""),LumpSum,"") -> No | G52: 4000 tons | H52: TRUE | I52: FALSE | J52: SP 14-12329B | K52: =IF(Data[[#This Row],[Mix Design Number]]<>"",IF(RIGHT(VLOOKUP(Data[[#This Row],[Mix Design Number]],MixDesign[],3,FALSE),1)=":",VLOOKUP(Data[[#This Row],[Mix Design Number]],MixDesign[],3,FALSE),VLOOKUP(Data[[#This Row],[Mix Design Number]],MixDesign[],3,FALSE)&":"),"") -> Gmm: | L52: =IF(Data[[#This Row],[Mix Design Number]]<>"",VLOOKUP(Data[[#This Row],[Mix Design Number]],MixDesign[],4,FALSE),"") -> 2.541 | M52: 23 | O52: 2020-10-05 | P52: Day | Q52: 1 | R52: 1 | S52: 5-7 | T52: Base Group 1 | U52: Y | W52: L1 | Y52: 2 | Z52: 2 | AA52: 28157 | AB52: 28435 | AC52: 278 | AD52: 12 | AE52: 370.67 | AF52: 42.57 | AG52: 2 | AH52: 229.69 | AI52: =IF(OR(Data[[#This Row],[GmmGsb Value]]="",Data[[#This Row],[Thickness]]=""),"",IF(RIGHT(Data[[#This Row],[GmmGsb Type]],4)="Gsb:",ROUND(Data[[#This Row],[GmmGsb Value]]*Data[[#This Row],[Thickness]]*40.5,0),IF(Data[[#This Row],[GmmGsb Type]]="Gmm:",IF(Data[[#This Row],[Intended Use]]="Misc.",ROUND((Data[[#This Row],[GmmGsb Value]]/2.54)*(100*Data[[#This Row],[Thickness]]),0),ROUND(Data[[#This Row],[GmmGsb Value]]*Data[[#This Row],[Thickness]]*43.3,0)),""))) -> 220 | AJ52: 4 | AK52: =IF(Data[[#This Row],[Data Exists]]=FALSE,"",IF(LEFT(Data[[#This Row],[GmmGsb Type]],4)="ATPB",IF(AND(Data[[#This Row],[Start Station]]<>"",Data[[#This Row],[End Station]]<>"",Data[[#This Row],[Width]]<>"",Data[[#This Row],[Thickness]]<>"",Data[[#This Row],[Intended Use]]="ATPB"),Data[[#This Row],[Length]]*Data[[#This Row],[Width]]*Data[[#This Row],[Thickness]]/324,""),IF(Data[[#This Row],[Intended Use]]<>"",IF(UPPER(INDEX(EditablePayItems[],MATCH(IF(OR(RIGHT(Data[[#This Row],[Intended Use]],6)=" (opt)",RIGHT(Data[[#This Row],[Intended Use]],6)=" (req)"),LEFT(Data[[#This Row],[Intended Use]],LEN(Data[[#This Row],[Intended Use]])-6),Data[[#This Row],[Intended Use]]),EditablePayItems[IntendedUse],0),4))="PRORATED",IF(Data[[#This Row],[Total Thickness]]*Data[[#This Row],[Area]]<>0,Data[[#This Row],[Thickness]]/Data[[#This Row],[Total Thickness]]*Data[[#This Row],[Area]],0), ""),""))) -> 185.335 | AL52: C | AN52: J52006881-164 | AO52: 2021-02-26T07:11:37 | AP52: 2021-09-07T08:37:48 | AQ52: =IF(AND(Data[[#This Row],[Lot]]<>"",ProjectDateTimeStamp<>""),ProjectDateTimeStamp,"") -> 2023-10-05T10:35:05 | AR52: =IF(COUNTA(Data[[#This Row],[Lot]],Data[[#This Row],[Intended Lot Size]:[Mix Design Number]],Data[[#This Row],[Line Number]:[Spread Rate]],Data[[#This Row],[Total Thickness]],Data[[#This Row],[Varied Width Designation]:[Date Time Stamp]])>0,TRUE,FALSE) -> TRUE | AS52: =IF(Data[[#This Row],[Intended Use]]<>"",IF(VLOOKUP(Data[[#This Row],[Intended Use]],EditablePayItems[[IntendedUse]:[PayItemNumber]],6,FALSE)<>"",VLOOKUP(Data[[#This Row],[Intended Use]],EditablePayItems[[IntendedUse]:[PayItemNumber]],6,FALSE),""),"") -> 285701 | AT52: =IF(Data[[#This Row],[Date Paved]]<>"",VLOOKUP(Data[[#This Row],[Date Paved]],MonthlyCutOffDates[[Date From]:[MonthYear]],3),"") -> Dec 2018 | AU52: =IF(AND(Data[[#This Row],[Target Spread Rate]]<>"",Data[[#This Row],[Area]]<>""),Data[[#This Row],[Target Spread Rate]]*Data[[#This Row],[Area]]/2000,"") -> 40.7737 | AV52: Mainline | AW52: US-98 | AZ52: =MIN(Data[[#This Row],[Start Station]:[End Station]]) -> 28157 | BA52: =MAX(Data[[#This Row],[Start Station]:[End Station]]) -> 28435 | BB52: =IF(AND(Data[[#This Row],[Quantity]]<>"",Data[[#This Row],[GmmGsb Value]]<>""),Data[[#This Row],[Quantity]]*Data[[#This Row],[GmmGsb Value]],"") -> 108.17037 | BD52: TRUE | BE52: =IF(Data[[#This Row],[Pay Item Number]]<>"",IF(VLOOKUP(Data[[#This Row],[Intended Use]],EditablePayItems[[IntendedUse]:[Actual Quantity Paid]],2,FALSE)="Prorated",IF(LEFT(Data[[#This Row],[Intended Use]],4)="ATPB","Cubic Yards","Square Yards"),"Tons"),"") -> Square Yards | BF52: =Data[[#This Row],[Lot]]&"-"&Data[[#This Row],[Line Number]] -> 1-23 | BG52: =IF(Data[[#This Row],[Date Paved]]<>"",TEXT(Data[[#This Row],[Date Paved]],"mm/dd/yyyy")&" - "&Data[[#This Row],[Shift]]&" - Crew "&Data[[#This Row],[Crew]],"") -> 10/05/2020 - Day - Crew 1 | BH52: =IF(Data[[#This Row],[Date Paved]]<>"",TEXT(Data[[#This Row],[Date Paved]],"mm/dd/yyyy"),"") -> 10/05/2020 | BJ52: =IF(OR(LEFT(Data[[#This Row],[Intended Use]],10)="Base Group", Data[[#This Row],[Intended Use]]="Turnout Const. (per sy)"),IF(AND(Data[[#This Row],[Thickness]]<>0,Data[[#This Row],[Total Thickness]]<>0,Data[[#This Row],[Area]]<>0),(Data[[#This Row],[Prorated Base]]/SUMIFS(Data[Prorated Base],Data[Intended Use],"="&Data[[#This Row],[Intended Use]]))*Data[[#This Row],[Total Thickness]],""), "") -> 0.01758372186 | BK52: =IF(OR(Data[[#This Row],[Roadway Type]]<>"",Data[[#This Row],[Roadway ID]]<>""),UPPER(Data[[#This Row],[Roadway Type]])&"~-~"&UPPER(Data[[#This Row],[Roadway ID]]),"") -> MAINLINE~-~US-98 | BL52: =IF(AND(Data[[#This Row],[Quantity]]<>"",Data[[#This Row],[Total Thickness]]<>"",Data[[#This Row],[Total Thickness]]<>0,Data[[#This Row],[GmmGsb Value]]<>"",Data[[#This Row],[GmmGsb Value]]<>0),IF(Data[[#This Row],[Quantity]]>0,(Data[[#This Row],[Quantity]]*2000)/(Data[[#This Row],[Total Thickness]]*Data[[#This Row],[GmmGsb Value]]*43.3),0),"") -> 193.4555052
A53: 1 | B53: =IF(AND(Data[[#This Row],[Lot]]<>"",FIN<>""),FIN,"") -> 41673245201 | C53: =IF(AND(Data[[#This Row],[Lot]]<>"",ContractNumber<>""),ContractNumber,"") -> T7396 | D53: =IF(AND(Data[[#This Row],[Lot]]<>"",Contractor<>""),Contractor,"") -> APS | E53: =IF(AND(Data[[#This Row],[Lot]]<>"",BidDate<>""),BidDate,"") -> 2019-07-19 | F53: =IF(AND(Data[[#This Row],[Lot]]<>"",LumpSum<>""),LumpSum,"") -> No | G53: 4000 tons | H53: TRUE | I53: FALSE | J53: SP 14-12329B | K53: =IF(Data[[#This Row],[Mix Design Number]]<>"",IF(RIGHT(VLOOKUP(Data[[#This Row],[Mix Design Number]],MixDesign[],3,FALSE),1)=":",VLOOKUP(Data[[#This Row],[Mix Design Number]],MixDesign[],3,FALSE),VLOOKUP(Data[[#This Row],[Mix Design Number]],MixDesign[],3,FALSE)&":"),"") -> Gmm: | L53: =IF(Data[[#This Row],[Mix Design Number]]<>"",VLOOKUP(Data[[#This Row],[Mix Design Number]],MixDesign[],4,FALSE),"") -> 2.541 | M53: 24 | O53: 2020-10-05 | P53: Day | Q53: 1 | R53: 1 | S53: 7-8 | T53: Base Group 1 | U53: Y | W53: OL | Y53: 2 | Z53: 2 | AA53: 28157 | AB53: 28435 | AC53: 278 | AD53: 5 | AE53: 154.44 | AF53: 21.28 | AG53: 2 | AH53: 275.58 | AI53: =IF(OR(Data[[#This Row],[GmmGsb Value]]="",Data[[#This Row],[Thickness]]=""),"",IF(RIGHT(Data[[#This Row],[GmmGsb Type]],4)="Gsb:",ROUND(Data[[#This Row],[GmmGsb Value]]*Data[[#This Row],[Thickness]]*40.5,0),IF(Data[[#This Row],[GmmGsb Type]]="Gmm:",IF(Data[[#This Row],[Intended Use]]="Misc.",ROUND((Data[[#This Row],[GmmGsb Value]]/2.54)*(100*Data[[#This Row],[Thickness]]),0),ROUND(Data[[#This Row],[GmmGsb Value]]*Data[[#This Row],[Thickness]]*43.3,0)),""))) -> 220 | AJ53: 4 | AK53: =IF(Data[[#This Row],[Data Exists]]=FALSE,"",IF(LEFT(Data[[#This Row],[GmmGsb Type]],4)="ATPB",IF(AND(Data[[#This Row],[Start Station]]<>"",Data[[#This Row],[End Station]]<>"",Data[[#This Row],[Width]]<>"",Data[[#This Row],[Thickness]]<>"",Data[[#This Row],[Intended Use]]="ATPB"),Data[[#This Row],[Length]]*Data[[#This Row],[Width]]*Data[[#This Row],[Thickness]]/324,""),IF(Data[[#This Row],[Intended Use]]<>"",IF(UPPER(INDEX(EditablePayItems[],MATCH(IF(OR(RIGHT(Data[[#This Row],[Intended Use]],6)=" (opt)",RIGHT(Data[[#This Row],[Intended Use]],6)=" (req)"),LEFT(Data[[#This Row],[Intended Use]],LEN(Data[[#This Row],[Intended Use]])-6),Data[[#This Row],[Intended Use]]),EditablePayItems[IntendedUse],0),4))="PRORATED",IF(Data[[#This Row],[Total Thickness]]*Data[[#This Row],[Area]]<>0,Data[[#This Row],[Thickness]]/Data[[#This Row],[Total Thickness]]*Data[[#This Row],[Area]],0), ""),""))) -> 77.22 | AL53: C | AN53: J52006881-164 | AO53: 2021-02-26T07:11:37 | AP53: 2021-09-07T08:37:48 | AQ53: =IF(AND(Data[[#This Row],[Lot]]<>"",ProjectDateTimeStamp<>""),ProjectDateTimeStamp,"") -> 2023-10-05T10:35:05 | AR53: =IF(COUNTA(Data[[#This Row],[Lot]],Data[[#This Row],[Intended Lot Size]:[Mix Design Number]],Data[[#This Row],[Line Number]:[Spread Rate]],Data[[#This Row],[Total Thickness]],Data[[#This Row],[Varied Width Designation]:[Date Time Stamp]])>0,TRUE,FALSE) -> TRUE | AS53: =IF(Data[[#This Row],[Intended Use]]<>"",IF(VLOOKUP(Data[[#This Row],[Intended Use]],EditablePayItems[[IntendedUse]:[PayItemNumber]],6,FALSE)<>"",VLOOKUP(Data[[#This Row],[Intended Use]],EditablePayItems[[IntendedUse]:[PayItemNumber]],6,FALSE),""),"") -> 285701 | AT53: =IF(Data[[#This Row],[Date Paved]]<>"",VLOOKUP(Data[[#This Row],[Date Paved]],MonthlyCutOffDates[[Date From]:[MonthYear]],3),"") -> Dec 2018 | AU53: =IF(AND(Data[[#This Row],[Target Spread Rate]]<>"",Data[[#This Row],[Area]]<>""),Data[[#This Row],[Target Spread Rate]]*Data[[#This Row],[Area]]/2000,"") -> 16.9884 | AV53: Mainline | AW53: US-98 | AZ53: =MIN(Data[[#This Row],[Start Station]:[End Station]]) -> 28157 | BA53: =MAX(Data[[#This Row],[Start Station]:[End Station]]) -> 28435 | BB53: =IF(AND(Data[[#This Row],[Quantity]]<>"",Data[[#This Row],[GmmGsb Value]]<>""),Data[[#This Row],[Quantity]]*Data[[#This Row],[GmmGsb Value]],"") -> 54.07248 | BD53: TRUE | BE53: =IF(Data[[#This Row],[Pay Item Number]]<>"",IF(VLOOKUP(Data[[#This Row],[Intended Use]],EditablePayItems[[IntendedUse]:[Actual Quantity Paid]],2,FALSE)="Prorated",IF(LEFT(Data[[#This Row],[Intended Use]],4)="ATPB","Cubic Yards","Square Yards"),"Tons"),"") -> Square Yards | BF53: =Data[[#This Row],[Lot]]&"-"&Data[[#This Row],[Line Number]] -> 1-24 | BG53: =IF(Data[[#This Row],[Date Paved]]<>"",TEXT(Data[[#This Row],[Date Paved]],"mm/dd/yyyy")&" - "&Data[[#This Row],[Shift]]&" - Crew "&Data[[#This Row],[Crew]],"") -> 10/05/2020 - Day - Crew 1 | BH53: =IF(Data[[#This Row],[Date Paved]]<>"",TEXT(Data[[#This Row],[Date Paved]],"mm/dd/yyyy"),"") -> 10/05/2020 | BJ53: =IF(OR(LEFT(Data[[#This Row],[Intended Use]],10)="Base Group", Data[[#This Row],[Intended Use]]="Turnout Const. (per sy)"),IF(AND(Data[[#This Row],[Thickness]]<>0,Data[[#This Row],[Total Thickness]]<>0,Data[[#This Row],[Area]]<>0),(Data[[#This Row],[Prorated Base]]/SUMIFS(Data[Prorated Base],Data[Intended Use],"="&Data[[#This Row],[Intended Use]]))*Data[[#This Row],[Total Thickness]],""), "") -> 0.007326274054 | BK53: =IF(OR(Data[[#This Row],[Roadway Type]]<>"",Data[[#This Row],[Roadway ID]]<>""),UPPER(Data[[#This Row],[Roadway Type]])&"~-~"&UPPER(Data[[#This Row],[Roadway ID]]),"") -> MAINLINE~-~US-98 | BL53: =IF(AND(Data[[#This Row],[Quantity]]<>"",Data[[#This Row],[Total Thickness]]<>"",Data[[#This Row],[Total Thickness]]<>0,Data[[#This Row],[GmmGsb Value]]<>"",Data[[#This Row],[GmmGsb Value]]<>0),IF(Data[[#This Row],[Quantity]]>0,(Data[[#This Row],[Quantity]]*2000)/(Data[[#This Row],[Total Thickness]]*Data[[#This Row],[GmmGsb Value]]*43.3),0),"") -> 96.70503057
A54: 1 | B54: =IF(AND(Data[[#This Row],[Lot]]<>"",FIN<>""),FIN,"") -> 41673245201 | C54: =IF(AND(Data[[#This Row],[Lot]]<>"",ContractNumber<>""),ContractNumber,"") -> T7396 | D54: =IF(AND(Data[[#This Row],[Lot]]<>"",Contractor<>""),Contractor,"") -> APS | E54: =IF(AND(Data[[#This Row],[Lot]]<>"",BidDate<>""),BidDate,"") -> 2019-07-19 | F54: =IF(AND(Data[[#This Row],[Lot]]<>"",LumpSum<>""),LumpSum,"") -> No | G54: 4000 tons | H54: TRUE | I54: FALSE | J54: SP 14-12329B | K54: =IF(Data[[#This Row],[Mix Design Number]]<>"",IF(RIGHT(VLOOKUP(Data[[#This Row],[Mix Design Number]],MixDesign[],3,FALSE),1)=":",VLOOKUP(Data[[#This Row],[Mix Design Number]],MixDesign[],3,FALSE),VLOOKUP(Data[[#This Row],[Mix Design Number]],MixDesign[],3,FALSE)&":"),"") -> Gmm: | L54: =IF(Data[[#This Row],[Mix Design Number]]<>"",VLOOKUP(Data[[#This Row],[Mix Design Number]],MixDesign[],4,FALSE),"") -> 2.541 | M54: 25 | O54: 2020-10-05 | P54: Day | Q54: 1 | R54: 1 | S54: 8-11 | T54: Base Group 1 | U54: Y | W54: LT | X54: Merge Lane | Y54: 2 | Z54: 2 | AA54: 27700 | AB54: 28000 | AC54: 300 | AD54: 12 | AE54: 400 | AF54: 45.94 | AG54: 2 | AH54: 229.7 | AI54: =IF(OR(Data[[#This Row],[GmmGsb Value]]="",Data[[#This Row],[Thickness]]=""),"",IF(RIGHT(Data[[#This Row],[GmmGsb Type]],4)="Gsb:",ROUND(Data[[#This Row],[GmmGsb Value]]*Data[[#This Row],[Thickness]]*40.5,0),IF(Data[[#This Row],[GmmGsb Type]]="Gmm:",IF(Data[[#This Row],[Intended Use]]="Misc.",ROUND((Data[[#This Row],[GmmGsb Value]]/2.54)*(100*Data[[#This Row],[Thickness]]),0),ROUND(Data[[#This Row],[GmmGsb Value]]*Data[[#This Row],[Thickness]]*43.3,0)),""))) -> 220 | AJ54: 4 | AK54: =IF(Data[[#This Row],[Data Exists]]=FALSE,"",IF(LEFT(Data[[#This Row],[GmmGsb Type]],4)="ATPB",IF(AND(Data[[#This Row],[Start Station]]<>"",Data[[#This Row],[End Station]]<>"",Data[[#This Row],[Width]]<>"",Data[[#This Row],[Thickness]]<>"",Data[[#This Row],[Intended Use]]="ATPB"),Data[[#This Row],[Length]]*Data[[#This Row],[Width]]*Data[[#This Row],[Thickness]]/324,""),IF(Data[[#This Row],[Intended Use]]<>"",IF(UPPER(INDEX(EditablePayItems[],MATCH(IF(OR(RIGHT(Data[[#This Row],[Intended Use]],6)=" (opt)",RIGHT(Data[[#This Row],[Intended Use]],6)=" (req)"),LEFT(Data[[#This Row],[Intended Use]],LEN(Data[[#This Row],[Intended Use]])-6),Data[[#This Row],[Intended Use]]),EditablePayItems[IntendedUse],0),4))="PRORATED",IF(Data[[#This Row],[Total Thickness]]*Data[[#This Row],[Area]]<>0,Data[[#This Row],[Thickness]]/Data[[#This Row],[Total Thickness]]*Data[[#This Row],[Area]],0), ""),""))) -> 200 | AL54: C | AN54: J52006881-164 | AO54: 2021-02-26T07:11:37 | AP54: 2021-09-07T08:37:48 | AQ54: =IF(AND(Data[[#This Row],[Lot]]<>"",ProjectDateTimeStamp<>""),ProjectDateTimeStamp,"") -> 2023-10-05T10:35:05 | AR54: =IF(COUNTA(Data[[#This Row],[Lot]],Data[[#This Row],[Intended Lot Size]:[Mix Design Number]],Data[[#This Row],[Line Number]:[Spread Rate]],Data[[#This Row],[Total Thickness]],Data[[#This Row],[Varied Width Designation]:[Date Time Stamp]])>0,TRUE,FALSE) -> TRUE | AS54: =IF(Data[[#This Row],[Intended Use]]<>"",IF(VLOOKUP(Data[[#This Row],[Intended Use]],EditablePayItems[[IntendedUse]:[PayItemNumber]],6,FALSE)<>"",VLOOKUP(Data[[#This Row],[Intended Use]],EditablePayItems[[IntendedUse]:[PayItemNumber]],6,FALSE),""),"") -> 285701 | AT54: =IF(Data[[#This Row],[Date Paved]]<>"",VLOOKUP(Data[[#This Row],[Date Paved]],MonthlyCutOffDates[[Date From]:[MonthYear]],3),"") -> Dec 2018 | AU54: =IF(AND(Data[[#This Row],[Target Spread Rate]]<>"",Data[[#This Row],[Area]]<>""),Data[[#This Row],[Target Spread Rate]]*Data[[#This Row],[Area]]/2000,"") -> 44 | AV54: Mainline | AW54: US-98 | AZ54: =MIN(Data[[#This Row],[Start Station]:[End Station]]) -> 27700 | BA54: =MAX(Data[[#This Row],[Start Station]:[End Station]]) -> 28000 | BB54: =IF(AND(Data[[#This Row],[Quantity]]<>"",Data[[#This Row],[GmmGsb Value]]<>""),Data[[#This Row],[Quantity]]*Data[[#This Row],[GmmGsb Value]],"") -> 116.73354 | BD54: TRUE | BE54: =IF(Data[[#This Row],[Pay Item Number]]<>"",IF(VLOOKUP(Data[[#This Row],[Intended Use]],EditablePayItems[[IntendedUse]:[Actual Quantity Paid]],2,FALSE)="Prorated",IF(LEFT(Data[[#This Row],[Intended Use]],4)="ATPB","Cubic Yards","Square Yards"),"Tons"),"") -> Square Yards | BF54: =Data[[#This Row],[Lot]]&"-"&Data[[#This Row],[Line Number]] -> 1-25 | BG54: =IF(Data[[#This Row],[Date Paved]]<>"",TEXT(Data[[#This Row],[Date Paved]],"mm/dd/yyyy")&" - "&Data[[#This Row],[Shift]]&" - Crew "&Data[[#This Row],[Crew]],"") -> 10/05/2020 - Day - Crew 1 | BH54: =IF(Data[[#This Row],[Date Paved]]<>"",TEXT(Data[[#This Row],[Date Paved]],"mm/dd/yyyy"),"") -> 10/05/2020 | BJ54: =IF(OR(LEFT(Data[[#This Row],[Intended Use]],10)="Base Group", Data[[#This Row],[Intended Use]]="Turnout Const. (per sy)"),IF(AND(Data[[#This Row],[Thickness]]<>0,Data[[#This Row],[Total Thickness]]<>0,Data[[#This Row],[Area]]<>0),(Data[[#This Row],[Prorated Base]]/SUMIFS(Data[Prorated Base],Data[Intended Use],"="&Data[[#This Row],[Intended Use]]))*Data[[#This Row],[Total Thickness]],""), "") -> 0.01897506878 | BK54: =IF(OR(Data[[#This Row],[Roadway Type]]<>"",Data[[#This Row],[Roadway ID]]<>""),UPPER(Data[[#This Row],[Roadway Type]])&"~-~"&UPPER(Data[[#This Row],[Roadway ID]]),"") -> MAINLINE~-~US-98 | BL54: =IF(AND(Data[[#This Row],[Quantity]]<>"",Data[[#This Row],[Total Thickness]]<>"",Data[[#This Row],[Total Thickness]]<>0,Data[[#This Row],[GmmGsb Value]]<>"",Data[[#This Row],[GmmGsb Value]]<>0),IF(Data[[#This Row],[Quantity]]>0,(Data[[#This Row],[Quantity]]*2000)/(Data[[#This Row],[Total Thickness]]*Data[[#This Row],[GmmGsb Value]]*43.3),0),"") -> 208.7701647
A55: 1 | B55: =IF(AND(Data[[#This Row],[Lot]]<>"",FIN<>""),FIN,"") -> 41673245201 | C55: =IF(AND(Data[[#This Row],[Lot]]<>"",ContractNumber<>""),ContractNumber,"") -> T7396 | D55: =IF(AND(Data[[#This Row],[Lot]]<>"",Contractor<>""),Contractor,"") -> APS | E55: =IF(AND(Data[[#This Row],[Lot]]<>"",BidDate<>""),BidDate,"") -> 2019-07-19 | F55: =IF(AND(Data[[#This Row],[Lot]]<>"",LumpSum<>""),LumpSum,"") -> No | G55: 4000 tons | H55: TRUE | I55: FALSE | J55: SP 14-12329B | K55: =IF(Data[[#This Row],[Mix Design Number]]<>"",IF(RIGHT(VLOOKUP(Data[[#This Row],[Mix Design Number]],MixDesign[],3,FALSE),1)=":",VLOOKUP(Data[[#This Row],[Mix Design Number]],MixDesign[],3,FALSE),VLOOKUP(Data[[#This Row],[Mix Design Number]],MixDesign[],3,FALSE)&":"),"") -> Gmm: | L55: =IF(Data[[#This Row],[Mix Design Number]]<>"",VLOOKUP(Data[[#This Row],[Mix Design Number]],MixDesign[],4,FALSE),"") -> 2.541 | M55: 26 | O55: 2020-10-05 | P55: Day | Q55: 1 | R55: 1 | S55: 11-12 | T55: Base Group 1 | U55: N | W55: OL | Y55: 2 | Z55: 2 | AA55: 27700 | AB55: 28000 | AC55: 300 | AD55: 5 | AE55: 166.67 | AF55: 19.14 | AG55: 2 | AH55: 229.68 | AI55: =IF(OR(Data[[#This Row],[GmmGsb Value]]="",Data[[#This Row],[Thickness]]=""),"",IF(RIGHT(Data[[#This Row],[GmmGsb Type]],4)="Gsb:",ROUND(Data[[#This Row],[GmmGsb Value]]*Data[[#This Row],[Thickness]]*40.5,0),IF(Data[[#This Row],[GmmGsb Type]]="Gmm:",IF(Data[[#This Row],[Intended Use]]="Misc.",ROUND((Data[[#This Row],[GmmGsb Value]]/2.54)*(100*Data[[#This Row],[Thickness]]),0),ROUND(Data[[#This Row],[GmmGsb Value]]*Data[[#This Row],[Thickness]]*43.3,0)),""))) -> 220 | AJ55: 4 | AK55: =IF(Data[[#This Row],[Data Exists]]=FALSE,"",IF(LEFT(Data[[#This Row],[GmmGsb Type]],4)="ATPB",IF(AND(Data[[#This Row],[Start Station]]<>"",Data[[#This Row],[End Station]]<>"",Data[[#This Row],[Width]]<>"",Data[[#This Row],[Thickness]]<>"",Data[[#This Row],[Intended Use]]="ATPB"),Data[[#This Row],[Length]]*Data[[#This Row],[Width]]*Data[[#This Row],[Thickness]]/324,""),IF(Data[[#This Row],[Intended Use]]<>"",IF(UPPER(INDEX(EditablePayItems[],MATCH(IF(OR(RIGHT(Data[[#This Row],[Intended Use]],6)=" (opt)",RIGHT(Data[[#This Row],[Intended Use]],6)=" (req)"),LEFT(Data[[#This Row],[Intended Use]],LEN(Data[[#This Row],[Intended Use]])-6),Data[[#This Row],[Intended Use]]),EditablePayItems[IntendedUse],0),4))="PRORATED",IF(Data[[#This Row],[Total Thickness]]*Data[[#This Row],[Area]]<>0,Data[[#This Row],[Thickness]]/Data[[#This Row],[Total Thickness]]*Data[[#This Row],[Area]],0), ""),""))) -> 83.335 | AL55: C | AN55: J52006881-164 | AO55: 2021-02-26T07:11:37 | AP55: 2021-09-07T08:37:48 | AQ55: =IF(AND(Data[[#This Row],[Lot]]<>"",ProjectDateTimeStamp<>""),ProjectDateTimeStamp,"") -> 2023-10-05T10:35:05 | AR55: =IF(COUNTA(Data[[#This Row],[Lot]],Data[[#This Row],[Intended Lot Size]:[Mix Design Number]],Data[[#This Row],[Line Number]:[Spread Rate]],Data[[#This Row],[Total Thickness]],Data[[#This Row],[Varied Width Designation]:[Date Time Stamp]])>0,TRUE,FALSE) -> TRUE | AS55: =IF(Data[[#This Row],[Intended Use]]<>"",IF(VLOOKUP(Data[[#This Row],[Intended Use]],EditablePayItems[[IntendedUse]:[PayItemNumber]],6,FALSE)<>"",VLOOKUP(Data[[#This Row],[Intended Use]],EditablePayItems[[IntendedUse]:[PayItemNumber]],6,FALSE),""),"") -> 285701 | AT55: =IF(Data[[#This Row],[Date Paved]]<>"",VLOOKUP(Data[[#This Row],[Date Paved]],MonthlyCutOffDates[[Date From]:[MonthYear]],3),"") -> Dec 2018 | AU55: =IF(AND(Data[[#This Row],[Target Spread Rate]]<>"",Data[[#This Row],[Area]]<>""),Data[[#This Row],[Target Spread Rate]]*Data[[#This Row],[Area]]/2000,"") -> 18.3337 | AV55: Mainline | AW55: US-98 | AZ55: =MIN(Data[[#This Row],[Start Station]:[End Station]]) -> 27700 | BA55: =MAX(Data[[#This Row],[Start Station]:[End Station]]) -> 28000 | BB55: =IF(AND(Data[[#This Row],[Quantity]]<>"",Data[[#This Row],[GmmGsb Value]]<>""),Data[[#This Row],[Quantity]]*Data[[#This Row],[GmmGsb Value]],"") -> 48.63474 | BD55: TRUE | BE55: =IF(Data[[#This Row],[Pay Item Number]]<>"",IF(VLOOKUP(Data[[#This Row],[Intended Use]],EditablePayItems[[IntendedUse]:[Actual Quantity Paid]],2,FALSE)="Prorated",IF(LEFT(Data[[#This Row],[Intended Use]],4)="ATPB","Cubic Yards","Square Yards"),"Tons"),"") -> Square Yards | BF55: =Data[[#This Row],[Lot]]&"-"&Data[[#This Row],[Line Number]] -> 1-26 | BG55: =IF(Data[[#This Row],[Date Paved]]<>"",TEXT(Data[[#This Row],[Date Paved]],"mm/dd/yyyy")&" - "&Data[[#This Row],[Shift]]&" - Crew "&Data[[#This Row],[Crew]],"") -> 10/05/2020 - Day - Crew 1 | BH55: =IF(Data[[#This Row],[Date Paved]]<>"",TEXT(Data[[#This Row],[Date Paved]],"mm/dd/yyyy"),"") -> 10/05/2020 | BJ55: =IF(OR(LEFT(Data[[#This Row],[Intended Use]],10)="Base Group", Data[[#This Row],[Intended Use]]="Turnout Const. (per sy)"),IF(AND(Data[[#This Row],[Thickness]]<>0,Data[[#This Row],[Total Thickness]]<>0,Data[[#This Row],[Area]]<>0),(Data[[#This Row],[Prorated Base]]/SUMIFS(Data[Prorated Base],Data[Intended Use],"="&Data[[#This Row],[Intended Use]]))*Data[[#This Row],[Total Thickness]],""), "") -> 0.007906436782 | BK55: =IF(OR(Data[[#This Row],[Roadway Type]]<>"",Data[[#This Row],[Roadway ID]]<>""),UPPER(Data[[#This Row],[Roadway Type]])&"~-~"&UPPER(Data[[#This Row],[Roadway ID]]),"") -> MAINLINE~-~US-98 | BL55: =IF(AND(Data[[#This Row],[Quantity]]<>"",Data[[#This Row],[Total Thickness]]<>"",Data[[#This Row],[Total Thickness]]<>0,Data[[#This Row],[GmmGsb Value]]<>"",Data[[#This Row],[GmmGsb Value]]<>0),IF(Data[[#This Row],[Quantity]]>0,(Data[[#This Row],[Quantity]]*2000)/(Data[[#This Row],[Total Thickness]]*Data[[#This Row],[GmmGsb Value]]*43.3),0),"") -> 86.9799946
A56: 1 | B56: =IF(AND(Data[[#This Row],[Lot]]<>"",FIN<>""),FIN,"") -> 41673245201 | C56: =IF(AND(Data[[#This Row],[Lot]]<>"",ContractNumber<>""),ContractNumber,"") -> T7396 | D56: =IF(AND(Data[[#This Row],[Lot]]<>"",Contractor<>""),Contractor,"") -> APS | E56: =IF(AND(Data[[#This Row],[Lot]]<>"",BidDate<>""),BidDate,"") -> 2019-07-19 | F56: =IF(AND(Data[[#This Row],[Lot]]<>"",LumpSum<>""),LumpSum,"") -> No | G56: 4000 tons | H56: TRUE | I56: FALSE | J56: SP 14-12329B | K56: =IF(Data[[#This Row],[Mix Design Number]]<>"",IF(RIGHT(VLOOKUP(Data[[#This Row],[Mix Design Number]],MixDesign[],3,FALSE),1)=":",VLOOKUP(Data[[#This Row],[Mix Design Number]],MixDesign[],3,FALSE),VLOOKUP(Data[[#This Row],[Mix Design Number]],MixDesign[],3,FALSE)&":"),"") -> Gmm: | L56: =IF(Data[[#This Row],[Mix Design Number]]<>"",VLOOKUP(Data[[#This Row],[Mix Design Number]],MixDesign[],4,FALSE),"") -> 2.541 | M56: 27 | O56: 2020-10-05 | P56: Day | Q56: 1 | R56: 1 | S56: 12-13 | T56: Base Group 1 | U56: Y | W56: RT | X56: Ramp A | Y56: 2 | Z56: 2 | AA56: 81093 | AB56: 80966 | AC56: 127 | AD56: 15 | AE56: 211.67 | AF56: 24.27 | AG56: 2 | AH56: 229.32 | AI56: =IF(OR(Data[[#This Row],[GmmGsb Value]]="",Data[[#This Row],[Thickness]]=""),"",IF(RIGHT(Data[[#This Row],[GmmGsb Type]],4)="Gsb:",ROUND(Data[[#This Row],[GmmGsb Value]]*Data[[#This Row],[Thickness]]*40.5,0),IF(Data[[#This Row],[GmmGsb Type]]="Gmm:",IF(Data[[#This Row],[Intended Use]]="Misc.",ROUND((Data[[#This Row],[GmmGsb Value]]/2.54)*(100*Data[[#This Row],[Thickness]]),0),ROUND(Data[[#This Row],[GmmGsb Value]]*Data[[#This Row],[Thickness]]*43.3,0)),""))) -> 220 | AJ56: 4 | AK56: =IF(Data[[#This Row],[Data Exists]]=FALSE,"",IF(LEFT(Data[[#This Row],[GmmGsb Type]],4)="ATPB",IF(AND(Data[[#This Row],[Start Station]]<>"",Data[[#This Row],[End Station]]<>"",Data[[#This Row],[Width]]<>"",Data[[#This Row],[Thickness]]<>"",Data[[#This Row],[Intended Use]]="ATPB"),Data[[#This Row],[Length]]*Data[[#This Row],[Width]]*Data[[#This Row],[Thickness]]/324,""),IF(Data[[#This Row],[Intended Use]]<>"",IF(UPPER(INDEX(EditablePayItems[],MATCH(IF(OR(RIGHT(Data[[#This Row],[Intended Use]],6)=" (opt)",RIGHT(Data[[#This Row],[Intended Use]],6)=" (req)"),LEFT(Data[[#This Row],[Intended Use]],LEN(Data[[#This Row],[Intended Use]])-6),Data[[#This Row],[Intended Use]]),EditablePayItems[IntendedUse],0),4))="PRORATED",IF(Data[[#This Row],[Total Thickness]]*Data[[#This Row],[Area]]<>0,Data[[#This Row],[Thickness]]/Data[[#This Row],[Total Thickness]]*Data[[#This Row],[Area]],0), ""),""))) -> 105.835 | AL56: C | AN56: J52006881-164 | AO56: 2021-02-26T07:11:37 | AP56: 2021-09-07T08:37:48 | AQ56: =IF(AND(Data[[#This Row],[Lot]]<>"",ProjectDateTimeStamp<>""),ProjectDateTimeStamp,"") -> 2023-10-05T10:35:05 | AR56: =IF(COUNTA(Data[[#This Row],[Lot]],Data[[#This Row],[Intended Lot Size]:[Mix Design Number]],Data[[#This Row],[Line Number]:[Spread Rate]],Data[[#This Row],[Total Thickness]],Data[[#This Row],[Varied Width Designation]:[Date Time Stamp]])>0,TRUE,FALSE) -> TRUE | AS56: =IF(Data[[#This Row],[Intended Use]]<>"",IF(VLOOKUP(Data[[#This Row],[Intended Use]],EditablePayItems[[IntendedUse]:[PayItemNumber]],6,FALSE)<>"",VLOOKUP(Data[[#This Row],[Intended Use]],EditablePayItems[[IntendedUse]:[PayItemNumber]],6,FALSE),""),"") -> 285701 | AT56: =IF(Data[[#This Row],[Date Paved]]<>"",VLOOKUP(Data[[#This Row],[Date Paved]],MonthlyCutOffDates[[Date From]:[MonthYear]],3),"") -> Dec 2018 | AU56: =IF(AND(Data[[#This Row],[Target Spread Rate]]<>"",Data[[#This Row],[Area]]<>""),Data[[#This Row],[Target Spread Rate]]*Data[[#This Row],[Area]]/2000,"") -> 23.2837 | AV56: Mainline | AW56: SR-50 | AZ56: =MIN(Data[[#This Row],[Start Station]:[End Station]]) -> 80966 | BA56: =MAX(Data[[#This Row],[Start Station]:[End Station]]) -> 81093 | BB56: =IF(AND(Data[[#This Row],[Quantity]]<>"",Data[[#This Row],[GmmGsb Value]]<>""),Data[[#This Row],[Quantity]]*Data[[#This Row],[GmmGsb Value]],"") -> 61.67007 | BD56: TRUE | BE56: =IF(Data[[#This Row],[Pay Item Number]]<>"",IF(VLOOKUP(Data[[#This Row],[Intended Use]],EditablePayItems[[IntendedUse]:[Actual Quantity Paid]],2,FALSE)="Prorated",IF(LEFT(Data[[#This Row],[Intended Use]],4)="ATPB","Cubic Yards","Square Yards"),"Tons"),"") -> Square Yards | BF56: =Data[[#This Row],[Lot]]&"-"&Data[[#This Row],[Line Number]] -> 1-27 | BG56: =IF(Data[[#This Row],[Date Paved]]<>"",TEXT(Data[[#This Row],[Date Paved]],"mm/dd/yyyy")&" - "&Data[[#This Row],[Shift]]&" - Crew "&Data[[#This Row],[Crew]],"") -> 10/05/2020 - Day - Crew 1 | BH56: =IF(Data[[#This Row],[Date Paved]]<>"",TEXT(Data[[#This Row],[Date Paved]],"mm/dd/yyyy"),"") -> 10/05/2020 | BJ56: =IF(OR(LEFT(Data[[#This Row],[Intended Use]],10)="Base Group", Data[[#This Row],[Intended Use]]="Turnout Const. (per sy)"),IF(AND(Data[[#This Row],[Thickness]]<>0,Data[[#This Row],[Total Thickness]]<>0,Data[[#This Row],[Area]]<>0),(Data[[#This Row],[Prorated Base]]/SUMIFS(Data[Prorated Base],Data[Intended Use],"="&Data[[#This Row],[Intended Use]]))*Data[[#This Row],[Total Thickness]],""), "") -> 0.01004113202 | BK56: =IF(OR(Data[[#This Row],[Roadway Type]]<>"",Data[[#This Row],[Roadway ID]]<>""),UPPER(Data[[#This Row],[Roadway Type]])&"~-~"&UPPER(Data[[#This Row],[Roadway ID]]),"") -> MAINLINE~-~SR-50 | BL56: =IF(AND(Data[[#This Row],[Quantity]]<>"",Data[[#This Row],[Total Thickness]]<>"",Data[[#This Row],[Total Thickness]]<>0,Data[[#This Row],[GmmGsb Value]]<>"",Data[[#This Row],[GmmGsb Value]]<>0),IF(Data[[#This Row],[Quantity]]>0,(Data[[#This Row],[Quantity]]*2000)/(Data[[#This Row],[Total Thickness]]*Data[[#This Row],[GmmGsb Value]]*43.3),0),"") -> 110.2928145
A57: 1 | B57: =IF(AND(Data[[#This Row],[Lot]]<>"",FIN<>""),FIN,"") -> 41673245201 | C57: =IF(AND(Data[[#This Row],[Lot]]<>"",ContractNumber<>""),ContractNumber,"") -> T7396 | D57: =IF(AND(Data[[#This Row],[Lot]]<>"",Contractor<>""),Contractor,"") -> APS | E57: =IF(AND(Data[[#This Row],[Lot]]<>"",BidDate<>""),BidDate,"") -> 2019-07-19 | F57: =IF(AND(Data[[#This Row],[Lot]]<>"",LumpSum<>""),LumpSum,"") -> No | G57: 4000 tons | H57: TRUE | I57: FALSE | J57: SP 14-12329B | K57: =IF(Data[[#This Row],[Mix Design Number]]<>"",IF(RIGHT(VLOOKUP(Data[[#This Row],[Mix Design Number]],MixDesign[],3,FALSE),1)=":",VLOOKUP(Data[[#This Row],[Mix Design Number]],MixDesign[],3,FALSE),VLOOKUP(Data[[#This Row],[Mix Design Number]],MixDesign[],3,FALSE)&":"),"") -> Gmm: | L57: =IF(Data[[#This Row],[Mix Design Number]]<>"",VLOOKUP(Data[[#This Row],[Mix Design Number]],MixDesign[],4,FALSE),"") -> 2.541 | M57: 28 | O57: 2020-10-05 | P57: Day | Q57: 1 | R57: 2 | S57: 13-18 | T57: Base Group 1 | U57: Y | W57: RT | X57: Ramp A | Y57: 2 | Z57: 2 | AA57: 80966 | AB57: 80334 | AC57: 632 | AD57: 15 | AE57: 1053.33 | AF57: 115.18 | AG57: 2 | AH57: 218.7 | AI57: =IF(OR(Data[[#This Row],[GmmGsb Value]]="",Data[[#This Row],[Thickness]]=""),"",IF(RIGHT(Data[[#This Row],[GmmGsb Type]],4)="Gsb:",ROUND(Data[[#This Row],[GmmGsb Value]]*Data[[#This Row],[Thickness]]*40.5,0),IF(Data[[#This Row],[GmmGsb Type]]="Gmm:",IF(Data[[#This Row],[Intended Use]]="Misc.",ROUND((Data[[#This Row],[GmmGsb Value]]/2.54)*(100*Data[[#This Row],[Thickness]]),0),ROUND(Data[[#This Row],[GmmGsb Value]]*Data[[#This Row],[Thickness]]*43.3,0)),""))) -> 220 | AJ57: 4 | AK57: =IF(Data[[#This Row],[Data Exists]]=FALSE,"",IF(LEFT(Data[[#This Row],[GmmGsb Type]],4)="ATPB",IF(AND(Data[[#This Row],[Start Station]]<>"",Data[[#This Row],[End Station]]<>"",Data[[#This Row],[Width]]<>"",Data[[#This Row],[Thickness]]<>"",Data[[#This Row],[Intended Use]]="ATPB"),Data[[#This Row],[Length]]*Data[[#This Row],[Width]]*Data[[#This Row],[Thickness]]/324,""),IF(Data[[#This Row],[Intended Use]]<>"",IF(UPPER(INDEX(EditablePayItems[],MATCH(IF(OR(RIGHT(Data[[#This Row],[Intended Use]],6)=" (opt)",RIGHT(Data[[#This Row],[Intended Use]],6)=" (req)"),LEFT(Data[[#This Row],[Intended Use]],LEN(Data[[#This Row],[Intended Use]])-6),Data[[#This Row],[Intended Use]]),EditablePayItems[IntendedUse],0),4))="PRORATED",IF(Data[[#This Row],[Total Thickness]]*Data[[#This Row],[Area]]<>0,Data[[#This Row],[Thickness]]/Data[[#This Row],[Total Thickness]]*Data[[#This Row],[Area]],0), ""),""))) -> 526.665 | AL57: C | AN57: J52006881-164 | AO57: 2021-02-26T07:11:37 | AP57: 2021-09-07T08:37:48 | AQ57: =IF(AND(Data[[#This Row],[Lot]]<>"",ProjectDateTimeStamp<>""),ProjectDateTimeStamp,"") -> 2023-10-05T10:35:05 | AR57: =IF(COUNTA(Data[[#This Row],[Lot]],Data[[#This Row],[Intended Lot Size]:[Mix Design Number]],Data[[#This Row],[Line Number]:[Spread Rate]],Data[[#This Row],[Total Thickness]],Data[[#This Row],[Varied Width Designation]:[Date Time Stamp]])>0,TRUE,FALSE) -> TRUE | AS57: =IF(Data[[#This Row],[Intended Use]]<>"",IF(VLOOKUP(Data[[#This Row],[Intended Use]],EditablePayItems[[IntendedUse]:[PayItemNumber]],6,FALSE)<>"",VLOOKUP(Data[[#This Row],[Intended Use]],EditablePayItems[[IntendedUse]:[PayItemNumber]],6,FALSE),""),"") -> 285701 | AT57: =IF(Data[[#This Row],[Date Paved]]<>"",VLOOKUP(Data[[#This Row],[Date Paved]],MonthlyCutOffDates[[Date From]:[MonthYear]],3),"") -> Dec 2018 | AU57: =IF(AND(Data[[#This Row],[Target Spread Rate]]<>"",Data[[#This Row],[Area]]<>""),Data[[#This Row],[Target Spread Rate]]*Data[[#This Row],[Area]]/2000,"") -> 115.8663 | AV57: Mainline | AW57: SR-50 | AZ57: =MIN(Data[[#This Row],[Start Station]:[End Station]]) -> 80334 | BA57: =MAX(Data[[#This Row],[Start Station]:[End Station]]) -> 80966 | BB57: =IF(AND(Data[[#This Row],[Quantity]]<>"",Data[[#This Row],[GmmGsb Value]]<>""),Data[[#This Row],[Quantity]]*Data[[#This Row],[GmmGsb Value]],"") -> 292.67238 | BD57: TRUE | BE57: =IF(Data[[#This Row],[Pay Item Number]]<>"",IF(VLOOKUP(Data[[#This Row],[Intended Use]],EditablePayItems[[IntendedUse]:[Actual Quantity Paid]],2,FALSE)="Prorated",IF(LEFT(Data[[#This Row],[Intended Use]],4)="ATPB","Cubic Yards","Square Yards"),"Tons"),"") -> Square Yards | BF57: =Data[[#This Row],[Lot]]&"-"&Data[[#This Row],[Line Number]] -> 1-28 | BG57: =IF(Data[[#This Row],[Date Paved]]<>"",TEXT(Data[[#This Row],[Date Paved]],"mm/dd/yyyy")&" - "&Data[[#This Row],[Shift]]&" - Crew "&Data[[#This Row],[Crew]],"") -> 10/05/2020 - Day - Crew 1 | BH57: =IF(Data[[#This Row],[Date Paved]]<>"",TEXT(Data[[#This Row],[Date Paved]],"mm/dd/yyyy"),"") -> 10/05/2020 | BJ57: =IF(OR(LEFT(Data[[#This Row],[Intended Use]],10)="Base Group", Data[[#This Row],[Intended Use]]="Turnout Const. (per sy)"),IF(AND(Data[[#This Row],[Thickness]]<>0,Data[[#This Row],[Total Thickness]]<>0,Data[[#This Row],[Area]]<>0),(Data[[#This Row],[Prorated Base]]/SUMIFS(Data[Prorated Base],Data[Intended Use],"="&Data[[#This Row],[Intended Use]]))*Data[[#This Row],[Total Thickness]],""), "") -> 0.04996752298 | BK57: =IF(OR(Data[[#This Row],[Roadway Type]]<>"",Data[[#This Row],[Roadway ID]]<>""),UPPER(Data[[#This Row],[Roadway Type]])&"~-~"&UPPER(Data[[#This Row],[Roadway ID]]),"") -> MAINLINE~-~SR-50 | BL57: =IF(AND(Data[[#This Row],[Quantity]]<>"",Data[[#This Row],[Total Thickness]]<>"",Data[[#This Row],[Total Thickness]]<>0,Data[[#This Row],[GmmGsb Value]]<>"",Data[[#This Row],[GmmGsb Value]]<>0),IF(Data[[#This Row],[Quantity]]>0,(Data[[#This Row],[Quantity]]*2000)/(Data[[#This Row],[Total Thickness]]*Data[[#This Row],[GmmGsb Value]]*43.3),0),"") -> 523.4250668
A58: 1 | B58: =IF(AND(Data[[#This Row],[Lot]]<>"",FIN<>""),FIN,"") -> 41673245201 | C58: =IF(AND(Data[[#This Row],[Lot]]<>"",ContractNumber<>""),ContractNumber,"") -> T7396 | D58: =IF(AND(Data[[#This Row],[Lot]]<>"",Contractor<>""),Contractor,"") -> APS | E58: =IF(AND(Data[[#This Row],[Lot]]<>"",BidDate<>""),BidDate,"") -> 2019-07-19 | F58: =IF(AND(Data[[#This Row],[Lot]]<>"",LumpSum<>""),LumpSum,"") -> No | G58: 4000 tons | H58: TRUE | I58: FALSE | J58: SP 14-12329B | K58: =IF(Data[[#This Row],[Mix Design Number]]<>"",IF(RIGHT(VLOOKUP(Data[[#This Row],[Mix Design Number]],MixDesign[],3,FALSE),1)=":",VLOOKUP(Data[[#This Row],[Mix Design Number]],MixDesign[],3,FALSE),VLOOKUP(Data[[#This Row],[Mix Design Number]],MixDesign[],3,FALSE)&":"),"") -> Gmm: | L58: =IF(Data[[#This Row],[Mix Design Number]]<>"",VLOOKUP(Data[[#This Row],[Mix Design Number]],MixDesign[],4,FALSE),"") -> 2.541 | M58: 29 | O58: 2020-10-05 | P58: Day | Q58: 1 | R58: 2 | S58: 18-20 | T58: Base Group 1 | U58: Y | W58: RT | Y58: 2 | Z58: 2 | AA58: 174500 | AB58: 174754 | AC58: 254 | AD58: 12 | AE58: 338.67 | AF58: 37.01 | AG58: 2 | AH58: 218.56 | AI58: =IF(OR(Data[[#This Row],[GmmGsb Value]]="",Data[[#This Row],[Thickness]]=""),"",IF(RIGHT(Data[[#This Row],[GmmGsb Type]],4)="Gsb:",ROUND(Data[[#This Row],[GmmGsb Value]]*Data[[#This Row],[Thickness]]*40.5,0),IF(Data[[#This Row],[GmmGsb Type]]="Gmm:",IF(Data[[#This Row],[Intended Use]]="Misc.",ROUND((Data[[#This Row],[GmmGsb Value]]/2.54)*(100*Data[[#This Row],[Thickness]]),0),ROUND(Data[[#This Row],[GmmGsb Value]]*Data[[#This Row],[Thickness]]*43.3,0)),""))) -> 220 | AJ58: 4 | AK58: =IF(Data[[#This Row],[Data Exists]]=FALSE,"",IF(LEFT(Data[[#This Row],[GmmGsb Type]],4)="ATPB",IF(AND(Data[[#This Row],[Start Station]]<>"",Data[[#This Row],[End Station]]<>"",Data[[#This Row],[Width]]<>"",Data[[#This Row],[Thickness]]<>"",Data[[#This Row],[Intended Use]]="ATPB"),Data[[#This Row],[Length]]*Data[[#This Row],[Width]]*Data[[#This Row],[Thickness]]/324,""),IF(Data[[#This Row],[Intended Use]]<>"",IF(UPPER(INDEX(EditablePayItems[],MATCH(IF(OR(RIGHT(Data[[#This Row],[Intended Use]],6)=" (opt)",RIGHT(Data[[#This Row],[Intended Use]],6)=" (req)"),LEFT(Data[[#This Row],[Intended Use]],LEN(Data[[#This Row],[Intended Use]])-6),Data[[#This Row],[Intended Use]]),EditablePayItems[IntendedUse],0),4))="PRORATED",IF(Data[[#This Row],[Total Thickness]]*Data[[#This Row],[Area]]<>0,Data[[#This Row],[Thickness]]/Data[[#This Row],[Total Thickness]]*Data[[#This Row],[Area]],0), ""),""))) -> 169.335 | AL58: C | AN58: J52006881-164 | AO58: 2021-02-26T07:11:37 | AP58: 2021-09-07T08:37:48 | AQ58: =IF(AND(Data[[#This Row],[Lot]]<>"",ProjectDateTimeStamp<>""),ProjectDateTimeStamp,"") -> 2023-10-05T10:35:05 | AR58: =IF(COUNTA(Data[[#This Row],[Lot]],Data[[#This Row],[Intended Lot Size]:[Mix Design Number]],Data[[#This Row],[Line Number]:[Spread Rate]],Data[[#This Row],[Total Thickness]],Data[[#This Row],[Varied Width Designation]:[Date Time Stamp]])>0,TRUE,FALSE) -> TRUE | AS58: =IF(Data[[#This Row],[Intended Use]]<>"",IF(VLOOKUP(Data[[#This Row],[Intended Use]],EditablePayItems[[IntendedUse]:[PayItemNumber]],6,FALSE)<>"",VLOOKUP(Data[[#This Row],[Intended Use]],EditablePayItems[[IntendedUse]:[PayItemNumber]],6,FALSE),""),"") -> 285701 | AT58: =IF(Data[[#This Row],[Date Paved]]<>"",VLOOKUP(Data[[#This Row],[Date Paved]],MonthlyCutOffDates[[Date From]:[MonthYear]],3),"") -> Dec 2018 | AU58: =IF(AND(Data[[#This Row],[Target Spread Rate]]<>"",Data[[#This Row],[Area]]<>""),Data[[#This Row],[Target Spread Rate]]*Data[[#This Row],[Area]]/2000,"") -> 37.2537 | AV58: Mainline | AW58: SR-50 | AZ58: =MIN(Data[[#This Row],[Start Station]:[End Station]]) -> 174500 | BA58: =MAX(Data[[#This Row],[Start Station]:[End Station]]) -> 174754 | BB58: =IF(AND(Data[[#This Row],[Quantity]]<>"",Data[[#This Row],[GmmGsb Value]]<>""),Data[[#This Row],[Quantity]]*Data[[#This Row],[GmmGsb Value]],"") -> 94.04241 | BD58: TRUE | BE58: =IF(Data[[#This Row],[Pay Item Number]]<>"",IF(VLOOKUP(Data[[#This Row],[Intended Use]],EditablePayItems[[IntendedUse]:[Actual Quantity Paid]],2,FALSE)="Prorated",IF(LEFT(Data[[#This Row],[Intended Use]],4)="ATPB","Cubic Yards","Square Yards"),"Tons"),"") -> Square Yards | BF58: =Data[[#This Row],[Lot]]&"-"&Data[[#This Row],[Line Number]] -> 1-29 | BG58: =IF(Data[[#This Row],[Date Paved]]<>"",TEXT(Data[[#This Row],[Date Paved]],"mm/dd/yyyy")&" - "&Data[[#This Row],[Shift]]&" - Crew "&Data[[#This Row],[Crew]],"") -> 10/05/2020 - Day - Crew 1 | BH58: =IF(Data[[#This Row],[Date Paved]]<>"",TEXT(Data[[#This Row],[Date Paved]],"mm/dd/yyyy"),"") -> 10/05/2020 | BJ58: =IF(OR(LEFT(Data[[#This Row],[Intended Use]],10)="Base Group", Data[[#This Row],[Intended Use]]="Turnout Const. (per sy)"),IF(AND(Data[[#This Row],[Thickness]]<>0,Data[[#This Row],[Total Thickness]]<>0,Data[[#This Row],[Area]]<>0),(Data[[#This Row],[Prorated Base]]/SUMIFS(Data[Prorated Base],Data[Intended Use],"="&Data[[#This Row],[Intended Use]]))*Data[[#This Row],[Total Thickness]],""), "") -> 0.01606571636 | BK58: =IF(OR(Data[[#This Row],[Roadway Type]]<>"",Data[[#This Row],[Roadway ID]]<>""),UPPER(Data[[#This Row],[Roadway Type]])&"~-~"&UPPER(Data[[#This Row],[Roadway ID]]),"") -> MAINLINE~-~SR-50 | BL58: =IF(AND(Data[[#This Row],[Quantity]]<>"",Data[[#This Row],[Total Thickness]]<>"",Data[[#This Row],[Total Thickness]]<>0,Data[[#This Row],[GmmGsb Value]]<>"",Data[[#This Row],[GmmGsb Value]]<>0),IF(Data[[#This Row],[Quantity]]>0,(Data[[#This Row],[Quantity]]*2000)/(Data[[#This Row],[Total Thickness]]*Data[[#This Row],[GmmGsb Value]]*43.3),0),"") -> 168.1885894
